Workbook

Sheet Oversigt Ændringer
B1: Selskabsnavn | C1: Kalundborg Vandforsyning
B2: Selskabs ID | C2: V112
B3: Afskrivning referenceår | C3: 2026
B6: Denne fane viser, hvilke ændringer der er foretaget i henholdsvis Produktionsanlæg, Distributionsanlæg og Fællesfunktionsanlæg. Kolonne G viser værdien før ændringen, og kolonne H viser værdien efter ændringen. Det er vigtigt, at I skriver en begrundelse i kolonne I (”Begrundelse”), hvis I har foretaget en ændring. I begrundelsen skal der tydeligt fremgå, hvilken dokumentation I har vedlagt i Vanddata for den givne ændring. Når I er færdige med at ændre i POLKA og har skrevet begrundelser for alle ændringerne, skal I klikke på knappen ”Gem revisorversion”, som skaber et nyt dokument, som jeres revisor skal godkende. Det er vigtigt, at I både uploader den fil, hvor I har foretaget ændringer samt den nye fil til revisor. Hvis I fortryder en ændring, skal I blot nulstille til den oprindelige værdi ved at bruge nulstil-knappen, der vises, når I står i kolonne H.
F8: ="Afskrivning i alt ("&Afskrivning_Referenceår&") →" -> Afskrivning i alt (2026) → | G8: 7714878.586
G9: ↓ Værdi ↓
A11: Nøgle | B11: Anlægstype | C11: Navn anlæg | D11: Anlæg | E11: Komponent | F11: År | G11: Før | H11: Efter | I11: Begrundelse | J11: OK | K11: Celle | L11: Række

Sheet Produktionsanlæg
A1: Produktionsanlæg | B1: Enhed | C1: Standard-levetid | D1: Mængde | E1: Mængde | F1: Mængde | G1: Mængde | H1: Mængde | I1: Mængde | J1: Mængde | K1: Mængde | L1: Mængde | M1: Mængde | N1: Mængde | O1: Mængde | P1: Mængde | Q1: Mængde | R1: Mængde | S1: Mængde | T1: Mængde | U1: Mængde | V1: Mængde | W1: Mængde | X1: Mængde | Y1: Mængde | Z1: Beregnet enhedspris | AA1: Nedskrevet genanskaffelsesværdi pr. år | AW1: Nedskrevet genanskaffelsesværdi i alt | AX1: Nedskrevet anskaffelsesværdi pr. år | BT1: Nedskrevet anskaffelsesværdi i alt | BU1: Nedskrevet standardværdi pr. år | CQ1: Nedskrevet standardværdi i alt
D2: Før 1910 | E2: 1910-1919 | F2: 1920-1929 | G2: 1930-1939 | H2: 1940-1949 | I2: 1950-1959 | J2: 1960-1969 | K2: 1970-1979 | L2: 1980-1984 | M2: 1985-1989 | N2: 1990-1994 | O2: 1995-1999 | P2: 2000 | Q2: =+P2+1 -> 2001 | R2: =+Q2+1 -> 2002 | S2: 2003 | T2: 2004 | U2: 2005 | V2: 2006 | W2: 2007 | X2: 2008 | Y2: 2009 | AA2: Før 1910 | AB2: 1910-1919 | AC2: 1920-1929 | AD2: 1930-1939 | AE2: 1940-1949 | AF2: 1950-1959 | AG2: 1960-1969 | AH2: 1970-1979 | AI2: 1980-1984 | AJ2: 1985-1989 | AK2: 1990-1994 | AL2: 1995-1999 | AM2: 2000 | AN2: =+AM2+1 -> 2001 | AO2: =+AN2+1 -> 2002 | AP2: 2003 | AQ2: 2004 | AR2: 2005 | AS2: 2006 | AT2: 2007 | AU2: 2008 | AV2: 2009 | AX2: Før 1910 | AY2: 1910-1919 | AZ2: 1920-1929 | BA2: 1930-1939 | BB2: 1940-1949 | BC2: 1950-1959 | BD2: 1960-1969 | BE2: 1970-1979 | BF2: 1980-1984 | BG2: 1985-1989 | BH2: 1990-1994 | BI2: 1995-1999 | BJ2: 2000 | BK2: =+BJ2+1 -> 2001 | BL2: =+BK2+1 -> 2002 | BM2: 2003 | BN2: 2004 | BO2: 2005 | BP2: 2006 | BQ2: 2007 | BR2: 2008 | BS2: 2009 | BU2: Før 1910 | BV2: 1910-1919 | BW2: 1920-1929 | BX2: 1930-1939 | BY2: 1940-1949 | BZ2: 1950-1959 | CA2: 1960-1969 | CB2: 1970-1979 | CC2: 1980-1984 | CD2: 1985-1989 | CE2: 1990-1994 | CF2: 1995-1999 | CG2: 2000 | CH2: =+CG2+1 -> 2001 | CI2: =+CH2+1 -> 2002 | CJ2: 2003 | CK2: 2004 | CL2: 2005 | CM2: 2006 | CN2: 2007 | CO2: 2008 | CP2: 2009 | CR2: Mængde
A3: Indeksår | D3: 1905 | E3: =+D3+10 -> 1915 | F3: =+E3+10 -> 1925 | G3: 1935 | H3: 1945 | I3: 1955 | J3: 1965 | K3: 1975 | L3: 1982 | M3: 1987 | N3: =+L3+10 -> 1992 | O3: 1997 | P3: =+P2 -> 2000 | Q3: =+Q2 -> 2001 | R3: 2002 | S3: 2003 | T3: 2004 | U3: 2005 | V3: 2006 | W3: 2007 | X3: 2008 | Y3: 2009 | AA3: 1905 | AB3: =+AA3+10 -> 1915 | AC3: =+AB3+10 -> 1925 | AD3: 1935 | AE3: 1945 | AF3: 1955 | AG3: 1965 | AH3: 1975 | AI3: 1982 | AJ3: 1987 | AK3: =+AI3+10 -> 1992 | AL3: 1997 | AM3: =+AM2 -> 2000 | AN3: 2001 | AO3: 2002 | AP3: 2003 | AQ3: 2004 | AR3: 2005 | AS3: 2006 | AT3: 2007 | AU3: 2008 | AV3: 2009 | AX3: 1905 | AY3: =+AX3+10 -> 1915 | AZ3: =+AY3+10 -> 1925 | BA3: 1935 | BB3: 1945 | BC3: 1955 | BD3: 1965 | BE3: 1975 | BF3: 1982 | BG3: 1987 | BH3: =+BF3+10 -> 1992 | BI3: 1997 | BJ3: =+BJ2 -> 2000 | BK3: 2001 | BL3: 2002 | BM3: 2003 | BN3: 2004 | BO3: 2005 | BP3: 2006 | BQ3: 2007 | BR3: 2008 | BS3: 2009 | BU3: 1905 | BV3: =+BU3+10 -> 1915 | BW3: =+BV3+10 -> 1925 | BX3: 1935 | BY3: 1945 | BZ3: 1955 | CA3: 1965 | CB3: 1975 | CC3: 1982 | CD3: 1987 | CE3: =+CC3+10 -> 1992 | CF3: 1997 | CG3: =+CG2 -> 2000 | CH3: 2001 | CI3: 2002 | CJ3: 2003 | CK3: 2004 | CL3: 2005 | CM3: 2006 | CN3: 2007 | CO3: 2008 | CP3: 2009
A4: Boringer | AW4: =SUM(AW5) -> 1313647.65 | BT4: =SUM(BT5) -> 924660.5935 | CQ4: =SUM(CQ5) -> 1119154.122
A5: Boring (inkl. etablering, forerør, filter og prøvepumpning) | B5: dybdemeter | C5: =Genanskaffelsespriser!E5 -> 30 | D5: 0 | E5: 0 | F5: 0 | G5: 0 | H5: 0 | I5: 0 | J5: =175+73+27.2 -> 275.2 | K5: =54+21+110.2 -> 185.2 | L5: =72+20+40.25+32 -> 164.25 | M5: =391+23+79.3+25+35 -> 553.3 | N5: =46.5+427+27.5 -> 501 | O5: =29.5+111+39.7 -> 180.2 | P5: 0 | Q5: 0 | R5: 0 | S5: 0 | T5: 0 | U5: 0 | V5: 0 | W5: 0 | X5: 0 | Y5: 28.4 | AA5: =IF((D5*Genanskaffelsespriser!$D5-(2009-D$3)/($C5+D6)*Genanskaffelsespriser!$D5*D5)<0,0,(D5*Genanskaffelsespriser!$D5-(2009-D$3)/($C5+D6)*Genanskaffelsespriser!$D5*D5)) -> 0 | AB5: =IF((E5*Genanskaffelsespriser!$D5-(2009-E$3)/($C5+E6)*Genanskaffelsespriser!$D5*E5)<0,0,(E5*Genanskaffelsespriser!$D5-(2009-E$3)/($C5+E6)*Genanskaffelsespriser!$D5*E5)) -> 0 | AC5: =IF((F5*Genanskaffelsespriser!$D5-(2009-F$3)/($C5+F6)*Genanskaffelsespriser!$D5*F5)<0,0,(F5*Genanskaffelsespriser!$D5-(2009-F$3)/($C5+F6)*Genanskaffelsespriser!$D5*F5)) -> 0 | AD5: =IF((G5*Genanskaffelsespriser!$D5-(2009-G$3)/($C5+G6)*Genanskaffelsespriser!$D5*G5)<0,0,(G5*Genanskaffelsespriser!$D5-(2009-G$3)/($C5+G6)*Genanskaffelsespriser!$D5*G5)) -> 0 | AE5: =IF((H5*Genanskaffelsespriser!$D5-(2009-H$3)/($C5+H6)*Genanskaffelsespriser!$D5*H5)<0,0,(H5*Genanskaffelsespriser!$D5-(2009-H$3)/($C5+H6)*Genanskaffelsespriser!$D5*H5)) -> 0 | AF5: =IF((I5*Genanskaffelsespriser!$D5-(2009-I$3)/($C5+I6)*Genanskaffelsespriser!$D5*I5)<0,0,(I5*Genanskaffelsespriser!$D5-(2009-I$3)/($C5+I6)*Genanskaffelsespriser!$D5*I5)) -> 0 | AG5: =IF((J5*Genanskaffelsespriser!$D5-(2009-J$3)/($C5+J6)*Genanskaffelsespriser!$D5*J5)<0,0,(J5*Genanskaffelsespriser!$D5-(2009-J$3)/($C5+J6)*Genanskaffelsespriser!$D5*J5)) -> 0 | AH5: =IF((K5*Genanskaffelsespriser!$D5-(2009-K$3)/($C5+K6)*Genanskaffelsespriser!$D5*K5)<0,0,(K5*Genanskaffelsespriser!$D5-(2009-K$3)/($C5+K6)*Genanskaffelsespriser!$D5*K5)) -> 0 | AI5: =IF((L5*Genanskaffelsespriser!$D5-(2009-L$3)/($C5+L6)*Genanskaffelsespriser!$D5*L5)<0,0,(L5*Genanskaffelsespriser!$D5-(2009-L$3)/($C5+L6)*Genanskaffelsespriser!$D5*L5)) -> 41686.65 | AJ5: =IF((M5*Genanskaffelsespriser!$D5-(2009-M$3)/($C5+M6)*Genanskaffelsespriser!$D5*M5)<0,0,(M5*Genanskaffelsespriser!$D5-(2009-M$3)/($C5+M6)*Genanskaffelsespriser!$D5*M5)) -> 374473.44 | AK5: =IF((N5*Genanskaffelsespriser!$D5-(2009-N$3)/($C5+N6)*Genanskaffelsespriser!$D5*N5)<0,0,(N5*Genanskaffelsespriser!$D5-(2009-N$3)/($C5+N6)*Genanskaffelsespriser!$D5*N5)) -> 550999.8 | AL5: =IF((O5*Genanskaffelsespriser!$D5-(2009-O$3)/($C5+O6)*Genanskaffelsespriser!$D5*O5)<0,0,(O5*Genanskaffelsespriser!$D5-(2009-O$3)/($C5+O6)*Genanskaffelsespriser!$D5*O5)) -> 274408.56 | AM5: =IF((P5*Genanskaffelsespriser!$D5-(2009-P$3)/($C5+P6)*Genanskaffelsespriser!$D5*P5)<0,0,(P5*Genanskaffelsespriser!$D5-(2009-P$3)/($C5+P6)*Genanskaffelsespriser!$D5*P5)) -> 0 | AN5: =IF((Q5*Genanskaffelsespriser!$D5-(2009-Q$3)/($C5+Q6)*Genanskaffelsespriser!$D5*Q5)<0,0,(Q5*Genanskaffelsespriser!$D5-(2009-Q$3)/($C5+Q6)*Genanskaffelsespriser!$D5*Q5)) -> 0 | AO5: =IF((R5*Genanskaffelsespriser!$D5-(2009-R$3)/($C5+R6)*Genanskaffelsespriser!$D5*R5)<0,0,(R5*Genanskaffelsespriser!$D5-(2009-R$3)/($C5+R6)*Genanskaffelsespriser!$D5*R5)) -> 0 | AP5: =IF((S5*Genanskaffelsespriser!$D5-(2009-S$3)/($C5+S6)*Genanskaffelsespriser!$D5*S5)<0,0,(S5*Genanskaffelsespriser!$D5-(2009-S$3)/($C5+S6)*Genanskaffelsespriser!$D5*S5)) -> 0 | AQ5: =IF((T5*Genanskaffelsespriser!$D5-(2009-T$3)/($C5+T6)*Genanskaffelsespriser!$D5*T5)<0,0,(T5*Genanskaffelsespriser!$D5-(2009-T$3)/($C5+T6)*Genanskaffelsespriser!$D5*T5)) -> 0 | AR5: =IF((U5*Genanskaffelsespriser!$D5-(2009-U$3)/($C5+U6)*Genanskaffelsespriser!$D5*U5)<0,0,(U5*Genanskaffelsespriser!$D5-(2009-U$3)/($C5+U6)*Genanskaffelsespriser!$D5*U5)) -> 0 | AS5: =IF((V5*Genanskaffelsespriser!$D5-(2009-V$3)/($C5+V6)*Genanskaffelsespriser!$D5*V5)<0,0,(V5*Genanskaffelsespriser!$D5-(2009-V$3)/($C5+V6)*Genanskaffelsespriser!$D5*V5)) -> 0 | AT5: =IF((W5*Genanskaffelsespriser!$D5-(2009-W$3)/($C5+W6)*Genanskaffelsespriser!$D5*W5)<0,0,(W5*Genanskaffelsespriser!$D5-(2009-W$3)/($C5+W6)*Genanskaffelsespriser!$D5*W5)) -> 0 | AU5: =IF((X5*Genanskaffelsespriser!$D5-(2009-X$3)/($C5+X6)*Genanskaffelsespriser!$D5*X5)<0,0,(X5*Genanskaffelsespriser!$D5-(2009-X$3)/($C5+X6)*Genanskaffelsespriser!$D5*X5)) -> 0 | AV5: =IF((Y5*Genanskaffelsespriser!$D5-(2009-Y$3)/($C5+Y6)*Genanskaffelsespriser!$D5*Y5)<0,0,(Y5*Genanskaffelsespriser!$D5-(2009-Y$3)/($C5+Y6)*Genanskaffelsespriser!$D5*Y5)) -> 72079.2 | AW5: =+SUM(AA5:AV5) -> 1313647.65 | AX5: =VLOOKUP(D$3,Prisindeks!$A$1:$B$111,2,FALSE)/100*AA5 -> 0 | AY5: =VLOOKUP(E$3,Prisindeks!$A$1:$B$111,2,FALSE)/100*AB5 -> 0 | AZ5: =VLOOKUP(F$3,Prisindeks!$A$1:$B$111,2,FALSE)/100*AC5 -> 0 | BA5: =VLOOKUP(G$3,Prisindeks!$A$1:$B$111,2,FALSE)/100*AD5 -> 0 | BB5: =VLOOKUP(H$3,Prisindeks!$A$1:$B$111,2,FALSE)/100*AE5 -> 0 | BC5: =VLOOKUP(I$3,Prisindeks!$A$1:$B$111,2,FALSE)/100*AF5 -> 0 | BD5: =VLOOKUP(J$3,Prisindeks!$A$1:$B$111,2,FALSE)/100*AG5 -> 0 | BE5: =VLOOKUP(K$3,Prisindeks!$A$1:$B$111,2,FALSE)/100*AH5 -> 0 | BF5: =VLOOKUP(L$3,Prisindeks!$A$1:$B$111,2,FALSE)/100*AI5 -> 19645.68992 | BG5: =VLOOKUP(M$3,Prisindeks!$A$1:$B$111,2,FALSE)/100*AJ5 -> 222502.3339 | BH5: =VLOOKUP(N$3,Prisindeks!$A$1:$B$111,2,FALSE)/100*AK5 -> 388998.077 | BI5: =VLOOKUP(O$3,Prisindeks!$A$1:$B$111,2,FALSE)/100*AL5 -> 221435.2927 | BJ5: =VLOOKUP(P$3,Prisindeks!$A$1:$B$111,2,FALSE)/100*AM5 -> 0 | BK5: =VLOOKUP(Q$3,Prisindeks!$A$1:$B$111,2,FALSE)/100*AN5 -> 0 | BL5: =VLOOKUP(R$3,Prisindeks!$A$1:$B$111,2,FALSE)/100*AO5 -> 0 | BM5: =VLOOKUP(S$3,Prisindeks!$A$1:$B$111,2,FALSE)/100*AP5 -> 0 | BN5: =VLOOKUP(T$3,Prisindeks!$A$1:$B$111,2,FALSE)/100*AQ5 -> 0 | BO5: =VLOOKUP(U$3,Prisindeks!$A$1:$B$111,2,FALSE)/100*AR5 -> 0 | BP5: =VLOOKUP(V$3,Prisindeks!$A$1:$B$111,2,FALSE)/100*AS5 -> 0 | BQ5: =VLOOKUP(W$3,Prisindeks!$A$1:$B$111,2,FALSE)/100*AT5 -> 0 | BR5: =VLOOKUP(X$3,Prisindeks!$A$1:$B$111,2,FALSE)/100*AU5 -> 0 | BS5: =VLOOKUP(Y$3,Prisindeks!$A$1:$B$111,2,FALSE)/100*AV5 -> 72079.2 | BT5: =+SUM(AX5:BS5) -> 924660.5935 | BU5: =(AA5+AX5)/2 -> 0 | BV5: =(AB5+AY5)/2 -> 0 | BW5: 0 | BX5: 0 | BY5: 0 | BZ5: 0 | CA5: 0 | CB5: 0 | CC5: 30666.16996 | CD5: 298487.887 | CE5: 469998.9385 | CF5: 247921.9263 | CG5: 0 | CH5: 0 | CI5: 0 | CJ5: 0 | CK5: 0 | CL5: 0 | CM5: 0 | CN5: 0 | CO5: 0 | CP5: 72079.2 | CQ5: =AVERAGE(AW5,BT5) -> 1119154.122 | CR5: =SUM(D5:Y5) -> 1887.55
A6: Levetidsforlængelse | B6: år | C6: - | D6: 0 | E6: 0 | F6: 0 | G6: 0 | H6: 0 | I6: 0 | J6: 0 | K6: 0 | L6: 0 | M6: 0 | N6: 0 | O6: 0 | P6: 0 | Q6: 0 | R6: 0 | S6: 0 | T6: 0 | U6: 0 | V6: 0 | W6: 0 | X6: 0 | Y6: 0
A7: Råvandsstationer | AW7: =SUM(AW8:AW37) -> 1116470.089 | BT7: =SUM(BT8:BT37) -> 832543.9704 | CQ7: =SUM(CQ8:CQ37) -> 974507.0295
A8: Råvandsstation komplet montering og boringshus/tørbrønd | B8: stk. | C8: =Genanskaffelsespriser!E7 -> 30 | D8: 0 | E8: 0 | F8: 0 | G8: 0 | H8: 0 | I8: 0 | J8: =1+1 -> 2 | K8: 2 | L8: =1+1 -> 2 | M8: =1+1+1 -> 3 | N8: =1+1 -> 2 | O8: =1+2 -> 3 | P8: 0 | Q8: 0 | R8: 0 | S8: 0 | T8: 0 | U8: 0 | V8: 0 | W8: 0 | X8: 0 | Y8: 1 | AA8: =IF((D8*Genanskaffelsespriser!$D7-(2009-D$3)/$C8*Genanskaffelsespriser!$D7*D8)<0,0,(D8*Genanskaffelsespriser!$D7-(2009-D$3)/$C8*Genanskaffelsespriser!$D7*D8)) -> 0 | AB8: =IF((E8*Genanskaffelsespriser!$D7-(2009-E$3)/$C8*Genanskaffelsespriser!$D7*E8)<0,0,(E8*Genanskaffelsespriser!$D7-(2009-E$3)/$C8*Genanskaffelsespriser!$D7*E8)) -> 0 | AC8: =IF((F8*Genanskaffelsespriser!$D7-(2009-F$3)/$C8*Genanskaffelsespriser!$D7*F8)<0,0,(F8*Genanskaffelsespriser!$D7-(2009-F$3)/$C8*Genanskaffelsespriser!$D7*F8)) -> 0 | AD8: =IF((G8*Genanskaffelsespriser!$D7-(2009-G$3)/$C8*Genanskaffelsespriser!$D7*G8)<0,0,(G8*Genanskaffelsespriser!$D7-(2009-G$3)/$C8*Genanskaffelsespriser!$D7*G8)) -> 0 | AE8: =IF((H8*Genanskaffelsespriser!$D7-(2009-H$3)/$C8*Genanskaffelsespriser!$D7*H8)<0,0,(H8*Genanskaffelsespriser!$D7-(2009-H$3)/$C8*Genanskaffelsespriser!$D7*H8)) -> 0 | AF8: =IF((I8*Genanskaffelsespriser!$D7-(2009-I$3)/$C8*Genanskaffelsespriser!$D7*I8)<0,0,(I8*Genanskaffelsespriser!$D7-(2009-I$3)/$C8*Genanskaffelsespriser!$D7*I8)) -> 0 | AG8: =IF((J8*Genanskaffelsespriser!$D7-(2009-J$3)/$C8*Genanskaffelsespriser!$D7*J8)<0,0,(J8*Genanskaffelsespriser!$D7-(2009-J$3)/$C8*Genanskaffelsespriser!$D7*J8)) -> 0 | AH8: =IF((K8*Genanskaffelsespriser!$D7-(2009-K$3)/$C8*Genanskaffelsespriser!$D7*K8)<0,0,(K8*Genanskaffelsespriser!$D7-(2009-K$3)/$C8*Genanskaffelsespriser!$D7*K8)) -> 0 | AI8: =IF((L8*Genanskaffelsespriser!$D7-(2009-L$3)/$C8*Genanskaffelsespriser!$D7*L8)<0,0,(L8*Genanskaffelsespriser!$D7-(2009-L$3)/$C8*Genanskaffelsespriser!$D7*L8)) -> 11989.794 | AJ8: =IF((M8*Genanskaffelsespriser!$D7-(2009-M$3)/$C8*Genanskaffelsespriser!$D7*M8)<0,0,(M8*Genanskaffelsespriser!$D7-(2009-M$3)/$C8*Genanskaffelsespriser!$D7*M8)) -> 47959.176 | AK8: =IF((N8*Genanskaffelsespriser!$D7-(2009-N$3)/$C8*Genanskaffelsespriser!$D7*N8)<0,0,(N8*Genanskaffelsespriser!$D7-(2009-N$3)/$C8*Genanskaffelsespriser!$D7*N8)) -> 51955.774 | AL8: =IF((O8*Genanskaffelsespriser!$D7-(2009-O$3)/$C8*Genanskaffelsespriser!$D7*O8)<0,0,(O8*Genanskaffelsespriser!$D7-(2009-O$3)/$C8*Genanskaffelsespriser!$D7*O8)) -> 107908.146 | AM8: =IF((P8*Genanskaffelsespriser!$D7-(2009-P$3)/$C8*Genanskaffelsespriser!$D7*P8)<0,0,(P8*Genanskaffelsespriser!$D7-(2009-P$3)/$C8*Genanskaffelsespriser!$D7*P8)) -> 0 | AN8: =IF((Q8*Genanskaffelsespriser!$D7-(2009-Q$3)/$C8*Genanskaffelsespriser!$D7*Q8)<0,0,(Q8*Genanskaffelsespriser!$D7-(2009-Q$3)/$C8*Genanskaffelsespriser!$D7*Q8)) -> 0 | AO8: =IF((R8*Genanskaffelsespriser!$D7-(2009-R$3)/$C8*Genanskaffelsespriser!$D7*R8)<0,0,(R8*Genanskaffelsespriser!$D7-(2009-R$3)/$C8*Genanskaffelsespriser!$D7*R8)) -> 0 | AP8: =IF((S8*Genanskaffelsespriser!$D7-(2009-S$3)/$C8*Genanskaffelsespriser!$D7*S8)<0,0,(S8*Genanskaffelsespriser!$D7-(2009-S$3)/$C8*Genanskaffelsespriser!$D7*S8)) -> 0 | AQ8: =IF((T8*Genanskaffelsespriser!$D7-(2009-T$3)/$C8*Genanskaffelsespriser!$D7*T8)<0,0,(T8*Genanskaffelsespriser!$D7-(2009-T$3)/$C8*Genanskaffelsespriser!$D7*T8)) -> 0 | AR8: =IF((U8*Genanskaffelsespriser!$D7-(2009-U$3)/$C8*Genanskaffelsespriser!$D7*U8)<0,0,(U8*Genanskaffelsespriser!$D7-(2009-U$3)/$C8*Genanskaffelsespriser!$D7*U8)) -> 0 | AS8: =IF((V8*Genanskaffelsespriser!$D7-(2009-V$3)/$C8*Genanskaffelsespriser!$D7*V8)<0,0,(V8*Genanskaffelsespriser!$D7-(2009-V$3)/$C8*Genanskaffelsespriser!$D7*V8)) -> 0 | AT8: =IF((W8*Genanskaffelsespriser!$D7-(2009-W$3)/$C8*Genanskaffelsespriser!$D7*W8)<0,0,(W8*Genanskaffelsespriser!$D7-(2009-W$3)/$C8*Genanskaffelsespriser!$D7*W8)) -> 0 | AU8: =IF((X8*Genanskaffelsespriser!$D7-(2009-X$3)/$C8*Genanskaffelsespriser!$D7*X8)<0,0,(X8*Genanskaffelsespriser!$D7-(2009-X$3)/$C8*Genanskaffelsespriser!$D7*X8)) -> 0 | AV8: =IF((Y8*Genanskaffelsespriser!$D7-(2009-Y$3)/$C8*Genanskaffelsespriser!$D7*Y8)<0,0,(Y8*Genanskaffelsespriser!$D7-(2009-Y$3)/$C8*Genanskaffelsespriser!$D7*Y8)) -> 59948.97 | AW8: =+SUM(AA8:AV8) -> 279761.86 | AX8: =VLOOKUP(D$3,Prisindeks!$A$1:$B$111,2,FALSE)/100*AA8 -> 0 | AY8: =VLOOKUP(E$3,Prisindeks!$A$1:$B$111,2,FALSE)/100*AB8 -> 0 | AZ8: =VLOOKUP(F$3,Prisindeks!$A$1:$B$111,2,FALSE)/100*AC8 -> 0 | BA8: =VLOOKUP(G$3,Prisindeks!$A$1:$B$111,2,FALSE)/100*AD8 -> 0 | BB8: =VLOOKUP(H$3,Prisindeks!$A$1:$B$111,2,FALSE)/100*AE8 -> 0 | BC8: =VLOOKUP(I$3,Prisindeks!$A$1:$B$111,2,FALSE)/100*AF8 -> 0 | BD8: =VLOOKUP(J$3,Prisindeks!$A$1:$B$111,2,FALSE)/100*AG8 -> 0 | BE8: =VLOOKUP(K$3,Prisindeks!$A$1:$B$111,2,FALSE)/100*AH8 -> 0 | BF8: =VLOOKUP(L$3,Prisindeks!$A$1:$B$111,2,FALSE)/100*AI8 -> 5650.436655 | BG8: =VLOOKUP(M$3,Prisindeks!$A$1:$B$111,2,FALSE)/100*AJ8 -> 28496.08932 | BH8: =VLOOKUP(N$3,Prisindeks!$A$1:$B$111,2,FALSE)/100*AK8 -> 36680.04267 | BI8: =VLOOKUP(O$3,Prisindeks!$A$1:$B$111,2,FALSE)/100*AL8 -> 87076.99165 | BJ8: =VLOOKUP(P$3,Prisindeks!$A$1:$B$111,2,FALSE)/100*AM8 -> 0 | BK8: =VLOOKUP(Q$3,Prisindeks!$A$1:$B$111,2,FALSE)/100*AN8 -> 0 | BL8: =VLOOKUP(R$3,Prisindeks!$A$1:$B$111,2,FALSE)/100*AO8 -> 0 | BM8: =VLOOKUP(S$3,Prisindeks!$A$1:$B$111,2,FALSE)/100*AP8 -> 0 | BN8: =VLOOKUP(T$3,Prisindeks!$A$1:$B$111,2,FALSE)/100*AQ8 -> 0 | BO8: =VLOOKUP(U$3,Prisindeks!$A$1:$B$111,2,FALSE)/100*AR8 -> 0 | BP8: =VLOOKUP(V$3,Prisindeks!$A$1:$B$111,2,FALSE)/100*AS8 -> 0 | BQ8: =VLOOKUP(W$3,Prisindeks!$A$1:$B$111,2,FALSE)/100*AT8 -> 0 | BR8: =VLOOKUP(X$3,Prisindeks!$A$1:$B$111,2,FALSE)/100*AU8 -> 0 | BS8: =VLOOKUP(Y$3,Prisindeks!$A$1:$B$111,2,FALSE)/100*AV8 -> 59948.97 | BT8: =+SUM(AX8:BS8) -> 217852.5303 | BU8: =(AA8+AX8)/2 -> 0 | BV8: 0 | BW8: 0 | BX8: 0 | BY8: 0 | BZ8: 0 | CA8: 0 | CB8: 0 | CC8: 8820.115327 | CD8: 38227.63266 | CE8: =(AK8+BH8)/2 -> 44317.90833 | CF8: 97492.56883 | CG8: 0 | CH8: 0 | CI8: 0 | CJ8: 0 | CK8: 0 | CL8: 0 | CM8: 0 | CN8: 0 | CO8: =(AU8+BR8)/2 -> 0 | CP8: 59948.97 | CQ8: =+AVERAGE(AW8,BT8) -> 248807.1951 | CR8: =SUM(D8:Y8) -> 15
A9: Instrumenter (flowmåler+tryk transducer+alarmer) | B9: stk. | C9: =Genanskaffelsespriser!E8 -> 10 | D9: 0 | E9: 0 | F9: 0 | G9: 0 | H9: 0 | I9: 0 | J9: 1 | K9: 0 | L9: 0 | M9: 1 | N9: 1 | O9: =1+4 -> 5 | P9: 0 | Q9: 0 | R9: 0 | S9: 0 | T9: 0 | U9: 0 | V9: 0 | W9: 0 | X9: 0 | Y9: 0 | AA9: =IF((D9*Genanskaffelsespriser!$D8-(2009-D$3)/$C9*Genanskaffelsespriser!$D8*D9)<0,0,(D9*Genanskaffelsespriser!$D8-(2009-D$3)/$C9*Genanskaffelsespriser!$D8*D9)) -> 0 | AB9: =IF((E9*Genanskaffelsespriser!$D8-(2009-E$3)/$C9*Genanskaffelsespriser!$D8*E9)<0,0,(E9*Genanskaffelsespriser!$D8-(2009-E$3)/$C9*Genanskaffelsespriser!$D8*E9)) -> 0 | AC9: =IF((F9*Genanskaffelsespriser!$D8-(2009-F$3)/$C9*Genanskaffelsespriser!$D8*F9)<0,0,(F9*Genanskaffelsespriser!$D8-(2009-F$3)/$C9*Genanskaffelsespriser!$D8*F9)) -> 0 | AD9: =IF((G9*Genanskaffelsespriser!$D8-(2009-G$3)/$C9*Genanskaffelsespriser!$D8*G9)<0,0,(G9*Genanskaffelsespriser!$D8-(2009-G$3)/$C9*Genanskaffelsespriser!$D8*G9)) -> 0 | AE9: =IF((H9*Genanskaffelsespriser!$D8-(2009-H$3)/$C9*Genanskaffelsespriser!$D8*H9)<0,0,(H9*Genanskaffelsespriser!$D8-(2009-H$3)/$C9*Genanskaffelsespriser!$D8*H9)) -> 0 | AF9: =IF((I9*Genanskaffelsespriser!$D8-(2009-I$3)/$C9*Genanskaffelsespriser!$D8*I9)<0,0,(I9*Genanskaffelsespriser!$D8-(2009-I$3)/$C9*Genanskaffelsespriser!$D8*I9)) -> 0 | AG9: =IF((J9*Genanskaffelsespriser!$D8-(2009-J$3)/$C9*Genanskaffelsespriser!$D8*J9)<0,0,(J9*Genanskaffelsespriser!$D8-(2009-J$3)/$C9*Genanskaffelsespriser!$D8*J9)) -> 0 | AH9: =IF((K9*Genanskaffelsespriser!$D8-(2009-K$3)/$C9*Genanskaffelsespriser!$D8*K9)<0,0,(K9*Genanskaffelsespriser!$D8-(2009-K$3)/$C9*Genanskaffelsespriser!$D8*K9)) -> 0 | AI9: =IF((L9*Genanskaffelsespriser!$D8-(2009-L$3)/$C9*Genanskaffelsespriser!$D8*L9)<0,0,(L9*Genanskaffelsespriser!$D8-(2009-L$3)/$C9*Genanskaffelsespriser!$D8*L9)) -> 0 | AJ9: =IF((M9*Genanskaffelsespriser!$D8-(2009-M$3)/$C9*Genanskaffelsespriser!$D8*M9)<0,0,(M9*Genanskaffelsespriser!$D8-(2009-M$3)/$C9*Genanskaffelsespriser!$D8*M9)) -> 0 | AK9: =IF((N9*Genanskaffelsespriser!$D8-(2009-N$3)/$C9*Genanskaffelsespriser!$D8*N9)<0,0,(N9*Genanskaffelsespriser!$D8-(2009-N$3)/$C9*Genanskaffelsespriser!$D8*N9)) -> 0 | AL9: =IF((O9*Genanskaffelsespriser!$D8-(2009-O$3)/$C9*Genanskaffelsespriser!$D8*O9)<0,0,(O9*Genanskaffelsespriser!$D8-(2009-O$3)/$C9*Genanskaffelsespriser!$D8*O9)) -> 0 | AM9: =IF((P9*Genanskaffelsespriser!$D8-(2009-P$3)/$C9*Genanskaffelsespriser!$D8*P9)<0,0,(P9*Genanskaffelsespriser!$D8-(2009-P$3)/$C9*Genanskaffelsespriser!$D8*P9)) -> 0 | AN9: =IF((Q9*Genanskaffelsespriser!$D8-(2009-Q$3)/$C9*Genanskaffelsespriser!$D8*Q9)<0,0,(Q9*Genanskaffelsespriser!$D8-(2009-Q$3)/$C9*Genanskaffelsespriser!$D8*Q9)) -> 0 | AO9: =IF((R9*Genanskaffelsespriser!$D8-(2009-R$3)/$C9*Genanskaffelsespriser!$D8*R9)<0,0,(R9*Genanskaffelsespriser!$D8-(2009-R$3)/$C9*Genanskaffelsespriser!$D8*R9)) -> 0 | AP9: =IF((S9*Genanskaffelsespriser!$D8-(2009-S$3)/$C9*Genanskaffelsespriser!$D8*S9)<0,0,(S9*Genanskaffelsespriser!$D8-(2009-S$3)/$C9*Genanskaffelsespriser!$D8*S9)) -> 0 | AQ9: =IF((T9*Genanskaffelsespriser!$D8-(2009-T$3)/$C9*Genanskaffelsespriser!$D8*T9)<0,0,(T9*Genanskaffelsespriser!$D8-(2009-T$3)/$C9*Genanskaffelsespriser!$D8*T9)) -> 0 | AR9: =IF((U9*Genanskaffelsespriser!$D8-(2009-U$3)/$C9*Genanskaffelsespriser!$D8*U9)<0,0,(U9*Genanskaffelsespriser!$D8-(2009-U$3)/$C9*Genanskaffelsespriser!$D8*U9)) -> 0 | AS9: =IF((V9*Genanskaffelsespriser!$D8-(2009-V$3)/$C9*Genanskaffelsespriser!$D8*V9)<0,0,(V9*Genanskaffelsespriser!$D8-(2009-V$3)/$C9*Genanskaffelsespriser!$D8*V9)) -> 0 | AT9: =IF((W9*Genanskaffelsespriser!$D8-(2009-W$3)/$C9*Genanskaffelsespriser!$D8*W9)<0,0,(W9*Genanskaffelsespriser!$D8-(2009-W$3)/$C9*Genanskaffelsespriser!$D8*W9)) -> 0 | AU9: =IF((X9*Genanskaffelsespriser!$D8-(2009-X$3)/$C9*Genanskaffelsespriser!$D8*X9)<0,0,(X9*Genanskaffelsespriser!$D8-(2009-X$3)/$C9*Genanskaffelsespriser!$D8*X9)) -> 0 | AV9: =IF((Y9*Genanskaffelsespriser!$D8-(2009-Y$3)/$C9*Genanskaffelsespriser!$D8*Y9)<0,0,(Y9*Genanskaffelsespriser!$D8-(2009-Y$3)/$C9*Genanskaffelsespriser!$D8*Y9)) -> 0 | AW9: =+SUM(AA9:AV9) -> 0 | AX9: =VLOOKUP(D$3,Prisindeks!$A$1:$B$111,2,FALSE)/100*AA9 -> 0 | AY9: =VLOOKUP(E$3,Prisindeks!$A$1:$B$111,2,FALSE)/100*AB9 -> 0 | AZ9: =VLOOKUP(F$3,Prisindeks!$A$1:$B$111,2,FALSE)/100*AC9 -> 0 | BA9: =VLOOKUP(G$3,Prisindeks!$A$1:$B$111,2,FALSE)/100*AD9 -> 0 | BB9: =VLOOKUP(H$3,Prisindeks!$A$1:$B$111,2,FALSE)/100*AE9 -> 0 | BC9: =VLOOKUP(I$3,Prisindeks!$A$1:$B$111,2,FALSE)/100*AF9 -> 0 | BD9: =VLOOKUP(J$3,Prisindeks!$A$1:$B$111,2,FALSE)/100*AG9 -> 0 | BE9: =VLOOKUP(K$3,Prisindeks!$A$1:$B$111,2,FALSE)/100*AH9 -> 0 | BF9: =VLOOKUP(L$3,Prisindeks!$A$1:$B$111,2,FALSE)/100*AI9 -> 0 | BG9: =VLOOKUP(M$3,Prisindeks!$A$1:$B$111,2,FALSE)/100*AJ9 -> 0 | BH9: =VLOOKUP(N$3,Prisindeks!$A$1:$B$111,2,FALSE)/100*AK9 -> 0 | BI9: =VLOOKUP(O$3,Prisindeks!$A$1:$B$111,2,FALSE)/100*AL9 -> 0 | BJ9: =VLOOKUP(P$3,Prisindeks!$A$1:$B$111,2,FALSE)/100*AM9 -> 0 | BK9: =VLOOKUP(Q$3,Prisindeks!$A$1:$B$111,2,FALSE)/100*AN9 -> 0 | BL9: =VLOOKUP(R$3,Prisindeks!$A$1:$B$111,2,FALSE)/100*AO9 -> 0 | BM9: =VLOOKUP(S$3,Prisindeks!$A$1:$B$111,2,FALSE)/100*AP9 -> 0 | BN9: =VLOOKUP(T$3,Prisindeks!$A$1:$B$111,2,FALSE)/100*AQ9 -> 0 | BO9: =VLOOKUP(U$3,Prisindeks!$A$1:$B$111,2,FALSE)/100*AR9 -> 0 | BP9: =VLOOKUP(V$3,Prisindeks!$A$1:$B$111,2,FALSE)/100*AS9 -> 0 | BQ9: =VLOOKUP(W$3,Prisindeks!$A$1:$B$111,2,FALSE)/100*AT9 -> 0 | BR9: =VLOOKUP(X$3,Prisindeks!$A$1:$B$111,2,FALSE)/100*AU9 -> 0 | BS9: =VLOOKUP(Y$3,Prisindeks!$A$1:$B$111,2,FALSE)/100*AV9 -> 0 | BT9: =+SUM(AX9:BS9) -> 0 | BU9: 0 | BV9: 0 | BW9: 0 | BX9: 0 | BY9: 0 | BZ9: 0 | CA9: 0 | CB9: 0 | CC9: 0 | CD9: 0 | CE9: 0 | CF9: 0 | CG9: 0 | CH9: 0 | CI9: 0 | CJ9: 0 | CK9: 0 | CL9: 0 | CM9: 0 | CN9: 0 | CO9: 0 | CP9: 0 | CQ9: 0 | CR9: 8
A10: Pumpe inkl. stigrør og forerørsforsejlinger mv. - 1 | B10: m³/h | C10: =Genanskaffelsespriser!E9 -> 15 | D10: 0 | E10: 0 | F10: 0 | G10: 0 | H10: 0 | I10: 0 | J10: 0 | K10: 0 | L10: 0 | M10: 0 | N10: 26 | O10: 0 | P10: 0 | Q10: 0 | R10: 0 | S10: 0 | T10: 0 | U10: 0 | V10: 0 | W10: 0 | X10: 0 | Y10: 0 | Z10: =IF(COUNTIF(D10:Y10,"<>0")<=1,IF((SUM(D10:Y10))=0,0,(+HLOOKUP((SUM(D10:Y10)),Priser!$E$54:$J$56,2)+((SUM(D10:Y10))-HLOOKUP((SUM(D10:Y10)),Priser!$E$54:$J$56,1))*HLOOKUP((SUM(D10:Y10)),Priser!$E$54:$J$56,3))/(SUM(D10:Y10)))*(1+Genanskaffelsespriser!$D$196),$A$1373) -> 2850.649504 | AA10: =IF((D10*$Z10-(2009-D$3)/$C10*$Z10*D10)<0,0,(D10*$Z10-(2009-D$3)/$C10*$Z10*D10)) -> 0 | AB10: =IF((E10*$Z10-(2009-E$3)/$C10*$Z10*E10)<0,0,(E10*$Z10-(2009-E$3)/$C10*$Z10*E10)) -> 0 | AC10: 0 | AD10: 0 | AE10: 0 | AF10: 0 | AG10: 0 | AH10: 0 | AI10: 0 | AJ10: 0 | AK10: 0 | AL10: 0 | AM10: 0 | AN10: 0 | AO10: 0 | AP10: 0 | AQ10: 0 | AR10: 0 | AS10: 0 | AT10: 0 | AU10: 0 | AV10: 0 | AW10: =+SUM(AA10:AV10) -> 0 | AX10: =VLOOKUP(D$3,Prisindeks!$A$1:$B$111,2,FALSE)/100*AA10 -> 0 | AY10: =VLOOKUP(E$3,Prisindeks!$A$1:$B$111,2,FALSE)/100*AB10 -> 0 | AZ10: =VLOOKUP(F$3,Prisindeks!$A$1:$B$111,2,FALSE)/100*AC10 -> 0 | BA10: =VLOOKUP(G$3,Prisindeks!$A$1:$B$111,2,FALSE)/100*AD10 -> 0 | BB10: =VLOOKUP(H$3,Prisindeks!$A$1:$B$111,2,FALSE)/100*AE10 -> 0 | BC10: =VLOOKUP(I$3,Prisindeks!$A$1:$B$111,2,FALSE)/100*AF10 -> 0 | BD10: =VLOOKUP(J$3,Prisindeks!$A$1:$B$111,2,FALSE)/100*AG10 -> 0 | BE10: =VLOOKUP(K$3,Prisindeks!$A$1:$B$111,2,FALSE)/100*AH10 -> 0 | BF10: =VLOOKUP(L$3,Prisindeks!$A$1:$B$111,2,FALSE)/100*AI10 -> 0 | BG10: =VLOOKUP(M$3,Prisindeks!$A$1:$B$111,2,FALSE)/100*AJ10 -> 0 | BH10: =VLOOKUP(N$3,Prisindeks!$A$1:$B$111,2,FALSE)/100*AK10 -> 0 | BI10: =VLOOKUP(O$3,Prisindeks!$A$1:$B$111,2,FALSE)/100*AL10 -> 0 | BJ10: =VLOOKUP(P$3,Prisindeks!$A$1:$B$111,2,FALSE)/100*AM10 -> 0 | BK10: =VLOOKUP(Q$3,Prisindeks!$A$1:$B$111,2,FALSE)/100*AN10 -> 0 | BL10: =VLOOKUP(R$3,Prisindeks!$A$1:$B$111,2,FALSE)/100*AO10 -> 0 | BM10: =VLOOKUP(S$3,Prisindeks!$A$1:$B$111,2,FALSE)/100*AP10 -> 0 | BN10: =VLOOKUP(T$3,Prisindeks!$A$1:$B$111,2,FALSE)/100*AQ10 -> 0 | BO10: =VLOOKUP(U$3,Prisindeks!$A$1:$B$111,2,FALSE)/100*AR10 -> 0 | BP10: =VLOOKUP(V$3,Prisindeks!$A$1:$B$111,2,FALSE)/100*AS10 -> 0 | BQ10: =VLOOKUP(W$3,Prisindeks!$A$1:$B$111,2,FALSE)/100*AT10 -> 0 | BR10: =VLOOKUP(X$3,Prisindeks!$A$1:$B$111,2,FALSE)/100*AU10 -> 0 | BS10: =VLOOKUP(Y$3,Prisindeks!$A$1:$B$111,2,FALSE)/100*AV10 -> 0 | BT10: =+SUM(AX10:BS10) -> 0 | BU10: 0 | BV10: 0 | BW10: 0 | BX10: 0 | BY10: 0 | BZ10: 0 | CA10: 0 | CB10: 0 | CC10: 0 | CD10: 0 | CE10: 0 | CF10: 0 | CG10: 0 | CH10: 0 | CI10: 0 | CJ10: 0 | CK10: 0 | CL10: 0 | CM10: 0 | CN10: 0 | CO10: 0 | CP10: 0 | CQ10: 0 | CR10: 26
A11: Pumpe inkl. stigrør og forerørsforsejlinger mv. - 2 | B11: m³/h | C11: =Genanskaffelsespriser!E9 -> 15 | D11: 0 | E11: 0 | F11: 0 | G11: 0 | H11: 0 | I11: 0 | J11: 0 | K11: 0 | L11: 17 | M11: 0 | N11: 0 | O11: 0 | P11: 0 | Q11: 0 | R11: 0 | S11: 0 | T11: 0 | U11: 0 | V11: 0 | W11: 0 | X11: 0 | Y11: 0 | Z11: =IF(COUNTIF(D11:Y11,"<>0")<=1,IF((SUM(D11:Y11))=0,0,(+HLOOKUP((SUM(D11:Y11)),Priser!$E$54:$J$56,2)+((SUM(D11:Y11))-HLOOKUP((SUM(D11:Y11)),Priser!$E$54:$J$56,1))*HLOOKUP((SUM(D11:Y11)),Priser!$E$54:$J$56,3))/(SUM(D11:Y11)))*(1+Genanskaffelsespriser!$D$196),$A$1373) -> 3496.241206 | AA11: =IF((D11*$Z11-(2009-D$3)/$C11*$Z11*D11)<0,0,(D11*$Z11-(2009-D$3)/$C11*$Z11*D11)) -> 0 | AB11: =IF((E11*$Z11-(2009-E$3)/$C11*$Z11*E11)<0,0,(E11*$Z11-(2009-E$3)/$C11*$Z11*E11)) -> 0 | AC11: =IF((F11*$Z11-(2009-F$3)/$C11*$Z11*F11)<0,0,(F11*$Z11-(2009-F$3)/$C11*$Z11*F11)) -> 0 | AD11: =IF((G11*$Z11-(2009-G$3)/$C11*$Z11*G11)<0,0,(G11*$Z11-(2009-G$3)/$C11*$Z11*G11)) -> 0 | AE11: =IF((H11*$Z11-(2009-H$3)/$C11*$Z11*H11)<0,0,(H11*$Z11-(2009-H$3)/$C11*$Z11*H11)) -> 0 | AF11: =IF((I11*$Z11-(2009-I$3)/$C11*$Z11*I11)<0,0,(I11*$Z11-(2009-I$3)/$C11*$Z11*I11)) -> 0 | AG11: =IF((J11*$Z11-(2009-J$3)/$C11*$Z11*J11)<0,0,(J11*$Z11-(2009-J$3)/$C11*$Z11*J11)) -> 0 | AH11: =IF((K11*$Z11-(2009-K$3)/$C11*$Z11*K11)<0,0,(K11*$Z11-(2009-K$3)/$C11*$Z11*K11)) -> 0 | AI11: =IF((L11*$Z11-(2009-L$3)/$C11*$Z11*L11)<0,0,(L11*$Z11-(2009-L$3)/$C11*$Z11*L11)) -> 0 | AJ11: =IF((M11*$Z11-(2009-M$3)/$C11*$Z11*M11)<0,0,(M11*$Z11-(2009-M$3)/$C11*$Z11*M11)) -> 0 | AK11: =IF((N11*$Z11-(2009-N$3)/$C11*$Z11*N11)<0,0,(N11*$Z11-(2009-N$3)/$C11*$Z11*N11)) -> 0 | AL11: =IF((O11*$Z11-(2009-O$3)/$C11*$Z11*O11)<0,0,(O11*$Z11-(2009-O$3)/$C11*$Z11*O11)) -> 0 | AM11: =IF((P11*$Z11-(2009-P$3)/$C11*$Z11*P11)<0,0,(P11*$Z11-(2009-P$3)/$C11*$Z11*P11)) -> 0 | AN11: =IF((Q11*$Z11-(2009-Q$3)/$C11*$Z11*Q11)<0,0,(Q11*$Z11-(2009-Q$3)/$C11*$Z11*Q11)) -> 0 | AO11: =IF((R11*$Z11-(2009-R$3)/$C11*$Z11*R11)<0,0,(R11*$Z11-(2009-R$3)/$C11*$Z11*R11)) -> 0 | AP11: =IF((S11*$Z11-(2009-S$3)/$C11*$Z11*S11)<0,0,(S11*$Z11-(2009-S$3)/$C11*$Z11*S11)) -> 0 | AQ11: =IF((T11*$Z11-(2009-T$3)/$C11*$Z11*T11)<0,0,(T11*$Z11-(2009-T$3)/$C11*$Z11*T11)) -> 0 | AR11: =IF((U11*$Z11-(2009-U$3)/$C11*$Z11*U11)<0,0,(U11*$Z11-(2009-U$3)/$C11*$Z11*U11)) -> 0 | AS11: =IF((V11*$Z11-(2009-V$3)/$C11*$Z11*V11)<0,0,(V11*$Z11-(2009-V$3)/$C11*$Z11*V11)) -> 0 | AT11: =IF((W11*$Z11-(2009-W$3)/$C11*$Z11*W11)<0,0,(W11*$Z11-(2009-W$3)/$C11*$Z11*W11)) -> 0 | AU11: =IF((X11*$Z11-(2009-X$3)/$C11*$Z11*X11)<0,0,(X11*$Z11-(2009-X$3)/$C11*$Z11*X11)) -> 0 | AV11: =IF((Y11*$Z11-(2009-Y$3)/$C11*$Z11*Y11)<0,0,(Y11*$Z11-(2009-Y$3)/$C11*$Z11*Y11)) -> 0 | AW11: =+SUM(AA11:AV11) -> 0 | AX11: =VLOOKUP(D$3,Prisindeks!$A$1:$B$111,2,FALSE)/100*AA11 -> 0 | AY11: =VLOOKUP(E$3,Prisindeks!$A$1:$B$111,2,FALSE)/100*AB11 -> 0 | AZ11: =VLOOKUP(F$3,Prisindeks!$A$1:$B$111,2,FALSE)/100*AC11 -> 0 | BA11: =VLOOKUP(G$3,Prisindeks!$A$1:$B$111,2,FALSE)/100*AD11 -> 0 | BB11: =VLOOKUP(H$3,Prisindeks!$A$1:$B$111,2,FALSE)/100*AE11 -> 0 | BC11: =VLOOKUP(I$3,Prisindeks!$A$1:$B$111,2,FALSE)/100*AF11 -> 0 | BD11: =VLOOKUP(J$3,Prisindeks!$A$1:$B$111,2,FALSE)/100*AG11 -> 0 | BE11: =VLOOKUP(K$3,Prisindeks!$A$1:$B$111,2,FALSE)/100*AH11 -> 0 | BF11: =VLOOKUP(L$3,Prisindeks!$A$1:$B$111,2,FALSE)/100*AI11 -> 0 | BG11: =VLOOKUP(M$3,Prisindeks!$A$1:$B$111,2,FALSE)/100*AJ11 -> 0 | BH11: =VLOOKUP(N$3,Prisindeks!$A$1:$B$111,2,FALSE)/100*AK11 -> 0 | BI11: =VLOOKUP(O$3,Prisindeks!$A$1:$B$111,2,FALSE)/100*AL11 -> 0 | BJ11: =VLOOKUP(P$3,Prisindeks!$A$1:$B$111,2,FALSE)/100*AM11 -> 0 | BK11: =VLOOKUP(Q$3,Prisindeks!$A$1:$B$111,2,FALSE)/100*AN11 -> 0 | BL11: =VLOOKUP(R$3,Prisindeks!$A$1:$B$111,2,FALSE)/100*AO11 -> 0 | BM11: =VLOOKUP(S$3,Prisindeks!$A$1:$B$111,2,FALSE)/100*AP11 -> 0 | BN11: =VLOOKUP(T$3,Prisindeks!$A$1:$B$111,2,FALSE)/100*AQ11 -> 0 | BO11: =VLOOKUP(U$3,Prisindeks!$A$1:$B$111,2,FALSE)/100*AR11 -> 0 | BP11: =VLOOKUP(V$3,Prisindeks!$A$1:$B$111,2,FALSE)/100*AS11 -> 0 | BQ11: =VLOOKUP(W$3,Prisindeks!$A$1:$B$111,2,FALSE)/100*AT11 -> 0 | BR11: =VLOOKUP(X$3,Prisindeks!$A$1:$B$111,2,FALSE)/100*AU11 -> 0 | BS11: =VLOOKUP(Y$3,Prisindeks!$A$1:$B$111,2,FALSE)/100*AV11 -> 0 | BT11: =+SUM(AX11:BS11) -> 0 | BU11: 0 | BV11: 0 | BW11: 0 | BX11: 0 | BY11: 0 | BZ11: 0 | CA11: 0 | CB11: 0 | CC11: 0 | CD11: 0 | CE11: 0 | CF11: 0 | CG11: 0 | CH11: 0 | CI11: 0 | CJ11: 0 | CK11: 0 | CL11: 0 | CM11: 0 | CN11: 0 | CO11: 0 | CP11: 0 | CQ11: =+AVERAGE(AW11,BT11) -> 0 | CR11: 17
A12: Pumpe inkl. stigrør og forerørsforsejlinger mv. - 3 | B12: m³/h | C12: =Genanskaffelsespriser!E9 -> 15 | D12: 0 | E12: 0 | F12: 0 | G12: 0 | H12: 0 | I12: 0 | J12: 0 | K12: 0 | L12: 0 | M12: 20 | N12: 0 | O12: 0 | P12: 0 | Q12: 0 | R12: 0 | S12: 0 | T12: 0 | U12: 0 | V12: 0 | W12: 0 | X12: 0 | Y12: 0 | Z12: =IF(COUNTIF(D12:Y12,"<>0")<=1,IF((SUM(D12:Y12))=0,0,(+HLOOKUP((SUM(D12:Y12)),Priser!$E$54:$J$56,2)+((SUM(D12:Y12))-HLOOKUP((SUM(D12:Y12)),Priser!$E$54:$J$56,1))*HLOOKUP((SUM(D12:Y12)),Priser!$E$54:$J$56,3))/(SUM(D12:Y12)))*(1+Genanskaffelsespriser!$D$196),$A$1373) -> 3264.419587 | AA12: 0 | AB12: 0 | AC12: 0 | AD12: 0 | AE12: 0 | AF12: 0 | AG12: 0 | AH12: 0 | AI12: 0 | AJ12: 0 | AK12: 0 | AL12: 0 | AM12: 0 | AN12: 0 | AO12: 0 | AP12: 0 | AQ12: 0 | AR12: 0 | AS12: 0 | AT12: 0 | AU12: 0 | AV12: 0 | AW12: =+SUM(AA12:AV12) -> 0 | AX12: =VLOOKUP(D$3,Prisindeks!$A$1:$B$111,2,FALSE)/100*AA12 -> 0 | AY12: =VLOOKUP(E$3,Prisindeks!$A$1:$B$111,2,FALSE)/100*AB12 -> 0 | AZ12: =VLOOKUP(F$3,Prisindeks!$A$1:$B$111,2,FALSE)/100*AC12 -> 0 | BA12: =VLOOKUP(G$3,Prisindeks!$A$1:$B$111,2,FALSE)/100*AD12 -> 0 | BB12: =VLOOKUP(H$3,Prisindeks!$A$1:$B$111,2,FALSE)/100*AE12 -> 0 | BC12: =VLOOKUP(I$3,Prisindeks!$A$1:$B$111,2,FALSE)/100*AF12 -> 0 | BD12: =VLOOKUP(J$3,Prisindeks!$A$1:$B$111,2,FALSE)/100*AG12 -> 0 | BE12: =VLOOKUP(K$3,Prisindeks!$A$1:$B$111,2,FALSE)/100*AH12 -> 0 | BF12: =VLOOKUP(L$3,Prisindeks!$A$1:$B$111,2,FALSE)/100*AI12 -> 0 | BG12: =VLOOKUP(M$3,Prisindeks!$A$1:$B$111,2,FALSE)/100*AJ12 -> 0 | BH12: =VLOOKUP(N$3,Prisindeks!$A$1:$B$111,2,FALSE)/100*AK12 -> 0 | BI12: =VLOOKUP(O$3,Prisindeks!$A$1:$B$111,2,FALSE)/100*AL12 -> 0 | BJ12: =VLOOKUP(P$3,Prisindeks!$A$1:$B$111,2,FALSE)/100*AM12 -> 0 | BK12: =VLOOKUP(Q$3,Prisindeks!$A$1:$B$111,2,FALSE)/100*AN12 -> 0 | BL12: =VLOOKUP(R$3,Prisindeks!$A$1:$B$111,2,FALSE)/100*AO12 -> 0 | BM12: =VLOOKUP(S$3,Prisindeks!$A$1:$B$111,2,FALSE)/100*AP12 -> 0 | BN12: =VLOOKUP(T$3,Prisindeks!$A$1:$B$111,2,FALSE)/100*AQ12 -> 0 | BO12: =VLOOKUP(U$3,Prisindeks!$A$1:$B$111,2,FALSE)/100*AR12 -> 0 | BP12: =VLOOKUP(V$3,Prisindeks!$A$1:$B$111,2,FALSE)/100*AS12 -> 0 | BQ12: =VLOOKUP(W$3,Prisindeks!$A$1:$B$111,2,FALSE)/100*AT12 -> 0 | BR12: =VLOOKUP(X$3,Prisindeks!$A$1:$B$111,2,FALSE)/100*AU12 -> 0 | BS12: =VLOOKUP(Y$3,Prisindeks!$A$1:$B$111,2,FALSE)/100*AV12 -> 0 | BT12: =+SUM(AX12:BS12) -> 0 | BU12: =(AA12+AX12)/2 -> 0 | BV12: =(AB12+AY12)/2 -> 0 | BW12: =(AC12+AZ12)/2 -> 0 | BX12: =(AD12+BA12)/2 -> 0 | BY12: =(AE12+BB12)/2 -> 0 | BZ12: =(AF12+BC12)/2 -> 0 | CA12: =(AG12+BD12)/2 -> 0 | CB12: =(AH12+BE12)/2 -> 0 | CC12: =(AI12+BF12)/2 -> 0 | CD12: =(AJ12+BG12)/2 -> 0 | CE12: =(AK12+BH12)/2 -> 0 | CF12: =(AL12+BI12)/2 -> 0 | CG12: =(AM12+BJ12)/2 -> 0 | CH12: =(AN12+BK12)/2 -> 0 | CI12: =(AO12+BL12)/2 -> 0 | CJ12: =(AP12+BM12)/2 -> 0 | CK12: =(AQ12+BN12)/2 -> 0 | CL12: =(AR12+BO12)/2 -> 0 | CM12: =(AS12+BP12)/2 -> 0 | CN12: =(AT12+BQ12)/2 -> 0 | CO12: =(AU12+BR12)/2 -> 0 | CP12: =(AV12+BS12)/2 -> 0 | CQ12: =+AVERAGE(AW12,BT12) -> 0 | CR12: 20
A13: Pumpe inkl. stigrør og forerørsforsejlinger mv. - 4 | B13: m³/h | C13: =Genanskaffelsespriser!E9 -> 15 | D13: 0 | E13: 0 | F13: 0 | G13: 0 | H13: 0 | I13: 0 | J13: 0 | K13: 0 | L13: 0 | M13: 0 | N13: 21 | O13: 0 | P13: 0 | Q13: 0 | R13: 0 | S13: 0 | T13: 0 | U13: 0 | V13: 0 | W13: 0 | X13: 0 | Y13: 0 | Z13: =IF(COUNTIF(D13:Y13,"<>0")<=1,IF((SUM(D13:Y13))=0,0,(+HLOOKUP((SUM(D13:Y13)),Priser!$E$54:$J$56,2)+((SUM(D13:Y13))-HLOOKUP((SUM(D13:Y13)),Priser!$E$54:$J$56,1))*HLOOKUP((SUM(D13:Y13)),Priser!$E$54:$J$56,3))/(SUM(D13:Y13)))*(1+Genanskaffelsespriser!$D$196),$A$1373) -> 3179.038459 | AA13: 0 | AB13: 0 | AC13: 0 | AD13: 0 | AE13: 0 | AF13: 0 | AG13: 0 | AH13: 0 | AI13: 0 | AJ13: 0 | AK13: 0 | AL13: 0 | AM13: 0 | AN13: 0 | AO13: 0 | AP13: 0 | AQ13: 0 | AR13: 0 | AS13: 0 | AT13: 0 | AU13: 0 | AV13: 0 | AW13: 0 | AX13: =VLOOKUP(D$3,Prisindeks!$A$1:$B$111,2,FALSE)/100*AA13 -> 0 | AY13: =VLOOKUP(E$3,Prisindeks!$A$1:$B$111,2,FALSE)/100*AB13 -> 0 | AZ13: =VLOOKUP(F$3,Prisindeks!$A$1:$B$111,2,FALSE)/100*AC13 -> 0 | BA13: =VLOOKUP(G$3,Prisindeks!$A$1:$B$111,2,FALSE)/100*AD13 -> 0 | BB13: =VLOOKUP(H$3,Prisindeks!$A$1:$B$111,2,FALSE)/100*AE13 -> 0 | BC13: =VLOOKUP(I$3,Prisindeks!$A$1:$B$111,2,FALSE)/100*AF13 -> 0 | BD13: =VLOOKUP(J$3,Prisindeks!$A$1:$B$111,2,FALSE)/100*AG13 -> 0 | BE13: =VLOOKUP(K$3,Prisindeks!$A$1:$B$111,2,FALSE)/100*AH13 -> 0 | BF13: =VLOOKUP(L$3,Prisindeks!$A$1:$B$111,2,FALSE)/100*AI13 -> 0 | BG13: =VLOOKUP(M$3,Prisindeks!$A$1:$B$111,2,FALSE)/100*AJ13 -> 0 | BH13: =VLOOKUP(N$3,Prisindeks!$A$1:$B$111,2,FALSE)/100*AK13 -> 0 | BI13: =VLOOKUP(O$3,Prisindeks!$A$1:$B$111,2,FALSE)/100*AL13 -> 0 | BJ13: =VLOOKUP(P$3,Prisindeks!$A$1:$B$111,2,FALSE)/100*AM13 -> 0 | BK13: =VLOOKUP(Q$3,Prisindeks!$A$1:$B$111,2,FALSE)/100*AN13 -> 0 | BL13: =VLOOKUP(R$3,Prisindeks!$A$1:$B$111,2,FALSE)/100*AO13 -> 0 | BM13: =VLOOKUP(S$3,Prisindeks!$A$1:$B$111,2,FALSE)/100*AP13 -> 0 | BN13: =VLOOKUP(T$3,Prisindeks!$A$1:$B$111,2,FALSE)/100*AQ13 -> 0 | BO13: =VLOOKUP(U$3,Prisindeks!$A$1:$B$111,2,FALSE)/100*AR13 -> 0 | BP13: =VLOOKUP(V$3,Prisindeks!$A$1:$B$111,2,FALSE)/100*AS13 -> 0 | BQ13: =VLOOKUP(W$3,Prisindeks!$A$1:$B$111,2,FALSE)/100*AT13 -> 0 | BR13: =VLOOKUP(X$3,Prisindeks!$A$1:$B$111,2,FALSE)/100*AU13 -> 0 | BS13: =VLOOKUP(Y$3,Prisindeks!$A$1:$B$111,2,FALSE)/100*AV13 -> 0 | BT13: 0 | BU13: 0 | BV13: 0 | BW13: 0 | BX13: 0 | BY13: 0 | BZ13: 0 | CA13: 0 | CB13: 0 | CC13: 0 | CD13: 0 | CE13: 0 | CF13: 0 | CG13: 0 | CH13: 0 | CI13: 0 | CJ13: 0 | CK13: 0 | CL13: 0 | CM13: 0 | CN13: 0 | CO13: 0 | CP13: 0 | CQ13: 0 | CR13: 21
A14: Pumpe inkl. stigrør og forerørsforsejlinger mv. - 5 | B14: m³/h | C14: =Genanskaffelsespriser!E9 -> 15 | D14: 0 | E14: 0 | F14: 0 | G14: 0 | H14: 0 | I14: 0 | J14: 0 | K14: 0 | L14: 0 | M14: 25 | N14: 0 | O14: 0 | P14: 0 | Q14: 0 | R14: 0 | S14: 0 | T14: 0 | U14: 0 | V14: 0 | W14: 0 | X14: 0 | Y14: 0 | Z14: =IF(COUNTIF(D14:Y14,"<>0")<=1,IF((SUM(D14:Y14))=0,0,(+HLOOKUP((SUM(D14:Y14)),Priser!$E$54:$J$56,2)+((SUM(D14:Y14))-HLOOKUP((SUM(D14:Y14)),Priser!$E$54:$J$56,1))*HLOOKUP((SUM(D14:Y14)),Priser!$E$54:$J$56,3))/(SUM(D14:Y14)))*(1+Genanskaffelsespriser!$D$196),$A$1373) -> 2905.818848 | AA14: 0 | AB14: 0 | AC14: 0 | AD14: 0 | AE14: 0 | AF14: 0 | AG14: 0 | AH14: 0 | AI14: 0 | AJ14: 0 | AK14: 0 | AL14: 0 | AM14: 0 | AN14: 0 | AO14: 0 | AP14: 0 | AQ14: 0 | AR14: 0 | AS14: 0 | AT14: 0 | AU14: 0 | AV14: 0 | AW14: 0 | AX14: =VLOOKUP(D$3,Prisindeks!$A$1:$B$111,2,FALSE)/100*AA14 -> 0 | AY14: =VLOOKUP(E$3,Prisindeks!$A$1:$B$111,2,FALSE)/100*AB14 -> 0 | AZ14: =VLOOKUP(F$3,Prisindeks!$A$1:$B$111,2,FALSE)/100*AC14 -> 0 | BA14: =VLOOKUP(G$3,Prisindeks!$A$1:$B$111,2,FALSE)/100*AD14 -> 0 | BB14: =VLOOKUP(H$3,Prisindeks!$A$1:$B$111,2,FALSE)/100*AE14 -> 0 | BC14: =VLOOKUP(I$3,Prisindeks!$A$1:$B$111,2,FALSE)/100*AF14 -> 0 | BD14: =VLOOKUP(J$3,Prisindeks!$A$1:$B$111,2,FALSE)/100*AG14 -> 0 | BE14: =VLOOKUP(K$3,Prisindeks!$A$1:$B$111,2,FALSE)/100*AH14 -> 0 | BF14: =VLOOKUP(L$3,Prisindeks!$A$1:$B$111,2,FALSE)/100*AI14 -> 0 | BG14: =VLOOKUP(M$3,Prisindeks!$A$1:$B$111,2,FALSE)/100*AJ14 -> 0 | BH14: =VLOOKUP(N$3,Prisindeks!$A$1:$B$111,2,FALSE)/100*AK14 -> 0 | BI14: =VLOOKUP(O$3,Prisindeks!$A$1:$B$111,2,FALSE)/100*AL14 -> 0 | BJ14: =VLOOKUP(P$3,Prisindeks!$A$1:$B$111,2,FALSE)/100*AM14 -> 0 | BK14: =VLOOKUP(Q$3,Prisindeks!$A$1:$B$111,2,FALSE)/100*AN14 -> 0 | BL14: =VLOOKUP(R$3,Prisindeks!$A$1:$B$111,2,FALSE)/100*AO14 -> 0 | BM14: =VLOOKUP(S$3,Prisindeks!$A$1:$B$111,2,FALSE)/100*AP14 -> 0 | BN14: =VLOOKUP(T$3,Prisindeks!$A$1:$B$111,2,FALSE)/100*AQ14 -> 0 | BO14: =VLOOKUP(U$3,Prisindeks!$A$1:$B$111,2,FALSE)/100*AR14 -> 0 | BP14: =VLOOKUP(V$3,Prisindeks!$A$1:$B$111,2,FALSE)/100*AS14 -> 0 | BQ14: =VLOOKUP(W$3,Prisindeks!$A$1:$B$111,2,FALSE)/100*AT14 -> 0 | BR14: =VLOOKUP(X$3,Prisindeks!$A$1:$B$111,2,FALSE)/100*AU14 -> 0 | BS14: =VLOOKUP(Y$3,Prisindeks!$A$1:$B$111,2,FALSE)/100*AV14 -> 0 | BT14: 0 | BU14: 0 | BV14: 0 | BW14: 0 | BX14: 0 | BY14: 0 | BZ14: 0 | CA14: 0 | CB14: 0 | CC14: 0 | CD14: 0 | CE14: 0 | CF14: 0 | CG14: 0 | CH14: 0 | CI14: 0 | CJ14: 0 | CK14: 0 | CL14: 0 | CM14: 0 | CN14: 0 | CO14: 0 | CP14: 0 | CQ14: 0 | CR14: 25
A15: Pumpe inkl. stigrør og forerørsforsejlinger mv. - 6 | B15: m³/h | C15: =Genanskaffelsespriser!E9 -> 15 | D15: 0 | E15: 0 | F15: 0 | G15: 0 | H15: 0 | I15: 0 | J15: 0 | K15: 0 | L15: 0 | M15: 0 | N15: 22 | O15: 0 | P15: 0 | Q15: 0 | R15: 0 | S15: 0 | T15: 0 | U15: 0 | V15: 0 | W15: 0 | X15: 0 | Y15: 0 | Z15: =IF(COUNTIF(D15:Y15,"<>0")<=1,IF((SUM(D15:Y15))=0,0,(+HLOOKUP((SUM(D15:Y15)),Priser!$E$54:$J$56,2)+((SUM(D15:Y15))-HLOOKUP((SUM(D15:Y15)),Priser!$E$54:$J$56,1))*HLOOKUP((SUM(D15:Y15)),Priser!$E$54:$J$56,3))/(SUM(D15:Y15)))*(1+Genanskaffelsespriser!$D$196),$A$1373) -> 3101.419251 | AA15: 0 | AB15: 0 | AC15: 0 | AD15: 0 | AE15: 0 | AF15: 0 | AG15: 0 | AH15: 0 | AI15: 0 | AJ15: 0 | AK15: 0 | AL15: 0 | AM15: 0 | AN15: 0 | AO15: 0 | AP15: 0 | AQ15: 0 | AR15: 0 | AS15: 0 | AT15: 0 | AU15: 0 | AV15: 0 | AW15: 0 | AX15: =VLOOKUP(D$3,Prisindeks!$A$1:$B$111,2,FALSE)/100*AA15 -> 0 | AY15: =VLOOKUP(E$3,Prisindeks!$A$1:$B$111,2,FALSE)/100*AB15 -> 0 | AZ15: =VLOOKUP(F$3,Prisindeks!$A$1:$B$111,2,FALSE)/100*AC15 -> 0 | BA15: =VLOOKUP(G$3,Prisindeks!$A$1:$B$111,2,FALSE)/100*AD15 -> 0 | BB15: =VLOOKUP(H$3,Prisindeks!$A$1:$B$111,2,FALSE)/100*AE15 -> 0 | BC15: =VLOOKUP(I$3,Prisindeks!$A$1:$B$111,2,FALSE)/100*AF15 -> 0 | BD15: =VLOOKUP(J$3,Prisindeks!$A$1:$B$111,2,FALSE)/100*AG15 -> 0 | BE15: =VLOOKUP(K$3,Prisindeks!$A$1:$B$111,2,FALSE)/100*AH15 -> 0 | BF15: =VLOOKUP(L$3,Prisindeks!$A$1:$B$111,2,FALSE)/100*AI15 -> 0 | BG15: =VLOOKUP(M$3,Prisindeks!$A$1:$B$111,2,FALSE)/100*AJ15 -> 0 | BH15: =VLOOKUP(N$3,Prisindeks!$A$1:$B$111,2,FALSE)/100*AK15 -> 0 | BI15: =VLOOKUP(O$3,Prisindeks!$A$1:$B$111,2,FALSE)/100*AL15 -> 0 | BJ15: =VLOOKUP(P$3,Prisindeks!$A$1:$B$111,2,FALSE)/100*AM15 -> 0 | BK15: =VLOOKUP(Q$3,Prisindeks!$A$1:$B$111,2,FALSE)/100*AN15 -> 0 | BL15: =VLOOKUP(R$3,Prisindeks!$A$1:$B$111,2,FALSE)/100*AO15 -> 0 | BM15: =VLOOKUP(S$3,Prisindeks!$A$1:$B$111,2,FALSE)/100*AP15 -> 0 | BN15: =VLOOKUP(T$3,Prisindeks!$A$1:$B$111,2,FALSE)/100*AQ15 -> 0 | BO15: =VLOOKUP(U$3,Prisindeks!$A$1:$B$111,2,FALSE)/100*AR15 -> 0 | BP15: =VLOOKUP(V$3,Prisindeks!$A$1:$B$111,2,FALSE)/100*AS15 -> 0 | BQ15: =VLOOKUP(W$3,Prisindeks!$A$1:$B$111,2,FALSE)/100*AT15 -> 0 | BR15: =VLOOKUP(X$3,Prisindeks!$A$1:$B$111,2,FALSE)/100*AU15 -> 0 | BS15: =VLOOKUP(Y$3,Prisindeks!$A$1:$B$111,2,FALSE)/100*AV15 -> 0 | BT15: 0 | BU15: 0 | BV15: 0 | BW15: 0 | BX15: 0 | BY15: 0 | BZ15: 0 | CA15: 0 | CB15: 0 | CC15: 0 | CD15: 0 | CE15: 0 | CF15: 0 | CG15: 0 | CH15: 0 | CI15: 0 | CJ15: 0 | CK15: 0 | CL15: 0 | CM15: 0 | CN15: 0 | CO15: 0 | CP15: 0 | CQ15: 0 | CR15: 22
A16: Pumpe inkl. stigrør og forerørsforsejlinger mv. - 7 | B16: m³/h | C16: =Genanskaffelsespriser!E9 -> 15 | D16: 0 | E16: 0 | F16: 0 | G16: 0 | H16: 0 | I16: 0 | J16: 0 | K16: 0 | L16: 0 | M16: 0 | N16: 0 | O16: 45 | P16: 0 | Q16: 0 | R16: 0 | S16: 0 | T16: 0 | U16: 0 | V16: 0 | W16: 0 | X16: 0 | Y16: 0 | Z16: =IF(COUNTIF(D16:Y16,"<>0")<=1,IF((SUM(D16:Y16))=0,0,(+HLOOKUP((SUM(D16:Y16)),Priser!$E$54:$J$56,2)+((SUM(D16:Y16))-HLOOKUP((SUM(D16:Y16)),Priser!$E$54:$J$56,1))*HLOOKUP((SUM(D16:Y16)),Priser!$E$54:$J$56,3))/(SUM(D16:Y16)))*(1+Genanskaffelsespriser!$D$196),$A$1373) -> 2079.870803 | AA16: 0 | AB16: 0 | AC16: 0 | AD16: 0 | AE16: 0 | AF16: 0 | AG16: 0 | AH16: 0 | AI16: 0 | AJ16: 0 | AK16: 0 | AL16: 18718.83722 | AM16: 0 | AN16: 0 | AO16: 0 | AP16: 0 | AQ16: 0 | AR16: 0 | AS16: 0 | AT16: 0 | AU16: 0 | AV16: 0 | AW16: 18718.83722 | AX16: =VLOOKUP(D$3,Prisindeks!$A$1:$B$111,2,FALSE)/100*AA16 -> 0 | AY16: =VLOOKUP(E$3,Prisindeks!$A$1:$B$111,2,FALSE)/100*AB16 -> 0 | AZ16: =VLOOKUP(F$3,Prisindeks!$A$1:$B$111,2,FALSE)/100*AC16 -> 0 | BA16: =VLOOKUP(G$3,Prisindeks!$A$1:$B$111,2,FALSE)/100*AD16 -> 0 | BB16: =VLOOKUP(H$3,Prisindeks!$A$1:$B$111,2,FALSE)/100*AE16 -> 0 | BC16: =VLOOKUP(I$3,Prisindeks!$A$1:$B$111,2,FALSE)/100*AF16 -> 0 | BD16: =VLOOKUP(J$3,Prisindeks!$A$1:$B$111,2,FALSE)/100*AG16 -> 0 | BE16: =VLOOKUP(K$3,Prisindeks!$A$1:$B$111,2,FALSE)/100*AH16 -> 0 | BF16: =VLOOKUP(L$3,Prisindeks!$A$1:$B$111,2,FALSE)/100*AI16 -> 0 | BG16: =VLOOKUP(M$3,Prisindeks!$A$1:$B$111,2,FALSE)/100*AJ16 -> 0 | BH16: =VLOOKUP(N$3,Prisindeks!$A$1:$B$111,2,FALSE)/100*AK16 -> 0 | BI16: =VLOOKUP(O$3,Prisindeks!$A$1:$B$111,2,FALSE)/100*AL16 -> 15105.25473 | BJ16: =VLOOKUP(P$3,Prisindeks!$A$1:$B$111,2,FALSE)/100*AM16 -> 0 | BK16: =VLOOKUP(Q$3,Prisindeks!$A$1:$B$111,2,FALSE)/100*AN16 -> 0 | BL16: =VLOOKUP(R$3,Prisindeks!$A$1:$B$111,2,FALSE)/100*AO16 -> 0 | BM16: =VLOOKUP(S$3,Prisindeks!$A$1:$B$111,2,FALSE)/100*AP16 -> 0 | BN16: =VLOOKUP(T$3,Prisindeks!$A$1:$B$111,2,FALSE)/100*AQ16 -> 0 | BO16: =VLOOKUP(U$3,Prisindeks!$A$1:$B$111,2,FALSE)/100*AR16 -> 0 | BP16: =VLOOKUP(V$3,Prisindeks!$A$1:$B$111,2,FALSE)/100*AS16 -> 0 | BQ16: =VLOOKUP(W$3,Prisindeks!$A$1:$B$111,2,FALSE)/100*AT16 -> 0 | BR16: =VLOOKUP(X$3,Prisindeks!$A$1:$B$111,2,FALSE)/100*AU16 -> 0 | BS16: =VLOOKUP(Y$3,Prisindeks!$A$1:$B$111,2,FALSE)/100*AV16 -> 0 | BT16: 15105.25473 | BU16: 0 | BV16: 0 | BW16: 0 | BX16: 0 | BY16: 0 | BZ16: 0 | CA16: 0 | CB16: 0 | CC16: 0 | CD16: 0 | CE16: 0 | CF16: 16912.04598 | CG16: 0 | CH16: 0 | CI16: 0 | CJ16: 0 | CK16: 0 | CL16: 0 | CM16: 0 | CN16: 0 | CO16: 0 | CP16: 0 | CQ16: 16912.04598 | CR16: 45
A17: Pumpe inkl. stigrør og forerørsforsejlinger mv. - 8 | B17: m³/h | C17: =Genanskaffelsespriser!E9 -> 15 | D17: 0 | E17: 0 | F17: 0 | G17: 0 | H17: 0 | I17: 0 | J17: 0 | K17: 0 | L17: 0 | M17: 0 | N17: 0 | O17: 43 | P17: 0 | Q17: 0 | R17: 0 | S17: 0 | T17: 0 | U17: 0 | V17: 0 | W17: 0 | X17: 0 | Y17: 0 | Z17: =IF(COUNTIF(D17:Y17,"<>0")<=1,IF((SUM(D17:Y17))=0,0,(+HLOOKUP((SUM(D17:Y17)),Priser!$E$54:$J$56,2)+((SUM(D17:Y17))-HLOOKUP((SUM(D17:Y17)),Priser!$E$54:$J$56,1))*HLOOKUP((SUM(D17:Y17)),Priser!$E$54:$J$56,3))/(SUM(D17:Y17)))*(1+Genanskaffelsespriser!$D$196),$A$1373) -> 2134.464373 | AA17: 0 | AB17: 0 | AC17: 0 | AD17: 0 | AE17: 0 | AF17: 0 | AG17: 0 | AH17: 0 | AI17: 0 | AJ17: 0 | AK17: 0 | AL17: 18356.39361 | AM17: 0 | AN17: 0 | AO17: 0 | AP17: 0 | AQ17: 0 | AR17: 0 | AS17: 0 | AT17: 0 | AU17: 0 | AV17: 0 | AW17: 18356.39361 | AX17: =VLOOKUP(D$3,Prisindeks!$A$1:$B$111,2,FALSE)/100*AA17 -> 0 | AY17: =VLOOKUP(E$3,Prisindeks!$A$1:$B$111,2,FALSE)/100*AB17 -> 0 | AZ17: =VLOOKUP(F$3,Prisindeks!$A$1:$B$111,2,FALSE)/100*AC17 -> 0 | BA17: =VLOOKUP(G$3,Prisindeks!$A$1:$B$111,2,FALSE)/100*AD17 -> 0 | BB17: =VLOOKUP(H$3,Prisindeks!$A$1:$B$111,2,FALSE)/100*AE17 -> 0 | BC17: =VLOOKUP(I$3,Prisindeks!$A$1:$B$111,2,FALSE)/100*AF17 -> 0 | BD17: =VLOOKUP(J$3,Prisindeks!$A$1:$B$111,2,FALSE)/100*AG17 -> 0 | BE17: =VLOOKUP(K$3,Prisindeks!$A$1:$B$111,2,FALSE)/100*AH17 -> 0 | BF17: =VLOOKUP(L$3,Prisindeks!$A$1:$B$111,2,FALSE)/100*AI17 -> 0 | BG17: =VLOOKUP(M$3,Prisindeks!$A$1:$B$111,2,FALSE)/100*AJ17 -> 0 | BH17: =VLOOKUP(N$3,Prisindeks!$A$1:$B$111,2,FALSE)/100*AK17 -> 0 | BI17: =VLOOKUP(O$3,Prisindeks!$A$1:$B$111,2,FALSE)/100*AL17 -> 14812.77913 | BJ17: =VLOOKUP(P$3,Prisindeks!$A$1:$B$111,2,FALSE)/100*AM17 -> 0 | BK17: =VLOOKUP(Q$3,Prisindeks!$A$1:$B$111,2,FALSE)/100*AN17 -> 0 | BL17: =VLOOKUP(R$3,Prisindeks!$A$1:$B$111,2,FALSE)/100*AO17 -> 0 | BM17: =VLOOKUP(S$3,Prisindeks!$A$1:$B$111,2,FALSE)/100*AP17 -> 0 | BN17: =VLOOKUP(T$3,Prisindeks!$A$1:$B$111,2,FALSE)/100*AQ17 -> 0 | BO17: =VLOOKUP(U$3,Prisindeks!$A$1:$B$111,2,FALSE)/100*AR17 -> 0 | BP17: =VLOOKUP(V$3,Prisindeks!$A$1:$B$111,2,FALSE)/100*AS17 -> 0 | BQ17: =VLOOKUP(W$3,Prisindeks!$A$1:$B$111,2,FALSE)/100*AT17 -> 0 | BR17: =VLOOKUP(X$3,Prisindeks!$A$1:$B$111,2,FALSE)/100*AU17 -> 0 | BS17: =VLOOKUP(Y$3,Prisindeks!$A$1:$B$111,2,FALSE)/100*AV17 -> 0 | BT17: 14812.77913 | BU17: 0 | BV17: 0 | BW17: 0 | BX17: 0 | BY17: 0 | BZ17: 0 | CA17: 0 | CB17: 0 | CC17: 0 | CD17: 0 | CE17: 0 | CF17: 16584.58637 | CG17: 0 | CH17: 0 | CI17: 0 | CJ17: 0 | CK17: 0 | CL17: 0 | CM17: 0 | CN17: 0 | CO17: 0 | CP17: 0 | CQ17: 16584.58637 | CR17: 43
A18: Pumpe inkl. stigrør og forerørsforsejlinger mv. - 9 | B18: m³/h | C18: =Genanskaffelsespriser!E9 -> 15 | D18: 0 | E18: 0 | F18: 0 | G18: 0 | H18: 0 | I18: 0 | J18: 0 | K18: 0 | L18: 0 | M18: 0 | N18: 0 | O18: 30 | P18: 0 | Q18: 0 | R18: 0 | S18: 0 | T18: 0 | U18: 0 | V18: 0 | W18: 0 | X18: 0 | Y18: 0 | Z18: =IF(COUNTIF(D18:Y18,"<>0")<=1,IF((SUM(D18:Y18))=0,0,(+HLOOKUP((SUM(D18:Y18)),Priser!$E$54:$J$56,2)+((SUM(D18:Y18))-HLOOKUP((SUM(D18:Y18)),Priser!$E$54:$J$56,1))*HLOOKUP((SUM(D18:Y18)),Priser!$E$54:$J$56,3))/(SUM(D18:Y18)))*(1+Genanskaffelsespriser!$D$196),$A$1373) -> 2666.751689 | AA18: 0 | AB18: 0 | AC18: 0 | AD18: 0 | AE18: 0 | AF18: 0 | AG18: 0 | AH18: 0 | AI18: 0 | AJ18: 0 | AK18: 0 | AL18: 16000.51013 | AM18: 0 | AN18: 0 | AO18: 0 | AP18: 0 | AQ18: 0 | AR18: 0 | AS18: 0 | AT18: 0 | AU18: 0 | AV18: 0 | AW18: 16000.51013 | AX18: =VLOOKUP(D$3,Prisindeks!$A$1:$B$111,2,FALSE)/100*AA18 -> 0 | AY18: =VLOOKUP(E$3,Prisindeks!$A$1:$B$111,2,FALSE)/100*AB18 -> 0 | AZ18: =VLOOKUP(F$3,Prisindeks!$A$1:$B$111,2,FALSE)/100*AC18 -> 0 | BA18: =VLOOKUP(G$3,Prisindeks!$A$1:$B$111,2,FALSE)/100*AD18 -> 0 | BB18: =VLOOKUP(H$3,Prisindeks!$A$1:$B$111,2,FALSE)/100*AE18 -> 0 | BC18: =VLOOKUP(I$3,Prisindeks!$A$1:$B$111,2,FALSE)/100*AF18 -> 0 | BD18: =VLOOKUP(J$3,Prisindeks!$A$1:$B$111,2,FALSE)/100*AG18 -> 0 | BE18: =VLOOKUP(K$3,Prisindeks!$A$1:$B$111,2,FALSE)/100*AH18 -> 0 | BF18: =VLOOKUP(L$3,Prisindeks!$A$1:$B$111,2,FALSE)/100*AI18 -> 0 | BG18: =VLOOKUP(M$3,Prisindeks!$A$1:$B$111,2,FALSE)/100*AJ18 -> 0 | BH18: =VLOOKUP(N$3,Prisindeks!$A$1:$B$111,2,FALSE)/100*AK18 -> 0 | BI18: =VLOOKUP(O$3,Prisindeks!$A$1:$B$111,2,FALSE)/100*AL18 -> 12911.68775 | BJ18: =VLOOKUP(P$3,Prisindeks!$A$1:$B$111,2,FALSE)/100*AM18 -> 0 | BK18: =VLOOKUP(Q$3,Prisindeks!$A$1:$B$111,2,FALSE)/100*AN18 -> 0 | BL18: =VLOOKUP(R$3,Prisindeks!$A$1:$B$111,2,FALSE)/100*AO18 -> 0 | BM18: =VLOOKUP(S$3,Prisindeks!$A$1:$B$111,2,FALSE)/100*AP18 -> 0 | BN18: =VLOOKUP(T$3,Prisindeks!$A$1:$B$111,2,FALSE)/100*AQ18 -> 0 | BO18: =VLOOKUP(U$3,Prisindeks!$A$1:$B$111,2,FALSE)/100*AR18 -> 0 | BP18: =VLOOKUP(V$3,Prisindeks!$A$1:$B$111,2,FALSE)/100*AS18 -> 0 | BQ18: =VLOOKUP(W$3,Prisindeks!$A$1:$B$111,2,FALSE)/100*AT18 -> 0 | BR18: =VLOOKUP(X$3,Prisindeks!$A$1:$B$111,2,FALSE)/100*AU18 -> 0 | BS18: =VLOOKUP(Y$3,Prisindeks!$A$1:$B$111,2,FALSE)/100*AV18 -> 0 | BT18: 12911.68775 | BU18: 0 | BV18: 0 | BW18: 0 | BX18: 0 | BY18: 0 | BZ18: 0 | CA18: 0 | CB18: 0 | CC18: 0 | CD18: 0 | CE18: 0 | CF18: 14456.09894 | CG18: 0 | CH18: 0 | CI18: 0 | CJ18: 0 | CK18: 0 | CL18: 0 | CM18: 0 | CN18: 0 | CO18: 0 | CP18: 0 | CQ18: 14456.09894 | CR18: 30
A19: Pumpe inkl. stigrør og forerørsforsejlinger mv. - 10 | B19: m³/h | C19: =Genanskaffelsespriser!E9 -> 15 | D19: 0 | E19: 0 | F19: 0 | G19: 0 | H19: 0 | I19: 0 | J19: 0 | K19: 0 | L19: 0 | M19: 0 | N19: 16 | O19: 0 | P19: 0 | Q19: 0 | R19: 0 | S19: 0 | T19: 0 | U19: 0 | V19: 0 | W19: 0 | X19: 0 | Y19: 0 | Z19: =IF(COUNTIF(D19:Y19,"<>0")<=1,IF((SUM(D19:Y19))=0,0,(+HLOOKUP((SUM(D19:Y19)),Priser!$E$54:$J$56,2)+((SUM(D19:Y19))-HLOOKUP((SUM(D19:Y19)),Priser!$E$54:$J$56,1))*HLOOKUP((SUM(D19:Y19)),Priser!$E$54:$J$56,3))/(SUM(D19:Y19)))*(1+Genanskaffelsespriser!$D$196),$A$1373) -> 3592.833547 | AA19: 0 | AB19: 0 | AC19: 0 | AD19: 0 | AE19: 0 | AF19: 0 | AG19: 0 | AH19: 0 | AI19: 0 | AJ19: 0 | AK19: 0 | AL19: 0 | AM19: 0 | AN19: 0 | AO19: 0 | AP19: 0 | AQ19: 0 | AR19: 0 | AS19: 0 | AT19: 0 | AU19: 0 | AV19: 0 | AW19: 0 | AX19: =VLOOKUP(D$3,Prisindeks!$A$1:$B$111,2,FALSE)/100*AA19 -> 0 | AY19: =VLOOKUP(E$3,Prisindeks!$A$1:$B$111,2,FALSE)/100*AB19 -> 0 | AZ19: =VLOOKUP(F$3,Prisindeks!$A$1:$B$111,2,FALSE)/100*AC19 -> 0 | BA19: =VLOOKUP(G$3,Prisindeks!$A$1:$B$111,2,FALSE)/100*AD19 -> 0 | BB19: =VLOOKUP(H$3,Prisindeks!$A$1:$B$111,2,FALSE)/100*AE19 -> 0 | BC19: =VLOOKUP(I$3,Prisindeks!$A$1:$B$111,2,FALSE)/100*AF19 -> 0 | BD19: =VLOOKUP(J$3,Prisindeks!$A$1:$B$111,2,FALSE)/100*AG19 -> 0 | BE19: =VLOOKUP(K$3,Prisindeks!$A$1:$B$111,2,FALSE)/100*AH19 -> 0 | BF19: =VLOOKUP(L$3,Prisindeks!$A$1:$B$111,2,FALSE)/100*AI19 -> 0 | BG19: =VLOOKUP(M$3,Prisindeks!$A$1:$B$111,2,FALSE)/100*AJ19 -> 0 | BH19: =VLOOKUP(N$3,Prisindeks!$A$1:$B$111,2,FALSE)/100*AK19 -> 0 | BI19: =VLOOKUP(O$3,Prisindeks!$A$1:$B$111,2,FALSE)/100*AL19 -> 0 | BJ19: =VLOOKUP(P$3,Prisindeks!$A$1:$B$111,2,FALSE)/100*AM19 -> 0 | BK19: =VLOOKUP(Q$3,Prisindeks!$A$1:$B$111,2,FALSE)/100*AN19 -> 0 | BL19: =VLOOKUP(R$3,Prisindeks!$A$1:$B$111,2,FALSE)/100*AO19 -> 0 | BM19: =VLOOKUP(S$3,Prisindeks!$A$1:$B$111,2,FALSE)/100*AP19 -> 0 | BN19: =VLOOKUP(T$3,Prisindeks!$A$1:$B$111,2,FALSE)/100*AQ19 -> 0 | BO19: =VLOOKUP(U$3,Prisindeks!$A$1:$B$111,2,FALSE)/100*AR19 -> 0 | BP19: =VLOOKUP(V$3,Prisindeks!$A$1:$B$111,2,FALSE)/100*AS19 -> 0 | BQ19: =VLOOKUP(W$3,Prisindeks!$A$1:$B$111,2,FALSE)/100*AT19 -> 0 | BR19: =VLOOKUP(X$3,Prisindeks!$A$1:$B$111,2,FALSE)/100*AU19 -> 0 | BS19: =VLOOKUP(Y$3,Prisindeks!$A$1:$B$111,2,FALSE)/100*AV19 -> 0 | BT19: 0 | BU19: 0 | BV19: 0 | BW19: 0 | BX19: 0 | BY19: 0 | BZ19: 0 | CA19: 0 | CB19: 0 | CC19: 0 | CD19: 0 | CE19: 0 | CF19: 0 | CG19: 0 | CH19: 0 | CI19: 0 | CJ19: 0 | CK19: 0 | CL19: 0 | CM19: 0 | CN19: 0 | CO19: 0 | CP19: 0 | CQ19: 0 | CR19: 16
A20: Pumpe inkl. stigrør og forerørsforsejlinger mv. - 11 | B20: m³/h | C20: 15 | D20: 0 | E20: 0 | F20: 0 | G20: 0 | H20: 0 | I20: 0 | J20: 12 | K20: 0 | L20: 0 | M20: 0 | N20: 0 | O20: 0 | P20: 0 | Q20: 0 | R20: 0 | S20: 0 | T20: 0 | U20: 0 | V20: 0 | W20: 0 | X20: 0 | Y20: 0 | Z20: =IF(COUNTIF(D20:Y20,"<>0")<=1,IF((SUM(D20:Y20))=0,0,(+HLOOKUP((SUM(D20:Y20)),Priser!$E$54:$J$56,2)+((SUM(D20:Y20))-HLOOKUP((SUM(D20:Y20)),Priser!$E$54:$J$56,1))*HLOOKUP((SUM(D20:Y20)),Priser!$E$54:$J$56,3))/(SUM(D20:Y20)))*(1+Genanskaffelsespriser!$D$196),$A$1373) -> 4140.190146 | AA20: =IF((D20*$Z20-(2009-D$3)/$C20*$Z20*D20)<0,0,(D20*$Z20-(2009-D$3)/$C20*$Z20*D20)) -> 0 | AB20: =IF((E20*$Z20-(2009-E$3)/$C20*$Z20*E20)<0,0,(E20*$Z20-(2009-E$3)/$C20*$Z20*E20)) -> 0 | AC20: =IF((F20*$Z20-(2009-F$3)/$C20*$Z20*F20)<0,0,(F20*$Z20-(2009-F$3)/$C20*$Z20*F20)) -> 0 | AD20: =IF((G20*$Z20-(2009-G$3)/$C20*$Z20*G20)<0,0,(G20*$Z20-(2009-G$3)/$C20*$Z20*G20)) -> 0 | AE20: =IF((H20*$Z20-(2009-H$3)/$C20*$Z20*H20)<0,0,(H20*$Z20-(2009-H$3)/$C20*$Z20*H20)) -> 0 | AF20: =IF((I20*$Z20-(2009-I$3)/$C20*$Z20*I20)<0,0,(I20*$Z20-(2009-I$3)/$C20*$Z20*I20)) -> 0 | AG20: =IF((J20*$Z20-(2009-J$3)/$C20*$Z20*J20)<0,0,(J20*$Z20-(2009-J$3)/$C20*$Z20*J20)) -> 0 | AH20: =IF((K20*$Z20-(2009-K$3)/$C20*$Z20*K20)<0,0,(K20*$Z20-(2009-K$3)/$C20*$Z20*K20)) -> 0 | AI20: =IF((L20*$Z20-(2009-L$3)/$C20*$Z20*L20)<0,0,(L20*$Z20-(2009-L$3)/$C20*$Z20*L20)) -> 0 | AJ20: =IF((M20*$Z20-(2009-M$3)/$C20*$Z20*M20)<0,0,(M20*$Z20-(2009-M$3)/$C20*$Z20*M20)) -> 0 | AK20: =IF((N20*$Z20-(2009-N$3)/$C20*$Z20*N20)<0,0,(N20*$Z20-(2009-N$3)/$C20*$Z20*N20)) -> 0 | AL20: =IF((O20*$Z20-(2009-O$3)/$C20*$Z20*O20)<0,0,(O20*$Z20-(2009-O$3)/$C20*$Z20*O20)) -> 0 | AM20: =IF((P20*$Z20-(2009-P$3)/$C20*$Z20*P20)<0,0,(P20*$Z20-(2009-P$3)/$C20*$Z20*P20)) -> 0 | AN20: =IF((Q20*$Z20-(2009-Q$3)/$C20*$Z20*Q20)<0,0,(Q20*$Z20-(2009-Q$3)/$C20*$Z20*Q20)) -> 0 | AO20: =IF((R20*$Z20-(2009-R$3)/$C20*$Z20*R20)<0,0,(R20*$Z20-(2009-R$3)/$C20*$Z20*R20)) -> 0 | AP20: =IF((S20*$Z20-(2009-S$3)/$C20*$Z20*S20)<0,0,(S20*$Z20-(2009-S$3)/$C20*$Z20*S20)) -> 0 | AQ20: =IF((T20*$Z20-(2009-T$3)/$C20*$Z20*T20)<0,0,(T20*$Z20-(2009-T$3)/$C20*$Z20*T20)) -> 0 | AR20: =IF((U20*$Z20-(2009-U$3)/$C20*$Z20*U20)<0,0,(U20*$Z20-(2009-U$3)/$C20*$Z20*U20)) -> 0 | AS20: =IF((V20*$Z20-(2009-V$3)/$C20*$Z20*V20)<0,0,(V20*$Z20-(2009-V$3)/$C20*$Z20*V20)) -> 0 | AT20: =IF((W20*$Z20-(2009-W$3)/$C20*$Z20*W20)<0,0,(W20*$Z20-(2009-W$3)/$C20*$Z20*W20)) -> 0 | AU20: =IF((X20*$Z20-(2009-X$3)/$C20*$Z20*X20)<0,0,(X20*$Z20-(2009-X$3)/$C20*$Z20*X20)) -> 0 | AV20: =IF((Y20*$Z20-(2009-Y$3)/$C20*$Z20*Y20)<0,0,(Y20*$Z20-(2009-Y$3)/$C20*$Z20*Y20)) -> 0 | AW20: 0 | AX20: =VLOOKUP(D$3,Prisindeks!$A$1:$B$111,2,FALSE)/100*AA20 -> 0 | AY20: =VLOOKUP(E$3,Prisindeks!$A$1:$B$111,2,FALSE)/100*AB20 -> 0 | AZ20: =VLOOKUP(F$3,Prisindeks!$A$1:$B$111,2,FALSE)/100*AC20 -> 0 | BA20: =VLOOKUP(G$3,Prisindeks!$A$1:$B$111,2,FALSE)/100*AD20 -> 0 | BB20: =VLOOKUP(H$3,Prisindeks!$A$1:$B$111,2,FALSE)/100*AE20 -> 0 | BC20: =VLOOKUP(I$3,Prisindeks!$A$1:$B$111,2,FALSE)/100*AF20 -> 0 | BD20: =VLOOKUP(J$3,Prisindeks!$A$1:$B$111,2,FALSE)/100*AG20 -> 0 | BE20: =VLOOKUP(K$3,Prisindeks!$A$1:$B$111,2,FALSE)/100*AH20 -> 0 | BF20: =VLOOKUP(L$3,Prisindeks!$A$1:$B$111,2,FALSE)/100*AI20 -> 0 | BG20: =VLOOKUP(M$3,Prisindeks!$A$1:$B$111,2,FALSE)/100*AJ20 -> 0 | BH20: =VLOOKUP(N$3,Prisindeks!$A$1:$B$111,2,FALSE)/100*AK20 -> 0 | BI20: =VLOOKUP(O$3,Prisindeks!$A$1:$B$111,2,FALSE)/100*AL20 -> 0 | BJ20: =VLOOKUP(P$3,Prisindeks!$A$1:$B$111,2,FALSE)/100*AM20 -> 0 | BK20: =VLOOKUP(Q$3,Prisindeks!$A$1:$B$111,2,FALSE)/100*AN20 -> 0 | BL20: =VLOOKUP(R$3,Prisindeks!$A$1:$B$111,2,FALSE)/100*AO20 -> 0 | BM20: =VLOOKUP(S$3,Prisindeks!$A$1:$B$111,2,FALSE)/100*AP20 -> 0 | BN20: =VLOOKUP(T$3,Prisindeks!$A$1:$B$111,2,FALSE)/100*AQ20 -> 0 | BO20: =VLOOKUP(U$3,Prisindeks!$A$1:$B$111,2,FALSE)/100*AR20 -> 0 | BP20: =VLOOKUP(V$3,Prisindeks!$A$1:$B$111,2,FALSE)/100*AS20 -> 0 | BQ20: =VLOOKUP(W$3,Prisindeks!$A$1:$B$111,2,FALSE)/100*AT20 -> 0 | BR20: =VLOOKUP(X$3,Prisindeks!$A$1:$B$111,2,FALSE)/100*AU20 -> 0 | BS20: =VLOOKUP(Y$3,Prisindeks!$A$1:$B$111,2,FALSE)/100*AV20 -> 0 | BT20: 0 | BU20: =(AA20+AX20)/2 -> 0 | BV20: =(AB20+AY20)/2 -> 0 | BW20: =(AC20+AZ20)/2 -> 0 | BX20: =(AD20+BA20)/2 -> 0 | BY20: =(AE20+BB20)/2 -> 0 | BZ20: =(AF20+BC20)/2 -> 0 | CA20: =(AG20+BD20)/2 -> 0 | CB20: =(AH20+BE20)/2 -> 0 | CC20: =(AI20+BF20)/2 -> 0 | CD20: =(AJ20+BG20)/2 -> 0 | CE20: =(AK20+BH20)/2 -> 0 | CF20: =(AL20+BI20)/2 -> 0 | CG20: =(AM20+BJ20)/2 -> 0 | CH20: =(AN20+BK20)/2 -> 0 | CI20: =(AO20+BL20)/2 -> 0 | CJ20: =(AP20+BM20)/2 -> 0 | CK20: =(AQ20+BN20)/2 -> 0 | CL20: =(AR20+BO20)/2 -> 0 | CM20: =(AS20+BP20)/2 -> 0 | CN20: =(AT20+BQ20)/2 -> 0 | CO20: =(AU20+BR20)/2 -> 0 | CP20: =(AV20+BS20)/2 -> 0 | CQ20: 0
A21: Pumpe inkl. stigrør og forerørsforsejlinger mv. - 12 | B21: m³/h | C21: =Genanskaffelsespriser!E11 -> 15 | D21: 0 | E21: 0 | F21: 0 | G21: 0 | H21: 0 | I21: 0 | J21: 0 | K21: 0 | L21: 0 | M21: 15 | N21: 0 | O21: 0 | P21: 0 | Q21: 0 | R21: 0 | S21: 0 | T21: 0 | U21: 0 | V21: 0 | W21: 0 | X21: 0 | Y21: 0 | Z21: =IF(COUNTIF(D21:Y21,"<>0")<=1,IF((SUM(D21:Y21))=0,0,(+HLOOKUP((SUM(D21:Y21)),Priser!$E$54:$J$56,2)+((SUM(D21:Y21))-HLOOKUP((SUM(D21:Y21)),Priser!$E$54:$J$56,1))*HLOOKUP((SUM(D21:Y21)),Priser!$E$54:$J$56,3))/(SUM(D21:Y21)))*(1+Genanskaffelsespriser!$D$196),$A$1373) -> 3702.304866 | AA21: 0 | AB21: 0 | AC21: 0 | AD21: 0 | AE21: 0 | AF21: 0 | AG21: 0 | AH21: 0 | AI21: 0 | AJ21: 0 | AK21: 0 | AL21: 0 | AM21: 0 | AN21: 0 | AO21: 0 | AP21: 0 | AQ21: 0 | AR21: 0 | AS21: 0 | AT21: 0 | AU21: 0 | AV21: 0 | AW21: 0 | AX21: =VLOOKUP(D$3,Prisindeks!$A$1:$B$111,2,FALSE)/100*AA21 -> 0 | AY21: =VLOOKUP(E$3,Prisindeks!$A$1:$B$111,2,FALSE)/100*AB21 -> 0 | AZ21: =VLOOKUP(F$3,Prisindeks!$A$1:$B$111,2,FALSE)/100*AC21 -> 0 | BA21: =VLOOKUP(G$3,Prisindeks!$A$1:$B$111,2,FALSE)/100*AD21 -> 0 | BB21: =VLOOKUP(H$3,Prisindeks!$A$1:$B$111,2,FALSE)/100*AE21 -> 0 | BC21: =VLOOKUP(I$3,Prisindeks!$A$1:$B$111,2,FALSE)/100*AF21 -> 0 | BD21: =VLOOKUP(J$3,Prisindeks!$A$1:$B$111,2,FALSE)/100*AG21 -> 0 | BE21: =VLOOKUP(K$3,Prisindeks!$A$1:$B$111,2,FALSE)/100*AH21 -> 0 | BF21: =VLOOKUP(L$3,Prisindeks!$A$1:$B$111,2,FALSE)/100*AI21 -> 0 | BG21: =VLOOKUP(M$3,Prisindeks!$A$1:$B$111,2,FALSE)/100*AJ21 -> 0 | BH21: =VLOOKUP(N$3,Prisindeks!$A$1:$B$111,2,FALSE)/100*AK21 -> 0 | BI21: =VLOOKUP(O$3,Prisindeks!$A$1:$B$111,2,FALSE)/100*AL21 -> 0 | BJ21: =VLOOKUP(P$3,Prisindeks!$A$1:$B$111,2,FALSE)/100*AM21 -> 0 | BK21: =VLOOKUP(Q$3,Prisindeks!$A$1:$B$111,2,FALSE)/100*AN21 -> 0 | BL21: =VLOOKUP(R$3,Prisindeks!$A$1:$B$111,2,FALSE)/100*AO21 -> 0 | BM21: =VLOOKUP(S$3,Prisindeks!$A$1:$B$111,2,FALSE)/100*AP21 -> 0 | BN21: =VLOOKUP(T$3,Prisindeks!$A$1:$B$111,2,FALSE)/100*AQ21 -> 0 | BO21: =VLOOKUP(U$3,Prisindeks!$A$1:$B$111,2,FALSE)/100*AR21 -> 0 | BP21: =VLOOKUP(V$3,Prisindeks!$A$1:$B$111,2,FALSE)/100*AS21 -> 0 | BQ21: =VLOOKUP(W$3,Prisindeks!$A$1:$B$111,2,FALSE)/100*AT21 -> 0 | BR21: =VLOOKUP(X$3,Prisindeks!$A$1:$B$111,2,FALSE)/100*AU21 -> 0 | BS21: =VLOOKUP(Y$3,Prisindeks!$A$1:$B$111,2,FALSE)/100*AV21 -> 0 | BT21: 0 | BU21: 0 | BV21: 0 | BW21: 0 | BX21: 0 | BY21: 0 | BZ21: 0 | CA21: 0 | CB21: 0 | CC21: 0 | CD21: 0 | CE21: 0 | CF21: 0 | CG21: 0 | CH21: 0 | CI21: 0 | CJ21: 0 | CK21: 0 | CL21: 0 | CM21: 0 | CN21: 0 | CO21: 0 | CP21: 0 | CQ21: 0
A22: Pumpe inkl. stigrør og forerørsforsejlinger mv. - 13 | B22: m³/h | C22: 15 | D22: 0 | E22: 0 | F22: 0 | G22: 0 | H22: 0 | I22: 0 | J22: 0 | K22: 0 | L22: 0 | M22: 0 | N22: 10 | O22: 0 | P22: 0 | Q22: 0 | R22: 0 | S22: 0 | T22: 0 | U22: 0 | V22: 0 | W22: 0 | X22: 0 | Y22: 0 | Z22: =IF(COUNTIF(D22:Y22,"<>0")<=1,IF((SUM(D22:Y22))=0,0,(+HLOOKUP((SUM(D22:Y22)),Priser!$E$54:$J$56,2)+((SUM(D22:Y22))-HLOOKUP((SUM(D22:Y22)),Priser!$E$54:$J$56,1))*HLOOKUP((SUM(D22:Y22)),Priser!$E$54:$J$56,3))/(SUM(D22:Y22)))*(1+Genanskaffelsespriser!$D$196),$A$1373) -> 4578.075425 | AA22: 0 | AB22: 0 | AC22: 0 | AD22: 0 | AE22: 0 | AF22: 0 | AG22: 0 | AH22: 0 | AI22: 0 | AJ22: 0 | AK22: 0 | AL22: 0 | AM22: 0 | AN22: 0 | AO22: 0 | AP22: 0 | AQ22: 0 | AR22: 0 | AS22: 0 | AT22: 0 | AU22: 0 | AV22: 0 | AW22: 0 | AX22: =VLOOKUP(D$3,Prisindeks!$A$1:$B$111,2,FALSE)/100*AA22 -> 0 | AY22: =VLOOKUP(E$3,Prisindeks!$A$1:$B$111,2,FALSE)/100*AB22 -> 0 | AZ22: =VLOOKUP(F$3,Prisindeks!$A$1:$B$111,2,FALSE)/100*AC22 -> 0 | BA22: =VLOOKUP(G$3,Prisindeks!$A$1:$B$111,2,FALSE)/100*AD22 -> 0 | BB22: =VLOOKUP(H$3,Prisindeks!$A$1:$B$111,2,FALSE)/100*AE22 -> 0 | BC22: =VLOOKUP(I$3,Prisindeks!$A$1:$B$111,2,FALSE)/100*AF22 -> 0 | BD22: =VLOOKUP(J$3,Prisindeks!$A$1:$B$111,2,FALSE)/100*AG22 -> 0 | BE22: =VLOOKUP(K$3,Prisindeks!$A$1:$B$111,2,FALSE)/100*AH22 -> 0 | BF22: =VLOOKUP(L$3,Prisindeks!$A$1:$B$111,2,FALSE)/100*AI22 -> 0 | BG22: =VLOOKUP(M$3,Prisindeks!$A$1:$B$111,2,FALSE)/100*AJ22 -> 0 | BH22: =VLOOKUP(N$3,Prisindeks!$A$1:$B$111,2,FALSE)/100*AK22 -> 0 | BI22: =VLOOKUP(O$3,Prisindeks!$A$1:$B$111,2,FALSE)/100*AL22 -> 0 | BJ22: =VLOOKUP(P$3,Prisindeks!$A$1:$B$111,2,FALSE)/100*AM22 -> 0 | BK22: =VLOOKUP(Q$3,Prisindeks!$A$1:$B$111,2,FALSE)/100*AN22 -> 0 | BL22: =VLOOKUP(R$3,Prisindeks!$A$1:$B$111,2,FALSE)/100*AO22 -> 0 | BM22: =VLOOKUP(S$3,Prisindeks!$A$1:$B$111,2,FALSE)/100*AP22 -> 0 | BN22: =VLOOKUP(T$3,Prisindeks!$A$1:$B$111,2,FALSE)/100*AQ22 -> 0 | BO22: =VLOOKUP(U$3,Prisindeks!$A$1:$B$111,2,FALSE)/100*AR22 -> 0 | BP22: =VLOOKUP(V$3,Prisindeks!$A$1:$B$111,2,FALSE)/100*AS22 -> 0 | BQ22: =VLOOKUP(W$3,Prisindeks!$A$1:$B$111,2,FALSE)/100*AT22 -> 0 | BR22: =VLOOKUP(X$3,Prisindeks!$A$1:$B$111,2,FALSE)/100*AU22 -> 0 | BS22: =VLOOKUP(Y$3,Prisindeks!$A$1:$B$111,2,FALSE)/100*AV22 -> 0 | BT22: 0 | BU22: 0 | BV22: 0 | BW22: 0 | BX22: 0 | BY22: 0 | BZ22: 0 | CA22: 0 | CB22: 0 | CC22: 0 | CD22: 0 | CE22: 0 | CF22: 0 | CG22: 0 | CH22: 0 | CI22: 0 | CJ22: 0 | CK22: 0 | CL22: 0 | CM22: 0 | CN22: 0 | CO22: 0 | CP22: 0 | CQ22: 0
A23: Pumpe inkl. stigrør og forerørsforsejlinger mv. - 14 | B23: m³/h | C23: 15 | D23: 0 | E23: 0 | F23: 0 | G23: 0 | H23: 0 | I23: 0 | J23: 0 | K23: 0 | L23: 0 | M23: 0 | N23: 0 | O23: 5 | P23: 0 | Q23: 0 | R23: 0 | S23: 0 | T23: 0 | U23: 0 | V23: 0 | W23: 0 | X23: 0 | Y23: 0 | Z23: =IF(COUNTIF(D23:Y23,"<>0")<=1,IF((SUM(D23:Y23))=0,0,(+HLOOKUP((SUM(D23:Y23)),Priser!$E$54:$J$56,2)+((SUM(D23:Y23))-HLOOKUP((SUM(D23:Y23)),Priser!$E$54:$J$56,1))*HLOOKUP((SUM(D23:Y23)),Priser!$E$54:$J$56,3))/(SUM(D23:Y23)))*(1+Genanskaffelsespriser!$D$196),$A$1373) -> 4578.075425 | AA23: 0 | AB23: 0 | AC23: 0 | AD23: 0 | AE23: 0 | AF23: 0 | AG23: 0 | AH23: 0 | AI23: 0 | AJ23: 0 | AK23: 0 | AL23: 4578.075425 | AM23: 0 | AN23: 0 | AO23: 0 | AP23: 0 | AQ23: 0 | AR23: 0 | AS23: 0 | AT23: 0 | AU23: 0 | AV23: 0 | AW23: 4578.075425 | AX23: =VLOOKUP(D$3,Prisindeks!$A$1:$B$111,2,FALSE)/100*AA23 -> 0 | AY23: =VLOOKUP(E$3,Prisindeks!$A$1:$B$111,2,FALSE)/100*AB23 -> 0 | AZ23: =VLOOKUP(F$3,Prisindeks!$A$1:$B$111,2,FALSE)/100*AC23 -> 0 | BA23: =VLOOKUP(G$3,Prisindeks!$A$1:$B$111,2,FALSE)/100*AD23 -> 0 | BB23: =VLOOKUP(H$3,Prisindeks!$A$1:$B$111,2,FALSE)/100*AE23 -> 0 | BC23: =VLOOKUP(I$3,Prisindeks!$A$1:$B$111,2,FALSE)/100*AF23 -> 0 | BD23: =VLOOKUP(J$3,Prisindeks!$A$1:$B$111,2,FALSE)/100*AG23 -> 0 | BE23: =VLOOKUP(K$3,Prisindeks!$A$1:$B$111,2,FALSE)/100*AH23 -> 0 | BF23: =VLOOKUP(L$3,Prisindeks!$A$1:$B$111,2,FALSE)/100*AI23 -> 0 | BG23: =VLOOKUP(M$3,Prisindeks!$A$1:$B$111,2,FALSE)/100*AJ23 -> 0 | BH23: =VLOOKUP(N$3,Prisindeks!$A$1:$B$111,2,FALSE)/100*AK23 -> 0 | BI23: =VLOOKUP(O$3,Prisindeks!$A$1:$B$111,2,FALSE)/100*AL23 -> 3694.299739 | BJ23: =VLOOKUP(P$3,Prisindeks!$A$1:$B$111,2,FALSE)/100*AM23 -> 0 | BK23: =VLOOKUP(Q$3,Prisindeks!$A$1:$B$111,2,FALSE)/100*AN23 -> 0 | BL23: =VLOOKUP(R$3,Prisindeks!$A$1:$B$111,2,FALSE)/100*AO23 -> 0 | BM23: =VLOOKUP(S$3,Prisindeks!$A$1:$B$111,2,FALSE)/100*AP23 -> 0 | BN23: =VLOOKUP(T$3,Prisindeks!$A$1:$B$111,2,FALSE)/100*AQ23 -> 0 | BO23: =VLOOKUP(U$3,Prisindeks!$A$1:$B$111,2,FALSE)/100*AR23 -> 0 | BP23: =VLOOKUP(V$3,Prisindeks!$A$1:$B$111,2,FALSE)/100*AS23 -> 0 | BQ23: =VLOOKUP(W$3,Prisindeks!$A$1:$B$111,2,FALSE)/100*AT23 -> 0 | BR23: =VLOOKUP(X$3,Prisindeks!$A$1:$B$111,2,FALSE)/100*AU23 -> 0 | BS23: =VLOOKUP(Y$3,Prisindeks!$A$1:$B$111,2,FALSE)/100*AV23 -> 0 | BT23: 3694.299739 | BU23: 0 | BV23: 0 | BW23: 0 | BX23: 0 | BY23: 0 | BZ23: 0 | CA23: 0 | CB23: 0 | CC23: 0 | CD23: 0 | CE23: 0 | CF23: 4136.187582 | CG23: 0 | CH23: 0 | CI23: 0 | CJ23: 0 | CK23: 0 | CL23: 0 | CM23: 0 | CN23: 0 | CO23: 0 | CP23: 0 | CQ23: 4136.187582
A24: Pumpe inkl. stigrør og forerørsforsejlinger mv. - 15 | B24: m³/h | C24: 15 | D24: 0 | E24: 0 | F24: 0 | G24: 0 | H24: 0 | I24: 0 | J24: 0.5 | K24: 0 | L24: 0 | M24: 0 | N24: 0 | O24: 0 | P24: 0 | Q24: 0 | R24: 0 | S24: 0 | T24: 0 | U24: 0 | V24: 0 | W24: 0 | X24: 0 | Y24: 0 | Z24: =IF(COUNTIF(D24:Y24,"<>0")<=1,IF((SUM(D24:Y24))=0,0,(+HLOOKUP((SUM(D24:Y24)),Priser!$E$54:$J$56,2)+((SUM(D24:Y24))-HLOOKUP((SUM(D24:Y24)),Priser!$E$54:$J$56,1))*HLOOKUP((SUM(D24:Y24)),Priser!$E$54:$J$56,3))/(SUM(D24:Y24)))*(1+Genanskaffelsespriser!$D$196),$A$1373) -> 4578.075425 | AA24: 0 | AB24: 0 | AC24: 0 | AD24: 0 | AE24: 0 | AF24: 0 | AG24: 0 | AH24: 0 | AI24: 0 | AJ24: 0 | AK24: 0 | AL24: 0 | AM24: 0 | AN24: 0 | AO24: 0 | AP24: 0 | AQ24: 0 | AR24: 0 | AS24: 0 | AT24: 0 | AU24: 0 | AV24: 0 | AW24: 0 | AX24: =VLOOKUP(D$3,Prisindeks!$A$1:$B$111,2,FALSE)/100*AA24 -> 0 | AY24: =VLOOKUP(E$3,Prisindeks!$A$1:$B$111,2,FALSE)/100*AB24 -> 0 | AZ24: =VLOOKUP(F$3,Prisindeks!$A$1:$B$111,2,FALSE)/100*AC24 -> 0 | BA24: =VLOOKUP(G$3,Prisindeks!$A$1:$B$111,2,FALSE)/100*AD24 -> 0 | BB24: =VLOOKUP(H$3,Prisindeks!$A$1:$B$111,2,FALSE)/100*AE24 -> 0 | BC24: =VLOOKUP(I$3,Prisindeks!$A$1:$B$111,2,FALSE)/100*AF24 -> 0 | BD24: =VLOOKUP(J$3,Prisindeks!$A$1:$B$111,2,FALSE)/100*AG24 -> 0 | BE24: =VLOOKUP(K$3,Prisindeks!$A$1:$B$111,2,FALSE)/100*AH24 -> 0 | BF24: =VLOOKUP(L$3,Prisindeks!$A$1:$B$111,2,FALSE)/100*AI24 -> 0 | BG24: =VLOOKUP(M$3,Prisindeks!$A$1:$B$111,2,FALSE)/100*AJ24 -> 0 | BH24: =VLOOKUP(N$3,Prisindeks!$A$1:$B$111,2,FALSE)/100*AK24 -> 0 | BI24: =VLOOKUP(O$3,Prisindeks!$A$1:$B$111,2,FALSE)/100*AL24 -> 0 | BJ24: =VLOOKUP(P$3,Prisindeks!$A$1:$B$111,2,FALSE)/100*AM24 -> 0 | BK24: =VLOOKUP(Q$3,Prisindeks!$A$1:$B$111,2,FALSE)/100*AN24 -> 0 | BL24: =VLOOKUP(R$3,Prisindeks!$A$1:$B$111,2,FALSE)/100*AO24 -> 0 | BM24: =VLOOKUP(S$3,Prisindeks!$A$1:$B$111,2,FALSE)/100*AP24 -> 0 | BN24: =VLOOKUP(T$3,Prisindeks!$A$1:$B$111,2,FALSE)/100*AQ24 -> 0 | BO24: =VLOOKUP(U$3,Prisindeks!$A$1:$B$111,2,FALSE)/100*AR24 -> 0 | BP24: =VLOOKUP(V$3,Prisindeks!$A$1:$B$111,2,FALSE)/100*AS24 -> 0 | BQ24: =VLOOKUP(W$3,Prisindeks!$A$1:$B$111,2,FALSE)/100*AT24 -> 0 | BR24: =VLOOKUP(X$3,Prisindeks!$A$1:$B$111,2,FALSE)/100*AU24 -> 0 | BS24: =VLOOKUP(Y$3,Prisindeks!$A$1:$B$111,2,FALSE)/100*AV24 -> 0 | BT24: 0 | BU24: 0 | BV24: 0 | BW24: 0 | BX24: 0 | BY24: 0 | BZ24: 0 | CA24: 0 | CB24: 0 | CC24: 0 | CD24: 0 | CE24: 0 | CF24: 0 | CG24: 0 | CH24: 0 | CI24: 0 | CJ24: 0 | CK24: 0 | CL24: 0 | CM24: 0 | CN24: 0 | CO24: 0 | CP24: 0 | CQ24: 0
A25: Pumpe inkl. stigrør og forerørsforsejlinger mv. - 16 | B25: m³/h | C25: 15 | D25: 0 | E25: 0 | F25: 0 | G25: 0 | H25: 0 | I25: 0 | J25: 0 | K25: 0 | L25: 6.4 | M25: 0 | N25: 0 | O25: 0 | P25: 0 | Q25: 0 | R25: 0 | S25: 0 | T25: 0 | U25: 0 | V25: 0 | W25: 0 | X25: 0 | Y25: 0 | Z25: =IF(COUNTIF(D25:Y25,"<>0")<=1,IF((SUM(D25:Y25))=0,0,(+HLOOKUP((SUM(D25:Y25)),Priser!$E$54:$J$56,2)+((SUM(D25:Y25))-HLOOKUP((SUM(D25:Y25)),Priser!$E$54:$J$56,1))*HLOOKUP((SUM(D25:Y25)),Priser!$E$54:$J$56,3))/(SUM(D25:Y25)))*(1+Genanskaffelsespriser!$D$196),$A$1373) -> 4578.075425 | AA25: 0 | AB25: 0 | AC25: 0 | AD25: 0 | AE25: 0 | AF25: 0 | AG25: 0 | AH25: 0 | AI25: 0 | AJ25: 0 | AK25: 0 | AL25: 0 | AM25: 0 | AN25: 0 | AO25: 0 | AP25: 0 | AQ25: 0 | AR25: 0 | AS25: 0 | AT25: 0 | AU25: 0 | AV25: 0 | AW25: 0 | AX25: =VLOOKUP(D$3,Prisindeks!$A$1:$B$111,2,FALSE)/100*AA25 -> 0 | AY25: =VLOOKUP(E$3,Prisindeks!$A$1:$B$111,2,FALSE)/100*AB25 -> 0 | AZ25: =VLOOKUP(F$3,Prisindeks!$A$1:$B$111,2,FALSE)/100*AC25 -> 0 | BA25: =VLOOKUP(G$3,Prisindeks!$A$1:$B$111,2,FALSE)/100*AD25 -> 0 | BB25: =VLOOKUP(H$3,Prisindeks!$A$1:$B$111,2,FALSE)/100*AE25 -> 0 | BC25: =VLOOKUP(I$3,Prisindeks!$A$1:$B$111,2,FALSE)/100*AF25 -> 0 | BD25: =VLOOKUP(J$3,Prisindeks!$A$1:$B$111,2,FALSE)/100*AG25 -> 0 | BE25: =VLOOKUP(K$3,Prisindeks!$A$1:$B$111,2,FALSE)/100*AH25 -> 0 | BF25: =VLOOKUP(L$3,Prisindeks!$A$1:$B$111,2,FALSE)/100*AI25 -> 0 | BG25: =VLOOKUP(M$3,Prisindeks!$A$1:$B$111,2,FALSE)/100*AJ25 -> 0 | BH25: =VLOOKUP(N$3,Prisindeks!$A$1:$B$111,2,FALSE)/100*AK25 -> 0 | BI25: =VLOOKUP(O$3,Prisindeks!$A$1:$B$111,2,FALSE)/100*AL25 -> 0 | BJ25: =VLOOKUP(P$3,Prisindeks!$A$1:$B$111,2,FALSE)/100*AM25 -> 0 | BK25: =VLOOKUP(Q$3,Prisindeks!$A$1:$B$111,2,FALSE)/100*AN25 -> 0 | BL25: =VLOOKUP(R$3,Prisindeks!$A$1:$B$111,2,FALSE)/100*AO25 -> 0 | BM25: =VLOOKUP(S$3,Prisindeks!$A$1:$B$111,2,FALSE)/100*AP25 -> 0 | BN25: =VLOOKUP(T$3,Prisindeks!$A$1:$B$111,2,FALSE)/100*AQ25 -> 0 | BO25: =VLOOKUP(U$3,Prisindeks!$A$1:$B$111,2,FALSE)/100*AR25 -> 0 | BP25: =VLOOKUP(V$3,Prisindeks!$A$1:$B$111,2,FALSE)/100*AS25 -> 0 | BQ25: =VLOOKUP(W$3,Prisindeks!$A$1:$B$111,2,FALSE)/100*AT25 -> 0 | BR25: =VLOOKUP(X$3,Prisindeks!$A$1:$B$111,2,FALSE)/100*AU25 -> 0 | BS25: =VLOOKUP(Y$3,Prisindeks!$A$1:$B$111,2,FALSE)/100*AV25 -> 0 | BT25: 0 | BU25: 0 | BV25: 0 | BW25: 0 | BX25: 0 | BY25: 0 | BZ25: 0 | CA25: 0 | CB25: 0 | CC25: 0 | CD25: 0 | CE25: 0 | CF25: 0 | CG25: 0 | CH25: 0 | CI25: 0 | CJ25: 0 | CK25: 0 | CL25: 0 | CM25: 0 | CN25: 0 | CO25: 0 | CP25: 0 | CQ25: 0
A26: Pumpe inkl. stigrør og forerørsforsejlinger mv. - 17 | B26: m³/h | C26: 15 | D26: 0 | E26: 0 | F26: 0 | G26: 0 | H26: 0 | I26: 0 | J26: 0 | K26: 0 | L26: 0 | M26: 4.4 | N26: 0 | O26: 0 | P26: 0 | Q26: 0 | R26: 0 | S26: 0 | T26: 0 | U26: 0 | V26: 0 | W26: 0 | X26: 0 | Y26: 0 | Z26: =IF(COUNTIF(D26:Y26,"<>0")<=1,IF((SUM(D26:Y26))=0,0,(+HLOOKUP((SUM(D26:Y26)),Priser!$E$54:$J$56,2)+((SUM(D26:Y26))-HLOOKUP((SUM(D26:Y26)),Priser!$E$54:$J$56,1))*HLOOKUP((SUM(D26:Y26)),Priser!$E$54:$J$56,3))/(SUM(D26:Y26)))*(1+Genanskaffelsespriser!$D$196),$A$1373) -> 4578.075425 | AA26: 0 | AB26: 0 | AC26: 0 | AD26: 0 | AE26: 0 | AF26: 0 | AG26: 0 | AH26: 0 | AI26: 0 | AJ26: 0 | AK26: 0 | AL26: 0 | AM26: 0 | AN26: 0 | AO26: 0 | AP26: 0 | AQ26: 0 | AR26: 0 | AS26: 0 | AT26: 0 | AU26: 0 | AV26: 0 | AW26: 0 | AX26: =VLOOKUP(D$3,Prisindeks!$A$1:$B$111,2,FALSE)/100*AA26 -> 0 | AY26: =VLOOKUP(E$3,Prisindeks!$A$1:$B$111,2,FALSE)/100*AB26 -> 0 | AZ26: =VLOOKUP(F$3,Prisindeks!$A$1:$B$111,2,FALSE)/100*AC26 -> 0 | BA26: =VLOOKUP(G$3,Prisindeks!$A$1:$B$111,2,FALSE)/100*AD26 -> 0 | BB26: =VLOOKUP(H$3,Prisindeks!$A$1:$B$111,2,FALSE)/100*AE26 -> 0 | BC26: =VLOOKUP(I$3,Prisindeks!$A$1:$B$111,2,FALSE)/100*AF26 -> 0 | BD26: =VLOOKUP(J$3,Prisindeks!$A$1:$B$111,2,FALSE)/100*AG26 -> 0 | BE26: =VLOOKUP(K$3,Prisindeks!$A$1:$B$111,2,FALSE)/100*AH26 -> 0 | BF26: =VLOOKUP(L$3,Prisindeks!$A$1:$B$111,2,FALSE)/100*AI26 -> 0 | BG26: =VLOOKUP(M$3,Prisindeks!$A$1:$B$111,2,FALSE)/100*AJ26 -> 0 | BH26: =VLOOKUP(N$3,Prisindeks!$A$1:$B$111,2,FALSE)/100*AK26 -> 0 | BI26: =VLOOKUP(O$3,Prisindeks!$A$1:$B$111,2,FALSE)/100*AL26 -> 0 | BJ26: =VLOOKUP(P$3,Prisindeks!$A$1:$B$111,2,FALSE)/100*AM26 -> 0 | BK26: =VLOOKUP(Q$3,Prisindeks!$A$1:$B$111,2,FALSE)/100*AN26 -> 0 | BL26: =VLOOKUP(R$3,Prisindeks!$A$1:$B$111,2,FALSE)/100*AO26 -> 0 | BM26: =VLOOKUP(S$3,Prisindeks!$A$1:$B$111,2,FALSE)/100*AP26 -> 0 | BN26: =VLOOKUP(T$3,Prisindeks!$A$1:$B$111,2,FALSE)/100*AQ26 -> 0 | BO26: =VLOOKUP(U$3,Prisindeks!$A$1:$B$111,2,FALSE)/100*AR26 -> 0 | BP26: =VLOOKUP(V$3,Prisindeks!$A$1:$B$111,2,FALSE)/100*AS26 -> 0 | BQ26: =VLOOKUP(W$3,Prisindeks!$A$1:$B$111,2,FALSE)/100*AT26 -> 0 | BR26: =VLOOKUP(X$3,Prisindeks!$A$1:$B$111,2,FALSE)/100*AU26 -> 0 | BS26: =VLOOKUP(Y$3,Prisindeks!$A$1:$B$111,2,FALSE)/100*AV26 -> 0 | BT26: 0 | BU26: 0 | BV26: 0 | BW26: 0 | BX26: 0 | BY26: 0 | BZ26: 0 | CA26: 0 | CB26: 0 | CC26: 0 | CD26: 0 | CE26: 0 | CF26: 0 | CG26: 0 | CH26: 0 | CI26: 0 | CJ26: 0 | CK26: 0 | CL26: 0 | CM26: 0 | CN26: 0 | CO26: 0 | CP26: 0 | CQ26: 0
A27: Pumpe inkl. stigrør og forerørsforsejlinger mv. - 18 | B27: m³/h | C27: 15 | D27: 0 | E27: 0 | F27: 0 | G27: 0 | H27: 0 | I27: 0 | J27: 0 | K27: 0 | L27: 0 | M27: 0 | N27: 0 | O27: 0 | P27: 0 | Q27: 0 | R27: 0 | S27: 0 | T27: 0 | U27: 0 | V27: 0 | W27: 0 | X27: 0 | Y27: 0 | Z27: =IF(COUNTIF(D27:Y27,"<>0")<=1,IF((SUM(D27:Y27))=0,0,(+HLOOKUP((SUM(D27:Y27)),Priser!$E$54:$J$56,2)+((SUM(D27:Y27))-HLOOKUP((SUM(D27:Y27)),Priser!$E$54:$J$56,1))*HLOOKUP((SUM(D27:Y27)),Priser!$E$54:$J$56,3))/(SUM(D27:Y27)))*(1+Genanskaffelsespriser!$D$196),$A$1373) -> 0 | AA27: 0 | AB27: 0 | AC27: 0 | AD27: 0 | AE27: 0 | AF27: 0 | AG27: 0 | AH27: 0 | AI27: 0 | AJ27: 0 | AK27: 0 | AL27: 0 | AM27: 0 | AN27: 0 | AO27: 0 | AP27: 0 | AQ27: 0 | AR27: 0 | AS27: 0 | AT27: 0 | AU27: 0 | AV27: 0 | AW27: 0 | AX27: =VLOOKUP(D$3,Prisindeks!$A$1:$B$111,2,FALSE)/100*AA27 -> 0 | AY27: =VLOOKUP(E$3,Prisindeks!$A$1:$B$111,2,FALSE)/100*AB27 -> 0 | AZ27: =VLOOKUP(F$3,Prisindeks!$A$1:$B$111,2,FALSE)/100*AC27 -> 0 | BA27: =VLOOKUP(G$3,Prisindeks!$A$1:$B$111,2,FALSE)/100*AD27 -> 0 | BB27: =VLOOKUP(H$3,Prisindeks!$A$1:$B$111,2,FALSE)/100*AE27 -> 0 | BC27: =VLOOKUP(I$3,Prisindeks!$A$1:$B$111,2,FALSE)/100*AF27 -> 0 | BD27: =VLOOKUP(J$3,Prisindeks!$A$1:$B$111,2,FALSE)/100*AG27 -> 0 | BE27: =VLOOKUP(K$3,Prisindeks!$A$1:$B$111,2,FALSE)/100*AH27 -> 0 | BF27: =VLOOKUP(L$3,Prisindeks!$A$1:$B$111,2,FALSE)/100*AI27 -> 0 | BG27: =VLOOKUP(M$3,Prisindeks!$A$1:$B$111,2,FALSE)/100*AJ27 -> 0 | BH27: =VLOOKUP(N$3,Prisindeks!$A$1:$B$111,2,FALSE)/100*AK27 -> 0 | BI27: =VLOOKUP(O$3,Prisindeks!$A$1:$B$111,2,FALSE)/100*AL27 -> 0 | BJ27: =VLOOKUP(P$3,Prisindeks!$A$1:$B$111,2,FALSE)/100*AM27 -> 0 | BK27: =VLOOKUP(Q$3,Prisindeks!$A$1:$B$111,2,FALSE)/100*AN27 -> 0 | BL27: =VLOOKUP(R$3,Prisindeks!$A$1:$B$111,2,FALSE)/100*AO27 -> 0 | BM27: =VLOOKUP(S$3,Prisindeks!$A$1:$B$111,2,FALSE)/100*AP27 -> 0 | BN27: =VLOOKUP(T$3,Prisindeks!$A$1:$B$111,2,FALSE)/100*AQ27 -> 0 | BO27: =VLOOKUP(U$3,Prisindeks!$A$1:$B$111,2,FALSE)/100*AR27 -> 0 | BP27: =VLOOKUP(V$3,Prisindeks!$A$1:$B$111,2,FALSE)/100*AS27 -> 0 | BQ27: =VLOOKUP(W$3,Prisindeks!$A$1:$B$111,2,FALSE)/100*AT27 -> 0 | BR27: =VLOOKUP(X$3,Prisindeks!$A$1:$B$111,2,FALSE)/100*AU27 -> 0 | BS27: =VLOOKUP(Y$3,Prisindeks!$A$1:$B$111,2,FALSE)/100*AV27 -> 0 | BT27: 0 | BU27: 0 | BV27: 0 | BW27: 0 | BX27: 0 | BY27: 0 | BZ27: 0 | CA27: 0 | CB27: 0 | CC27: 0 | CD27: 0 | CE27: 0 | CF27: 0 | CG27: 0 | CH27: 0 | CI27: 0 | CJ27: 0 | CK27: 0 | CL27: 0 | CM27: 0 | CN27: 0 | CO27: 0 | CP27: 0 | CQ27: 0
A28: Pumpe inkl. stigrør og forerørsforsejlinger mv. - 19 | B28: m³/h | C28: 15 | D28: 0 | E28: 0 | F28: 0 | G28: 0 | H28: 0 | I28: 0 | J28: 0 | K28: 0 | L28: 0 | M28: 0 | N28: 3 | O28: 0 | P28: 0 | Q28: 0 | R28: 0 | S28: 0 | T28: 0 | U28: 0 | V28: 0 | W28: 0 | X28: 0 | Y28: 0 | Z28: =IF(COUNTIF(D28:Y28,"<>0")<=1,IF((SUM(D28:Y28))=0,0,(+HLOOKUP((SUM(D28:Y28)),Priser!$E$54:$J$56,2)+((SUM(D28:Y28))-HLOOKUP((SUM(D28:Y28)),Priser!$E$54:$J$56,1))*HLOOKUP((SUM(D28:Y28)),Priser!$E$54:$J$56,3))/(SUM(D28:Y28)))*(1+Genanskaffelsespriser!$D$196),$A$1373) -> 4578.075425 | AA28: 0 | AB28: 0 | AC28: 0 | AD28: 0 | AE28: 0 | AF28: 0 | AG28: 0 | AH28: 0 | AI28: 0 | AJ28: 0 | AK28: 0 | AL28: 0 | AM28: 0 | AN28: 0 | AO28: 0 | AP28: 0 | AQ28: 0 | AR28: 0 | AS28: 0 | AT28: 0 | AU28: 0 | AV28: 0 | AW28: 0 | AX28: =VLOOKUP(D$3,Prisindeks!$A$1:$B$111,2,FALSE)/100*AA28 -> 0 | AY28: =VLOOKUP(E$3,Prisindeks!$A$1:$B$111,2,FALSE)/100*AB28 -> 0 | AZ28: =VLOOKUP(F$3,Prisindeks!$A$1:$B$111,2,FALSE)/100*AC28 -> 0 | BA28: =VLOOKUP(G$3,Prisindeks!$A$1:$B$111,2,FALSE)/100*AD28 -> 0 | BB28: =VLOOKUP(H$3,Prisindeks!$A$1:$B$111,2,FALSE)/100*AE28 -> 0 | BC28: =VLOOKUP(I$3,Prisindeks!$A$1:$B$111,2,FALSE)/100*AF28 -> 0 | BD28: =VLOOKUP(J$3,Prisindeks!$A$1:$B$111,2,FALSE)/100*AG28 -> 0 | BE28: =VLOOKUP(K$3,Prisindeks!$A$1:$B$111,2,FALSE)/100*AH28 -> 0 | BF28: =VLOOKUP(L$3,Prisindeks!$A$1:$B$111,2,FALSE)/100*AI28 -> 0 | BG28: =VLOOKUP(M$3,Prisindeks!$A$1:$B$111,2,FALSE)/100*AJ28 -> 0 | BH28: =VLOOKUP(N$3,Prisindeks!$A$1:$B$111,2,FALSE)/100*AK28 -> 0 | BI28: =VLOOKUP(O$3,Prisindeks!$A$1:$B$111,2,FALSE)/100*AL28 -> 0 | BJ28: =VLOOKUP(P$3,Prisindeks!$A$1:$B$111,2,FALSE)/100*AM28 -> 0 | BK28: =VLOOKUP(Q$3,Prisindeks!$A$1:$B$111,2,FALSE)/100*AN28 -> 0 | BL28: =VLOOKUP(R$3,Prisindeks!$A$1:$B$111,2,FALSE)/100*AO28 -> 0 | BM28: =VLOOKUP(S$3,Prisindeks!$A$1:$B$111,2,FALSE)/100*AP28 -> 0 | BN28: =VLOOKUP(T$3,Prisindeks!$A$1:$B$111,2,FALSE)/100*AQ28 -> 0 | BO28: =VLOOKUP(U$3,Prisindeks!$A$1:$B$111,2,FALSE)/100*AR28 -> 0 | BP28: =VLOOKUP(V$3,Prisindeks!$A$1:$B$111,2,FALSE)/100*AS28 -> 0 | BQ28: =VLOOKUP(W$3,Prisindeks!$A$1:$B$111,2,FALSE)/100*AT28 -> 0 | BR28: =VLOOKUP(X$3,Prisindeks!$A$1:$B$111,2,FALSE)/100*AU28 -> 0 | BS28: =VLOOKUP(Y$3,Prisindeks!$A$1:$B$111,2,FALSE)/100*AV28 -> 0 | BT28: 0 | BU28: 0 | BV28: 0 | BW28: 0 | BX28: 0 | BY28: 0 | BZ28: 0 | CA28: 0 | CB28: 0 | CC28: 0 | CD28: 0 | CE28: 0 | CF28: 0 | CG28: 0 | CH28: 0 | CI28: 0 | CJ28: 0 | CK28: 0 | CL28: 0 | CM28: 0 | CN28: 0 | CO28: 0 | CP28: 0 | CQ28: 0
A29: Pumpe inkl. stigrør og forerørsforsejlinger mv. - 20 | B29: m³/h | C29: 15 | D29: 0 | E29: 0 | F29: 0 | G29: 0 | H29: 0 | I29: 0 | J29: 0 | K29: 0 | L29: 0 | M29: 0 | N29: 0 | O29: 0 | P29: 0 | Q29: 0 | R29: 0 | S29: 0 | T29: 0 | U29: 0 | V29: 0 | W29: 0 | X29: 0 | Y29: 2.6 | Z29: =IF(COUNTIF(D29:Y29,"<>0")<=1,IF((SUM(D29:Y29))=0,0,(+HLOOKUP((SUM(D29:Y29)),Priser!$E$54:$J$56,2)+((SUM(D29:Y29))-HLOOKUP((SUM(D29:Y29)),Priser!$E$54:$J$56,1))*HLOOKUP((SUM(D29:Y29)),Priser!$E$54:$J$56,3))/(SUM(D29:Y29)))*(1+Genanskaffelsespriser!$D$196),$A$1373) -> 4578.075425 | AA29: 0 | AB29: 0 | AC29: 0 | AD29: 0 | AE29: 0 | AF29: 0 | AG29: 0 | AH29: 0 | AI29: 0 | AJ29: 0 | AK29: 0 | AL29: 0 | AM29: 0 | AN29: 0 | AO29: 0 | AP29: 0 | AQ29: 0 | AR29: 0 | AS29: 0 | AT29: 0 | AU29: 0 | AV29: 11902.9961 | AW29: 11902.9961 | AX29: =VLOOKUP(D$3,Prisindeks!$A$1:$B$111,2,FALSE)/100*AA29 -> 0 | AY29: =VLOOKUP(E$3,Prisindeks!$A$1:$B$111,2,FALSE)/100*AB29 -> 0 | AZ29: =VLOOKUP(F$3,Prisindeks!$A$1:$B$111,2,FALSE)/100*AC29 -> 0 | BA29: =VLOOKUP(G$3,Prisindeks!$A$1:$B$111,2,FALSE)/100*AD29 -> 0 | BB29: =VLOOKUP(H$3,Prisindeks!$A$1:$B$111,2,FALSE)/100*AE29 -> 0 | BC29: =VLOOKUP(I$3,Prisindeks!$A$1:$B$111,2,FALSE)/100*AF29 -> 0 | BD29: =VLOOKUP(J$3,Prisindeks!$A$1:$B$111,2,FALSE)/100*AG29 -> 0 | BE29: =VLOOKUP(K$3,Prisindeks!$A$1:$B$111,2,FALSE)/100*AH29 -> 0 | BF29: =VLOOKUP(L$3,Prisindeks!$A$1:$B$111,2,FALSE)/100*AI29 -> 0 | BG29: =VLOOKUP(M$3,Prisindeks!$A$1:$B$111,2,FALSE)/100*AJ29 -> 0 | BH29: =VLOOKUP(N$3,Prisindeks!$A$1:$B$111,2,FALSE)/100*AK29 -> 0 | BI29: =VLOOKUP(O$3,Prisindeks!$A$1:$B$111,2,FALSE)/100*AL29 -> 0 | BJ29: =VLOOKUP(P$3,Prisindeks!$A$1:$B$111,2,FALSE)/100*AM29 -> 0 | BK29: =VLOOKUP(Q$3,Prisindeks!$A$1:$B$111,2,FALSE)/100*AN29 -> 0 | BL29: =VLOOKUP(R$3,Prisindeks!$A$1:$B$111,2,FALSE)/100*AO29 -> 0 | BM29: =VLOOKUP(S$3,Prisindeks!$A$1:$B$111,2,FALSE)/100*AP29 -> 0 | BN29: =VLOOKUP(T$3,Prisindeks!$A$1:$B$111,2,FALSE)/100*AQ29 -> 0 | BO29: =VLOOKUP(U$3,Prisindeks!$A$1:$B$111,2,FALSE)/100*AR29 -> 0 | BP29: =VLOOKUP(V$3,Prisindeks!$A$1:$B$111,2,FALSE)/100*AS29 -> 0 | BQ29: =VLOOKUP(W$3,Prisindeks!$A$1:$B$111,2,FALSE)/100*AT29 -> 0 | BR29: =VLOOKUP(X$3,Prisindeks!$A$1:$B$111,2,FALSE)/100*AU29 -> 0 | BS29: =VLOOKUP(Y$3,Prisindeks!$A$1:$B$111,2,FALSE)/100*AV29 -> 11902.9961 | BT29: 11902.9961 | BU29: 0 | BV29: 0 | BW29: 0 | BX29: 0 | BY29: 0 | BZ29: 0 | CA29: 0 | CB29: 0 | CC29: 0 | CD29: 0 | CE29: 0 | CF29: 0 | CG29: 0 | CH29: 0 | CI29: 0 | CJ29: 0 | CK29: 0 | CL29: 0 | CM29: 0 | CN29: 0 | CO29: 0 | CP29: 11902.9961 | CQ29: 11902.9961
A30: Pumpe inkl. stigrør og forerørsforsejlinger mv. - 21 | B30: m³/h | C30: 15 | D30: 0 | E30: 0 | F30: 0 | G30: 0 | H30: 0 | I30: 0 | J30: 0 | K30: 0 | L30: 0 | M30: 0 | N30: 0 | O30: 24.2 | P30: 0 | Q30: 0 | R30: 0 | S30: 0 | T30: 0 | U30: 0 | V30: 0 | W30: 0 | X30: 0 | Y30: 0 | Z30: =IF(COUNTIF(D30:Y30,"<>0")<=1,IF((SUM(D30:Y30))=0,0,(+HLOOKUP((SUM(D30:Y30)),Priser!$E$54:$J$56,2)+((SUM(D30:Y30))-HLOOKUP((SUM(D30:Y30)),Priser!$E$54:$J$56,1))*HLOOKUP((SUM(D30:Y30)),Priser!$E$54:$J$56,3))/(SUM(D30:Y30)))*(1+Genanskaffelsespriser!$D$196),$A$1373) -> 2953.237128 | AA30: =IF((D30*$Z30-(2009-D$3)/$C30*$Z30*D30)<0,0,(D30*$Z30-(2009-D$3)/$C30*$Z30*D30)) -> 0 | AB30: 0 | AC30: 0 | AD30: 0 | AE30: 0 | AF30: 0 | AG30: 0 | AH30: 0 | AI30: 0 | AJ30: 0 | AK30: =IF((N30*$Z30-(2009-N$3)/$C30*$Z30*N30)<0,0,(N30*$Z30-(2009-N$3)/$C30*$Z30*N30)) -> 0 | AL30: 14293.6677 | AM30: 0 | AN30: 0 | AO30: 0 | AP30: 0 | AQ30: 0 | AR30: 0 | AS30: 0 | AT30: 0 | AU30: =IF((X30*$Z30-(2009-X$3)/$C30*$Z30*X30)<0,0,(X30*$Z30-(2009-X$3)/$C30*$Z30*X30)) -> 0 | AV30: 0 | AW30: 14293.6677 | BT30: 0 | CQ30: 7146.833849
A31: Pumpe inkl. stigrør og forerørsforsejlinger mv. - 22 | B31: m³/h | C31: 15 | D31: 0 | E31: 0 | F31: 0 | G31: 0 | H31: 0 | I31: 0 | J31: 0 | K31: 0 | L31: 0 | M31: 0 | N31: 0 | O31: 25 | P31: 0 | Q31: 0 | R31: 0 | S31: 0 | T31: 0 | U31: 0 | V31: 0 | W31: 0 | X31: 0 | Y31: 0 | Z31: =IF(COUNTIF(D31:Y31,"<>0")<=1,IF((SUM(D31:Y31))=0,0,(+HLOOKUP((SUM(D31:Y31)),Priser!$E$54:$J$56,2)+((SUM(D31:Y31))-HLOOKUP((SUM(D31:Y31)),Priser!$E$54:$J$56,1))*HLOOKUP((SUM(D31:Y31)),Priser!$E$54:$J$56,3))/(SUM(D31:Y31)))*(1+Genanskaffelsespriser!$D$196),$A$1373) -> 2905.818848 | AA31: 0 | AB31: 0 | AC31: 0 | AD31: 0 | AE31: 0 | AF31: 0 | AG31: 0 | AH31: 0 | AI31: 0 | AJ31: 0 | AK31: 0 | AL31: 14529.09424 | AM31: 0 | AN31: 0 | AO31: 0 | AP31: 0 | AQ31: 0 | AR31: 0 | AS31: 0 | AT31: 0 | AU31: 0 | AV31: 0 | AW31: 14529.09424 | BT31: 0 | CQ31: 7264.54712
A32: Pumpe inkl. stigrør og forerørsforsejlinger mv. - 23 | B32: m³/h | C32: 15 | D32: 0 | E32: 0 | F32: 0 | G32: 0 | H32: 0 | I32: 0 | J32: 0 | K32: 0 | L32: 0 | M32: 0 | N32: 0 | O32: 24 | P32: 0 | Q32: 0 | R32: 0 | S32: 0 | T32: 0 | U32: 0 | V32: 0 | W32: 0 | X32: 0 | Y32: 0 | Z32: =IF(COUNTIF(D32:Y32,"<>0")<=1,IF((SUM(D32:Y32))=0,0,(+HLOOKUP((SUM(D32:Y32)),Priser!$E$54:$J$56,2)+((SUM(D32:Y32))-HLOOKUP((SUM(D32:Y32)),Priser!$E$54:$J$56,1))*HLOOKUP((SUM(D32:Y32)),Priser!$E$54:$J$56,3))/(SUM(D32:Y32)))*(1+Genanskaffelsespriser!$D$196),$A$1373) -> 2965.585638 | AA32: 0 | AB32: 0 | AC32: 0 | AD32: 0 | AE32: 0 | AF32: 0 | AG32: 0 | AH32: 0 | AI32: 0 | AJ32: 0 | AK32: 0 | AL32: 14234.81106 | AM32: 0 | AN32: 0 | AO32: 0 | AP32: 0 | AQ32: 0 | AR32: 0 | AS32: 0 | AT32: 0 | AU32: 0 | AV32: 0 | AW32: 14234.81106 | BT32: 0 | CQ32: 7117.405531
A33: Pumpe inkl. stigrør og forerørsforsejlinger mv. - 24 | B33: m³/h | C33: 15 | D33: 0 | E33: 0 | F33: 0 | G33: 0 | H33: 0 | I33: 0 | J33: 0 | K33: 0 | L33: 0 | M33: 0 | N33: 0 | O33: 24 | P33: 0 | Q33: 0 | R33: 0 | S33: 0 | T33: 0 | U33: 0 | V33: 0 | W33: 0 | X33: 0 | Y33: 0 | Z33: =IF(COUNTIF(D33:Y33,"<>0")<=1,IF((SUM(D33:Y33))=0,0,(+HLOOKUP((SUM(D33:Y33)),Priser!$E$54:$J$56,2)+((SUM(D33:Y33))-HLOOKUP((SUM(D33:Y33)),Priser!$E$54:$J$56,1))*HLOOKUP((SUM(D33:Y33)),Priser!$E$54:$J$56,3))/(SUM(D33:Y33)))*(1+Genanskaffelsespriser!$D$196),$A$1373) -> 2965.585638 | AA33: 0 | AB33: 0 | AC33: 0 | AD33: 0 | AE33: 0 | AF33: 0 | AG33: 0 | AH33: 0 | AI33: 0 | AJ33: 0 | AK33: 0 | AL33: 14234.81106 | AM33: 0 | AN33: 0 | AO33: 0 | AP33: 0 | AQ33: 0 | AR33: 0 | AS33: 0 | AT33: 0 | AU33: 0 | AV33: 0 | AW33: 14234.81106 | BT33: 0 | CQ33: 7117.405531
A34: Erstatninger (OBS ingen øst-tillæg eller øvrige tillæg) | B34: stk. | C34: =Genanskaffelsespriser!E10 -> 30 | D34: 0 | E34: 0 | F34: 0 | G34: 0 | H34: 0 | I34: 0 | J34: 2 | K34: 0 | L34: 2 | M34: =1+6 -> 7 | N34: =1+7 -> 8 | O34: 3 | P34: 0 | Q34: 0 | R34: 0 | S34: 0 | T34: 0 | U34: 0 | V34: 0 | W34: 0 | X34: 0 | Y34: 0 | AA34: =IF((D34*Genanskaffelsespriser!$D10-(2009-D$3)/$C34*Genanskaffelsespriser!$D10*D34)<0,0,(D34*Genanskaffelsespriser!$D10-(2009-D$3)/$C34*Genanskaffelsespriser!$D10*D34)) -> 0 | AB34: =IF((E34*Genanskaffelsespriser!$D10-(2009-E$3)/$C34*Genanskaffelsespriser!$D10*E34)<0,0,(E34*Genanskaffelsespriser!$D10-(2009-E$3)/$C34*Genanskaffelsespriser!$D10*E34)) -> 0 | AC34: =IF((F34*Genanskaffelsespriser!$D10-(2009-F$3)/$C34*Genanskaffelsespriser!$D10*F34)<0,0,(F34*Genanskaffelsespriser!$D10-(2009-F$3)/$C34*Genanskaffelsespriser!$D10*F34)) -> 0 | AD34: =IF((G34*Genanskaffelsespriser!$D10-(2009-G$3)/$C34*Genanskaffelsespriser!$D10*G34)<0,0,(G34*Genanskaffelsespriser!$D10-(2009-G$3)/$C34*Genanskaffelsespriser!$D10*G34)) -> 0 | AE34: =IF((H34*Genanskaffelsespriser!$D10-(2009-H$3)/$C34*Genanskaffelsespriser!$D10*H34)<0,0,(H34*Genanskaffelsespriser!$D10-(2009-H$3)/$C34*Genanskaffelsespriser!$D10*H34)) -> 0 | AF34: =IF((I34*Genanskaffelsespriser!$D10-(2009-I$3)/$C34*Genanskaffelsespriser!$D10*I34)<0,0,(I34*Genanskaffelsespriser!$D10-(2009-I$3)/$C34*Genanskaffelsespriser!$D10*I34)) -> 0 | AG34: =IF((J34*Genanskaffelsespriser!$D10-(2009-J$3)/$C34*Genanskaffelsespriser!$D10*J34)<0,0,(J34*Genanskaffelsespriser!$D10-(2009-J$3)/$C34*Genanskaffelsespriser!$D10*J34)) -> 0 | AH34: =IF((K34*Genanskaffelsespriser!$D10-(2009-K$3)/$C34*Genanskaffelsespriser!$D10*K34)<0,0,(K34*Genanskaffelsespriser!$D10-(2009-K$3)/$C34*Genanskaffelsespriser!$D10*K34)) -> 0 | AI34: =IF((L34*Genanskaffelsespriser!$D10-(2009-L$3)/$C34*Genanskaffelsespriser!$D10*L34)<0,0,(L34*Genanskaffelsespriser!$D10-(2009-L$3)/$C34*Genanskaffelsespriser!$D10*L34)) -> 8982.2 | AJ34: =IF((M34*Genanskaffelsespriser!$D10-(2009-M$3)/$C34*Genanskaffelsespriser!$D10*M34)<0,0,(M34*Genanskaffelsespriser!$D10-(2009-M$3)/$C34*Genanskaffelsespriser!$D10*M34)) -> 83833.86667 | AK34: =IF((N34*Genanskaffelsespriser!$D10-(2009-N$3)/$C34*Genanskaffelsespriser!$D10*N34)<0,0,(N34*Genanskaffelsespriser!$D10-(2009-N$3)/$C34*Genanskaffelsespriser!$D10*N34)) -> 155691.4667 | AL34: =IF((O34*Genanskaffelsespriser!$D10-(2009-O$3)/$C34*Genanskaffelsespriser!$D10*O34)<0,0,(O34*Genanskaffelsespriser!$D10-(2009-O$3)/$C34*Genanskaffelsespriser!$D10*O34)) -> 80839.8 | AM34: =IF((P34*Genanskaffelsespriser!$D10-(2009-P$3)/$C34*Genanskaffelsespriser!$D10*P34)<0,0,(P34*Genanskaffelsespriser!$D10-(2009-P$3)/$C34*Genanskaffelsespriser!$D10*P34)) -> 0 | AN34: =IF((Q34*Genanskaffelsespriser!$D10-(2009-Q$3)/$C34*Genanskaffelsespriser!$D10*Q34)<0,0,(Q34*Genanskaffelsespriser!$D10-(2009-Q$3)/$C34*Genanskaffelsespriser!$D10*Q34)) -> 0 | AO34: =IF((R34*Genanskaffelsespriser!$D10-(2009-R$3)/$C34*Genanskaffelsespriser!$D10*R34)<0,0,(R34*Genanskaffelsespriser!$D10-(2009-R$3)/$C34*Genanskaffelsespriser!$D10*R34)) -> 0 | AP34: =IF((S34*Genanskaffelsespriser!$D10-(2009-S$3)/$C34*Genanskaffelsespriser!$D10*S34)<0,0,(S34*Genanskaffelsespriser!$D10-(2009-S$3)/$C34*Genanskaffelsespriser!$D10*S34)) -> 0 | AQ34: =IF((T34*Genanskaffelsespriser!$D10-(2009-T$3)/$C34*Genanskaffelsespriser!$D10*T34)<0,0,(T34*Genanskaffelsespriser!$D10-(2009-T$3)/$C34*Genanskaffelsespriser!$D10*T34)) -> 0 | AR34: =IF((U34*Genanskaffelsespriser!$D10-(2009-U$3)/$C34*Genanskaffelsespriser!$D10*U34)<0,0,(U34*Genanskaffelsespriser!$D10-(2009-U$3)/$C34*Genanskaffelsespriser!$D10*U34)) -> 0 | AS34: =IF((V34*Genanskaffelsespriser!$D10-(2009-V$3)/$C34*Genanskaffelsespriser!$D10*V34)<0,0,(V34*Genanskaffelsespriser!$D10-(2009-V$3)/$C34*Genanskaffelsespriser!$D10*V34)) -> 0 | AT34: =IF((W34*Genanskaffelsespriser!$D10-(2009-W$3)/$C34*Genanskaffelsespriser!$D10*W34)<0,0,(W34*Genanskaffelsespriser!$D10-(2009-W$3)/$C34*Genanskaffelsespriser!$D10*W34)) -> 0 | AU34: =IF((X34*Genanskaffelsespriser!$D10-(2009-X$3)/$C34*Genanskaffelsespriser!$D10*X34)<0,0,(X34*Genanskaffelsespriser!$D10-(2009-X$3)/$C34*Genanskaffelsespriser!$D10*X34)) -> 0 | AV34: =IF((Y34*Genanskaffelsespriser!$D10-(2009-Y$3)/$C34*Genanskaffelsespriser!$D10*Y34)<0,0,(Y34*Genanskaffelsespriser!$D10-(2009-Y$3)/$C34*Genanskaffelsespriser!$D10*Y34)) -> 0 | AW34: =+SUM(AA34:AV34) -> 329347.3333 | AX34: =VLOOKUP(D$3,Prisindeks!$A$1:$B$111,2,FALSE)/100*AA34 -> 0 | AY34: =VLOOKUP(E$3,Prisindeks!$A$1:$B$111,2,FALSE)/100*AB34 -> 0 | AZ34: =VLOOKUP(F$3,Prisindeks!$A$1:$B$111,2,FALSE)/100*AC34 -> 0 | BA34: =VLOOKUP(G$3,Prisindeks!$A$1:$B$111,2,FALSE)/100*AD34 -> 0 | BB34: =VLOOKUP(H$3,Prisindeks!$A$1:$B$111,2,FALSE)/100*AE34 -> 0 | BC34: =VLOOKUP(I$3,Prisindeks!$A$1:$B$111,2,FALSE)/100*AF34 -> 0 | BD34: =VLOOKUP(J$3,Prisindeks!$A$1:$B$111,2,FALSE)/100*AG34 -> 0 | BE34: =VLOOKUP(K$3,Prisindeks!$A$1:$B$111,2,FALSE)/100*AH34 -> 0 | BF34: =VLOOKUP(L$3,Prisindeks!$A$1:$B$111,2,FALSE)/100*AI34 -> 4233.046216 | BG34: =VLOOKUP(M$3,Prisindeks!$A$1:$B$111,2,FALSE)/100*AJ34 -> 49811.89319 | BH34: =VLOOKUP(N$3,Prisindeks!$A$1:$B$111,2,FALSE)/100*AK34 -> 109915.9766 | BI34: =VLOOKUP(O$3,Prisindeks!$A$1:$B$111,2,FALSE)/100*AL34 -> 65234.06111 | BJ34: =VLOOKUP(P$3,Prisindeks!$A$1:$B$111,2,FALSE)/100*AM34 -> 0 | BK34: =VLOOKUP(Q$3,Prisindeks!$A$1:$B$111,2,FALSE)/100*AN34 -> 0 | BL34: =VLOOKUP(R$3,Prisindeks!$A$1:$B$111,2,FALSE)/100*AO34 -> 0 | BM34: =VLOOKUP(S$3,Prisindeks!$A$1:$B$111,2,FALSE)/100*AP34 -> 0 | BN34: =VLOOKUP(T$3,Prisindeks!$A$1:$B$111,2,FALSE)/100*AQ34 -> 0 | BO34: =VLOOKUP(U$3,Prisindeks!$A$1:$B$111,2,FALSE)/100*AR34 -> 0 | BP34: =VLOOKUP(V$3,Prisindeks!$A$1:$B$111,2,FALSE)/100*AS34 -> 0 | BQ34: =VLOOKUP(W$3,Prisindeks!$A$1:$B$111,2,FALSE)/100*AT34 -> 0 | BR34: =VLOOKUP(X$3,Prisindeks!$A$1:$B$111,2,FALSE)/100*AU34 -> 0 | BS34: =VLOOKUP(Y$3,Prisindeks!$A$1:$B$111,2,FALSE)/100*AV34 -> 0 | BT34: =+SUM(AX34:BS34) -> 229194.9771 | BU34: =(AA34+AX34)/2 -> 0 | BV34: 0 | BW34: 0 | BX34: 0 | BY34: 0 | BZ34: 0 | CA34: 0 | CB34: 0 | CC34: 6607.623108 | CD34: 66822.87993 | CE34: =(AK34+BH34)/2 -> 132803.7216 | CF34: 73036.93055 | CG34: 0 | CH34: 0 | CI34: 0 | CJ34: 0 | CK34: 0 | CL34: 0 | CM34: 0 | CN34: 0 | CO34: =(AU34+BR34)/2 -> 0 | CP34: 0 | CQ34: 279271.1552 | CR34: 22
A35: Hegn | B35: stk. | C35: =Genanskaffelsespriser!E11 -> 15 | D35: 0 | E35: 0 | F35: 0 | G35: 0 | H35: 0 | I35: 0 | J35: 0 | K35: 0 | L35: 0 | M35: 0 | N35: 0 | O35: 0 | P35: 0 | Q35: 0 | R35: 0 | S35: 0 | T35: 0 | U35: 0 | V35: 0 | W35: 0 | X35: 0 | Y35: 0 | AA35: =IF((D35*Genanskaffelsespriser!$D11-(2009-D$3)/$C35*Genanskaffelsespriser!$D11*D35)<0,0,(D35*Genanskaffelsespriser!$D11-(2009-D$3)/$C35*Genanskaffelsespriser!$D11*D35)) -> 0 | AB35: =IF((E35*Genanskaffelsespriser!$D11-(2009-E$3)/$C35*Genanskaffelsespriser!$D11*E35)<0,0,(E35*Genanskaffelsespriser!$D11-(2009-E$3)/$C35*Genanskaffelsespriser!$D11*E35)) -> 0 | AC35: =IF((F35*Genanskaffelsespriser!$D11-(2009-F$3)/$C35*Genanskaffelsespriser!$D11*F35)<0,0,(F35*Genanskaffelsespriser!$D11-(2009-F$3)/$C35*Genanskaffelsespriser!$D11*F35)) -> 0 | AD35: =IF((G35*Genanskaffelsespriser!$D11-(2009-G$3)/$C35*Genanskaffelsespriser!$D11*G35)<0,0,(G35*Genanskaffelsespriser!$D11-(2009-G$3)/$C35*Genanskaffelsespriser!$D11*G35)) -> 0 | AE35: =IF((H35*Genanskaffelsespriser!$D11-(2009-H$3)/$C35*Genanskaffelsespriser!$D11*H35)<0,0,(H35*Genanskaffelsespriser!$D11-(2009-H$3)/$C35*Genanskaffelsespriser!$D11*H35)) -> 0 | AF35: =IF((I35*Genanskaffelsespriser!$D11-(2009-I$3)/$C35*Genanskaffelsespriser!$D11*I35)<0,0,(I35*Genanskaffelsespriser!$D11-(2009-I$3)/$C35*Genanskaffelsespriser!$D11*I35)) -> 0 | AG35: =IF((J35*Genanskaffelsespriser!$D11-(2009-J$3)/$C35*Genanskaffelsespriser!$D11*J35)<0,0,(J35*Genanskaffelsespriser!$D11-(2009-J$3)/$C35*Genanskaffelsespriser!$D11*J35)) -> 0 | AH35: =IF((K35*Genanskaffelsespriser!$D11-(2009-K$3)/$C35*Genanskaffelsespriser!$D11*K35)<0,0,(K35*Genanskaffelsespriser!$D11-(2009-K$3)/$C35*Genanskaffelsespriser!$D11*K35)) -> 0 | AI35: =IF((L35*Genanskaffelsespriser!$D11-(2009-L$3)/$C35*Genanskaffelsespriser!$D11*L35)<0,0,(L35*Genanskaffelsespriser!$D11-(2009-L$3)/$C35*Genanskaffelsespriser!$D11*L35)) -> 0 | AJ35: =IF((M35*Genanskaffelsespriser!$D11-(2009-M$3)/$C35*Genanskaffelsespriser!$D11*M35)<0,0,(M35*Genanskaffelsespriser!$D11-(2009-M$3)/$C35*Genanskaffelsespriser!$D11*M35)) -> 0 | AK35: =IF((N35*Genanskaffelsespriser!$D11-(2009-N$3)/$C35*Genanskaffelsespriser!$D11*N35)<0,0,(N35*Genanskaffelsespriser!$D11-(2009-N$3)/$C35*Genanskaffelsespriser!$D11*N35)) -> 0 | AL35: =IF((O35*Genanskaffelsespriser!$D11-(2009-O$3)/$C35*Genanskaffelsespriser!$D11*O35)<0,0,(O35*Genanskaffelsespriser!$D11-(2009-O$3)/$C35*Genanskaffelsespriser!$D11*O35)) -> 0 | AM35: =IF((P35*Genanskaffelsespriser!$D11-(2009-P$3)/$C35*Genanskaffelsespriser!$D11*P35)<0,0,(P35*Genanskaffelsespriser!$D11-(2009-P$3)/$C35*Genanskaffelsespriser!$D11*P35)) -> 0 | AN35: =IF((Q35*Genanskaffelsespriser!$D11-(2009-Q$3)/$C35*Genanskaffelsespriser!$D11*Q35)<0,0,(Q35*Genanskaffelsespriser!$D11-(2009-Q$3)/$C35*Genanskaffelsespriser!$D11*Q35)) -> 0 | AO35: =IF((R35*Genanskaffelsespriser!$D11-(2009-R$3)/$C35*Genanskaffelsespriser!$D11*R35)<0,0,(R35*Genanskaffelsespriser!$D11-(2009-R$3)/$C35*Genanskaffelsespriser!$D11*R35)) -> 0 | AP35: =IF((S35*Genanskaffelsespriser!$D11-(2009-S$3)/$C35*Genanskaffelsespriser!$D11*S35)<0,0,(S35*Genanskaffelsespriser!$D11-(2009-S$3)/$C35*Genanskaffelsespriser!$D11*S35)) -> 0 | AQ35: =IF((T35*Genanskaffelsespriser!$D11-(2009-T$3)/$C35*Genanskaffelsespriser!$D11*T35)<0,0,(T35*Genanskaffelsespriser!$D11-(2009-T$3)/$C35*Genanskaffelsespriser!$D11*T35)) -> 0 | AR35: =IF((U35*Genanskaffelsespriser!$D11-(2009-U$3)/$C35*Genanskaffelsespriser!$D11*U35)<0,0,(U35*Genanskaffelsespriser!$D11-(2009-U$3)/$C35*Genanskaffelsespriser!$D11*U35)) -> 0 | AS35: =IF((V35*Genanskaffelsespriser!$D11-(2009-V$3)/$C35*Genanskaffelsespriser!$D11*V35)<0,0,(V35*Genanskaffelsespriser!$D11-(2009-V$3)/$C35*Genanskaffelsespriser!$D11*V35)) -> 0 | AT35: =IF((W35*Genanskaffelsespriser!$D11-(2009-W$3)/$C35*Genanskaffelsespriser!$D11*W35)<0,0,(W35*Genanskaffelsespriser!$D11-(2009-W$3)/$C35*Genanskaffelsespriser!$D11*W35)) -> 0 | AU35: =IF((X35*Genanskaffelsespriser!$D11-(2009-X$3)/$C35*Genanskaffelsespriser!$D11*X35)<0,0,(X35*Genanskaffelsespriser!$D11-(2009-X$3)/$C35*Genanskaffelsespriser!$D11*X35)) -> 0 | AV35: =IF((Y35*Genanskaffelsespriser!$D11-(2009-Y$3)/$C35*Genanskaffelsespriser!$D11*Y35)<0,0,(Y35*Genanskaffelsespriser!$D11-(2009-Y$3)/$C35*Genanskaffelsespriser!$D11*Y35)) -> 0 | AW35: =+SUM(AA35:AV35) -> 0 | AX35: =VLOOKUP(D$3,Prisindeks!$A$1:$B$111,2,FALSE)/100*AA35 -> 0 | AY35: =VLOOKUP(E$3,Prisindeks!$A$1:$B$111,2,FALSE)/100*AB35 -> 0 | AZ35: =VLOOKUP(F$3,Prisindeks!$A$1:$B$111,2,FALSE)/100*AC35 -> 0 | BA35: =VLOOKUP(G$3,Prisindeks!$A$1:$B$111,2,FALSE)/100*AD35 -> 0 | BB35: =VLOOKUP(H$3,Prisindeks!$A$1:$B$111,2,FALSE)/100*AE35 -> 0 | BC35: =VLOOKUP(I$3,Prisindeks!$A$1:$B$111,2,FALSE)/100*AF35 -> 0 | BD35: =VLOOKUP(J$3,Prisindeks!$A$1:$B$111,2,FALSE)/100*AG35 -> 0 | BE35: =VLOOKUP(K$3,Prisindeks!$A$1:$B$111,2,FALSE)/100*AH35 -> 0 | BF35: =VLOOKUP(L$3,Prisindeks!$A$1:$B$111,2,FALSE)/100*AI35 -> 0 | BG35: =VLOOKUP(M$3,Prisindeks!$A$1:$B$111,2,FALSE)/100*AJ35 -> 0 | BH35: =VLOOKUP(N$3,Prisindeks!$A$1:$B$111,2,FALSE)/100*AK35 -> 0 | BI35: =VLOOKUP(O$3,Prisindeks!$A$1:$B$111,2,FALSE)/100*AL35 -> 0 | BJ35: =VLOOKUP(P$3,Prisindeks!$A$1:$B$111,2,FALSE)/100*AM35 -> 0 | BK35: =VLOOKUP(Q$3,Prisindeks!$A$1:$B$111,2,FALSE)/100*AN35 -> 0 | BL35: =VLOOKUP(R$3,Prisindeks!$A$1:$B$111,2,FALSE)/100*AO35 -> 0 | BM35: =VLOOKUP(S$3,Prisindeks!$A$1:$B$111,2,FALSE)/100*AP35 -> 0 | BN35: =VLOOKUP(T$3,Prisindeks!$A$1:$B$111,2,FALSE)/100*AQ35 -> 0 | BO35: =VLOOKUP(U$3,Prisindeks!$A$1:$B$111,2,FALSE)/100*AR35 -> 0 | BP35: =VLOOKUP(V$3,Prisindeks!$A$1:$B$111,2,FALSE)/100*AS35 -> 0 | BQ35: =VLOOKUP(W$3,Prisindeks!$A$1:$B$111,2,FALSE)/100*AT35 -> 0 | BR35: =VLOOKUP(X$3,Prisindeks!$A$1:$B$111,2,FALSE)/100*AU35 -> 0 | BS35: =VLOOKUP(Y$3,Prisindeks!$A$1:$B$111,2,FALSE)/100*AV35 -> 0 | BT35: =+SUM(AX35:BS35) -> 0 | BU35: 0 | BV35: 0 | BW35: 0 | BX35: 0 | BY35: 0 | BZ35: 0 | CA35: 0 | CB35: 0 | CC35: 0 | CD35: 0 | CE35: 0 | CF35: 0 | CG35: 0 | CH35: 0 | CI35: 0 | CJ35: 0 | CK35: 0 | CL35: 0 | CM35: 0 | CN35: 0 | CO35: 0 | CP35: 0 | CQ35: 0 | CR35: 0
A36: Elanlæg | B36: boring | C36: =Genanskaffelsespriser!E12 -> 20 | D36: 0 | E36: 0 | F36: 0 | G36: 0 | H36: 0 | I36: 0 | J36: =1+1 -> 2 | K36: 0 | L36: 1 | M36: =1+1 -> 2 | N36: =1+1 -> 2 | O36: =1+4 -> 5 | P36: 0 | Q36: 0 | R36: 0 | S36: 0 | T36: 0 | U36: 0 | V36: 0 | W36: 0 | X36: 0 | Y36: 0 | AA36: =IF((D36*Genanskaffelsespriser!$D12-(2009-D$3)/$C36*Genanskaffelsespriser!$D12*D36)<0,0,(D36*Genanskaffelsespriser!$D12-(2009-D$3)/$C36*Genanskaffelsespriser!$D12*D36)) -> 0 | AB36: =IF((E36*Genanskaffelsespriser!$D12-(2009-E$3)/$C36*Genanskaffelsespriser!$D12*E36)<0,0,(E36*Genanskaffelsespriser!$D12-(2009-E$3)/$C36*Genanskaffelsespriser!$D12*E36)) -> 0 | AC36: =IF((F36*Genanskaffelsespriser!$D12-(2009-F$3)/$C36*Genanskaffelsespriser!$D12*F36)<0,0,(F36*Genanskaffelsespriser!$D12-(2009-F$3)/$C36*Genanskaffelsespriser!$D12*F36)) -> 0 | AD36: =IF((G36*Genanskaffelsespriser!$D12-(2009-G$3)/$C36*Genanskaffelsespriser!$D12*G36)<0,0,(G36*Genanskaffelsespriser!$D12-(2009-G$3)/$C36*Genanskaffelsespriser!$D12*G36)) -> 0 | AE36: =IF((H36*Genanskaffelsespriser!$D12-(2009-H$3)/$C36*Genanskaffelsespriser!$D12*H36)<0,0,(H36*Genanskaffelsespriser!$D12-(2009-H$3)/$C36*Genanskaffelsespriser!$D12*H36)) -> 0 | AF36: =IF((I36*Genanskaffelsespriser!$D12-(2009-I$3)/$C36*Genanskaffelsespriser!$D12*I36)<0,0,(I36*Genanskaffelsespriser!$D12-(2009-I$3)/$C36*Genanskaffelsespriser!$D12*I36)) -> 0 | AG36: =IF((J36*Genanskaffelsespriser!$D12-(2009-J$3)/$C36*Genanskaffelsespriser!$D12*J36)<0,0,(J36*Genanskaffelsespriser!$D12-(2009-J$3)/$C36*Genanskaffelsespriser!$D12*J36)) -> 0 | AH36: =IF((K36*Genanskaffelsespriser!$D12-(2009-K$3)/$C36*Genanskaffelsespriser!$D12*K36)<0,0,(K36*Genanskaffelsespriser!$D12-(2009-K$3)/$C36*Genanskaffelsespriser!$D12*K36)) -> 0 | AI36: =IF((L36*Genanskaffelsespriser!$D12-(2009-L$3)/$C36*Genanskaffelsespriser!$D12*L36)<0,0,(L36*Genanskaffelsespriser!$D12-(2009-L$3)/$C36*Genanskaffelsespriser!$D12*L36)) -> 0 | AJ36: =IF((M36*Genanskaffelsespriser!$D12-(2009-M$3)/$C36*Genanskaffelsespriser!$D12*M36)<0,0,(M36*Genanskaffelsespriser!$D12-(2009-M$3)/$C36*Genanskaffelsespriser!$D12*M36)) -> 0 | AK36: =IF((N36*Genanskaffelsespriser!$D12-(2009-N$3)/$C36*Genanskaffelsespriser!$D12*N36)<0,0,(N36*Genanskaffelsespriser!$D12-(2009-N$3)/$C36*Genanskaffelsespriser!$D12*N36)) -> 33803.1927 | AL36: =IF((O36*Genanskaffelsespriser!$D12-(2009-O$3)/$C36*Genanskaffelsespriser!$D12*O36)<0,0,(O36*Genanskaffelsespriser!$D12-(2009-O$3)/$C36*Genanskaffelsespriser!$D12*O36)) -> 225354.618 | AM36: =IF((P36*Genanskaffelsespriser!$D12-(2009-P$3)/$C36*Genanskaffelsespriser!$D12*P36)<0,0,(P36*Genanskaffelsespriser!$D12-(2009-P$3)/$C36*Genanskaffelsespriser!$D12*P36)) -> 0 | AN36: =IF((Q36*Genanskaffelsespriser!$D12-(2009-Q$3)/$C36*Genanskaffelsespriser!$D12*Q36)<0,0,(Q36*Genanskaffelsespriser!$D12-(2009-Q$3)/$C36*Genanskaffelsespriser!$D12*Q36)) -> 0 | AO36: =IF((R36*Genanskaffelsespriser!$D12-(2009-R$3)/$C36*Genanskaffelsespriser!$D12*R36)<0,0,(R36*Genanskaffelsespriser!$D12-(2009-R$3)/$C36*Genanskaffelsespriser!$D12*R36)) -> 0 | AP36: =IF((S36*Genanskaffelsespriser!$D12-(2009-S$3)/$C36*Genanskaffelsespriser!$D12*S36)<0,0,(S36*Genanskaffelsespriser!$D12-(2009-S$3)/$C36*Genanskaffelsespriser!$D12*S36)) -> 0 | AQ36: =IF((T36*Genanskaffelsespriser!$D12-(2009-T$3)/$C36*Genanskaffelsespriser!$D12*T36)<0,0,(T36*Genanskaffelsespriser!$D12-(2009-T$3)/$C36*Genanskaffelsespriser!$D12*T36)) -> 0 | AR36: =IF((U36*Genanskaffelsespriser!$D12-(2009-U$3)/$C36*Genanskaffelsespriser!$D12*U36)<0,0,(U36*Genanskaffelsespriser!$D12-(2009-U$3)/$C36*Genanskaffelsespriser!$D12*U36)) -> 0 | AS36: =IF((V36*Genanskaffelsespriser!$D12-(2009-V$3)/$C36*Genanskaffelsespriser!$D12*V36)<0,0,(V36*Genanskaffelsespriser!$D12-(2009-V$3)/$C36*Genanskaffelsespriser!$D12*V36)) -> 0 | AT36: =IF((W36*Genanskaffelsespriser!$D12-(2009-W$3)/$C36*Genanskaffelsespriser!$D12*W36)<0,0,(W36*Genanskaffelsespriser!$D12-(2009-W$3)/$C36*Genanskaffelsespriser!$D12*W36)) -> 0 | AU36: =IF((X36*Genanskaffelsespriser!$D12-(2009-X$3)/$C36*Genanskaffelsespriser!$D12*X36)<0,0,(X36*Genanskaffelsespriser!$D12-(2009-X$3)/$C36*Genanskaffelsespriser!$D12*X36)) -> 0 | AV36: =IF((Y36*Genanskaffelsespriser!$D12-(2009-Y$3)/$C36*Genanskaffelsespriser!$D12*Y36)<0,0,(Y36*Genanskaffelsespriser!$D12-(2009-Y$3)/$C36*Genanskaffelsespriser!$D12*Y36)) -> 0 | AW36: =+SUM(AA36:AV36) -> 259157.8107 | AX36: =VLOOKUP(D$3,Prisindeks!$A$1:$B$111,2,FALSE)/100*AA36 -> 0 | AY36: =VLOOKUP(E$3,Prisindeks!$A$1:$B$111,2,FALSE)/100*AB36 -> 0 | AZ36: =VLOOKUP(F$3,Prisindeks!$A$1:$B$111,2,FALSE)/100*AC36 -> 0 | BA36: =VLOOKUP(G$3,Prisindeks!$A$1:$B$111,2,FALSE)/100*AD36 -> 0 | BB36: =VLOOKUP(H$3,Prisindeks!$A$1:$B$111,2,FALSE)/100*AE36 -> 0 | BC36: =VLOOKUP(I$3,Prisindeks!$A$1:$B$111,2,FALSE)/100*AF36 -> 0 | BD36: =VLOOKUP(J$3,Prisindeks!$A$1:$B$111,2,FALSE)/100*AG36 -> 0 | BE36: =VLOOKUP(K$3,Prisindeks!$A$1:$B$111,2,FALSE)/100*AH36 -> 0 | BF36: =VLOOKUP(L$3,Prisindeks!$A$1:$B$111,2,FALSE)/100*AI36 -> 0 | BG36: =VLOOKUP(M$3,Prisindeks!$A$1:$B$111,2,FALSE)/100*AJ36 -> 0 | BH36: =VLOOKUP(N$3,Prisindeks!$A$1:$B$111,2,FALSE)/100*AK36 -> 23864.57664 | BI36: =VLOOKUP(O$3,Prisindeks!$A$1:$B$111,2,FALSE)/100*AL36 -> 181850.9808 | BJ36: =VLOOKUP(P$3,Prisindeks!$A$1:$B$111,2,FALSE)/100*AM36 -> 0 | BK36: =VLOOKUP(Q$3,Prisindeks!$A$1:$B$111,2,FALSE)/100*AN36 -> 0 | BL36: =VLOOKUP(R$3,Prisindeks!$A$1:$B$111,2,FALSE)/100*AO36 -> 0 | BM36: =VLOOKUP(S$3,Prisindeks!$A$1:$B$111,2,FALSE)/100*AP36 -> 0 | BN36: =VLOOKUP(T$3,Prisindeks!$A$1:$B$111,2,FALSE)/100*AQ36 -> 0 | BO36: =VLOOKUP(U$3,Prisindeks!$A$1:$B$111,2,FALSE)/100*AR36 -> 0 | BP36: =VLOOKUP(V$3,Prisindeks!$A$1:$B$111,2,FALSE)/100*AS36 -> 0 | BQ36: =VLOOKUP(W$3,Prisindeks!$A$1:$B$111,2,FALSE)/100*AT36 -> 0 | BR36: =VLOOKUP(X$3,Prisindeks!$A$1:$B$111,2,FALSE)/100*AU36 -> 0 | BS36: =VLOOKUP(Y$3,Prisindeks!$A$1:$B$111,2,FALSE)/100*AV36 -> 0 | BT36: =+SUM(AX36:BS36) -> 205715.5575 | BU36: 0 | BV36: 0 | BW36: 0 | BX36: 0 | BY36: 0 | BZ36: 0 | CA36: 0 | CB36: 0 | CC36: 0 | CD36: 0 | CE36: 28833.88467 | CF36: 203602.7994 | CG36: 0 | CH36: 0 | CI36: 0 | CJ36: 0 | CK36: 0 | CL36: 0 | CM36: 0 | CN36: 0 | CO36: 0 | CP36: 0 | CQ36: 232436.6841 | CR36: 12
A37: SRO anlæg | B37: boring | C37: =Genanskaffelsespriser!E13 -> 10 | D37: 0 | E37: 0 | F37: 0 | G37: 0 | H37: 0 | I37: 0 | J37: 1 | K37: 0 | L37: 0 | M37: 1 | N37: 1 | O37: 1 | P37: 0 | Q37: 0 | R37: 0 | S37: 0 | T37: 0 | U37: 0 | V37: 0 | W37: 0 | X37: 0 | Y37: 4 | AA37: =IF((D37*Genanskaffelsespriser!$D13-(2009-D$3)/$C37*Genanskaffelsespriser!$D13*D37)<0,0,(D37*Genanskaffelsespriser!$D13-(2009-D$3)/$C37*Genanskaffelsespriser!$D13*D37)) -> 0 | AB37: =IF((E37*Genanskaffelsespriser!$D13-(2009-E$3)/$C37*Genanskaffelsespriser!$D13*E37)<0,0,(E37*Genanskaffelsespriser!$D13-(2009-E$3)/$C37*Genanskaffelsespriser!$D13*E37)) -> 0 | AC37: =IF((F37*Genanskaffelsespriser!$D13-(2009-F$3)/$C37*Genanskaffelsespriser!$D13*F37)<0,0,(F37*Genanskaffelsespriser!$D13-(2009-F$3)/$C37*Genanskaffelsespriser!$D13*F37)) -> 0 | AD37: =IF((G37*Genanskaffelsespriser!$D13-(2009-G$3)/$C37*Genanskaffelsespriser!$D13*G37)<0,0,(G37*Genanskaffelsespriser!$D13-(2009-G$3)/$C37*Genanskaffelsespriser!$D13*G37)) -> 0 | AE37: =IF((H37*Genanskaffelsespriser!$D13-(2009-H$3)/$C37*Genanskaffelsespriser!$D13*H37)<0,0,(H37*Genanskaffelsespriser!$D13-(2009-H$3)/$C37*Genanskaffelsespriser!$D13*H37)) -> 0 | AF37: =IF((I37*Genanskaffelsespriser!$D13-(2009-I$3)/$C37*Genanskaffelsespriser!$D13*I37)<0,0,(I37*Genanskaffelsespriser!$D13-(2009-I$3)/$C37*Genanskaffelsespriser!$D13*I37)) -> 0 | AG37: =IF((J37*Genanskaffelsespriser!$D13-(2009-J$3)/$C37*Genanskaffelsespriser!$D13*J37)<0,0,(J37*Genanskaffelsespriser!$D13-(2009-J$3)/$C37*Genanskaffelsespriser!$D13*J37)) -> 0 | AH37: =IF((K37*Genanskaffelsespriser!$D13-(2009-K$3)/$C37*Genanskaffelsespriser!$D13*K37)<0,0,(K37*Genanskaffelsespriser!$D13-(2009-K$3)/$C37*Genanskaffelsespriser!$D13*K37)) -> 0 | AI37: =IF((L37*Genanskaffelsespriser!$D13-(2009-L$3)/$C37*Genanskaffelsespriser!$D13*L37)<0,0,(L37*Genanskaffelsespriser!$D13-(2009-L$3)/$C37*Genanskaffelsespriser!$D13*L37)) -> 0 | AJ37: =IF((M37*Genanskaffelsespriser!$D13-(2009-M$3)/$C37*Genanskaffelsespriser!$D13*M37)<0,0,(M37*Genanskaffelsespriser!$D13-(2009-M$3)/$C37*Genanskaffelsespriser!$D13*M37)) -> 0 | AK37: =IF((N37*Genanskaffelsespriser!$D13-(2009-N$3)/$C37*Genanskaffelsespriser!$D13*N37)<0,0,(N37*Genanskaffelsespriser!$D13-(2009-N$3)/$C37*Genanskaffelsespriser!$D13*N37)) -> 0 | AL37: =IF((O37*Genanskaffelsespriser!$D13-(2009-O$3)/$C37*Genanskaffelsespriser!$D13*O37)<0,0,(O37*Genanskaffelsespriser!$D13-(2009-O$3)/$C37*Genanskaffelsespriser!$D13*O37)) -> 0 | AM37: =IF((P37*Genanskaffelsespriser!$D13-(2009-P$3)/$C37*Genanskaffelsespriser!$D13*P37)<0,0,(P37*Genanskaffelsespriser!$D13-(2009-P$3)/$C37*Genanskaffelsespriser!$D13*P37)) -> 0 | AN37: =IF((Q37*Genanskaffelsespriser!$D13-(2009-Q$3)/$C37*Genanskaffelsespriser!$D13*Q37)<0,0,(Q37*Genanskaffelsespriser!$D13-(2009-Q$3)/$C37*Genanskaffelsespriser!$D13*Q37)) -> 0 | AO37: =IF((R37*Genanskaffelsespriser!$D13-(2009-R$3)/$C37*Genanskaffelsespriser!$D13*R37)<0,0,(R37*Genanskaffelsespriser!$D13-(2009-R$3)/$C37*Genanskaffelsespriser!$D13*R37)) -> 0 | AP37: =IF((S37*Genanskaffelsespriser!$D13-(2009-S$3)/$C37*Genanskaffelsespriser!$D13*S37)<0,0,(S37*Genanskaffelsespriser!$D13-(2009-S$3)/$C37*Genanskaffelsespriser!$D13*S37)) -> 0 | AQ37: =IF((T37*Genanskaffelsespriser!$D13-(2009-T$3)/$C37*Genanskaffelsespriser!$D13*T37)<0,0,(T37*Genanskaffelsespriser!$D13-(2009-T$3)/$C37*Genanskaffelsespriser!$D13*T37)) -> 0 | AR37: =IF((U37*Genanskaffelsespriser!$D13-(2009-U$3)/$C37*Genanskaffelsespriser!$D13*U37)<0,0,(U37*Genanskaffelsespriser!$D13-(2009-U$3)/$C37*Genanskaffelsespriser!$D13*U37)) -> 0 | AS37: =IF((V37*Genanskaffelsespriser!$D13-(2009-V$3)/$C37*Genanskaffelsespriser!$D13*V37)<0,0,(V37*Genanskaffelsespriser!$D13-(2009-V$3)/$C37*Genanskaffelsespriser!$D13*V37)) -> 0 | AT37: =IF((W37*Genanskaffelsespriser!$D13-(2009-W$3)/$C37*Genanskaffelsespriser!$D13*W37)<0,0,(W37*Genanskaffelsespriser!$D13-(2009-W$3)/$C37*Genanskaffelsespriser!$D13*W37)) -> 0 | AU37: =IF((X37*Genanskaffelsespriser!$D13-(2009-X$3)/$C37*Genanskaffelsespriser!$D13*X37)<0,0,(X37*Genanskaffelsespriser!$D13-(2009-X$3)/$C37*Genanskaffelsespriser!$D13*X37)) -> 0 | AV37: =IF((Y37*Genanskaffelsespriser!$D13-(2009-Y$3)/$C37*Genanskaffelsespriser!$D13*Y37)<0,0,(Y37*Genanskaffelsespriser!$D13-(2009-Y$3)/$C37*Genanskaffelsespriser!$D13*Y37)) -> 121353.888 | AW37: =+SUM(AA37:AV37) -> 121353.888 | AX37: =VLOOKUP(D$3,Prisindeks!$A$1:$B$111,2,FALSE)/100*AA37 -> 0 | AY37: =VLOOKUP(E$3,Prisindeks!$A$1:$B$111,2,FALSE)/100*AB37 -> 0 | AZ37: =VLOOKUP(F$3,Prisindeks!$A$1:$B$111,2,FALSE)/100*AC37 -> 0 | BA37: =VLOOKUP(G$3,Prisindeks!$A$1:$B$111,2,FALSE)/100*AD37 -> 0 | BB37: =VLOOKUP(H$3,Prisindeks!$A$1:$B$111,2,FALSE)/100*AE37 -> 0 | BC37: =VLOOKUP(I$3,Prisindeks!$A$1:$B$111,2,FALSE)/100*AF37 -> 0 | BD37: =VLOOKUP(J$3,Prisindeks!$A$1:$B$111,2,FALSE)/100*AG37 -> 0 | BE37: =VLOOKUP(K$3,Prisindeks!$A$1:$B$111,2,FALSE)/100*AH37 -> 0 | BF37: =VLOOKUP(L$3,Prisindeks!$A$1:$B$111,2,FALSE)/100*AI37 -> 0 | BG37: =VLOOKUP(M$3,Prisindeks!$A$1:$B$111,2,FALSE)/100*AJ37 -> 0 | BH37: =VLOOKUP(N$3,Prisindeks!$A$1:$B$111,2,FALSE)/100*AK37 -> 0 | BI37: =VLOOKUP(O$3,Prisindeks!$A$1:$B$111,2,FALSE)/100*AL37 -> 0 | BJ37: =VLOOKUP(P$3,Prisindeks!$A$1:$B$111,2,FALSE)/100*AM37 -> 0 | BK37: =VLOOKUP(Q$3,Prisindeks!$A$1:$B$111,2,FALSE)/100*AN37 -> 0 | BL37: =VLOOKUP(R$3,Prisindeks!$A$1:$B$111,2,FALSE)/100*AO37 -> 0 | BM37: =VLOOKUP(S$3,Prisindeks!$A$1:$B$111,2,FALSE)/100*AP37 -> 0 | BN37: =VLOOKUP(T$3,Prisindeks!$A$1:$B$111,2,FALSE)/100*AQ37 -> 0 | BO37: =VLOOKUP(U$3,Prisindeks!$A$1:$B$111,2,FALSE)/100*AR37 -> 0 | BP37: =VLOOKUP(V$3,Prisindeks!$A$1:$B$111,2,FALSE)/100*AS37 -> 0 | BQ37: =VLOOKUP(W$3,Prisindeks!$A$1:$B$111,2,FALSE)/100*AT37 -> 0 | BR37: =VLOOKUP(X$3,Prisindeks!$A$1:$B$111,2,FALSE)/100*AU37 -> 0 | BS37: =VLOOKUP(Y$3,Prisindeks!$A$1:$B$111,2,FALSE)/100*AV37 -> 121353.888 | BT37: =+SUM(AX37:BS37) -> 121353.888 | BU37: 0 | BV37: 0 | BW37: 0 | BX37: 0 | BY37: 0 | BZ37: 0 | CA37: 0 | CB37: 0 | CC37: 0 | CD37: 0 | CE37: 0 | CF37: 0 | CG37: 0 | CH37: 0 | CI37: 0 | CJ37: 0 | CK37: 0 | CL37: 0 | CM37: 0 | CN37: 0 | CO37: 0 | CP37: 121353.888 | CQ37: 121353.888 | CR37: 8
A38: Råvandsledninger - Land | AW38: =SUM(AW39:AW42) -> 4441738.987 | BT38: =SUM(BT39:BT42) -> 1330486.625 | CQ38: =SUM(CQ39:CQ42) -> 2886112.806
A39: Ø 50mm < Ledningsnet ≤ Ø110 mm | B39: meter | C39: =Genanskaffelsespriser!E15 -> 75 | D39: 0 | E39: 0 | F39: 0 | G39: 0 | H39: 0 | I39: 0 | J39: =37.78+1677 -> 1714.78 | K39: =519.8+421 -> 940.8 | L39: =4201+690 -> 4891 | M39: 50 | N39: 703.72 | O39: 0 | P39: 0 | Q39: 0 | R39: 0 | S39: 0 | T39: 0 | U39: 0 | V39: 0 | W39: 0 | X39: 0 | Y39: 0 | AA39: =IF((D39*Genanskaffelsespriser!$D15-(2009-D$3)/$C39*Genanskaffelsespriser!$D15*D39)<0,0,(D39*Genanskaffelsespriser!$D15-(2009-D$3)/$C39*Genanskaffelsespriser!$D15*D39)) -> 0 | AB39: =IF((E39*Genanskaffelsespriser!$D15-(2009-E$3)/$C39*Genanskaffelsespriser!$D15*E39)<0,0,(E39*Genanskaffelsespriser!$D15-(2009-E$3)/$C39*Genanskaffelsespriser!$D15*E39)) -> 0 | AC39: =IF((F39*Genanskaffelsespriser!$D15-(2009-F$3)/$C39*Genanskaffelsespriser!$D15*F39)<0,0,(F39*Genanskaffelsespriser!$D15-(2009-F$3)/$C39*Genanskaffelsespriser!$D15*F39)) -> 0 | AD39: =IF((G39*Genanskaffelsespriser!$D15-(2009-G$3)/$C39*Genanskaffelsespriser!$D15*G39)<0,0,(G39*Genanskaffelsespriser!$D15-(2009-G$3)/$C39*Genanskaffelsespriser!$D15*G39)) -> 0 | AE39: =IF((H39*Genanskaffelsespriser!$D15-(2009-H$3)/$C39*Genanskaffelsespriser!$D15*H39)<0,0,(H39*Genanskaffelsespriser!$D15-(2009-H$3)/$C39*Genanskaffelsespriser!$D15*H39)) -> 0 | AF39: =IF((I39*Genanskaffelsespriser!$D15-(2009-I$3)/$C39*Genanskaffelsespriser!$D15*I39)<0,0,(I39*Genanskaffelsespriser!$D15-(2009-I$3)/$C39*Genanskaffelsespriser!$D15*I39)) -> 0 | AG39: =IF((J39*Genanskaffelsespriser!$D15-(2009-J$3)/$C39*Genanskaffelsespriser!$D15*J39)<0,0,(J39*Genanskaffelsespriser!$D15-(2009-J$3)/$C39*Genanskaffelsespriser!$D15*J39)) -> 260190.1542 | AH39: =IF((K39*Genanskaffelsespriser!$D15-(2009-K$3)/$C39*Genanskaffelsespriser!$D15*K39)<0,0,(K39*Genanskaffelsespriser!$D15-(2009-K$3)/$C39*Genanskaffelsespriser!$D15*K39)) -> 188799.9698 | AI39: =IF((L39*Genanskaffelsespriser!$D15-(2009-L$3)/$C39*Genanskaffelsespriser!$D15*L39)<0,0,(L39*Genanskaffelsespriser!$D15-(2009-L$3)/$C39*Genanskaffelsespriser!$D15*L39)) -> 1149104.844 | AJ39: =IF((M39*Genanskaffelsespriser!$D15-(2009-M$3)/$C39*Genanskaffelsespriser!$D15*M39)<0,0,(M39*Genanskaffelsespriser!$D15-(2009-M$3)/$C39*Genanskaffelsespriser!$D15*M39)) -> 12970.796 | AK39: =IF((N39*Genanskaffelsespriser!$D15-(2009-N$3)/$C39*Genanskaffelsespriser!$D15*N39)<0,0,(N39*Genanskaffelsespriser!$D15-(2009-N$3)/$C39*Genanskaffelsespriser!$D15*N39)) -> 199778.4515 | AL39: =IF((O39*Genanskaffelsespriser!$D15-(2009-O$3)/$C39*Genanskaffelsespriser!$D15*O39)<0,0,(O39*Genanskaffelsespriser!$D15-(2009-O$3)/$C39*Genanskaffelsespriser!$D15*O39)) -> 0 | AM39: =IF((P39*Genanskaffelsespriser!$D15-(2009-P$3)/$C39*Genanskaffelsespriser!$D15*P39)<0,0,(P39*Genanskaffelsespriser!$D15-(2009-P$3)/$C39*Genanskaffelsespriser!$D15*P39)) -> 0 | AN39: =IF((Q39*Genanskaffelsespriser!$D15-(2009-Q$3)/$C39*Genanskaffelsespriser!$D15*Q39)<0,0,(Q39*Genanskaffelsespriser!$D15-(2009-Q$3)/$C39*Genanskaffelsespriser!$D15*Q39)) -> 0 | AO39: =IF((R39*Genanskaffelsespriser!$D15-(2009-R$3)/$C39*Genanskaffelsespriser!$D15*R39)<0,0,(R39*Genanskaffelsespriser!$D15-(2009-R$3)/$C39*Genanskaffelsespriser!$D15*R39)) -> 0 | AP39: =IF((S39*Genanskaffelsespriser!$D15-(2009-S$3)/$C39*Genanskaffelsespriser!$D15*S39)<0,0,(S39*Genanskaffelsespriser!$D15-(2009-S$3)/$C39*Genanskaffelsespriser!$D15*S39)) -> 0 | AQ39: =IF((T39*Genanskaffelsespriser!$D15-(2009-T$3)/$C39*Genanskaffelsespriser!$D15*T39)<0,0,(T39*Genanskaffelsespriser!$D15-(2009-T$3)/$C39*Genanskaffelsespriser!$D15*T39)) -> 0 | AR39: =IF((U39*Genanskaffelsespriser!$D15-(2009-U$3)/$C39*Genanskaffelsespriser!$D15*U39)<0,0,(U39*Genanskaffelsespriser!$D15-(2009-U$3)/$C39*Genanskaffelsespriser!$D15*U39)) -> 0 | AS39: =IF((V39*Genanskaffelsespriser!$D15-(2009-V$3)/$C39*Genanskaffelsespriser!$D15*V39)<0,0,(V39*Genanskaffelsespriser!$D15-(2009-V$3)/$C39*Genanskaffelsespriser!$D15*V39)) -> 0 | AT39: =IF((W39*Genanskaffelsespriser!$D15-(2009-W$3)/$C39*Genanskaffelsespriser!$D15*W39)<0,0,(W39*Genanskaffelsespriser!$D15-(2009-W$3)/$C39*Genanskaffelsespriser!$D15*W39)) -> 0 | AU39: =IF((X39*Genanskaffelsespriser!$D15-(2009-X$3)/$C39*Genanskaffelsespriser!$D15*X39)<0,0,(X39*Genanskaffelsespriser!$D15-(2009-X$3)/$C39*Genanskaffelsespriser!$D15*X39)) -> 0 | AV39: =IF((Y39*Genanskaffelsespriser!$D15-(2009-Y$3)/$C39*Genanskaffelsespriser!$D15*Y39)<0,0,(Y39*Genanskaffelsespriser!$D15-(2009-Y$3)/$C39*Genanskaffelsespriser!$D15*Y39)) -> 0 | AW39: =+SUM(AA39:AV39) -> 1810844.215 | AX39: =VLOOKUP(D$3,Prisindeks!$A$1:$B$111,2,FALSE)/100*AA39 -> 0 | AY39: =VLOOKUP(E$3,Prisindeks!$A$1:$B$111,2,FALSE)/100*AB39 -> 0 | AZ39: =VLOOKUP(F$3,Prisindeks!$A$1:$B$111,2,FALSE)/100*AC39 -> 0 | BA39: =VLOOKUP(G$3,Prisindeks!$A$1:$B$111,2,FALSE)/100*AD39 -> 0 | BB39: =VLOOKUP(H$3,Prisindeks!$A$1:$B$111,2,FALSE)/100*AE39 -> 0 | BC39: =VLOOKUP(I$3,Prisindeks!$A$1:$B$111,2,FALSE)/100*AF39 -> 0 | BD39: =VLOOKUP(J$3,Prisindeks!$A$1:$B$111,2,FALSE)/100*AG39 -> 26783.10965 | BE39: =VLOOKUP(K$3,Prisindeks!$A$1:$B$111,2,FALSE)/100*AH39 -> 41072.89739 | BF39: =VLOOKUP(L$3,Prisindeks!$A$1:$B$111,2,FALSE)/100*AI39 -> 541539.2565 | BG39: =VLOOKUP(M$3,Prisindeks!$A$1:$B$111,2,FALSE)/100*AJ39 -> 7706.908087 | BH39: =VLOOKUP(N$3,Prisindeks!$A$1:$B$111,2,FALSE)/100*AK39 -> 141040.7653 | BI39: =VLOOKUP(O$3,Prisindeks!$A$1:$B$111,2,FALSE)/100*AL39 -> 0 | BJ39: =VLOOKUP(P$3,Prisindeks!$A$1:$B$111,2,FALSE)/100*AM39 -> 0 | BK39: =VLOOKUP(Q$3,Prisindeks!$A$1:$B$111,2,FALSE)/100*AN39 -> 0 | BL39: =VLOOKUP(R$3,Prisindeks!$A$1:$B$111,2,FALSE)/100*AO39 -> 0 | BM39: =VLOOKUP(S$3,Prisindeks!$A$1:$B$111,2,FALSE)/100*AP39 -> 0 | BN39: =VLOOKUP(T$3,Prisindeks!$A$1:$B$111,2,FALSE)/100*AQ39 -> 0 | BO39: =VLOOKUP(U$3,Prisindeks!$A$1:$B$111,2,FALSE)/100*AR39 -> 0 | BP39: =VLOOKUP(V$3,Prisindeks!$A$1:$B$111,2,FALSE)/100*AS39 -> 0 | BQ39: =VLOOKUP(W$3,Prisindeks!$A$1:$B$111,2,FALSE)/100*AT39 -> 0 | BR39: =VLOOKUP(X$3,Prisindeks!$A$1:$B$111,2,FALSE)/100*AU39 -> 0 | BS39: =VLOOKUP(Y$3,Prisindeks!$A$1:$B$111,2,FALSE)/100*AV39 -> 0 | BT39: =+SUM(AX39:BS39) -> 758142.9369 | BU39: =(AA39+AX39)/2 -> 0 | BV39: 0 | BW39: 0 | BX39: 0 | BY39: 0 | BZ39: 0 | CA39: 143486.6319 | CB39: 114936.4336 | CC39: 845322.05 | CD39: 10338.85204 | CE39: =(AK39+BH39)/2 -> 170409.6084 | CF39: 0 | CG39: 0 | CH39: 0 | CI39: 0 | CJ39: 0 | CK39: 0 | CL39: 0 | CM39: 0 | CN39: 0 | CO39: =(AU39+BR39)/2 -> 0 | CP39: 0 | CQ39: 1284493.576 | CR39: 8300.3
A40: Ø110 mm < Ledningsnet ≤ Ø 250 mm | B40: meter | C40: =Genanskaffelsespriser!E16 -> 75 | D40: 0 | E40: 0 | F40: 0 | G40: 0 | H40: 0 | I40: 0 | J40: 0 | K40: 4558.84 | L40: 0 | M40: 0 | N40: 0 | O40: 0 | P40: 0 | Q40: 0 | R40: 0 | S40: 0 | T40: 0 | U40: 0 | V40: 0 | W40: 0 | X40: 0 | Y40: 0 | AA40: =IF((D40*Genanskaffelsespriser!$D16-(2009-D$3)/$C40*Genanskaffelsespriser!$D16*D40)<0,0,(D40*Genanskaffelsespriser!$D16-(2009-D$3)/$C40*Genanskaffelsespriser!$D16*D40)) -> 0 | AB40: =IF((E40*Genanskaffelsespriser!$D16-(2009-E$3)/$C40*Genanskaffelsespriser!$D16*E40)<0,0,(E40*Genanskaffelsespriser!$D16-(2009-E$3)/$C40*Genanskaffelsespriser!$D16*E40)) -> 0 | AC40: =IF((F40*Genanskaffelsespriser!$D16-(2009-F$3)/$C40*Genanskaffelsespriser!$D16*F40)<0,0,(F40*Genanskaffelsespriser!$D16-(2009-F$3)/$C40*Genanskaffelsespriser!$D16*F40)) -> 0 | AD40: =IF((G40*Genanskaffelsespriser!$D16-(2009-G$3)/$C40*Genanskaffelsespriser!$D16*G40)<0,0,(G40*Genanskaffelsespriser!$D16-(2009-G$3)/$C40*Genanskaffelsespriser!$D16*G40)) -> 0 | AE40: =IF((H40*Genanskaffelsespriser!$D16-(2009-H$3)/$C40*Genanskaffelsespriser!$D16*H40)<0,0,(H40*Genanskaffelsespriser!$D16-(2009-H$3)/$C40*Genanskaffelsespriser!$D16*H40)) -> 0 | AF40: =IF((I40*Genanskaffelsespriser!$D16-(2009-I$3)/$C40*Genanskaffelsespriser!$D16*I40)<0,0,(I40*Genanskaffelsespriser!$D16-(2009-I$3)/$C40*Genanskaffelsespriser!$D16*I40)) -> 0 | AG40: =IF((J40*Genanskaffelsespriser!$D16-(2009-J$3)/$C40*Genanskaffelsespriser!$D16*J40)<0,0,(J40*Genanskaffelsespriser!$D16-(2009-J$3)/$C40*Genanskaffelsespriser!$D16*J40)) -> 0 | AH40: =IF((K40*Genanskaffelsespriser!$D16-(2009-K$3)/$C40*Genanskaffelsespriser!$D16*K40)<0,0,(K40*Genanskaffelsespriser!$D16-(2009-K$3)/$C40*Genanskaffelsespriser!$D16*K40)) -> 2630894.772 | AI40: =IF((L40*Genanskaffelsespriser!$D16-(2009-L$3)/$C40*Genanskaffelsespriser!$D16*L40)<0,0,(L40*Genanskaffelsespriser!$D16-(2009-L$3)/$C40*Genanskaffelsespriser!$D16*L40)) -> 0 | AJ40: =IF((M40*Genanskaffelsespriser!$D16-(2009-M$3)/$C40*Genanskaffelsespriser!$D16*M40)<0,0,(M40*Genanskaffelsespriser!$D16-(2009-M$3)/$C40*Genanskaffelsespriser!$D16*M40)) -> 0 | AK40: =IF((N40*Genanskaffelsespriser!$D16-(2009-N$3)/$C40*Genanskaffelsespriser!$D16*N40)<0,0,(N40*Genanskaffelsespriser!$D16-(2009-N$3)/$C40*Genanskaffelsespriser!$D16*N40)) -> 0 | AL40: =IF((O40*Genanskaffelsespriser!$D16-(2009-O$3)/$C40*Genanskaffelsespriser!$D16*O40)<0,0,(O40*Genanskaffelsespriser!$D16-(2009-O$3)/$C40*Genanskaffelsespriser!$D16*O40)) -> 0 | AM40: =IF((P40*Genanskaffelsespriser!$D16-(2009-P$3)/$C40*Genanskaffelsespriser!$D16*P40)<0,0,(P40*Genanskaffelsespriser!$D16-(2009-P$3)/$C40*Genanskaffelsespriser!$D16*P40)) -> 0 | AN40: =IF((Q40*Genanskaffelsespriser!$D16-(2009-Q$3)/$C40*Genanskaffelsespriser!$D16*Q40)<0,0,(Q40*Genanskaffelsespriser!$D16-(2009-Q$3)/$C40*Genanskaffelsespriser!$D16*Q40)) -> 0 | AO40: =IF((R40*Genanskaffelsespriser!$D16-(2009-R$3)/$C40*Genanskaffelsespriser!$D16*R40)<0,0,(R40*Genanskaffelsespriser!$D16-(2009-R$3)/$C40*Genanskaffelsespriser!$D16*R40)) -> 0 | AP40: =IF((S40*Genanskaffelsespriser!$D16-(2009-S$3)/$C40*Genanskaffelsespriser!$D16*S40)<0,0,(S40*Genanskaffelsespriser!$D16-(2009-S$3)/$C40*Genanskaffelsespriser!$D16*S40)) -> 0 | AQ40: =IF((T40*Genanskaffelsespriser!$D16-(2009-T$3)/$C40*Genanskaffelsespriser!$D16*T40)<0,0,(T40*Genanskaffelsespriser!$D16-(2009-T$3)/$C40*Genanskaffelsespriser!$D16*T40)) -> 0 | AR40: =IF((U40*Genanskaffelsespriser!$D16-(2009-U$3)/$C40*Genanskaffelsespriser!$D16*U40)<0,0,(U40*Genanskaffelsespriser!$D16-(2009-U$3)/$C40*Genanskaffelsespriser!$D16*U40)) -> 0 | AS40: =IF((V40*Genanskaffelsespriser!$D16-(2009-V$3)/$C40*Genanskaffelsespriser!$D16*V40)<0,0,(V40*Genanskaffelsespriser!$D16-(2009-V$3)/$C40*Genanskaffelsespriser!$D16*V40)) -> 0 | AT40: =IF((W40*Genanskaffelsespriser!$D16-(2009-W$3)/$C40*Genanskaffelsespriser!$D16*W40)<0,0,(W40*Genanskaffelsespriser!$D16-(2009-W$3)/$C40*Genanskaffelsespriser!$D16*W40)) -> 0 | AU40: =IF((X40*Genanskaffelsespriser!$D16-(2009-X$3)/$C40*Genanskaffelsespriser!$D16*X40)<0,0,(X40*Genanskaffelsespriser!$D16-(2009-X$3)/$C40*Genanskaffelsespriser!$D16*X40)) -> 0 | AV40: =IF((Y40*Genanskaffelsespriser!$D16-(2009-Y$3)/$C40*Genanskaffelsespriser!$D16*Y40)<0,0,(Y40*Genanskaffelsespriser!$D16-(2009-Y$3)/$C40*Genanskaffelsespriser!$D16*Y40)) -> 0 | AW40: =+SUM(AA40:AV40) -> 2630894.772 | AX40: =VLOOKUP(D$3,Prisindeks!$A$1:$B$111,2,FALSE)/100*AA40 -> 0 | AY40: =VLOOKUP(E$3,Prisindeks!$A$1:$B$111,2,FALSE)/100*AB40 -> 0 | AZ40: =VLOOKUP(F$3,Prisindeks!$A$1:$B$111,2,FALSE)/100*AC40 -> 0 | BA40: =VLOOKUP(G$3,Prisindeks!$A$1:$B$111,2,FALSE)/100*AD40 -> 0 | BB40: =VLOOKUP(H$3,Prisindeks!$A$1:$B$111,2,FALSE)/100*AE40 -> 0 | BC40: =VLOOKUP(I$3,Prisindeks!$A$1:$B$111,2,FALSE)/100*AF40 -> 0 | BD40: =VLOOKUP(J$3,Prisindeks!$A$1:$B$111,2,FALSE)/100*AG40 -> 0 | BE40: =VLOOKUP(K$3,Prisindeks!$A$1:$B$111,2,FALSE)/100*AH40 -> 572343.688 | BF40: =VLOOKUP(L$3,Prisindeks!$A$1:$B$111,2,FALSE)/100*AI40 -> 0 | BG40: =VLOOKUP(M$3,Prisindeks!$A$1:$B$111,2,FALSE)/100*AJ40 -> 0 | BH40: =VLOOKUP(N$3,Prisindeks!$A$1:$B$111,2,FALSE)/100*AK40 -> 0 | BI40: =VLOOKUP(O$3,Prisindeks!$A$1:$B$111,2,FALSE)/100*AL40 -> 0 | BJ40: =VLOOKUP(P$3,Prisindeks!$A$1:$B$111,2,FALSE)/100*AM40 -> 0 | BK40: =VLOOKUP(Q$3,Prisindeks!$A$1:$B$111,2,FALSE)/100*AN40 -> 0 | BL40: =VLOOKUP(R$3,Prisindeks!$A$1:$B$111,2,FALSE)/100*AO40 -> 0 | BM40: =VLOOKUP(S$3,Prisindeks!$A$1:$B$111,2,FALSE)/100*AP40 -> 0 | BN40: =VLOOKUP(T$3,Prisindeks!$A$1:$B$111,2,FALSE)/100*AQ40 -> 0 | BO40: =VLOOKUP(U$3,Prisindeks!$A$1:$B$111,2,FALSE)/100*AR40 -> 0 | BP40: =VLOOKUP(V$3,Prisindeks!$A$1:$B$111,2,FALSE)/100*AS40 -> 0 | BQ40: =VLOOKUP(W$3,Prisindeks!$A$1:$B$111,2,FALSE)/100*AT40 -> 0 | BR40: =VLOOKUP(X$3,Prisindeks!$A$1:$B$111,2,FALSE)/100*AU40 -> 0 | BS40: =VLOOKUP(Y$3,Prisindeks!$A$1:$B$111,2,FALSE)/100*AV40 -> 0 | BT40: =+SUM(AX40:BS40) -> 572343.688 | BU40: 0 | BV40: 0 | BW40: 0 | BX40: 0 | BY40: 0 | BZ40: 0 | CA40: 0 | CB40: 1601619.23 | CC40: 0 | CD40: 0 | CE40: 0 | CF40: 0 | CG40: 0 | CH40: 0 | CI40: 0 | CJ40: 0 | CK40: 0 | CL40: 0 | CM40: 0 | CN40: 0 | CO40: 0 | CP40: 0 | CQ40: 1601619.23 | CR40: 4558.84
A41: Ø 250 mm < Ledningsnet ≤ Ø 500mm | B41: meter | C41: =Genanskaffelsespriser!E17 -> 75 | D41: 0 | E41: 0 | F41: 0 | G41: 0 | H41: 0 | I41: 0 | J41: 0 | K41: 0 | L41: 0 | M41: 0 | N41: 0 | O41: 0 | P41: 0 | Q41: 0 | R41: 0 | S41: 0 | T41: 0 | U41: 0 | V41: 0 | W41: 0 | X41: 0 | Y41: 0 | AA41: =IF((D41*Genanskaffelsespriser!$D17-(2009-D$3)/$C41*Genanskaffelsespriser!$D17*D41)<0,0,(D41*Genanskaffelsespriser!$D17-(2009-D$3)/$C41*Genanskaffelsespriser!$D17*D41)) -> 0 | AB41: =IF((E41*Genanskaffelsespriser!$D17-(2009-E$3)/$C41*Genanskaffelsespriser!$D17*E41)<0,0,(E41*Genanskaffelsespriser!$D17-(2009-E$3)/$C41*Genanskaffelsespriser!$D17*E41)) -> 0 | AC41: =IF((F41*Genanskaffelsespriser!$D17-(2009-F$3)/$C41*Genanskaffelsespriser!$D17*F41)<0,0,(F41*Genanskaffelsespriser!$D17-(2009-F$3)/$C41*Genanskaffelsespriser!$D17*F41)) -> 0 | AD41: =IF((G41*Genanskaffelsespriser!$D17-(2009-G$3)/$C41*Genanskaffelsespriser!$D17*G41)<0,0,(G41*Genanskaffelsespriser!$D17-(2009-G$3)/$C41*Genanskaffelsespriser!$D17*G41)) -> 0 | AE41: =IF((H41*Genanskaffelsespriser!$D17-(2009-H$3)/$C41*Genanskaffelsespriser!$D17*H41)<0,0,(H41*Genanskaffelsespriser!$D17-(2009-H$3)/$C41*Genanskaffelsespriser!$D17*H41)) -> 0 | AF41: =IF((I41*Genanskaffelsespriser!$D17-(2009-I$3)/$C41*Genanskaffelsespriser!$D17*I41)<0,0,(I41*Genanskaffelsespriser!$D17-(2009-I$3)/$C41*Genanskaffelsespriser!$D17*I41)) -> 0 | AG41: =IF((J41*Genanskaffelsespriser!$D17-(2009-J$3)/$C41*Genanskaffelsespriser!$D17*J41)<0,0,(J41*Genanskaffelsespriser!$D17-(2009-J$3)/$C41*Genanskaffelsespriser!$D17*J41)) -> 0 | AH41: =IF((K41*Genanskaffelsespriser!$D17-(2009-K$3)/$C41*Genanskaffelsespriser!$D17*K41)<0,0,(K41*Genanskaffelsespriser!$D17-(2009-K$3)/$C41*Genanskaffelsespriser!$D17*K41)) -> 0 | AI41: =IF((L41*Genanskaffelsespriser!$D17-(2009-L$3)/$C41*Genanskaffelsespriser!$D17*L41)<0,0,(L41*Genanskaffelsespriser!$D17-(2009-L$3)/$C41*Genanskaffelsespriser!$D17*L41)) -> 0 | AJ41: =IF((M41*Genanskaffelsespriser!$D17-(2009-M$3)/$C41*Genanskaffelsespriser!$D17*M41)<0,0,(M41*Genanskaffelsespriser!$D17-(2009-M$3)/$C41*Genanskaffelsespriser!$D17*M41)) -> 0 | AK41: =IF((N41*Genanskaffelsespriser!$D17-(2009-N$3)/$C41*Genanskaffelsespriser!$D17*N41)<0,0,(N41*Genanskaffelsespriser!$D17-(2009-N$3)/$C41*Genanskaffelsespriser!$D17*N41)) -> 0 | AL41: =IF((O41*Genanskaffelsespriser!$D17-(2009-O$3)/$C41*Genanskaffelsespriser!$D17*O41)<0,0,(O41*Genanskaffelsespriser!$D17-(2009-O$3)/$C41*Genanskaffelsespriser!$D17*O41)) -> 0 | AM41: =IF((P41*Genanskaffelsespriser!$D17-(2009-P$3)/$C41*Genanskaffelsespriser!$D17*P41)<0,0,(P41*Genanskaffelsespriser!$D17-(2009-P$3)/$C41*Genanskaffelsespriser!$D17*P41)) -> 0 | AN41: =IF((Q41*Genanskaffelsespriser!$D17-(2009-Q$3)/$C41*Genanskaffelsespriser!$D17*Q41)<0,0,(Q41*Genanskaffelsespriser!$D17-(2009-Q$3)/$C41*Genanskaffelsespriser!$D17*Q41)) -> 0 | AO41: =IF((R41*Genanskaffelsespriser!$D17-(2009-R$3)/$C41*Genanskaffelsespriser!$D17*R41)<0,0,(R41*Genanskaffelsespriser!$D17-(2009-R$3)/$C41*Genanskaffelsespriser!$D17*R41)) -> 0 | AP41: =IF((S41*Genanskaffelsespriser!$D17-(2009-S$3)/$C41*Genanskaffelsespriser!$D17*S41)<0,0,(S41*Genanskaffelsespriser!$D17-(2009-S$3)/$C41*Genanskaffelsespriser!$D17*S41)) -> 0 | AQ41: =IF((T41*Genanskaffelsespriser!$D17-(2009-T$3)/$C41*Genanskaffelsespriser!$D17*T41)<0,0,(T41*Genanskaffelsespriser!$D17-(2009-T$3)/$C41*Genanskaffelsespriser!$D17*T41)) -> 0 | AR41: =IF((U41*Genanskaffelsespriser!$D17-(2009-U$3)/$C41*Genanskaffelsespriser!$D17*U41)<0,0,(U41*Genanskaffelsespriser!$D17-(2009-U$3)/$C41*Genanskaffelsespriser!$D17*U41)) -> 0 | AS41: =IF((V41*Genanskaffelsespriser!$D17-(2009-V$3)/$C41*Genanskaffelsespriser!$D17*V41)<0,0,(V41*Genanskaffelsespriser!$D17-(2009-V$3)/$C41*Genanskaffelsespriser!$D17*V41)) -> 0 | AT41: =IF((W41*Genanskaffelsespriser!$D17-(2009-W$3)/$C41*Genanskaffelsespriser!$D17*W41)<0,0,(W41*Genanskaffelsespriser!$D17-(2009-W$3)/$C41*Genanskaffelsespriser!$D17*W41)) -> 0 | AU41: =IF((X41*Genanskaffelsespriser!$D17-(2009-X$3)/$C41*Genanskaffelsespriser!$D17*X41)<0,0,(X41*Genanskaffelsespriser!$D17-(2009-X$3)/$C41*Genanskaffelsespriser!$D17*X41)) -> 0 | AV41: =IF((Y41*Genanskaffelsespriser!$D17-(2009-Y$3)/$C41*Genanskaffelsespriser!$D17*Y41)<0,0,(Y41*Genanskaffelsespriser!$D17-(2009-Y$3)/$C41*Genanskaffelsespriser!$D17*Y41)) -> 0 | AW41: =+SUM(AA41:AV41) -> 0 | AX41: =VLOOKUP(D$3,Prisindeks!$A$1:$B$111,2,FALSE)/100*AA41 -> 0 | AY41: =VLOOKUP(E$3,Prisindeks!$A$1:$B$111,2,FALSE)/100*AB41 -> 0 | AZ41: =VLOOKUP(F$3,Prisindeks!$A$1:$B$111,2,FALSE)/100*AC41 -> 0 | BA41: =VLOOKUP(G$3,Prisindeks!$A$1:$B$111,2,FALSE)/100*AD41 -> 0 | BB41: =VLOOKUP(H$3,Prisindeks!$A$1:$B$111,2,FALSE)/100*AE41 -> 0 | BC41: =VLOOKUP(I$3,Prisindeks!$A$1:$B$111,2,FALSE)/100*AF41 -> 0 | BD41: =VLOOKUP(J$3,Prisindeks!$A$1:$B$111,2,FALSE)/100*AG41 -> 0 | BE41: =VLOOKUP(K$3,Prisindeks!$A$1:$B$111,2,FALSE)/100*AH41 -> 0 | BF41: =VLOOKUP(L$3,Prisindeks!$A$1:$B$111,2,FALSE)/100*AI41 -> 0 | BG41: =VLOOKUP(M$3,Prisindeks!$A$1:$B$111,2,FALSE)/100*AJ41 -> 0 | BH41: =VLOOKUP(N$3,Prisindeks!$A$1:$B$111,2,FALSE)/100*AK41 -> 0 | BI41: =VLOOKUP(O$3,Prisindeks!$A$1:$B$111,2,FALSE)/100*AL41 -> 0 | BJ41: =VLOOKUP(P$3,Prisindeks!$A$1:$B$111,2,FALSE)/100*AM41 -> 0 | BK41: =VLOOKUP(Q$3,Prisindeks!$A$1:$B$111,2,FALSE)/100*AN41 -> 0 | BL41: =VLOOKUP(R$3,Prisindeks!$A$1:$B$111,2,FALSE)/100*AO41 -> 0 | BM41: =VLOOKUP(S$3,Prisindeks!$A$1:$B$111,2,FALSE)/100*AP41 -> 0 | BN41: =VLOOKUP(T$3,Prisindeks!$A$1:$B$111,2,FALSE)/100*AQ41 -> 0 | BO41: =VLOOKUP(U$3,Prisindeks!$A$1:$B$111,2,FALSE)/100*AR41 -> 0 | BP41: =VLOOKUP(V$3,Prisindeks!$A$1:$B$111,2,FALSE)/100*AS41 -> 0 | BQ41: =VLOOKUP(W$3,Prisindeks!$A$1:$B$111,2,FALSE)/100*AT41 -> 0 | BR41: =VLOOKUP(X$3,Prisindeks!$A$1:$B$111,2,FALSE)/100*AU41 -> 0 | BS41: =VLOOKUP(Y$3,Prisindeks!$A$1:$B$111,2,FALSE)/100*AV41 -> 0 | BT41: =+SUM(AX41:BS41) -> 0 | BU41: 0 | BV41: 0 | BW41: 0 | BX41: 0 | BY41: 0 | BZ41: 0 | CA41: 0 | CB41: 0 | CC41: 0 | CD41: 0 | CE41: 0 | CF41: 0 | CG41: 0 | CH41: 0 | CI41: 0 | CJ41: 0 | CK41: 0 | CL41: 0 | CM41: 0 | CN41: 0 | CO41: 0 | CP41: 0 | CQ41: 0 | CR41: 0
A42: Ledningsnet > Ø 500 mm | B42: meter | C42: =Genanskaffelsespriser!E18 -> 75 | D42: 0 | E42: 0 | F42: 0 | G42: 0 | H42: 0 | I42: 0 | J42: 0 | K42: 0 | L42: 0 | M42: 0 | N42: 0 | O42: 0 | P42: 0 | Q42: 0 | R42: 0 | S42: 0 | T42: 0 | U42: 0 | V42: 0 | W42: 0 | X42: 0 | Y42: 0 | AA42: =IF((D42*Genanskaffelsespriser!$D18-(2009-D$3)/$C42*Genanskaffelsespriser!$D18*D42)<0,0,(D42*Genanskaffelsespriser!$D18-(2009-D$3)/$C42*Genanskaffelsespriser!$D18*D42)) -> 0 | AB42: =IF((E42*Genanskaffelsespriser!$D18-(2009-E$3)/$C42*Genanskaffelsespriser!$D18*E42)<0,0,(E42*Genanskaffelsespriser!$D18-(2009-E$3)/$C42*Genanskaffelsespriser!$D18*E42)) -> 0 | AC42: =IF((F42*Genanskaffelsespriser!$D18-(2009-F$3)/$C42*Genanskaffelsespriser!$D18*F42)<0,0,(F42*Genanskaffelsespriser!$D18-(2009-F$3)/$C42*Genanskaffelsespriser!$D18*F42)) -> 0 | AD42: =IF((G42*Genanskaffelsespriser!$D18-(2009-G$3)/$C42*Genanskaffelsespriser!$D18*G42)<0,0,(G42*Genanskaffelsespriser!$D18-(2009-G$3)/$C42*Genanskaffelsespriser!$D18*G42)) -> 0 | AE42: =IF((H42*Genanskaffelsespriser!$D18-(2009-H$3)/$C42*Genanskaffelsespriser!$D18*H42)<0,0,(H42*Genanskaffelsespriser!$D18-(2009-H$3)/$C42*Genanskaffelsespriser!$D18*H42)) -> 0 | AF42: =IF((I42*Genanskaffelsespriser!$D18-(2009-I$3)/$C42*Genanskaffelsespriser!$D18*I42)<0,0,(I42*Genanskaffelsespriser!$D18-(2009-I$3)/$C42*Genanskaffelsespriser!$D18*I42)) -> 0 | AG42: =IF((J42*Genanskaffelsespriser!$D18-(2009-J$3)/$C42*Genanskaffelsespriser!$D18*J42)<0,0,(J42*Genanskaffelsespriser!$D18-(2009-J$3)/$C42*Genanskaffelsespriser!$D18*J42)) -> 0 | AH42: =IF((K42*Genanskaffelsespriser!$D18-(2009-K$3)/$C42*Genanskaffelsespriser!$D18*K42)<0,0,(K42*Genanskaffelsespriser!$D18-(2009-K$3)/$C42*Genanskaffelsespriser!$D18*K42)) -> 0 | AI42: =IF((L42*Genanskaffelsespriser!$D18-(2009-L$3)/$C42*Genanskaffelsespriser!$D18*L42)<0,0,(L42*Genanskaffelsespriser!$D18-(2009-L$3)/$C42*Genanskaffelsespriser!$D18*L42)) -> 0 | AJ42: =IF((M42*Genanskaffelsespriser!$D18-(2009-M$3)/$C42*Genanskaffelsespriser!$D18*M42)<0,0,(M42*Genanskaffelsespriser!$D18-(2009-M$3)/$C42*Genanskaffelsespriser!$D18*M42)) -> 0 | AK42: =IF((N42*Genanskaffelsespriser!$D18-(2009-N$3)/$C42*Genanskaffelsespriser!$D18*N42)<0,0,(N42*Genanskaffelsespriser!$D18-(2009-N$3)/$C42*Genanskaffelsespriser!$D18*N42)) -> 0 | AL42: =IF((O42*Genanskaffelsespriser!$D18-(2009-O$3)/$C42*Genanskaffelsespriser!$D18*O42)<0,0,(O42*Genanskaffelsespriser!$D18-(2009-O$3)/$C42*Genanskaffelsespriser!$D18*O42)) -> 0 | AM42: =IF((P42*Genanskaffelsespriser!$D18-(2009-P$3)/$C42*Genanskaffelsespriser!$D18*P42)<0,0,(P42*Genanskaffelsespriser!$D18-(2009-P$3)/$C42*Genanskaffelsespriser!$D18*P42)) -> 0 | AN42: =IF((Q42*Genanskaffelsespriser!$D18-(2009-Q$3)/$C42*Genanskaffelsespriser!$D18*Q42)<0,0,(Q42*Genanskaffelsespriser!$D18-(2009-Q$3)/$C42*Genanskaffelsespriser!$D18*Q42)) -> 0 | AO42: =IF((R42*Genanskaffelsespriser!$D18-(2009-R$3)/$C42*Genanskaffelsespriser!$D18*R42)<0,0,(R42*Genanskaffelsespriser!$D18-(2009-R$3)/$C42*Genanskaffelsespriser!$D18*R42)) -> 0 | AP42: =IF((S42*Genanskaffelsespriser!$D18-(2009-S$3)/$C42*Genanskaffelsespriser!$D18*S42)<0,0,(S42*Genanskaffelsespriser!$D18-(2009-S$3)/$C42*Genanskaffelsespriser!$D18*S42)) -> 0 | AQ42: =IF((T42*Genanskaffelsespriser!$D18-(2009-T$3)/$C42*Genanskaffelsespriser!$D18*T42)<0,0,(T42*Genanskaffelsespriser!$D18-(2009-T$3)/$C42*Genanskaffelsespriser!$D18*T42)) -> 0 | AR42: =IF((U42*Genanskaffelsespriser!$D18-(2009-U$3)/$C42*Genanskaffelsespriser!$D18*U42)<0,0,(U42*Genanskaffelsespriser!$D18-(2009-U$3)/$C42*Genanskaffelsespriser!$D18*U42)) -> 0 | AS42: =IF((V42*Genanskaffelsespriser!$D18-(2009-V$3)/$C42*Genanskaffelsespriser!$D18*V42)<0,0,(V42*Genanskaffelsespriser!$D18-(2009-V$3)/$C42*Genanskaffelsespriser!$D18*V42)) -> 0 | AT42: =IF((W42*Genanskaffelsespriser!$D18-(2009-W$3)/$C42*Genanskaffelsespriser!$D18*W42)<0,0,(W42*Genanskaffelsespriser!$D18-(2009-W$3)/$C42*Genanskaffelsespriser!$D18*W42)) -> 0 | AU42: =IF((X42*Genanskaffelsespriser!$D18-(2009-X$3)/$C42*Genanskaffelsespriser!$D18*X42)<0,0,(X42*Genanskaffelsespriser!$D18-(2009-X$3)/$C42*Genanskaffelsespriser!$D18*X42)) -> 0 | AV42: =IF((Y42*Genanskaffelsespriser!$D18-(2009-Y$3)/$C42*Genanskaffelsespriser!$D18*Y42)<0,0,(Y42*Genanskaffelsespriser!$D18-(2009-Y$3)/$C42*Genanskaffelsespriser!$D18*Y42)) -> 0 | AW42: =+SUM(AA42:AV42) -> 0 | AX42: =VLOOKUP(D$3,Prisindeks!$A$1:$B$111,2,FALSE)/100*AA42 -> 0 | AY42: =VLOOKUP(E$3,Prisindeks!$A$1:$B$111,2,FALSE)/100*AB42 -> 0 | AZ42: =VLOOKUP(F$3,Prisindeks!$A$1:$B$111,2,FALSE)/100*AC42 -> 0 | BA42: =VLOOKUP(G$3,Prisindeks!$A$1:$B$111,2,FALSE)/100*AD42 -> 0 | BB42: =VLOOKUP(H$3,Prisindeks!$A$1:$B$111,2,FALSE)/100*AE42 -> 0 | BC42: =VLOOKUP(I$3,Prisindeks!$A$1:$B$111,2,FALSE)/100*AF42 -> 0 | BD42: =VLOOKUP(J$3,Prisindeks!$A$1:$B$111,2,FALSE)/100*AG42 -> 0 | BE42: =VLOOKUP(K$3,Prisindeks!$A$1:$B$111,2,FALSE)/100*AH42 -> 0 | BF42: =VLOOKUP(L$3,Prisindeks!$A$1:$B$111,2,FALSE)/100*AI42 -> 0 | BG42: =VLOOKUP(M$3,Prisindeks!$A$1:$B$111,2,FALSE)/100*AJ42 -> 0 | BH42: =VLOOKUP(N$3,Prisindeks!$A$1:$B$111,2,FALSE)/100*AK42 -> 0 | BI42: =VLOOKUP(O$3,Prisindeks!$A$1:$B$111,2,FALSE)/100*AL42 -> 0 | BJ42: =VLOOKUP(P$3,Prisindeks!$A$1:$B$111,2,FALSE)/100*AM42 -> 0 | BK42: =VLOOKUP(Q$3,Prisindeks!$A$1:$B$111,2,FALSE)/100*AN42 -> 0 | BL42: =VLOOKUP(R$3,Prisindeks!$A$1:$B$111,2,FALSE)/100*AO42 -> 0 | BM42: =VLOOKUP(S$3,Prisindeks!$A$1:$B$111,2,FALSE)/100*AP42 -> 0 | BN42: =VLOOKUP(T$3,Prisindeks!$A$1:$B$111,2,FALSE)/100*AQ42 -> 0 | BO42: =VLOOKUP(U$3,Prisindeks!$A$1:$B$111,2,FALSE)/100*AR42 -> 0 | BP42: =VLOOKUP(V$3,Prisindeks!$A$1:$B$111,2,FALSE)/100*AS42 -> 0 | BQ42: =VLOOKUP(W$3,Prisindeks!$A$1:$B$111,2,FALSE)/100*AT42 -> 0 | BR42: =VLOOKUP(X$3,Prisindeks!$A$1:$B$111,2,FALSE)/100*AU42 -> 0 | BS42: =VLOOKUP(Y$3,Prisindeks!$A$1:$B$111,2,FALSE)/100*AV42 -> 0 | BT42: =+SUM(AX42:BS42) -> 0 | BU42: 0 | BV42: 0 | BW42: 0 | BX42: 0 | BY42: 0 | BZ42: 0 | CA42: 0 | CB42: 0 | CC42: 0 | CD42: 0 | CE42: 0 | CF42: 0 | CG42: 0 | CH42: 0 | CI42: 0 | CJ42: 0 | CK42: 0 | CL42: 0 | CM42: 0 | CN42: 0 | CO42: 0 | CP42: 0 | CQ42: 0 | CR42: 0
A43: Råvandsledninger - By | AW43: =SUM(AW44:AW47) -> 23844.95581 | BT43: =SUM(BT44:BT47) -> 2454.520495 | CQ43: =SUM(CQ44:CQ47) -> 13149.73815
A44: Ø 50mm < Ledningsnet ≤ Ø110 mm | B44: meter | C44: =Genanskaffelsespriser!E20 -> 75 | D44: 0 | E44: 0 | F44: 0 | G44: 0 | H44: 0 | I44: 0 | J44: 58.07 | K44: 0 | L44: 0 | M44: 0 | N44: 0 | O44: 0 | P44: 0 | Q44: 0 | R44: 0 | S44: 0 | T44: 0 | U44: 0 | V44: 0 | W44: 0 | X44: 0 | Y44: 0 | AA44: =IF((D44*Genanskaffelsespriser!$D20-(2009-D$3)/$C44*Genanskaffelsespriser!$D20*D44)<0,0,(D44*Genanskaffelsespriser!$D20-(2009-D$3)/$C44*Genanskaffelsespriser!$D20*D44)) -> 0 | AB44: =IF((E44*Genanskaffelsespriser!$D20-(2009-E$3)/$C44*Genanskaffelsespriser!$D20*E44)<0,0,(E44*Genanskaffelsespriser!$D20-(2009-E$3)/$C44*Genanskaffelsespriser!$D20*E44)) -> 0 | AC44: =IF((F44*Genanskaffelsespriser!$D20-(2009-F$3)/$C44*Genanskaffelsespriser!$D20*F44)<0,0,(F44*Genanskaffelsespriser!$D20-(2009-F$3)/$C44*Genanskaffelsespriser!$D20*F44)) -> 0 | AD44: =IF((G44*Genanskaffelsespriser!$D20-(2009-G$3)/$C44*Genanskaffelsespriser!$D20*G44)<0,0,(G44*Genanskaffelsespriser!$D20-(2009-G$3)/$C44*Genanskaffelsespriser!$D20*G44)) -> 0 | AE44: =IF((H44*Genanskaffelsespriser!$D20-(2009-H$3)/$C44*Genanskaffelsespriser!$D20*H44)<0,0,(H44*Genanskaffelsespriser!$D20-(2009-H$3)/$C44*Genanskaffelsespriser!$D20*H44)) -> 0 | AF44: =IF((I44*Genanskaffelsespriser!$D20-(2009-I$3)/$C44*Genanskaffelsespriser!$D20*I44)<0,0,(I44*Genanskaffelsespriser!$D20-(2009-I$3)/$C44*Genanskaffelsespriser!$D20*I44)) -> 0 | AG44: =IF((J44*Genanskaffelsespriser!$D20-(2009-J$3)/$C44*Genanskaffelsespriser!$D20*J44)<0,0,(J44*Genanskaffelsespriser!$D20-(2009-J$3)/$C44*Genanskaffelsespriser!$D20*J44)) -> 23844.95581 | AH44: =IF((K44*Genanskaffelsespriser!$D20-(2009-K$3)/$C44*Genanskaffelsespriser!$D20*K44)<0,0,(K44*Genanskaffelsespriser!$D20-(2009-K$3)/$C44*Genanskaffelsespriser!$D20*K44)) -> 0 | AI44: =IF((L44*Genanskaffelsespriser!$D20-(2009-L$3)/$C44*Genanskaffelsespriser!$D20*L44)<0,0,(L44*Genanskaffelsespriser!$D20-(2009-L$3)/$C44*Genanskaffelsespriser!$D20*L44)) -> 0 | AJ44: =IF((M44*Genanskaffelsespriser!$D20-(2009-M$3)/$C44*Genanskaffelsespriser!$D20*M44)<0,0,(M44*Genanskaffelsespriser!$D20-(2009-M$3)/$C44*Genanskaffelsespriser!$D20*M44)) -> 0 | AK44: =IF((N44*Genanskaffelsespriser!$D20-(2009-N$3)/$C44*Genanskaffelsespriser!$D20*N44)<0,0,(N44*Genanskaffelsespriser!$D20-(2009-N$3)/$C44*Genanskaffelsespriser!$D20*N44)) -> 0 | AL44: =IF((O44*Genanskaffelsespriser!$D20-(2009-O$3)/$C44*Genanskaffelsespriser!$D20*O44)<0,0,(O44*Genanskaffelsespriser!$D20-(2009-O$3)/$C44*Genanskaffelsespriser!$D20*O44)) -> 0 | AM44: =IF((P44*Genanskaffelsespriser!$D20-(2009-P$3)/$C44*Genanskaffelsespriser!$D20*P44)<0,0,(P44*Genanskaffelsespriser!$D20-(2009-P$3)/$C44*Genanskaffelsespriser!$D20*P44)) -> 0 | AN44: =IF((Q44*Genanskaffelsespriser!$D20-(2009-Q$3)/$C44*Genanskaffelsespriser!$D20*Q44)<0,0,(Q44*Genanskaffelsespriser!$D20-(2009-Q$3)/$C44*Genanskaffelsespriser!$D20*Q44)) -> 0 | AO44: =IF((R44*Genanskaffelsespriser!$D20-(2009-R$3)/$C44*Genanskaffelsespriser!$D20*R44)<0,0,(R44*Genanskaffelsespriser!$D20-(2009-R$3)/$C44*Genanskaffelsespriser!$D20*R44)) -> 0 | AP44: =IF((S44*Genanskaffelsespriser!$D20-(2009-S$3)/$C44*Genanskaffelsespriser!$D20*S44)<0,0,(S44*Genanskaffelsespriser!$D20-(2009-S$3)/$C44*Genanskaffelsespriser!$D20*S44)) -> 0 | AQ44: =IF((T44*Genanskaffelsespriser!$D20-(2009-T$3)/$C44*Genanskaffelsespriser!$D20*T44)<0,0,(T44*Genanskaffelsespriser!$D20-(2009-T$3)/$C44*Genanskaffelsespriser!$D20*T44)) -> 0 | AR44: =IF((U44*Genanskaffelsespriser!$D20-(2009-U$3)/$C44*Genanskaffelsespriser!$D20*U44)<0,0,(U44*Genanskaffelsespriser!$D20-(2009-U$3)/$C44*Genanskaffelsespriser!$D20*U44)) -> 0 | AS44: =IF((V44*Genanskaffelsespriser!$D20-(2009-V$3)/$C44*Genanskaffelsespriser!$D20*V44)<0,0,(V44*Genanskaffelsespriser!$D20-(2009-V$3)/$C44*Genanskaffelsespriser!$D20*V44)) -> 0 | AT44: =IF((W44*Genanskaffelsespriser!$D20-(2009-W$3)/$C44*Genanskaffelsespriser!$D20*W44)<0,0,(W44*Genanskaffelsespriser!$D20-(2009-W$3)/$C44*Genanskaffelsespriser!$D20*W44)) -> 0 | AU44: =IF((X44*Genanskaffelsespriser!$D20-(2009-X$3)/$C44*Genanskaffelsespriser!$D20*X44)<0,0,(X44*Genanskaffelsespriser!$D20-(2009-X$3)/$C44*Genanskaffelsespriser!$D20*X44)) -> 0 | AV44: =IF((Y44*Genanskaffelsespriser!$D20-(2009-Y$3)/$C44*Genanskaffelsespriser!$D20*Y44)<0,0,(Y44*Genanskaffelsespriser!$D20-(2009-Y$3)/$C44*Genanskaffelsespriser!$D20*Y44)) -> 0 | AW44: =+SUM(AA44:AV44) -> 23844.95581 | AX44: =VLOOKUP(D$3,Prisindeks!$A$1:$B$111,2,FALSE)/100*AA44 -> 0 | AY44: =VLOOKUP(E$3,Prisindeks!$A$1:$B$111,2,FALSE)/100*AB44 -> 0 | AZ44: =VLOOKUP(F$3,Prisindeks!$A$1:$B$111,2,FALSE)/100*AC44 -> 0 | BA44: =VLOOKUP(G$3,Prisindeks!$A$1:$B$111,2,FALSE)/100*AD44 -> 0 | BB44: =VLOOKUP(H$3,Prisindeks!$A$1:$B$111,2,FALSE)/100*AE44 -> 0 | BC44: =VLOOKUP(I$3,Prisindeks!$A$1:$B$111,2,FALSE)/100*AF44 -> 0 | BD44: =VLOOKUP(J$3,Prisindeks!$A$1:$B$111,2,FALSE)/100*AG44 -> 2454.520495 | BE44: =VLOOKUP(K$3,Prisindeks!$A$1:$B$111,2,FALSE)/100*AH44 -> 0 | BF44: =VLOOKUP(L$3,Prisindeks!$A$1:$B$111,2,FALSE)/100*AI44 -> 0 | BG44: =VLOOKUP(M$3,Prisindeks!$A$1:$B$111,2,FALSE)/100*AJ44 -> 0 | BH44: =VLOOKUP(N$3,Prisindeks!$A$1:$B$111,2,FALSE)/100*AK44 -> 0 | BI44: =VLOOKUP(O$3,Prisindeks!$A$1:$B$111,2,FALSE)/100*AL44 -> 0 | BJ44: =VLOOKUP(P$3,Prisindeks!$A$1:$B$111,2,FALSE)/100*AM44 -> 0 | BK44: =VLOOKUP(Q$3,Prisindeks!$A$1:$B$111,2,FALSE)/100*AN44 -> 0 | BL44: =VLOOKUP(R$3,Prisindeks!$A$1:$B$111,2,FALSE)/100*AO44 -> 0 | BM44: =VLOOKUP(S$3,Prisindeks!$A$1:$B$111,2,FALSE)/100*AP44 -> 0 | BN44: =VLOOKUP(T$3,Prisindeks!$A$1:$B$111,2,FALSE)/100*AQ44 -> 0 | BO44: =VLOOKUP(U$3,Prisindeks!$A$1:$B$111,2,FALSE)/100*AR44 -> 0 | BP44: =VLOOKUP(V$3,Prisindeks!$A$1:$B$111,2,FALSE)/100*AS44 -> 0 | BQ44: =VLOOKUP(W$3,Prisindeks!$A$1:$B$111,2,FALSE)/100*AT44 -> 0 | BR44: =VLOOKUP(X$3,Prisindeks!$A$1:$B$111,2,FALSE)/100*AU44 -> 0 | BS44: =VLOOKUP(Y$3,Prisindeks!$A$1:$B$111,2,FALSE)/100*AV44 -> 0 | BT44: =+SUM(AX44:BS44) -> 2454.520495 | BU44: =(AA44+AX44)/2 -> 0 | BV44: 0 | BW44: 0 | BX44: 0 | BY44: 0 | BZ44: 0 | CA44: 13149.73815 | CB44: 0 | CC44: 0 | CD44: 0 | CE44: =(AK44+BH44)/2 -> 0 | CF44: 0 | CG44: 0 | CH44: 0 | CI44: 0 | CJ44: 0 | CK44: 0 | CL44: 0 | CM44: 0 | CN44: 0 | CO44: =(AU44+BR44)/2 -> 0 | CP44: 0 | CQ44: 13149.73815 | CR44: 58.07
A45: Ø110 mm < Ledningsnet ≤ Ø 250 mm | B45: meter | C45: =Genanskaffelsespriser!E21 -> 75 | D45: 0 | E45: 0 | F45: 0 | G45: 0 | H45: 0 | I45: 0 | J45: 0 | K45: 0 | L45: 0 | M45: 0 | N45: 0 | O45: 0 | P45: 0 | Q45: 0 | R45: 0 | S45: 0 | T45: 0 | U45: 0 | V45: 0 | W45: 0 | X45: 0 | Y45: 0 | AA45: =IF((D45*Genanskaffelsespriser!$D21-(2009-D$3)/$C45*Genanskaffelsespriser!$D21*D45)<0,0,(D45*Genanskaffelsespriser!$D21-(2009-D$3)/$C45*Genanskaffelsespriser!$D21*D45)) -> 0 | AB45: =IF((E45*Genanskaffelsespriser!$D21-(2009-E$3)/$C45*Genanskaffelsespriser!$D21*E45)<0,0,(E45*Genanskaffelsespriser!$D21-(2009-E$3)/$C45*Genanskaffelsespriser!$D21*E45)) -> 0 | AC45: =IF((F45*Genanskaffelsespriser!$D21-(2009-F$3)/$C45*Genanskaffelsespriser!$D21*F45)<0,0,(F45*Genanskaffelsespriser!$D21-(2009-F$3)/$C45*Genanskaffelsespriser!$D21*F45)) -> 0 | AD45: =IF((G45*Genanskaffelsespriser!$D21-(2009-G$3)/$C45*Genanskaffelsespriser!$D21*G45)<0,0,(G45*Genanskaffelsespriser!$D21-(2009-G$3)/$C45*Genanskaffelsespriser!$D21*G45)) -> 0 | AE45: =IF((H45*Genanskaffelsespriser!$D21-(2009-H$3)/$C45*Genanskaffelsespriser!$D21*H45)<0,0,(H45*Genanskaffelsespriser!$D21-(2009-H$3)/$C45*Genanskaffelsespriser!$D21*H45)) -> 0 | AF45: =IF((I45*Genanskaffelsespriser!$D21-(2009-I$3)/$C45*Genanskaffelsespriser!$D21*I45)<0,0,(I45*Genanskaffelsespriser!$D21-(2009-I$3)/$C45*Genanskaffelsespriser!$D21*I45)) -> 0 | AG45: =IF((J45*Genanskaffelsespriser!$D21-(2009-J$3)/$C45*Genanskaffelsespriser!$D21*J45)<0,0,(J45*Genanskaffelsespriser!$D21-(2009-J$3)/$C45*Genanskaffelsespriser!$D21*J45)) -> 0 | AH45: =IF((K45*Genanskaffelsespriser!$D21-(2009-K$3)/$C45*Genanskaffelsespriser!$D21*K45)<0,0,(K45*Genanskaffelsespriser!$D21-(2009-K$3)/$C45*Genanskaffelsespriser!$D21*K45)) -> 0 | AI45: =IF((L45*Genanskaffelsespriser!$D21-(2009-L$3)/$C45*Genanskaffelsespriser!$D21*L45)<0,0,(L45*Genanskaffelsespriser!$D21-(2009-L$3)/$C45*Genanskaffelsespriser!$D21*L45)) -> 0 | AJ45: =IF((M45*Genanskaffelsespriser!$D21-(2009-M$3)/$C45*Genanskaffelsespriser!$D21*M45)<0,0,(M45*Genanskaffelsespriser!$D21-(2009-M$3)/$C45*Genanskaffelsespriser!$D21*M45)) -> 0 | AK45: =IF((N45*Genanskaffelsespriser!$D21-(2009-N$3)/$C45*Genanskaffelsespriser!$D21*N45)<0,0,(N45*Genanskaffelsespriser!$D21-(2009-N$3)/$C45*Genanskaffelsespriser!$D21*N45)) -> 0 | AL45: =IF((O45*Genanskaffelsespriser!$D21-(2009-O$3)/$C45*Genanskaffelsespriser!$D21*O45)<0,0,(O45*Genanskaffelsespriser!$D21-(2009-O$3)/$C45*Genanskaffelsespriser!$D21*O45)) -> 0 | AM45: =IF((P45*Genanskaffelsespriser!$D21-(2009-P$3)/$C45*Genanskaffelsespriser!$D21*P45)<0,0,(P45*Genanskaffelsespriser!$D21-(2009-P$3)/$C45*Genanskaffelsespriser!$D21*P45)) -> 0 | AN45: =IF((Q45*Genanskaffelsespriser!$D21-(2009-Q$3)/$C45*Genanskaffelsespriser!$D21*Q45)<0,0,(Q45*Genanskaffelsespriser!$D21-(2009-Q$3)/$C45*Genanskaffelsespriser!$D21*Q45)) -> 0 | AO45: =IF((R45*Genanskaffelsespriser!$D21-(2009-R$3)/$C45*Genanskaffelsespriser!$D21*R45)<0,0,(R45*Genanskaffelsespriser!$D21-(2009-R$3)/$C45*Genanskaffelsespriser!$D21*R45)) -> 0 | AP45: =IF((S45*Genanskaffelsespriser!$D21-(2009-S$3)/$C45*Genanskaffelsespriser!$D21*S45)<0,0,(S45*Genanskaffelsespriser!$D21-(2009-S$3)/$C45*Genanskaffelsespriser!$D21*S45)) -> 0 | AQ45: =IF((T45*Genanskaffelsespriser!$D21-(2009-T$3)/$C45*Genanskaffelsespriser!$D21*T45)<0,0,(T45*Genanskaffelsespriser!$D21-(2009-T$3)/$C45*Genanskaffelsespriser!$D21*T45)) -> 0 | AR45: =IF((U45*Genanskaffelsespriser!$D21-(2009-U$3)/$C45*Genanskaffelsespriser!$D21*U45)<0,0,(U45*Genanskaffelsespriser!$D21-(2009-U$3)/$C45*Genanskaffelsespriser!$D21*U45)) -> 0 | AS45: =IF((V45*Genanskaffelsespriser!$D21-(2009-V$3)/$C45*Genanskaffelsespriser!$D21*V45)<0,0,(V45*Genanskaffelsespriser!$D21-(2009-V$3)/$C45*Genanskaffelsespriser!$D21*V45)) -> 0 | AT45: =IF((W45*Genanskaffelsespriser!$D21-(2009-W$3)/$C45*Genanskaffelsespriser!$D21*W45)<0,0,(W45*Genanskaffelsespriser!$D21-(2009-W$3)/$C45*Genanskaffelsespriser!$D21*W45)) -> 0 | AU45: =IF((X45*Genanskaffelsespriser!$D21-(2009-X$3)/$C45*Genanskaffelsespriser!$D21*X45)<0,0,(X45*Genanskaffelsespriser!$D21-(2009-X$3)/$C45*Genanskaffelsespriser!$D21*X45)) -> 0 | AV45: =IF((Y45*Genanskaffelsespriser!$D21-(2009-Y$3)/$C45*Genanskaffelsespriser!$D21*Y45)<0,0,(Y45*Genanskaffelsespriser!$D21-(2009-Y$3)/$C45*Genanskaffelsespriser!$D21*Y45)) -> 0 | AW45: =+SUM(AA45:AV45) -> 0 | AX45: =VLOOKUP(D$3,Prisindeks!$A$1:$B$111,2,FALSE)/100*AA45 -> 0 | AY45: =VLOOKUP(E$3,Prisindeks!$A$1:$B$111,2,FALSE)/100*AB45 -> 0 | AZ45: =VLOOKUP(F$3,Prisindeks!$A$1:$B$111,2,FALSE)/100*AC45 -> 0 | BA45: =VLOOKUP(G$3,Prisindeks!$A$1:$B$111,2,FALSE)/100*AD45 -> 0 | BB45: =VLOOKUP(H$3,Prisindeks!$A$1:$B$111,2,FALSE)/100*AE45 -> 0 | BC45: =VLOOKUP(I$3,Prisindeks!$A$1:$B$111,2,FALSE)/100*AF45 -> 0 | BD45: =VLOOKUP(J$3,Prisindeks!$A$1:$B$111,2,FALSE)/100*AG45 -> 0 | BE45: =VLOOKUP(K$3,Prisindeks!$A$1:$B$111,2,FALSE)/100*AH45 -> 0 | BF45: =VLOOKUP(L$3,Prisindeks!$A$1:$B$111,2,FALSE)/100*AI45 -> 0 | BG45: =VLOOKUP(M$3,Prisindeks!$A$1:$B$111,2,FALSE)/100*AJ45 -> 0 | BH45: =VLOOKUP(N$3,Prisindeks!$A$1:$B$111,2,FALSE)/100*AK45 -> 0 | BI45: =VLOOKUP(O$3,Prisindeks!$A$1:$B$111,2,FALSE)/100*AL45 -> 0 | BJ45: =VLOOKUP(P$3,Prisindeks!$A$1:$B$111,2,FALSE)/100*AM45 -> 0 | BK45: =VLOOKUP(Q$3,Prisindeks!$A$1:$B$111,2,FALSE)/100*AN45 -> 0 | BL45: =VLOOKUP(R$3,Prisindeks!$A$1:$B$111,2,FALSE)/100*AO45 -> 0 | BM45: =VLOOKUP(S$3,Prisindeks!$A$1:$B$111,2,FALSE)/100*AP45 -> 0 | BN45: =VLOOKUP(T$3,Prisindeks!$A$1:$B$111,2,FALSE)/100*AQ45 -> 0 | BO45: =VLOOKUP(U$3,Prisindeks!$A$1:$B$111,2,FALSE)/100*AR45 -> 0 | BP45: =VLOOKUP(V$3,Prisindeks!$A$1:$B$111,2,FALSE)/100*AS45 -> 0 | BQ45: =VLOOKUP(W$3,Prisindeks!$A$1:$B$111,2,FALSE)/100*AT45 -> 0 | BR45: =VLOOKUP(X$3,Prisindeks!$A$1:$B$111,2,FALSE)/100*AU45 -> 0 | BS45: =VLOOKUP(Y$3,Prisindeks!$A$1:$B$111,2,FALSE)/100*AV45 -> 0 | BT45: =+SUM(AX45:BS45) -> 0 | BU45: 0 | BV45: 0 | BW45: 0 | BX45: 0 | BY45: 0 | BZ45: 0 | CA45: 0 | CB45: 0 | CC45: 0 | CD45: 0 | CE45: 0 | CF45: 0 | CG45: 0 | CH45: 0 | CI45: 0 | CJ45: 0 | CK45: 0 | CL45: 0 | CM45: 0 | CN45: 0 | CO45: 0 | CP45: 0 | CQ45: 0 | CR45: 0
A46: Ø 250 mm < Ledningsnet ≤ Ø 500mm | B46: meter | C46: =Genanskaffelsespriser!E22 -> 75 | D46: 0 | E46: 0 | F46: 0 | G46: 0 | H46: 0 | I46: 0 | J46: 0 | K46: 0 | L46: 0 | M46: 0 | N46: 0 | O46: 0 | P46: 0 | Q46: 0 | R46: 0 | S46: 0 | T46: 0 | U46: 0 | V46: 0 | W46: 0 | X46: 0 | Y46: 0 | AA46: =IF((D46*Genanskaffelsespriser!$D22-(2009-D$3)/$C46*Genanskaffelsespriser!$D22*D46)<0,0,(D46*Genanskaffelsespriser!$D22-(2009-D$3)/$C46*Genanskaffelsespriser!$D22*D46)) -> 0 | AB46: =IF((E46*Genanskaffelsespriser!$D22-(2009-E$3)/$C46*Genanskaffelsespriser!$D22*E46)<0,0,(E46*Genanskaffelsespriser!$D22-(2009-E$3)/$C46*Genanskaffelsespriser!$D22*E46)) -> 0 | AC46: =IF((F46*Genanskaffelsespriser!$D22-(2009-F$3)/$C46*Genanskaffelsespriser!$D22*F46)<0,0,(F46*Genanskaffelsespriser!$D22-(2009-F$3)/$C46*Genanskaffelsespriser!$D22*F46)) -> 0 | AD46: =IF((G46*Genanskaffelsespriser!$D22-(2009-G$3)/$C46*Genanskaffelsespriser!$D22*G46)<0,0,(G46*Genanskaffelsespriser!$D22-(2009-G$3)/$C46*Genanskaffelsespriser!$D22*G46)) -> 0 | AE46: =IF((H46*Genanskaffelsespriser!$D22-(2009-H$3)/$C46*Genanskaffelsespriser!$D22*H46)<0,0,(H46*Genanskaffelsespriser!$D22-(2009-H$3)/$C46*Genanskaffelsespriser!$D22*H46)) -> 0 | AF46: =IF((I46*Genanskaffelsespriser!$D22-(2009-I$3)/$C46*Genanskaffelsespriser!$D22*I46)<0,0,(I46*Genanskaffelsespriser!$D22-(2009-I$3)/$C46*Genanskaffelsespriser!$D22*I46)) -> 0 | AG46: =IF((J46*Genanskaffelsespriser!$D22-(2009-J$3)/$C46*Genanskaffelsespriser!$D22*J46)<0,0,(J46*Genanskaffelsespriser!$D22-(2009-J$3)/$C46*Genanskaffelsespriser!$D22*J46)) -> 0 | AH46: =IF((K46*Genanskaffelsespriser!$D22-(2009-K$3)/$C46*Genanskaffelsespriser!$D22*K46)<0,0,(K46*Genanskaffelsespriser!$D22-(2009-K$3)/$C46*Genanskaffelsespriser!$D22*K46)) -> 0 | AI46: =IF((L46*Genanskaffelsespriser!$D22-(2009-L$3)/$C46*Genanskaffelsespriser!$D22*L46)<0,0,(L46*Genanskaffelsespriser!$D22-(2009-L$3)/$C46*Genanskaffelsespriser!$D22*L46)) -> 0 | AJ46: =IF((M46*Genanskaffelsespriser!$D22-(2009-M$3)/$C46*Genanskaffelsespriser!$D22*M46)<0,0,(M46*Genanskaffelsespriser!$D22-(2009-M$3)/$C46*Genanskaffelsespriser!$D22*M46)) -> 0 | AK46: =IF((N46*Genanskaffelsespriser!$D22-(2009-N$3)/$C46*Genanskaffelsespriser!$D22*N46)<0,0,(N46*Genanskaffelsespriser!$D22-(2009-N$3)/$C46*Genanskaffelsespriser!$D22*N46)) -> 0 | AL46: =IF((O46*Genanskaffelsespriser!$D22-(2009-O$3)/$C46*Genanskaffelsespriser!$D22*O46)<0,0,(O46*Genanskaffelsespriser!$D22-(2009-O$3)/$C46*Genanskaffelsespriser!$D22*O46)) -> 0 | AM46: =IF((P46*Genanskaffelsespriser!$D22-(2009-P$3)/$C46*Genanskaffelsespriser!$D22*P46)<0,0,(P46*Genanskaffelsespriser!$D22-(2009-P$3)/$C46*Genanskaffelsespriser!$D22*P46)) -> 0 | AN46: =IF((Q46*Genanskaffelsespriser!$D22-(2009-Q$3)/$C46*Genanskaffelsespriser!$D22*Q46)<0,0,(Q46*Genanskaffelsespriser!$D22-(2009-Q$3)/$C46*Genanskaffelsespriser!$D22*Q46)) -> 0 | AO46: =IF((R46*Genanskaffelsespriser!$D22-(2009-R$3)/$C46*Genanskaffelsespriser!$D22*R46)<0,0,(R46*Genanskaffelsespriser!$D22-(2009-R$3)/$C46*Genanskaffelsespriser!$D22*R46)) -> 0 | AP46: =IF((S46*Genanskaffelsespriser!$D22-(2009-S$3)/$C46*Genanskaffelsespriser!$D22*S46)<0,0,(S46*Genanskaffelsespriser!$D22-(2009-S$3)/$C46*Genanskaffelsespriser!$D22*S46)) -> 0 | AQ46: =IF((T46*Genanskaffelsespriser!$D22-(2009-T$3)/$C46*Genanskaffelsespriser!$D22*T46)<0,0,(T46*Genanskaffelsespriser!$D22-(2009-T$3)/$C46*Genanskaffelsespriser!$D22*T46)) -> 0 | AR46: =IF((U46*Genanskaffelsespriser!$D22-(2009-U$3)/$C46*Genanskaffelsespriser!$D22*U46)<0,0,(U46*Genanskaffelsespriser!$D22-(2009-U$3)/$C46*Genanskaffelsespriser!$D22*U46)) -> 0 | AS46: =IF((V46*Genanskaffelsespriser!$D22-(2009-V$3)/$C46*Genanskaffelsespriser!$D22*V46)<0,0,(V46*Genanskaffelsespriser!$D22-(2009-V$3)/$C46*Genanskaffelsespriser!$D22*V46)) -> 0 | AT46: =IF((W46*Genanskaffelsespriser!$D22-(2009-W$3)/$C46*Genanskaffelsespriser!$D22*W46)<0,0,(W46*Genanskaffelsespriser!$D22-(2009-W$3)/$C46*Genanskaffelsespriser!$D22*W46)) -> 0 | AU46: =IF((X46*Genanskaffelsespriser!$D22-(2009-X$3)/$C46*Genanskaffelsespriser!$D22*X46)<0,0,(X46*Genanskaffelsespriser!$D22-(2009-X$3)/$C46*Genanskaffelsespriser!$D22*X46)) -> 0 | AV46: =IF((Y46*Genanskaffelsespriser!$D22-(2009-Y$3)/$C46*Genanskaffelsespriser!$D22*Y46)<0,0,(Y46*Genanskaffelsespriser!$D22-(2009-Y$3)/$C46*Genanskaffelsespriser!$D22*Y46)) -> 0 | AW46: =+SUM(AA46:AV46) -> 0 | AX46: =VLOOKUP(D$3,Prisindeks!$A$1:$B$111,2,FALSE)/100*AA46 -> 0 | AY46: =VLOOKUP(E$3,Prisindeks!$A$1:$B$111,2,FALSE)/100*AB46 -> 0 | AZ46: =VLOOKUP(F$3,Prisindeks!$A$1:$B$111,2,FALSE)/100*AC46 -> 0 | BA46: =VLOOKUP(G$3,Prisindeks!$A$1:$B$111,2,FALSE)/100*AD46 -> 0 | BB46: =VLOOKUP(H$3,Prisindeks!$A$1:$B$111,2,FALSE)/100*AE46 -> 0 | BC46: =VLOOKUP(I$3,Prisindeks!$A$1:$B$111,2,FALSE)/100*AF46 -> 0 | BD46: =VLOOKUP(J$3,Prisindeks!$A$1:$B$111,2,FALSE)/100*AG46 -> 0 | BE46: =VLOOKUP(K$3,Prisindeks!$A$1:$B$111,2,FALSE)/100*AH46 -> 0 | BF46: =VLOOKUP(L$3,Prisindeks!$A$1:$B$111,2,FALSE)/100*AI46 -> 0 | BG46: =VLOOKUP(M$3,Prisindeks!$A$1:$B$111,2,FALSE)/100*AJ46 -> 0 | BH46: =VLOOKUP(N$3,Prisindeks!$A$1:$B$111,2,FALSE)/100*AK46 -> 0 | BI46: =VLOOKUP(O$3,Prisindeks!$A$1:$B$111,2,FALSE)/100*AL46 -> 0 | BJ46: =VLOOKUP(P$3,Prisindeks!$A$1:$B$111,2,FALSE)/100*AM46 -> 0 | BK46: =VLOOKUP(Q$3,Prisindeks!$A$1:$B$111,2,FALSE)/100*AN46 -> 0 | BL46: =VLOOKUP(R$3,Prisindeks!$A$1:$B$111,2,FALSE)/100*AO46 -> 0 | BM46: =VLOOKUP(S$3,Prisindeks!$A$1:$B$111,2,FALSE)/100*AP46 -> 0 | BN46: =VLOOKUP(T$3,Prisindeks!$A$1:$B$111,2,FALSE)/100*AQ46 -> 0 | BO46: =VLOOKUP(U$3,Prisindeks!$A$1:$B$111,2,FALSE)/100*AR46 -> 0 | BP46: =VLOOKUP(V$3,Prisindeks!$A$1:$B$111,2,FALSE)/100*AS46 -> 0 | BQ46: =VLOOKUP(W$3,Prisindeks!$A$1:$B$111,2,FALSE)/100*AT46 -> 0 | BR46: =VLOOKUP(X$3,Prisindeks!$A$1:$B$111,2,FALSE)/100*AU46 -> 0 | BS46: =VLOOKUP(Y$3,Prisindeks!$A$1:$B$111,2,FALSE)/100*AV46 -> 0 | BT46: =+SUM(AX46:BS46) -> 0 | BU46: 0 | BV46: 0 | BW46: 0 | BX46: 0 | BY46: 0 | BZ46: 0 | CA46: 0 | CB46: 0 | CC46: 0 | CD46: 0 | CE46: 0 | CF46: 0 | CG46: 0 | CH46: 0 | CI46: 0 | CJ46: 0 | CK46: 0 | CL46: 0 | CM46: 0 | CN46: 0 | CO46: 0 | CP46: 0 | CQ46: 0 | CR46: 0
A47: Ledningsnet > Ø 500 mm | B47: meter | C47: =Genanskaffelsespriser!E23 -> 75 | D47: 0 | E47: 0 | F47: 0 | G47: 0 | H47: 0 | I47: 0 | J47: 0 | K47: 0 | L47: 0 | M47: 0 | N47: 0 | O47: 0 | P47: 0 | Q47: 0 | R47: 0 | S47: 0 | T47: 0 | U47: 0 | V47: 0 | W47: 0 | X47: 0 | Y47: 0 | AA47: =IF((D47*Genanskaffelsespriser!$D23-(2009-D$3)/$C47*Genanskaffelsespriser!$D23*D47)<0,0,(D47*Genanskaffelsespriser!$D23-(2009-D$3)/$C47*Genanskaffelsespriser!$D23*D47)) -> 0 | AB47: =IF((E47*Genanskaffelsespriser!$D23-(2009-E$3)/$C47*Genanskaffelsespriser!$D23*E47)<0,0,(E47*Genanskaffelsespriser!$D23-(2009-E$3)/$C47*Genanskaffelsespriser!$D23*E47)) -> 0 | AC47: =IF((F47*Genanskaffelsespriser!$D23-(2009-F$3)/$C47*Genanskaffelsespriser!$D23*F47)<0,0,(F47*Genanskaffelsespriser!$D23-(2009-F$3)/$C47*Genanskaffelsespriser!$D23*F47)) -> 0 | AD47: =IF((G47*Genanskaffelsespriser!$D23-(2009-G$3)/$C47*Genanskaffelsespriser!$D23*G47)<0,0,(G47*Genanskaffelsespriser!$D23-(2009-G$3)/$C47*Genanskaffelsespriser!$D23*G47)) -> 0 | AE47: =IF((H47*Genanskaffelsespriser!$D23-(2009-H$3)/$C47*Genanskaffelsespriser!$D23*H47)<0,0,(H47*Genanskaffelsespriser!$D23-(2009-H$3)/$C47*Genanskaffelsespriser!$D23*H47)) -> 0 | AF47: =IF((I47*Genanskaffelsespriser!$D23-(2009-I$3)/$C47*Genanskaffelsespriser!$D23*I47)<0,0,(I47*Genanskaffelsespriser!$D23-(2009-I$3)/$C47*Genanskaffelsespriser!$D23*I47)) -> 0 | AG47: =IF((J47*Genanskaffelsespriser!$D23-(2009-J$3)/$C47*Genanskaffelsespriser!$D23*J47)<0,0,(J47*Genanskaffelsespriser!$D23-(2009-J$3)/$C47*Genanskaffelsespriser!$D23*J47)) -> 0 | AH47: =IF((K47*Genanskaffelsespriser!$D23-(2009-K$3)/$C47*Genanskaffelsespriser!$D23*K47)<0,0,(K47*Genanskaffelsespriser!$D23-(2009-K$3)/$C47*Genanskaffelsespriser!$D23*K47)) -> 0 | AI47: =IF((L47*Genanskaffelsespriser!$D23-(2009-L$3)/$C47*Genanskaffelsespriser!$D23*L47)<0,0,(L47*Genanskaffelsespriser!$D23-(2009-L$3)/$C47*Genanskaffelsespriser!$D23*L47)) -> 0 | AJ47: =IF((M47*Genanskaffelsespriser!$D23-(2009-M$3)/$C47*Genanskaffelsespriser!$D23*M47)<0,0,(M47*Genanskaffelsespriser!$D23-(2009-M$3)/$C47*Genanskaffelsespriser!$D23*M47)) -> 0 | AK47: =IF((N47*Genanskaffelsespriser!$D23-(2009-N$3)/$C47*Genanskaffelsespriser!$D23*N47)<0,0,(N47*Genanskaffelsespriser!$D23-(2009-N$3)/$C47*Genanskaffelsespriser!$D23*N47)) -> 0 | AL47: =IF((O47*Genanskaffelsespriser!$D23-(2009-O$3)/$C47*Genanskaffelsespriser!$D23*O47)<0,0,(O47*Genanskaffelsespriser!$D23-(2009-O$3)/$C47*Genanskaffelsespriser!$D23*O47)) -> 0 | AM47: =IF((P47*Genanskaffelsespriser!$D23-(2009-P$3)/$C47*Genanskaffelsespriser!$D23*P47)<0,0,(P47*Genanskaffelsespriser!$D23-(2009-P$3)/$C47*Genanskaffelsespriser!$D23*P47)) -> 0 | AN47: =IF((Q47*Genanskaffelsespriser!$D23-(2009-Q$3)/$C47*Genanskaffelsespriser!$D23*Q47)<0,0,(Q47*Genanskaffelsespriser!$D23-(2009-Q$3)/$C47*Genanskaffelsespriser!$D23*Q47)) -> 0 | AO47: =IF((R47*Genanskaffelsespriser!$D23-(2009-R$3)/$C47*Genanskaffelsespriser!$D23*R47)<0,0,(R47*Genanskaffelsespriser!$D23-(2009-R$3)/$C47*Genanskaffelsespriser!$D23*R47)) -> 0 | AP47: =IF((S47*Genanskaffelsespriser!$D23-(2009-S$3)/$C47*Genanskaffelsespriser!$D23*S47)<0,0,(S47*Genanskaffelsespriser!$D23-(2009-S$3)/$C47*Genanskaffelsespriser!$D23*S47)) -> 0 | AQ47: =IF((T47*Genanskaffelsespriser!$D23-(2009-T$3)/$C47*Genanskaffelsespriser!$D23*T47)<0,0,(T47*Genanskaffelsespriser!$D23-(2009-T$3)/$C47*Genanskaffelsespriser!$D23*T47)) -> 0 | AR47: =IF((U47*Genanskaffelsespriser!$D23-(2009-U$3)/$C47*Genanskaffelsespriser!$D23*U47)<0,0,(U47*Genanskaffelsespriser!$D23-(2009-U$3)/$C47*Genanskaffelsespriser!$D23*U47)) -> 0 | AS47: =IF((V47*Genanskaffelsespriser!$D23-(2009-V$3)/$C47*Genanskaffelsespriser!$D23*V47)<0,0,(V47*Genanskaffelsespriser!$D23-(2009-V$3)/$C47*Genanskaffelsespriser!$D23*V47)) -> 0 | AT47: =IF((W47*Genanskaffelsespriser!$D23-(2009-W$3)/$C47*Genanskaffelsespriser!$D23*W47)<0,0,(W47*Genanskaffelsespriser!$D23-(2009-W$3)/$C47*Genanskaffelsespriser!$D23*W47)) -> 0 | AU47: =IF((X47*Genanskaffelsespriser!$D23-(2009-X$3)/$C47*Genanskaffelsespriser!$D23*X47)<0,0,(X47*Genanskaffelsespriser!$D23-(2009-X$3)/$C47*Genanskaffelsespriser!$D23*X47)) -> 0 | AV47: =IF((Y47*Genanskaffelsespriser!$D23-(2009-Y$3)/$C47*Genanskaffelsespriser!$D23*Y47)<0,0,(Y47*Genanskaffelsespriser!$D23-(2009-Y$3)/$C47*Genanskaffelsespriser!$D23*Y47)) -> 0 | AW47: =+SUM(AA47:AV47) -> 0 | AX47: =VLOOKUP(D$3,Prisindeks!$A$1:$B$111,2,FALSE)/100*AA47 -> 0 | AY47: =VLOOKUP(E$3,Prisindeks!$A$1:$B$111,2,FALSE)/100*AB47 -> 0 | AZ47: =VLOOKUP(F$3,Prisindeks!$A$1:$B$111,2,FALSE)/100*AC47 -> 0 | BA47: =VLOOKUP(G$3,Prisindeks!$A$1:$B$111,2,FALSE)/100*AD47 -> 0 | BB47: =VLOOKUP(H$3,Prisindeks!$A$1:$B$111,2,FALSE)/100*AE47 -> 0 | BC47: =VLOOKUP(I$3,Prisindeks!$A$1:$B$111,2,FALSE)/100*AF47 -> 0 | BD47: =VLOOKUP(J$3,Prisindeks!$A$1:$B$111,2,FALSE)/100*AG47 -> 0 | BE47: =VLOOKUP(K$3,Prisindeks!$A$1:$B$111,2,FALSE)/100*AH47 -> 0 | BF47: =VLOOKUP(L$3,Prisindeks!$A$1:$B$111,2,FALSE)/100*AI47 -> 0 | BG47: =VLOOKUP(M$3,Prisindeks!$A$1:$B$111,2,FALSE)/100*AJ47 -> 0 | BH47: =VLOOKUP(N$3,Prisindeks!$A$1:$B$111,2,FALSE)/100*AK47 -> 0 | BI47: =VLOOKUP(O$3,Prisindeks!$A$1:$B$111,2,FALSE)/100*AL47 -> 0 | BJ47: =VLOOKUP(P$3,Prisindeks!$A$1:$B$111,2,FALSE)/100*AM47 -> 0 | BK47: =VLOOKUP(Q$3,Prisindeks!$A$1:$B$111,2,FALSE)/100*AN47 -> 0 | BL47: =VLOOKUP(R$3,Prisindeks!$A$1:$B$111,2,FALSE)/100*AO47 -> 0 | BM47: =VLOOKUP(S$3,Prisindeks!$A$1:$B$111,2,FALSE)/100*AP47 -> 0 | BN47: =VLOOKUP(T$3,Prisindeks!$A$1:$B$111,2,FALSE)/100*AQ47 -> 0 | BO47: =VLOOKUP(U$3,Prisindeks!$A$1:$B$111,2,FALSE)/100*AR47 -> 0 | BP47: =VLOOKUP(V$3,Prisindeks!$A$1:$B$111,2,FALSE)/100*AS47 -> 0 | BQ47: =VLOOKUP(W$3,Prisindeks!$A$1:$B$111,2,FALSE)/100*AT47 -> 0 | BR47: =VLOOKUP(X$3,Prisindeks!$A$1:$B$111,2,FALSE)/100*AU47 -> 0 | BS47: =VLOOKUP(Y$3,Prisindeks!$A$1:$B$111,2,FALSE)/100*AV47 -> 0 | BT47: =+SUM(AX47:BS47) -> 0 | BU47: 0 | BV47: 0 | BW47: 0 | BX47: 0 | BY47: 0 | BZ47: 0 | CA47: 0 | CB47: 0 | CC47: 0 | CD47: 0 | CE47: 0 | CF47: 0 | CG47: 0 | CH47: 0 | CI47: 0 | CJ47: 0 | CK47: 0 | CL47: 0 | CM47: 0 | CN47: 0 | CO47: 0 | CP47: 0 | CQ47: 0 | CR47: 0
A48: Råvandsledninger - City | AW48: =SUM(AW49:AW52) -> 0 | BT48: =SUM(BT49:BT52) -> 0 | CQ48: =SUM(CQ49:CQ52) -> 0
A49: Ø 50mm < Ledningsnet ≤ Ø110 mm | B49: meter | C49: =Genanskaffelsespriser!E25 -> 75 | D49: 0 | E49: 0 | F49: 0 | G49: 0 | H49: 0 | I49: 0 | J49: 0 | K49: 0 | L49: 0 | M49: 0 | N49: 0 | O49: 0 | P49: 0 | Q49: 0 | R49: 0 | S49: 0 | T49: 0 | U49: 0 | V49: 0 | W49: 0 | X49: 0 | Y49: 0 | AA49: =IF((D49*Genanskaffelsespriser!$D25-(2009-D$3)/$C49*Genanskaffelsespriser!$D25*D49)<0,0,(D49*Genanskaffelsespriser!$D25-(2009-D$3)/$C49*Genanskaffelsespriser!$D25*D49)) -> 0 | AB49: =IF((E49*Genanskaffelsespriser!$D25-(2009-E$3)/$C49*Genanskaffelsespriser!$D25*E49)<0,0,(E49*Genanskaffelsespriser!$D25-(2009-E$3)/$C49*Genanskaffelsespriser!$D25*E49)) -> 0 | AC49: =IF((F49*Genanskaffelsespriser!$D25-(2009-F$3)/$C49*Genanskaffelsespriser!$D25*F49)<0,0,(F49*Genanskaffelsespriser!$D25-(2009-F$3)/$C49*Genanskaffelsespriser!$D25*F49)) -> 0 | AD49: =IF((G49*Genanskaffelsespriser!$D25-(2009-G$3)/$C49*Genanskaffelsespriser!$D25*G49)<0,0,(G49*Genanskaffelsespriser!$D25-(2009-G$3)/$C49*Genanskaffelsespriser!$D25*G49)) -> 0 | AE49: =IF((H49*Genanskaffelsespriser!$D25-(2009-H$3)/$C49*Genanskaffelsespriser!$D25*H49)<0,0,(H49*Genanskaffelsespriser!$D25-(2009-H$3)/$C49*Genanskaffelsespriser!$D25*H49)) -> 0 | AF49: =IF((I49*Genanskaffelsespriser!$D25-(2009-I$3)/$C49*Genanskaffelsespriser!$D25*I49)<0,0,(I49*Genanskaffelsespriser!$D25-(2009-I$3)/$C49*Genanskaffelsespriser!$D25*I49)) -> 0 | AG49: =IF((J49*Genanskaffelsespriser!$D25-(2009-J$3)/$C49*Genanskaffelsespriser!$D25*J49)<0,0,(J49*Genanskaffelsespriser!$D25-(2009-J$3)/$C49*Genanskaffelsespriser!$D25*J49)) -> 0 | AH49: =IF((K49*Genanskaffelsespriser!$D25-(2009-K$3)/$C49*Genanskaffelsespriser!$D25*K49)<0,0,(K49*Genanskaffelsespriser!$D25-(2009-K$3)/$C49*Genanskaffelsespriser!$D25*K49)) -> 0 | AI49: =IF((L49*Genanskaffelsespriser!$D25-(2009-L$3)/$C49*Genanskaffelsespriser!$D25*L49)<0,0,(L49*Genanskaffelsespriser!$D25-(2009-L$3)/$C49*Genanskaffelsespriser!$D25*L49)) -> 0 | AJ49: =IF((M49*Genanskaffelsespriser!$D25-(2009-M$3)/$C49*Genanskaffelsespriser!$D25*M49)<0,0,(M49*Genanskaffelsespriser!$D25-(2009-M$3)/$C49*Genanskaffelsespriser!$D25*M49)) -> 0 | AK49: =IF((N49*Genanskaffelsespriser!$D25-(2009-N$3)/$C49*Genanskaffelsespriser!$D25*N49)<0,0,(N49*Genanskaffelsespriser!$D25-(2009-N$3)/$C49*Genanskaffelsespriser!$D25*N49)) -> 0 | AL49: =IF((O49*Genanskaffelsespriser!$D25-(2009-O$3)/$C49*Genanskaffelsespriser!$D25*O49)<0,0,(O49*Genanskaffelsespriser!$D25-(2009-O$3)/$C49*Genanskaffelsespriser!$D25*O49)) -> 0 | AM49: =IF((P49*Genanskaffelsespriser!$D25-(2009-P$3)/$C49*Genanskaffelsespriser!$D25*P49)<0,0,(P49*Genanskaffelsespriser!$D25-(2009-P$3)/$C49*Genanskaffelsespriser!$D25*P49)) -> 0 | AN49: =IF((Q49*Genanskaffelsespriser!$D25-(2009-Q$3)/$C49*Genanskaffelsespriser!$D25*Q49)<0,0,(Q49*Genanskaffelsespriser!$D25-(2009-Q$3)/$C49*Genanskaffelsespriser!$D25*Q49)) -> 0 | AO49: =IF((R49*Genanskaffelsespriser!$D25-(2009-R$3)/$C49*Genanskaffelsespriser!$D25*R49)<0,0,(R49*Genanskaffelsespriser!$D25-(2009-R$3)/$C49*Genanskaffelsespriser!$D25*R49)) -> 0 | AP49: =IF((S49*Genanskaffelsespriser!$D25-(2009-S$3)/$C49*Genanskaffelsespriser!$D25*S49)<0,0,(S49*Genanskaffelsespriser!$D25-(2009-S$3)/$C49*Genanskaffelsespriser!$D25*S49)) -> 0 | AQ49: =IF((T49*Genanskaffelsespriser!$D25-(2009-T$3)/$C49*Genanskaffelsespriser!$D25*T49)<0,0,(T49*Genanskaffelsespriser!$D25-(2009-T$3)/$C49*Genanskaffelsespriser!$D25*T49)) -> 0 | AR49: =IF((U49*Genanskaffelsespriser!$D25-(2009-U$3)/$C49*Genanskaffelsespriser!$D25*U49)<0,0,(U49*Genanskaffelsespriser!$D25-(2009-U$3)/$C49*Genanskaffelsespriser!$D25*U49)) -> 0 | AS49: =IF((V49*Genanskaffelsespriser!$D25-(2009-V$3)/$C49*Genanskaffelsespriser!$D25*V49)<0,0,(V49*Genanskaffelsespriser!$D25-(2009-V$3)/$C49*Genanskaffelsespriser!$D25*V49)) -> 0 | AT49: =IF((W49*Genanskaffelsespriser!$D25-(2009-W$3)/$C49*Genanskaffelsespriser!$D25*W49)<0,0,(W49*Genanskaffelsespriser!$D25-(2009-W$3)/$C49*Genanskaffelsespriser!$D25*W49)) -> 0 | AU49: =IF((X49*Genanskaffelsespriser!$D25-(2009-X$3)/$C49*Genanskaffelsespriser!$D25*X49)<0,0,(X49*Genanskaffelsespriser!$D25-(2009-X$3)/$C49*Genanskaffelsespriser!$D25*X49)) -> 0 | AV49: =IF((Y49*Genanskaffelsespriser!$D25-(2009-Y$3)/$C49*Genanskaffelsespriser!$D25*Y49)<0,0,(Y49*Genanskaffelsespriser!$D25-(2009-Y$3)/$C49*Genanskaffelsespriser!$D25*Y49)) -> 0 | AW49: =+SUM(AA49:AV49) -> 0 | AX49: =VLOOKUP(D$3,Prisindeks!$A$1:$B$111,2,FALSE)/100*AA49 -> 0 | AY49: =VLOOKUP(E$3,Prisindeks!$A$1:$B$111,2,FALSE)/100*AB49 -> 0 | AZ49: =VLOOKUP(F$3,Prisindeks!$A$1:$B$111,2,FALSE)/100*AC49 -> 0 | BA49: =VLOOKUP(G$3,Prisindeks!$A$1:$B$111,2,FALSE)/100*AD49 -> 0 | BB49: =VLOOKUP(H$3,Prisindeks!$A$1:$B$111,2,FALSE)/100*AE49 -> 0 | BC49: =VLOOKUP(I$3,Prisindeks!$A$1:$B$111,2,FALSE)/100*AF49 -> 0 | BD49: =VLOOKUP(J$3,Prisindeks!$A$1:$B$111,2,FALSE)/100*AG49 -> 0 | BE49: =VLOOKUP(K$3,Prisindeks!$A$1:$B$111,2,FALSE)/100*AH49 -> 0 | BF49: =VLOOKUP(L$3,Prisindeks!$A$1:$B$111,2,FALSE)/100*AI49 -> 0 | BG49: =VLOOKUP(M$3,Prisindeks!$A$1:$B$111,2,FALSE)/100*AJ49 -> 0 | BH49: =VLOOKUP(N$3,Prisindeks!$A$1:$B$111,2,FALSE)/100*AK49 -> 0 | BI49: =VLOOKUP(O$3,Prisindeks!$A$1:$B$111,2,FALSE)/100*AL49 -> 0 | BJ49: =VLOOKUP(P$3,Prisindeks!$A$1:$B$111,2,FALSE)/100*AM49 -> 0 | BK49: =VLOOKUP(Q$3,Prisindeks!$A$1:$B$111,2,FALSE)/100*AN49 -> 0 | BL49: =VLOOKUP(R$3,Prisindeks!$A$1:$B$111,2,FALSE)/100*AO49 -> 0 | BM49: =VLOOKUP(S$3,Prisindeks!$A$1:$B$111,2,FALSE)/100*AP49 -> 0 | BN49: =VLOOKUP(T$3,Prisindeks!$A$1:$B$111,2,FALSE)/100*AQ49 -> 0 | BO49: =VLOOKUP(U$3,Prisindeks!$A$1:$B$111,2,FALSE)/100*AR49 -> 0 | BP49: =VLOOKUP(V$3,Prisindeks!$A$1:$B$111,2,FALSE)/100*AS49 -> 0 | BQ49: =VLOOKUP(W$3,Prisindeks!$A$1:$B$111,2,FALSE)/100*AT49 -> 0 | BR49: =VLOOKUP(X$3,Prisindeks!$A$1:$B$111,2,FALSE)/100*AU49 -> 0 | BS49: =VLOOKUP(Y$3,Prisindeks!$A$1:$B$111,2,FALSE)/100*AV49 -> 0 | BT49: =+SUM(AX49:BS49) -> 0 | BU49: =(AA49+AX49)/2 -> 0 | BV49: 0 | BW49: 0 | BX49: 0 | BY49: 0 | BZ49: 0 | CA49: 0 | CB49: 0 | CC49: 0 | CD49: 0 | CE49: =(AK49+BH49)/2 -> 0 | CF49: 0 | CG49: 0 | CH49: 0 | CI49: 0 | CJ49: 0 | CK49: 0 | CL49: 0 | CM49: 0 | CN49: 0 | CO49: =(AU49+BR49)/2 -> 0 | CP49: 0 | CQ49: 0 | CR49: 0
A50: Ø110 mm < Ledningsnet ≤ Ø 250 mm | B50: meter | C50: =Genanskaffelsespriser!E26 -> 75 | D50: 0 | E50: 0 | F50: 0 | G50: 0 | H50: 0 | I50: 0 | J50: 0 | K50: 0 | L50: 0 | M50: 0 | N50: 0 | O50: 0 | P50: 0 | Q50: 0 | R50: 0 | S50: 0 | T50: 0 | U50: 0 | V50: 0 | W50: 0 | X50: 0 | Y50: 0 | AA50: =IF((D50*Genanskaffelsespriser!$D26-(2009-D$3)/$C50*Genanskaffelsespriser!$D26*D50)<0,0,(D50*Genanskaffelsespriser!$D26-(2009-D$3)/$C50*Genanskaffelsespriser!$D26*D50)) -> 0 | AB50: =IF((E50*Genanskaffelsespriser!$D26-(2009-E$3)/$C50*Genanskaffelsespriser!$D26*E50)<0,0,(E50*Genanskaffelsespriser!$D26-(2009-E$3)/$C50*Genanskaffelsespriser!$D26*E50)) -> 0 | AC50: =IF((F50*Genanskaffelsespriser!$D26-(2009-F$3)/$C50*Genanskaffelsespriser!$D26*F50)<0,0,(F50*Genanskaffelsespriser!$D26-(2009-F$3)/$C50*Genanskaffelsespriser!$D26*F50)) -> 0 | AD50: =IF((G50*Genanskaffelsespriser!$D26-(2009-G$3)/$C50*Genanskaffelsespriser!$D26*G50)<0,0,(G50*Genanskaffelsespriser!$D26-(2009-G$3)/$C50*Genanskaffelsespriser!$D26*G50)) -> 0 | AE50: =IF((H50*Genanskaffelsespriser!$D26-(2009-H$3)/$C50*Genanskaffelsespriser!$D26*H50)<0,0,(H50*Genanskaffelsespriser!$D26-(2009-H$3)/$C50*Genanskaffelsespriser!$D26*H50)) -> 0 | AF50: =IF((I50*Genanskaffelsespriser!$D26-(2009-I$3)/$C50*Genanskaffelsespriser!$D26*I50)<0,0,(I50*Genanskaffelsespriser!$D26-(2009-I$3)/$C50*Genanskaffelsespriser!$D26*I50)) -> 0 | AG50: =IF((J50*Genanskaffelsespriser!$D26-(2009-J$3)/$C50*Genanskaffelsespriser!$D26*J50)<0,0,(J50*Genanskaffelsespriser!$D26-(2009-J$3)/$C50*Genanskaffelsespriser!$D26*J50)) -> 0 | AH50: =IF((K50*Genanskaffelsespriser!$D26-(2009-K$3)/$C50*Genanskaffelsespriser!$D26*K50)<0,0,(K50*Genanskaffelsespriser!$D26-(2009-K$3)/$C50*Genanskaffelsespriser!$D26*K50)) -> 0 | AI50: =IF((L50*Genanskaffelsespriser!$D26-(2009-L$3)/$C50*Genanskaffelsespriser!$D26*L50)<0,0,(L50*Genanskaffelsespriser!$D26-(2009-L$3)/$C50*Genanskaffelsespriser!$D26*L50)) -> 0 | AJ50: =IF((M50*Genanskaffelsespriser!$D26-(2009-M$3)/$C50*Genanskaffelsespriser!$D26*M50)<0,0,(M50*Genanskaffelsespriser!$D26-(2009-M$3)/$C50*Genanskaffelsespriser!$D26*M50)) -> 0 | AK50: =IF((N50*Genanskaffelsespriser!$D26-(2009-N$3)/$C50*Genanskaffelsespriser!$D26*N50)<0,0,(N50*Genanskaffelsespriser!$D26-(2009-N$3)/$C50*Genanskaffelsespriser!$D26*N50)) -> 0 | AL50: =IF((O50*Genanskaffelsespriser!$D26-(2009-O$3)/$C50*Genanskaffelsespriser!$D26*O50)<0,0,(O50*Genanskaffelsespriser!$D26-(2009-O$3)/$C50*Genanskaffelsespriser!$D26*O50)) -> 0 | AM50: =IF((P50*Genanskaffelsespriser!$D26-(2009-P$3)/$C50*Genanskaffelsespriser!$D26*P50)<0,0,(P50*Genanskaffelsespriser!$D26-(2009-P$3)/$C50*Genanskaffelsespriser!$D26*P50)) -> 0 | AN50: =IF((Q50*Genanskaffelsespriser!$D26-(2009-Q$3)/$C50*Genanskaffelsespriser!$D26*Q50)<0,0,(Q50*Genanskaffelsespriser!$D26-(2009-Q$3)/$C50*Genanskaffelsespriser!$D26*Q50)) -> 0 | AO50: =IF((R50*Genanskaffelsespriser!$D26-(2009-R$3)/$C50*Genanskaffelsespriser!$D26*R50)<0,0,(R50*Genanskaffelsespriser!$D26-(2009-R$3)/$C50*Genanskaffelsespriser!$D26*R50)) -> 0 | AP50: =IF((S50*Genanskaffelsespriser!$D26-(2009-S$3)/$C50*Genanskaffelsespriser!$D26*S50)<0,0,(S50*Genanskaffelsespriser!$D26-(2009-S$3)/$C50*Genanskaffelsespriser!$D26*S50)) -> 0 | AQ50: =IF((T50*Genanskaffelsespriser!$D26-(2009-T$3)/$C50*Genanskaffelsespriser!$D26*T50)<0,0,(T50*Genanskaffelsespriser!$D26-(2009-T$3)/$C50*Genanskaffelsespriser!$D26*T50)) -> 0 | AR50: =IF((U50*Genanskaffelsespriser!$D26-(2009-U$3)/$C50*Genanskaffelsespriser!$D26*U50)<0,0,(U50*Genanskaffelsespriser!$D26-(2009-U$3)/$C50*Genanskaffelsespriser!$D26*U50)) -> 0 | AS50: =IF((V50*Genanskaffelsespriser!$D26-(2009-V$3)/$C50*Genanskaffelsespriser!$D26*V50)<0,0,(V50*Genanskaffelsespriser!$D26-(2009-V$3)/$C50*Genanskaffelsespriser!$D26*V50)) -> 0 | AT50: =IF((W50*Genanskaffelsespriser!$D26-(2009-W$3)/$C50*Genanskaffelsespriser!$D26*W50)<0,0,(W50*Genanskaffelsespriser!$D26-(2009-W$3)/$C50*Genanskaffelsespriser!$D26*W50)) -> 0 | AU50: =IF((X50*Genanskaffelsespriser!$D26-(2009-X$3)/$C50*Genanskaffelsespriser!$D26*X50)<0,0,(X50*Genanskaffelsespriser!$D26-(2009-X$3)/$C50*Genanskaffelsespriser!$D26*X50)) -> 0 | AV50: =IF((Y50*Genanskaffelsespriser!$D26-(2009-Y$3)/$C50*Genanskaffelsespriser!$D26*Y50)<0,0,(Y50*Genanskaffelsespriser!$D26-(2009-Y$3)/$C50*Genanskaffelsespriser!$D26*Y50)) -> 0 | AW50: =+SUM(AA50:AV50) -> 0 | AX50: =VLOOKUP(D$3,Prisindeks!$A$1:$B$111,2,FALSE)/100*AA50 -> 0 | AY50: =VLOOKUP(E$3,Prisindeks!$A$1:$B$111,2,FALSE)/100*AB50 -> 0 | AZ50: =VLOOKUP(F$3,Prisindeks!$A$1:$B$111,2,FALSE)/100*AC50 -> 0 | BA50: =VLOOKUP(G$3,Prisindeks!$A$1:$B$111,2,FALSE)/100*AD50 -> 0 | BB50: =VLOOKUP(H$3,Prisindeks!$A$1:$B$111,2,FALSE)/100*AE50 -> 0 | BC50: =VLOOKUP(I$3,Prisindeks!$A$1:$B$111,2,FALSE)/100*AF50 -> 0 | BD50: =VLOOKUP(J$3,Prisindeks!$A$1:$B$111,2,FALSE)/100*AG50 -> 0 | BE50: =VLOOKUP(K$3,Prisindeks!$A$1:$B$111,2,FALSE)/100*AH50 -> 0 | BF50: =VLOOKUP(L$3,Prisindeks!$A$1:$B$111,2,FALSE)/100*AI50 -> 0 | BG50: =VLOOKUP(M$3,Prisindeks!$A$1:$B$111,2,FALSE)/100*AJ50 -> 0 | BH50: =VLOOKUP(N$3,Prisindeks!$A$1:$B$111,2,FALSE)/100*AK50 -> 0 | BI50: =VLOOKUP(O$3,Prisindeks!$A$1:$B$111,2,FALSE)/100*AL50 -> 0 | BJ50: =VLOOKUP(P$3,Prisindeks!$A$1:$B$111,2,FALSE)/100*AM50 -> 0 | BK50: =VLOOKUP(Q$3,Prisindeks!$A$1:$B$111,2,FALSE)/100*AN50 -> 0 | BL50: =VLOOKUP(R$3,Prisindeks!$A$1:$B$111,2,FALSE)/100*AO50 -> 0 | BM50: =VLOOKUP(S$3,Prisindeks!$A$1:$B$111,2,FALSE)/100*AP50 -> 0 | BN50: =VLOOKUP(T$3,Prisindeks!$A$1:$B$111,2,FALSE)/100*AQ50 -> 0 | BO50: =VLOOKUP(U$3,Prisindeks!$A$1:$B$111,2,FALSE)/100*AR50 -> 0 | BP50: =VLOOKUP(V$3,Prisindeks!$A$1:$B$111,2,FALSE)/100*AS50 -> 0 | BQ50: =VLOOKUP(W$3,Prisindeks!$A$1:$B$111,2,FALSE)/100*AT50 -> 0 | BR50: =VLOOKUP(X$3,Prisindeks!$A$1:$B$111,2,FALSE)/100*AU50 -> 0 | BS50: =VLOOKUP(Y$3,Prisindeks!$A$1:$B$111,2,FALSE)/100*AV50 -> 0 | BT50: =+SUM(AX50:BS50) -> 0 | BU50: 0 | BV50: 0 | BW50: 0 | BX50: 0 | BY50: 0 | BZ50: 0 | CA50: 0 | CB50: 0 | CC50: 0 | CD50: 0 | CE50: 0 | CF50: 0 | CG50: 0 | CH50: 0 | CI50: 0 | CJ50: 0 | CK50: 0 | CL50: 0 | CM50: 0 | CN50: 0 | CO50: 0 | CP50: 0 | CQ50: 0 | CR50: 0
A51: Ø 250 mm < Ledningsnet ≤ Ø 500mm | B51: meter | C51: =Genanskaffelsespriser!E27 -> 75 | D51: 0 | E51: 0 | F51: 0 | G51: 0 | H51: 0 | I51: 0 | J51: 0 | K51: 0 | L51: 0 | M51: 0 | N51: 0 | O51: 0 | P51: 0 | Q51: 0 | R51: 0 | S51: 0 | T51: 0 | U51: 0 | V51: 0 | W51: 0 | X51: 0 | Y51: 0 | AA51: =IF((D51*Genanskaffelsespriser!$D27-(2009-D$3)/$C51*Genanskaffelsespriser!$D27*D51)<0,0,(D51*Genanskaffelsespriser!$D27-(2009-D$3)/$C51*Genanskaffelsespriser!$D27*D51)) -> 0 | AB51: =IF((E51*Genanskaffelsespriser!$D27-(2009-E$3)/$C51*Genanskaffelsespriser!$D27*E51)<0,0,(E51*Genanskaffelsespriser!$D27-(2009-E$3)/$C51*Genanskaffelsespriser!$D27*E51)) -> 0 | AC51: =IF((F51*Genanskaffelsespriser!$D27-(2009-F$3)/$C51*Genanskaffelsespriser!$D27*F51)<0,0,(F51*Genanskaffelsespriser!$D27-(2009-F$3)/$C51*Genanskaffelsespriser!$D27*F51)) -> 0 | AD51: =IF((G51*Genanskaffelsespriser!$D27-(2009-G$3)/$C51*Genanskaffelsespriser!$D27*G51)<0,0,(G51*Genanskaffelsespriser!$D27-(2009-G$3)/$C51*Genanskaffelsespriser!$D27*G51)) -> 0 | AE51: =IF((H51*Genanskaffelsespriser!$D27-(2009-H$3)/$C51*Genanskaffelsespriser!$D27*H51)<0,0,(H51*Genanskaffelsespriser!$D27-(2009-H$3)/$C51*Genanskaffelsespriser!$D27*H51)) -> 0 | AF51: =IF((I51*Genanskaffelsespriser!$D27-(2009-I$3)/$C51*Genanskaffelsespriser!$D27*I51)<0,0,(I51*Genanskaffelsespriser!$D27-(2009-I$3)/$C51*Genanskaffelsespriser!$D27*I51)) -> 0 | AG51: =IF((J51*Genanskaffelsespriser!$D27-(2009-J$3)/$C51*Genanskaffelsespriser!$D27*J51)<0,0,(J51*Genanskaffelsespriser!$D27-(2009-J$3)/$C51*Genanskaffelsespriser!$D27*J51)) -> 0 | AH51: =IF((K51*Genanskaffelsespriser!$D27-(2009-K$3)/$C51*Genanskaffelsespriser!$D27*K51)<0,0,(K51*Genanskaffelsespriser!$D27-(2009-K$3)/$C51*Genanskaffelsespriser!$D27*K51)) -> 0 | AI51: =IF((L51*Genanskaffelsespriser!$D27-(2009-L$3)/$C51*Genanskaffelsespriser!$D27*L51)<0,0,(L51*Genanskaffelsespriser!$D27-(2009-L$3)/$C51*Genanskaffelsespriser!$D27*L51)) -> 0 | AJ51: =IF((M51*Genanskaffelsespriser!$D27-(2009-M$3)/$C51*Genanskaffelsespriser!$D27*M51)<0,0,(M51*Genanskaffelsespriser!$D27-(2009-M$3)/$C51*Genanskaffelsespriser!$D27*M51)) -> 0 | AK51: =IF((N51*Genanskaffelsespriser!$D27-(2009-N$3)/$C51*Genanskaffelsespriser!$D27*N51)<0,0,(N51*Genanskaffelsespriser!$D27-(2009-N$3)/$C51*Genanskaffelsespriser!$D27*N51)) -> 0 | AL51: =IF((O51*Genanskaffelsespriser!$D27-(2009-O$3)/$C51*Genanskaffelsespriser!$D27*O51)<0,0,(O51*Genanskaffelsespriser!$D27-(2009-O$3)/$C51*Genanskaffelsespriser!$D27*O51)) -> 0 | AM51: =IF((P51*Genanskaffelsespriser!$D27-(2009-P$3)/$C51*Genanskaffelsespriser!$D27*P51)<0,0,(P51*Genanskaffelsespriser!$D27-(2009-P$3)/$C51*Genanskaffelsespriser!$D27*P51)) -> 0 | AN51: =IF((Q51*Genanskaffelsespriser!$D27-(2009-Q$3)/$C51*Genanskaffelsespriser!$D27*Q51)<0,0,(Q51*Genanskaffelsespriser!$D27-(2009-Q$3)/$C51*Genanskaffelsespriser!$D27*Q51)) -> 0 | AO51: =IF((R51*Genanskaffelsespriser!$D27-(2009-R$3)/$C51*Genanskaffelsespriser!$D27*R51)<0,0,(R51*Genanskaffelsespriser!$D27-(2009-R$3)/$C51*Genanskaffelsespriser!$D27*R51)) -> 0 | AP51: =IF((S51*Genanskaffelsespriser!$D27-(2009-S$3)/$C51*Genanskaffelsespriser!$D27*S51)<0,0,(S51*Genanskaffelsespriser!$D27-(2009-S$3)/$C51*Genanskaffelsespriser!$D27*S51)) -> 0 | AQ51: =IF((T51*Genanskaffelsespriser!$D27-(2009-T$3)/$C51*Genanskaffelsespriser!$D27*T51)<0,0,(T51*Genanskaffelsespriser!$D27-(2009-T$3)/$C51*Genanskaffelsespriser!$D27*T51)) -> 0 | AR51: =IF((U51*Genanskaffelsespriser!$D27-(2009-U$3)/$C51*Genanskaffelsespriser!$D27*U51)<0,0,(U51*Genanskaffelsespriser!$D27-(2009-U$3)/$C51*Genanskaffelsespriser!$D27*U51)) -> 0 | AS51: =IF((V51*Genanskaffelsespriser!$D27-(2009-V$3)/$C51*Genanskaffelsespriser!$D27*V51)<0,0,(V51*Genanskaffelsespriser!$D27-(2009-V$3)/$C51*Genanskaffelsespriser!$D27*V51)) -> 0 | AT51: =IF((W51*Genanskaffelsespriser!$D27-(2009-W$3)/$C51*Genanskaffelsespriser!$D27*W51)<0,0,(W51*Genanskaffelsespriser!$D27-(2009-W$3)/$C51*Genanskaffelsespriser!$D27*W51)) -> 0 | AU51: =IF((X51*Genanskaffelsespriser!$D27-(2009-X$3)/$C51*Genanskaffelsespriser!$D27*X51)<0,0,(X51*Genanskaffelsespriser!$D27-(2009-X$3)/$C51*Genanskaffelsespriser!$D27*X51)) -> 0 | AV51: =IF((Y51*Genanskaffelsespriser!$D27-(2009-Y$3)/$C51*Genanskaffelsespriser!$D27*Y51)<0,0,(Y51*Genanskaffelsespriser!$D27-(2009-Y$3)/$C51*Genanskaffelsespriser!$D27*Y51)) -> 0 | AW51: =+SUM(AA51:AV51) -> 0 | AX51: =VLOOKUP(D$3,Prisindeks!$A$1:$B$111,2,FALSE)/100*AA51 -> 0 | AY51: =VLOOKUP(E$3,Prisindeks!$A$1:$B$111,2,FALSE)/100*AB51 -> 0 | AZ51: =VLOOKUP(F$3,Prisindeks!$A$1:$B$111,2,FALSE)/100*AC51 -> 0 | BA51: =VLOOKUP(G$3,Prisindeks!$A$1:$B$111,2,FALSE)/100*AD51 -> 0 | BB51: =VLOOKUP(H$3,Prisindeks!$A$1:$B$111,2,FALSE)/100*AE51 -> 0 | BC51: =VLOOKUP(I$3,Prisindeks!$A$1:$B$111,2,FALSE)/100*AF51 -> 0 | BD51: =VLOOKUP(J$3,Prisindeks!$A$1:$B$111,2,FALSE)/100*AG51 -> 0 | BE51: =VLOOKUP(K$3,Prisindeks!$A$1:$B$111,2,FALSE)/100*AH51 -> 0 | BF51: =VLOOKUP(L$3,Prisindeks!$A$1:$B$111,2,FALSE)/100*AI51 -> 0 | BG51: =VLOOKUP(M$3,Prisindeks!$A$1:$B$111,2,FALSE)/100*AJ51 -> 0 | BH51: =VLOOKUP(N$3,Prisindeks!$A$1:$B$111,2,FALSE)/100*AK51 -> 0 | BI51: =VLOOKUP(O$3,Prisindeks!$A$1:$B$111,2,FALSE)/100*AL51 -> 0 | BJ51: =VLOOKUP(P$3,Prisindeks!$A$1:$B$111,2,FALSE)/100*AM51 -> 0 | BK51: =VLOOKUP(Q$3,Prisindeks!$A$1:$B$111,2,FALSE)/100*AN51 -> 0 | BL51: =VLOOKUP(R$3,Prisindeks!$A$1:$B$111,2,FALSE)/100*AO51 -> 0 | BM51: =VLOOKUP(S$3,Prisindeks!$A$1:$B$111,2,FALSE)/100*AP51 -> 0 | BN51: =VLOOKUP(T$3,Prisindeks!$A$1:$B$111,2,FALSE)/100*AQ51 -> 0 | BO51: =VLOOKUP(U$3,Prisindeks!$A$1:$B$111,2,FALSE)/100*AR51 -> 0 | BP51: =VLOOKUP(V$3,Prisindeks!$A$1:$B$111,2,FALSE)/100*AS51 -> 0 | BQ51: =VLOOKUP(W$3,Prisindeks!$A$1:$B$111,2,FALSE)/100*AT51 -> 0 | BR51: =VLOOKUP(X$3,Prisindeks!$A$1:$B$111,2,FALSE)/100*AU51 -> 0 | BS51: =VLOOKUP(Y$3,Prisindeks!$A$1:$B$111,2,FALSE)/100*AV51 -> 0 | BT51: =+SUM(AX51:BS51) -> 0 | BU51: 0 | BV51: 0 | BW51: 0 | BX51: 0 | BY51: 0 | BZ51: 0 | CA51: 0 | CB51: 0 | CC51: 0 | CD51: 0 | CE51: 0 | CF51: 0 | CG51: 0 | CH51: 0 | CI51: 0 | CJ51: 0 | CK51: 0 | CL51: 0 | CM51: 0 | CN51: 0 | CO51: 0 | CP51: 0 | CQ51: 0 | CR51: 0
A52: Ledningsnet > Ø 500 mm | B52: meter | C52: =Genanskaffelsespriser!E28 -> 75 | D52: 0 | E52: 0 | F52: 0 | G52: 0 | H52: 0 | I52: 0 | J52: 0 | K52: 0 | L52: 0 | M52: 0 | N52: 0 | O52: 0 | P52: 0 | Q52: 0 | R52: 0 | S52: 0 | T52: 0 | U52: 0 | V52: 0 | W52: 0 | X52: 0 | Y52: 0 | AA52: =IF((D52*Genanskaffelsespriser!$D28-(2009-D$3)/$C52*Genanskaffelsespriser!$D28*D52)<0,0,(D52*Genanskaffelsespriser!$D28-(2009-D$3)/$C52*Genanskaffelsespriser!$D28*D52)) -> 0 | AB52: =IF((E52*Genanskaffelsespriser!$D28-(2009-E$3)/$C52*Genanskaffelsespriser!$D28*E52)<0,0,(E52*Genanskaffelsespriser!$D28-(2009-E$3)/$C52*Genanskaffelsespriser!$D28*E52)) -> 0 | AC52: =IF((F52*Genanskaffelsespriser!$D28-(2009-F$3)/$C52*Genanskaffelsespriser!$D28*F52)<0,0,(F52*Genanskaffelsespriser!$D28-(2009-F$3)/$C52*Genanskaffelsespriser!$D28*F52)) -> 0 | AD52: =IF((G52*Genanskaffelsespriser!$D28-(2009-G$3)/$C52*Genanskaffelsespriser!$D28*G52)<0,0,(G52*Genanskaffelsespriser!$D28-(2009-G$3)/$C52*Genanskaffelsespriser!$D28*G52)) -> 0 | AE52: =IF((H52*Genanskaffelsespriser!$D28-(2009-H$3)/$C52*Genanskaffelsespriser!$D28*H52)<0,0,(H52*Genanskaffelsespriser!$D28-(2009-H$3)/$C52*Genanskaffelsespriser!$D28*H52)) -> 0 | AF52: =IF((I52*Genanskaffelsespriser!$D28-(2009-I$3)/$C52*Genanskaffelsespriser!$D28*I52)<0,0,(I52*Genanskaffelsespriser!$D28-(2009-I$3)/$C52*Genanskaffelsespriser!$D28*I52)) -> 0 | AG52: =IF((J52*Genanskaffelsespriser!$D28-(2009-J$3)/$C52*Genanskaffelsespriser!$D28*J52)<0,0,(J52*Genanskaffelsespriser!$D28-(2009-J$3)/$C52*Genanskaffelsespriser!$D28*J52)) -> 0 | AH52: =IF((K52*Genanskaffelsespriser!$D28-(2009-K$3)/$C52*Genanskaffelsespriser!$D28*K52)<0,0,(K52*Genanskaffelsespriser!$D28-(2009-K$3)/$C52*Genanskaffelsespriser!$D28*K52)) -> 0 | AI52: =IF((L52*Genanskaffelsespriser!$D28-(2009-L$3)/$C52*Genanskaffelsespriser!$D28*L52)<0,0,(L52*Genanskaffelsespriser!$D28-(2009-L$3)/$C52*Genanskaffelsespriser!$D28*L52)) -> 0 | AJ52: =IF((M52*Genanskaffelsespriser!$D28-(2009-M$3)/$C52*Genanskaffelsespriser!$D28*M52)<0,0,(M52*Genanskaffelsespriser!$D28-(2009-M$3)/$C52*Genanskaffelsespriser!$D28*M52)) -> 0 | AK52: =IF((N52*Genanskaffelsespriser!$D28-(2009-N$3)/$C52*Genanskaffelsespriser!$D28*N52)<0,0,(N52*Genanskaffelsespriser!$D28-(2009-N$3)/$C52*Genanskaffelsespriser!$D28*N52)) -> 0 | AL52: =IF((O52*Genanskaffelsespriser!$D28-(2009-O$3)/$C52*Genanskaffelsespriser!$D28*O52)<0,0,(O52*Genanskaffelsespriser!$D28-(2009-O$3)/$C52*Genanskaffelsespriser!$D28*O52)) -> 0 | AM52: =IF((P52*Genanskaffelsespriser!$D28-(2009-P$3)/$C52*Genanskaffelsespriser!$D28*P52)<0,0,(P52*Genanskaffelsespriser!$D28-(2009-P$3)/$C52*Genanskaffelsespriser!$D28*P52)) -> 0 | AN52: =IF((Q52*Genanskaffelsespriser!$D28-(2009-Q$3)/$C52*Genanskaffelsespriser!$D28*Q52)<0,0,(Q52*Genanskaffelsespriser!$D28-(2009-Q$3)/$C52*Genanskaffelsespriser!$D28*Q52)) -> 0 | AO52: =IF((R52*Genanskaffelsespriser!$D28-(2009-R$3)/$C52*Genanskaffelsespriser!$D28*R52)<0,0,(R52*Genanskaffelsespriser!$D28-(2009-R$3)/$C52*Genanskaffelsespriser!$D28*R52)) -> 0 | AP52: =IF((S52*Genanskaffelsespriser!$D28-(2009-S$3)/$C52*Genanskaffelsespriser!$D28*S52)<0,0,(S52*Genanskaffelsespriser!$D28-(2009-S$3)/$C52*Genanskaffelsespriser!$D28*S52)) -> 0 | AQ52: =IF((T52*Genanskaffelsespriser!$D28-(2009-T$3)/$C52*Genanskaffelsespriser!$D28*T52)<0,0,(T52*Genanskaffelsespriser!$D28-(2009-T$3)/$C52*Genanskaffelsespriser!$D28*T52)) -> 0 | AR52: =IF((U52*Genanskaffelsespriser!$D28-(2009-U$3)/$C52*Genanskaffelsespriser!$D28*U52)<0,0,(U52*Genanskaffelsespriser!$D28-(2009-U$3)/$C52*Genanskaffelsespriser!$D28*U52)) -> 0 | AS52: =IF((V52*Genanskaffelsespriser!$D28-(2009-V$3)/$C52*Genanskaffelsespriser!$D28*V52)<0,0,(V52*Genanskaffelsespriser!$D28-(2009-V$3)/$C52*Genanskaffelsespriser!$D28*V52)) -> 0 | AT52: =IF((W52*Genanskaffelsespriser!$D28-(2009-W$3)/$C52*Genanskaffelsespriser!$D28*W52)<0,0,(W52*Genanskaffelsespriser!$D28-(2009-W$3)/$C52*Genanskaffelsespriser!$D28*W52)) -> 0 | AU52: =IF((X52*Genanskaffelsespriser!$D28-(2009-X$3)/$C52*Genanskaffelsespriser!$D28*X52)<0,0,(X52*Genanskaffelsespriser!$D28-(2009-X$3)/$C52*Genanskaffelsespriser!$D28*X52)) -> 0 | AV52: =IF((Y52*Genanskaffelsespriser!$D28-(2009-Y$3)/$C52*Genanskaffelsespriser!$D28*Y52)<0,0,(Y52*Genanskaffelsespriser!$D28-(2009-Y$3)/$C52*Genanskaffelsespriser!$D28*Y52)) -> 0 | AW52: =+SUM(AA52:AV52) -> 0 | AX52: =VLOOKUP(D$3,Prisindeks!$A$1:$B$111,2,FALSE)/100*AA52 -> 0 | AY52: =VLOOKUP(E$3,Prisindeks!$A$1:$B$111,2,FALSE)/100*AB52 -> 0 | AZ52: =VLOOKUP(F$3,Prisindeks!$A$1:$B$111,2,FALSE)/100*AC52 -> 0 | BA52: =VLOOKUP(G$3,Prisindeks!$A$1:$B$111,2,FALSE)/100*AD52 -> 0 | BB52: =VLOOKUP(H$3,Prisindeks!$A$1:$B$111,2,FALSE)/100*AE52 -> 0 | BC52: =VLOOKUP(I$3,Prisindeks!$A$1:$B$111,2,FALSE)/100*AF52 -> 0 | BD52: =VLOOKUP(J$3,Prisindeks!$A$1:$B$111,2,FALSE)/100*AG52 -> 0 | BE52: =VLOOKUP(K$3,Prisindeks!$A$1:$B$111,2,FALSE)/100*AH52 -> 0 | BF52: =VLOOKUP(L$3,Prisindeks!$A$1:$B$111,2,FALSE)/100*AI52 -> 0 | BG52: =VLOOKUP(M$3,Prisindeks!$A$1:$B$111,2,FALSE)/100*AJ52 -> 0 | BH52: =VLOOKUP(N$3,Prisindeks!$A$1:$B$111,2,FALSE)/100*AK52 -> 0 | BI52: =VLOOKUP(O$3,Prisindeks!$A$1:$B$111,2,FALSE)/100*AL52 -> 0 | BJ52: =VLOOKUP(P$3,Prisindeks!$A$1:$B$111,2,FALSE)/100*AM52 -> 0 | BK52: =VLOOKUP(Q$3,Prisindeks!$A$1:$B$111,2,FALSE)/100*AN52 -> 0 | BL52: =VLOOKUP(R$3,Prisindeks!$A$1:$B$111,2,FALSE)/100*AO52 -> 0 | BM52: =VLOOKUP(S$3,Prisindeks!$A$1:$B$111,2,FALSE)/100*AP52 -> 0 | BN52: =VLOOKUP(T$3,Prisindeks!$A$1:$B$111,2,FALSE)/100*AQ52 -> 0 | BO52: =VLOOKUP(U$3,Prisindeks!$A$1:$B$111,2,FALSE)/100*AR52 -> 0 | BP52: =VLOOKUP(V$3,Prisindeks!$A$1:$B$111,2,FALSE)/100*AS52 -> 0 | BQ52: =VLOOKUP(W$3,Prisindeks!$A$1:$B$111,2,FALSE)/100*AT52 -> 0 | BR52: =VLOOKUP(X$3,Prisindeks!$A$1:$B$111,2,FALSE)/100*AU52 -> 0 | BS52: =VLOOKUP(Y$3,Prisindeks!$A$1:$B$111,2,FALSE)/100*AV52 -> 0 | BT52: =+SUM(AX52:BS52) -> 0 | BU52: 0 | BV52: 0 | BW52: 0 | BX52: 0 | BY52: 0 | BZ52: 0 | CA52: 0 | CB52: 0 | CC52: 0 | CD52: 0 | CE52: 0 | CF52: 0 | CG52: 0 | CH52: 0 | CI52: 0 | CJ52: 0 | CK52: 0 | CL52: 0 | CM52: 0 | CN52: 0 | CO52: 0 | CP52: 0 | CQ52: 0 | CR52: 0
A53: Vandværk 1 | AW53: =SUM(AW54:AW95) -> 4250990 | BT53: =SUM(BT54:BT95) -> 1348497.063 | CQ53: =SUM(CQ54:CQ95) -> 2799743.531
A54: Beluftningsanlæg, iltningstrappe, Konstruktioner | B54: m³/h | C54: =Genanskaffelsespriser!$E$30 -> 50 | D54: 0 | E54: 0 | F54: 0 | G54: 0 | H54: 0 | I54: 0 | J54: 240 | K54: 0 | L54: 0 | M54: 0 | N54: 0 | O54: 0 | P54: 0 | Q54: 0 | R54: 0 | S54: 0 | T54: 0 | U54: 0 | V54: 0 | W54: 0 | X54: 0 | Y54: 0 | Z54: =IF(COUNTIF(D54:Y54,"<>0")<=1,IF((SUM(D54:Y54))>0,(+HLOOKUP((SUM(D54:Y54)),Priser!$E$96:$J$108,2)+((SUM(D54:Y54))-HLOOKUP((SUM(D54:Y54)),Priser!$E$96:$J$108,1))*HLOOKUP((SUM(D54:Y54)),Priser!$E$96:$J$108,3))/(SUM(D54:Y54)),0)*Priser!$Q$97*(1+Genanskaffelsespriser!$D$196),$A$1373) -> 2766.936065 | AA54: =IF((D54*$Z54-(2009-D$3)/($C54+D55)*$Z54*D54)<0,0,(D54*$Z54-(2009-D$3)/($C54+D55)*$Z54*D54)) -> 0 | AB54: =IF((E54*$Z54-(2009-E$3)/($C54+E55)*$Z54*E54)<0,0,(E54*$Z54-(2009-E$3)/($C54+E55)*$Z54*E54)) -> 0 | AC54: 0 | AD54: 0 | AE54: 0 | AF54: 0 | AG54: 79687.75868 | AH54: 0 | AI54: 0 | AJ54: 0 | AK54: 0 | AL54: 0 | AM54: 0 | AN54: 0 | AO54: 0 | AP54: 0 | AQ54: 0 | AR54: 0 | AS54: 0 | AT54: 0 | AU54: 0 | AV54: 0 | AW54: =+SUM(AA54:AV54) -> 79687.75868 | AX54: =VLOOKUP(D$3,Prisindeks!$A$1:$B$111,2,FALSE)/100*AA54 -> 0 | AY54: =VLOOKUP(E$3,Prisindeks!$A$1:$B$111,2,FALSE)/100*AB54 -> 0 | AZ54: =VLOOKUP(F$3,Prisindeks!$A$1:$B$111,2,FALSE)/100*AC54 -> 0 | BA54: =VLOOKUP(G$3,Prisindeks!$A$1:$B$111,2,FALSE)/100*AD54 -> 0 | BB54: =VLOOKUP(H$3,Prisindeks!$A$1:$B$111,2,FALSE)/100*AE54 -> 0 | BC54: =VLOOKUP(I$3,Prisindeks!$A$1:$B$111,2,FALSE)/100*AF54 -> 0 | BD54: =VLOOKUP(J$3,Prisindeks!$A$1:$B$111,2,FALSE)/100*AG54 -> 8202.793012 | BE54: =VLOOKUP(K$3,Prisindeks!$A$1:$B$111,2,FALSE)/100*AH54 -> 0 | BF54: =VLOOKUP(L$3,Prisindeks!$A$1:$B$111,2,FALSE)/100*AI54 -> 0 | BG54: =VLOOKUP(M$3,Prisindeks!$A$1:$B$111,2,FALSE)/100*AJ54 -> 0 | BH54: =VLOOKUP(N$3,Prisindeks!$A$1:$B$111,2,FALSE)/100*AK54 -> 0 | BI54: =VLOOKUP(O$3,Prisindeks!$A$1:$B$111,2,FALSE)/100*AL54 -> 0 | BJ54: =VLOOKUP(P$3,Prisindeks!$A$1:$B$111,2,FALSE)/100*AM54 -> 0 | BK54: =VLOOKUP(Q$3,Prisindeks!$A$1:$B$111,2,FALSE)/100*AN54 -> 0 | BL54: =VLOOKUP(R$3,Prisindeks!$A$1:$B$111,2,FALSE)/100*AO54 -> 0 | BM54: =VLOOKUP(S$3,Prisindeks!$A$1:$B$111,2,FALSE)/100*AP54 -> 0 | BN54: =VLOOKUP(T$3,Prisindeks!$A$1:$B$111,2,FALSE)/100*AQ54 -> 0 | BO54: =VLOOKUP(U$3,Prisindeks!$A$1:$B$111,2,FALSE)/100*AR54 -> 0 | BP54: =VLOOKUP(V$3,Prisindeks!$A$1:$B$111,2,FALSE)/100*AS54 -> 0 | BQ54: =VLOOKUP(W$3,Prisindeks!$A$1:$B$111,2,FALSE)/100*AT54 -> 0 | BR54: =VLOOKUP(X$3,Prisindeks!$A$1:$B$111,2,FALSE)/100*AU54 -> 0 | BS54: =VLOOKUP(Y$3,Prisindeks!$A$1:$B$111,2,FALSE)/100*AV54 -> 0 | BT54: =+SUM(AX54:BS54) -> 8202.793012 | BU54: =(AA54+AX54)/2 -> 0 | BV54: =(AB54+AY54)/2 -> 0 | BW54: =(AC54+AZ54)/2 -> 0 | BX54: =(AD54+BA54)/2 -> 0 | BY54: =(AE54+BB54)/2 -> 0 | BZ54: =(AF54+BC54)/2 -> 0 | CA54: =(AG54+BD54)/2 -> 43945.27585 | CB54: =(AH54+BE54)/2 -> 0 | CC54: =(AI54+BF54)/2 -> 0 | CD54: =(AJ54+BG54)/2 -> 0 | CE54: =(AK54+BH54)/2 -> 0 | CF54: =(AL54+BI54)/2 -> 0 | CG54: =(AM54+BJ54)/2 -> 0 | CH54: =(AN54+BK54)/2 -> 0 | CI54: =(AO54+BL54)/2 -> 0 | CJ54: =(AP54+BM54)/2 -> 0 | CK54: =(AQ54+BN54)/2 -> 0 | CL54: =(AR54+BO54)/2 -> 0 | CM54: =(AS54+BP54)/2 -> 0 | CN54: =(AT54+BQ54)/2 -> 0 | CO54: =(AU54+BR54)/2 -> 0 | CP54: =(AV54+BS54)/2 -> 0 | CQ54: 43945.27585 | CR54: 240
A55: Levetidsforlængelse | B55: år | C55: - | D55: 0 | E55: 0 | F55: 0 | G55: 0 | H55: 0 | I55: 0 | J55: 0 | K55: 0 | L55: 0 | M55: 0 | N55: 0 | O55: 0 | P55: 0 | Q55: 0 | R55: 0 | S55: 0 | T55: 0 | U55: 0 | V55: 0 | W55: 0 | X55: 0 | Y55: 0
A56: Beluftningsanlæg, iltningstrappe, Mek./EL | B56: m³/h | C56: =Genanskaffelsespriser!$E$31 -> 25 | D56: 0 | E56: 0 | F56: 0 | G56: 0 | H56: 0 | I56: 0 | J56: 240 | K56: 0 | L56: 0 | M56: 0 | N56: 0 | O56: 0 | P56: 0 | Q56: 0 | R56: 0 | S56: 0 | T56: 0 | U56: 0 | V56: 0 | W56: 0 | X56: 0 | Y56: 0 | Z56: =IF(COUNTIF(D56:Y56,"<>0")<=1,IF((SUM(D56:Y56))>0,(+HLOOKUP((SUM(D56:Y56)),Priser!$E$96:$J$108,2)+((SUM(D56:Y56))-HLOOKUP((SUM(D56:Y56)),Priser!$E$96:$J$108,1))*HLOOKUP((SUM(D56:Y56)),Priser!$E$96:$J$108,3))/(SUM(D56:Y56)),0)*Priser!$R$97*(1+Genanskaffelsespriser!$D$196),$A$1373) -> 691.7340163 | AA56: =IF((D56*$Z56-(2009-D$3)/$C56*$Z56*D56)<0,0,(D56*$Z56-(2009-D$3)/$C56*$Z56*D56)) -> 0 | AB56: =IF((E56*$Z56-(2009-E$3)/$C56*$Z56*E56)<0,0,(E56*$Z56-(2009-E$3)/$C56*$Z56*E56)) -> 0 | AC56: =IF((F56*$Z56-(2009-F$3)/$C56*$Z56*F56)<0,0,(F56*$Z56-(2009-F$3)/$C56*$Z56*F56)) -> 0 | AD56: =IF((G56*$Z56-(2009-G$3)/$C56*$Z56*G56)<0,0,(G56*$Z56-(2009-G$3)/$C56*$Z56*G56)) -> 0 | AE56: =IF((H56*$Z56-(2009-H$3)/$C56*$Z56*H56)<0,0,(H56*$Z56-(2009-H$3)/$C56*$Z56*H56)) -> 0 | AF56: =IF((I56*$Z56-(2009-I$3)/$C56*$Z56*I56)<0,0,(I56*$Z56-(2009-I$3)/$C56*$Z56*I56)) -> 0 | AG56: =IF((J56*$Z56-(2009-J$3)/$C56*$Z56*J56)<0,0,(J56*$Z56-(2009-J$3)/$C56*$Z56*J56)) -> 0 | AH56: =IF((K56*$Z56-(2009-K$3)/$C56*$Z56*K56)<0,0,(K56*$Z56-(2009-K$3)/$C56*$Z56*K56)) -> 0 | AI56: =IF((L56*$Z56-(2009-L$3)/$C56*$Z56*L56)<0,0,(L56*$Z56-(2009-L$3)/$C56*$Z56*L56)) -> 0 | AJ56: =IF((M56*$Z56-(2009-M$3)/$C56*$Z56*M56)<0,0,(M56*$Z56-(2009-M$3)/$C56*$Z56*M56)) -> 0 | AK56: =IF((N56*$Z56-(2009-N$3)/$C56*$Z56*N56)<0,0,(N56*$Z56-(2009-N$3)/$C56*$Z56*N56)) -> 0 | AL56: =IF((O56*$Z56-(2009-O$3)/$C56*$Z56*O56)<0,0,(O56*$Z56-(2009-O$3)/$C56*$Z56*O56)) -> 0 | AM56: =IF((P56*$Z56-(2009-P$3)/$C56*$Z56*P56)<0,0,(P56*$Z56-(2009-P$3)/$C56*$Z56*P56)) -> 0 | AN56: =IF((Q56*$Z56-(2009-Q$3)/$C56*$Z56*Q56)<0,0,(Q56*$Z56-(2009-Q$3)/$C56*$Z56*Q56)) -> 0 | AO56: =IF((R56*$Z56-(2009-R$3)/$C56*$Z56*R56)<0,0,(R56*$Z56-(2009-R$3)/$C56*$Z56*R56)) -> 0 | AP56: =IF((S56*$Z56-(2009-S$3)/$C56*$Z56*S56)<0,0,(S56*$Z56-(2009-S$3)/$C56*$Z56*S56)) -> 0 | AQ56: =IF((T56*$Z56-(2009-T$3)/$C56*$Z56*T56)<0,0,(T56*$Z56-(2009-T$3)/$C56*$Z56*T56)) -> 0 | AR56: =IF((U56*$Z56-(2009-U$3)/$C56*$Z56*U56)<0,0,(U56*$Z56-(2009-U$3)/$C56*$Z56*U56)) -> 0 | AS56: =IF((V56*$Z56-(2009-V$3)/$C56*$Z56*V56)<0,0,(V56*$Z56-(2009-V$3)/$C56*$Z56*V56)) -> 0 | AT56: =IF((W56*$Z56-(2009-W$3)/$C56*$Z56*W56)<0,0,(W56*$Z56-(2009-W$3)/$C56*$Z56*W56)) -> 0 | AU56: =IF((X56*$Z56-(2009-X$3)/$C56*$Z56*X56)<0,0,(X56*$Z56-(2009-X$3)/$C56*$Z56*X56)) -> 0 | AV56: =IF((Y56*$Z56-(2009-Y$3)/$C56*$Z56*Y56)<0,0,(Y56*$Z56-(2009-Y$3)/$C56*$Z56*Y56)) -> 0 | AW56: 0 | AX56: =VLOOKUP(D$3,Prisindeks!$A$1:$B$111,2,FALSE)/100*AA56 -> 0 | AY56: =VLOOKUP(E$3,Prisindeks!$A$1:$B$111,2,FALSE)/100*AB56 -> 0 | AZ56: =VLOOKUP(F$3,Prisindeks!$A$1:$B$111,2,FALSE)/100*AC56 -> 0 | BA56: =VLOOKUP(G$3,Prisindeks!$A$1:$B$111,2,FALSE)/100*AD56 -> 0 | BB56: =VLOOKUP(H$3,Prisindeks!$A$1:$B$111,2,FALSE)/100*AE56 -> 0 | BC56: =VLOOKUP(I$3,Prisindeks!$A$1:$B$111,2,FALSE)/100*AF56 -> 0 | BD56: =VLOOKUP(J$3,Prisindeks!$A$1:$B$111,2,FALSE)/100*AG56 -> 0 | BE56: =VLOOKUP(K$3,Prisindeks!$A$1:$B$111,2,FALSE)/100*AH56 -> 0 | BF56: =VLOOKUP(L$3,Prisindeks!$A$1:$B$111,2,FALSE)/100*AI56 -> 0 | BG56: =VLOOKUP(M$3,Prisindeks!$A$1:$B$111,2,FALSE)/100*AJ56 -> 0 | BH56: =VLOOKUP(N$3,Prisindeks!$A$1:$B$111,2,FALSE)/100*AK56 -> 0 | BI56: =VLOOKUP(O$3,Prisindeks!$A$1:$B$111,2,FALSE)/100*AL56 -> 0 | BJ56: =VLOOKUP(P$3,Prisindeks!$A$1:$B$111,2,FALSE)/100*AM56 -> 0 | BK56: =VLOOKUP(Q$3,Prisindeks!$A$1:$B$111,2,FALSE)/100*AN56 -> 0 | BL56: =VLOOKUP(R$3,Prisindeks!$A$1:$B$111,2,FALSE)/100*AO56 -> 0 | BM56: =VLOOKUP(S$3,Prisindeks!$A$1:$B$111,2,FALSE)/100*AP56 -> 0 | BN56: =VLOOKUP(T$3,Prisindeks!$A$1:$B$111,2,FALSE)/100*AQ56 -> 0 | BO56: =VLOOKUP(U$3,Prisindeks!$A$1:$B$111,2,FALSE)/100*AR56 -> 0 | BP56: =VLOOKUP(V$3,Prisindeks!$A$1:$B$111,2,FALSE)/100*AS56 -> 0 | BQ56: =VLOOKUP(W$3,Prisindeks!$A$1:$B$111,2,FALSE)/100*AT56 -> 0 | BR56: =VLOOKUP(X$3,Prisindeks!$A$1:$B$111,2,FALSE)/100*AU56 -> 0 | BS56: =VLOOKUP(Y$3,Prisindeks!$A$1:$B$111,2,FALSE)/100*AV56 -> 0 | BT56: 0 | BU56: 0 | BV56: 0 | BW56: 0 | BX56: 0 | BY56: 0 | BZ56: 0 | CA56: 0 | CB56: 0 | CC56: 0 | CD56: 0 | CE56: 0 | CF56: 0 | CG56: 0 | CH56: 0 | CI56: 0 | CJ56: 0 | CK56: 0 | CL56: 0 | CM56: 0 | CN56: 0 | CO56: 0 | CP56: 0 | CQ56: 0 | CR56: 240
A57: Beluftningsanlæg, ika-beluftning, Konstruktioner | B57: m³/h | C57: =Genanskaffelsespriser!$E$32 -> 50 | D57: 0 | E57: 0 | F57: 0 | G57: 0 | H57: 0 | I57: 0 | J57: 0 | K57: 0 | L57: 0 | M57: 0 | N57: 0 | O57: 0 | P57: 0 | Q57: 0 | R57: 0 | S57: 0 | T57: 0 | U57: 0 | V57: 0 | W57: 0 | X57: 0 | Y57: 0 | Z57: =IF(COUNTIF(D57:Y57,"<>0")<=1,IF((SUM(D57:Y57))>0,(+HLOOKUP((SUM(D57:Y57)),Priser!$E$96:$J$108,4)+((SUM(D57:Y57))-HLOOKUP((SUM(D57:Y57)),Priser!$E$96:$J$108,1))*HLOOKUP((SUM(D57:Y57)),Priser!$E$96:$J$108,5))/(SUM(D57:Y57)),0)*Priser!$Q$99*(1+Genanskaffelsespriser!$D$196),$A$1373) -> 0 | AA57: =IF((D57*$Z57-(2009-D$3)/($C57+D58)*$Z57*D57)<0,0,(D57*$Z57-(2009-D$3)/($C57+D58)*$Z57*D57)) -> 0 | AB57: =IF((E57*$Z57-(2009-E$3)/($C57+E58)*$Z57*E57)<0,0,(E57*$Z57-(2009-E$3)/($C57+E58)*$Z57*E57)) -> 0 | AC57: 0 | AD57: 0 | AE57: 0 | AF57: 0 | AG57: 0 | AH57: 0 | AI57: 0 | AJ57: 0 | AK57: 0 | AL57: 0 | AM57: 0 | AN57: 0 | AO57: 0 | AP57: 0 | AQ57: 0 | AR57: 0 | AS57: 0 | AT57: 0 | AU57: 0 | AV57: 0 | AW57: 0 | AX57: =VLOOKUP(D$3,Prisindeks!$A$1:$B$111,2,FALSE)/100*AA57 -> 0 | AY57: =VLOOKUP(E$3,Prisindeks!$A$1:$B$111,2,FALSE)/100*AB57 -> 0 | AZ57: =VLOOKUP(F$3,Prisindeks!$A$1:$B$111,2,FALSE)/100*AC57 -> 0 | BA57: =VLOOKUP(G$3,Prisindeks!$A$1:$B$111,2,FALSE)/100*AD57 -> 0 | BB57: =VLOOKUP(H$3,Prisindeks!$A$1:$B$111,2,FALSE)/100*AE57 -> 0 | BC57: =VLOOKUP(I$3,Prisindeks!$A$1:$B$111,2,FALSE)/100*AF57 -> 0 | BD57: =VLOOKUP(J$3,Prisindeks!$A$1:$B$111,2,FALSE)/100*AG57 -> 0 | BE57: =VLOOKUP(K$3,Prisindeks!$A$1:$B$111,2,FALSE)/100*AH57 -> 0 | BF57: =VLOOKUP(L$3,Prisindeks!$A$1:$B$111,2,FALSE)/100*AI57 -> 0 | BG57: =VLOOKUP(M$3,Prisindeks!$A$1:$B$111,2,FALSE)/100*AJ57 -> 0 | BH57: =VLOOKUP(N$3,Prisindeks!$A$1:$B$111,2,FALSE)/100*AK57 -> 0 | BI57: =VLOOKUP(O$3,Prisindeks!$A$1:$B$111,2,FALSE)/100*AL57 -> 0 | BJ57: =VLOOKUP(P$3,Prisindeks!$A$1:$B$111,2,FALSE)/100*AM57 -> 0 | BK57: =VLOOKUP(Q$3,Prisindeks!$A$1:$B$111,2,FALSE)/100*AN57 -> 0 | BL57: =VLOOKUP(R$3,Prisindeks!$A$1:$B$111,2,FALSE)/100*AO57 -> 0 | BM57: =VLOOKUP(S$3,Prisindeks!$A$1:$B$111,2,FALSE)/100*AP57 -> 0 | BN57: =VLOOKUP(T$3,Prisindeks!$A$1:$B$111,2,FALSE)/100*AQ57 -> 0 | BO57: =VLOOKUP(U$3,Prisindeks!$A$1:$B$111,2,FALSE)/100*AR57 -> 0 | BP57: =VLOOKUP(V$3,Prisindeks!$A$1:$B$111,2,FALSE)/100*AS57 -> 0 | BQ57: =VLOOKUP(W$3,Prisindeks!$A$1:$B$111,2,FALSE)/100*AT57 -> 0 | BR57: =VLOOKUP(X$3,Prisindeks!$A$1:$B$111,2,FALSE)/100*AU57 -> 0 | BS57: =VLOOKUP(Y$3,Prisindeks!$A$1:$B$111,2,FALSE)/100*AV57 -> 0 | BT57: 0 | BU57: 0 | BV57: 0 | BW57: 0 | BX57: 0 | BY57: 0 | BZ57: 0 | CA57: 0 | CB57: 0 | CC57: 0 | CD57: 0 | CE57: 0 | CF57: 0 | CG57: 0 | CH57: 0 | CI57: 0 | CJ57: 0 | CK57: 0 | CL57: 0 | CM57: 0 | CN57: 0 | CO57: 0 | CP57: 0 | CQ57: 0 | CR57: 0
A58: Levetidsforlængelse | B58: år | C58: - | D58: 0 | E58: 0 | F58: 0 | G58: 0 | H58: 0 | I58: 0 | J58: 0 | K58: 0 | L58: 0 | M58: 0 | N58: 0 | O58: 0 | P58: 0 | Q58: 0 | R58: 0 | S58: 0 | T58: 0 | U58: 0 | V58: 0 | W58: 0 | X58: 0 | Y58: 0
A59: Beluftningsanlæg, ika-beluftning, Mek./EL | B59: m³/h | C59: =Genanskaffelsespriser!$E$33 -> 25 | D59: 0 | E59: 0 | F59: 0 | G59: 0 | H59: 0 | I59: 0 | J59: 0 | K59: 0 | L59: 0 | M59: 0 | N59: 0 | O59: 0 | P59: 0 | Q59: 0 | R59: 0 | S59: 0 | T59: 0 | U59: 0 | V59: 0 | W59: 0 | X59: 0 | Y59: 0 | Z59: =IF(COUNTIF(D59:Y59,"<>0")<=1,IF((SUM(D59:Y59))>0,(+HLOOKUP((SUM(D59:Y59)),Priser!$E$96:$J$108,4)+((SUM(D59:Y59))-HLOOKUP((SUM(D59:Y59)),Priser!$E$96:$J$108,1))*HLOOKUP((SUM(D59:Y59)),Priser!$E$96:$J$108,5))/(SUM(D59:Y59)),0)*Priser!$R$99*(1+Genanskaffelsespriser!$D$196),$A$1373) -> 0 | AA59: =IF((D59*$Z59-(2009-D$3)/$C59*$Z59*D59)<0,0,(D59*$Z59-(2009-D$3)/$C59*$Z59*D59)) -> 0 | AB59: =IF((E59*$Z59-(2009-E$3)/$C59*$Z59*E59)<0,0,(E59*$Z59-(2009-E$3)/$C59*$Z59*E59)) -> 0 | AC59: 0 | AD59: 0 | AE59: 0 | AF59: 0 | AG59: 0 | AH59: 0 | AI59: 0 | AJ59: 0 | AK59: 0 | AL59: 0 | AM59: 0 | AN59: 0 | AO59: 0 | AP59: 0 | AQ59: 0 | AR59: 0 | AS59: 0 | AT59: 0 | AU59: 0 | AV59: 0 | AW59: 0 | AX59: =VLOOKUP(D$3,Prisindeks!$A$1:$B$111,2,FALSE)/100*AA59 -> 0 | AY59: =VLOOKUP(E$3,Prisindeks!$A$1:$B$111,2,FALSE)/100*AB59 -> 0 | AZ59: =VLOOKUP(F$3,Prisindeks!$A$1:$B$111,2,FALSE)/100*AC59 -> 0 | BA59: =VLOOKUP(G$3,Prisindeks!$A$1:$B$111,2,FALSE)/100*AD59 -> 0 | BB59: =VLOOKUP(H$3,Prisindeks!$A$1:$B$111,2,FALSE)/100*AE59 -> 0 | BC59: =VLOOKUP(I$3,Prisindeks!$A$1:$B$111,2,FALSE)/100*AF59 -> 0 | BD59: =VLOOKUP(J$3,Prisindeks!$A$1:$B$111,2,FALSE)/100*AG59 -> 0 | BE59: =VLOOKUP(K$3,Prisindeks!$A$1:$B$111,2,FALSE)/100*AH59 -> 0 | BF59: =VLOOKUP(L$3,Prisindeks!$A$1:$B$111,2,FALSE)/100*AI59 -> 0 | BG59: =VLOOKUP(M$3,Prisindeks!$A$1:$B$111,2,FALSE)/100*AJ59 -> 0 | BH59: =VLOOKUP(N$3,Prisindeks!$A$1:$B$111,2,FALSE)/100*AK59 -> 0 | BI59: =VLOOKUP(O$3,Prisindeks!$A$1:$B$111,2,FALSE)/100*AL59 -> 0 | BJ59: =VLOOKUP(P$3,Prisindeks!$A$1:$B$111,2,FALSE)/100*AM59 -> 0 | BK59: =VLOOKUP(Q$3,Prisindeks!$A$1:$B$111,2,FALSE)/100*AN59 -> 0 | BL59: =VLOOKUP(R$3,Prisindeks!$A$1:$B$111,2,FALSE)/100*AO59 -> 0 | BM59: =VLOOKUP(S$3,Prisindeks!$A$1:$B$111,2,FALSE)/100*AP59 -> 0 | BN59: =VLOOKUP(T$3,Prisindeks!$A$1:$B$111,2,FALSE)/100*AQ59 -> 0 | BO59: =VLOOKUP(U$3,Prisindeks!$A$1:$B$111,2,FALSE)/100*AR59 -> 0 | BP59: =VLOOKUP(V$3,Prisindeks!$A$1:$B$111,2,FALSE)/100*AS59 -> 0 | BQ59: =VLOOKUP(W$3,Prisindeks!$A$1:$B$111,2,FALSE)/100*AT59 -> 0 | BR59: =VLOOKUP(X$3,Prisindeks!$A$1:$B$111,2,FALSE)/100*AU59 -> 0 | BS59: =VLOOKUP(Y$3,Prisindeks!$A$1:$B$111,2,FALSE)/100*AV59 -> 0 | BT59: 0 | BU59: 0 | BV59: 0 | BW59: 0 | BX59: 0 | BY59: 0 | BZ59: 0 | CA59: 0 | CB59: 0 | CC59: 0 | CD59: 0 | CE59: 0 | CF59: 0 | CG59: 0 | CH59: 0 | CI59: 0 | CJ59: 0 | CK59: 0 | CL59: 0 | CM59: 0 | CN59: 0 | CO59: 0 | CP59: 0 | CQ59: 0 | CR59: 0
A60: Beluftningsanlæg, bundbeluftbning, Konstruktioner | B60: m³/h | C60: =Genanskaffelsespriser!$E$34 -> 50 | D60: 0 | E60: 0 | F60: 0 | G60: 0 | H60: 0 | I60: 0 | J60: 0 | K60: 0 | L60: 0 | M60: 0 | N60: 0 | O60: 0 | P60: 0 | Q60: 0 | R60: 0 | S60: 0 | T60: 0 | U60: 0 | V60: 0 | W60: 0 | X60: 0 | Y60: 0 | Z60: =IF(COUNTIF(D60:Y60,"<>0")<=1,IF((SUM(D60:Y60))>0,(+HLOOKUP((SUM(D60:Y60)),Priser!$E$96:$J$108,8)+((SUM(D60:Y60))-HLOOKUP((SUM(D60:Y60)),Priser!$E$96:$J$108,1))*HLOOKUP((SUM(D60:Y60)),Priser!$E$96:$J$108,9))/(SUM(D60:Y60)),0)*Priser!$Q$103*(1+Genanskaffelsespriser!$D$196),$A$1373) -> 0 | AA60: =IF((D60*$Z60-(2009-D$3)/($C60+D61)*$Z60*D60)<0,0,(D60*$Z60-(2009-D$3)/($C60+D61)*$Z60*D60)) -> 0 | AB60: =IF((E60*$Z60-(2009-E$3)/($C60+E61)*$Z60*E60)<0,0,(E60*$Z60-(2009-E$3)/($C60+E61)*$Z60*E60)) -> 0 | AC60: 0 | AD60: 0 | AE60: 0 | AF60: 0 | AG60: 0 | AH60: 0 | AI60: 0 | AJ60: 0 | AK60: 0 | AL60: 0 | AM60: 0 | AN60: 0 | AO60: 0 | AP60: 0 | AQ60: 0 | AR60: 0 | AS60: 0 | AT60: 0 | AU60: 0 | AV60: 0 | AW60: 0 | AX60: =VLOOKUP(D$3,Prisindeks!$A$1:$B$111,2,FALSE)/100*AA60 -> 0 | AY60: =VLOOKUP(E$3,Prisindeks!$A$1:$B$111,2,FALSE)/100*AB60 -> 0 | AZ60: =VLOOKUP(F$3,Prisindeks!$A$1:$B$111,2,FALSE)/100*AC60 -> 0 | BA60: =VLOOKUP(G$3,Prisindeks!$A$1:$B$111,2,FALSE)/100*AD60 -> 0 | BB60: =VLOOKUP(H$3,Prisindeks!$A$1:$B$111,2,FALSE)/100*AE60 -> 0 | BC60: =VLOOKUP(I$3,Prisindeks!$A$1:$B$111,2,FALSE)/100*AF60 -> 0 | BD60: =VLOOKUP(J$3,Prisindeks!$A$1:$B$111,2,FALSE)/100*AG60 -> 0 | BE60: =VLOOKUP(K$3,Prisindeks!$A$1:$B$111,2,FALSE)/100*AH60 -> 0 | BF60: =VLOOKUP(L$3,Prisindeks!$A$1:$B$111,2,FALSE)/100*AI60 -> 0 | BG60: =VLOOKUP(M$3,Prisindeks!$A$1:$B$111,2,FALSE)/100*AJ60 -> 0 | BH60: =VLOOKUP(N$3,Prisindeks!$A$1:$B$111,2,FALSE)/100*AK60 -> 0 | BI60: =VLOOKUP(O$3,Prisindeks!$A$1:$B$111,2,FALSE)/100*AL60 -> 0 | BJ60: =VLOOKUP(P$3,Prisindeks!$A$1:$B$111,2,FALSE)/100*AM60 -> 0 | BK60: =VLOOKUP(Q$3,Prisindeks!$A$1:$B$111,2,FALSE)/100*AN60 -> 0 | BL60: =VLOOKUP(R$3,Prisindeks!$A$1:$B$111,2,FALSE)/100*AO60 -> 0 | BM60: =VLOOKUP(S$3,Prisindeks!$A$1:$B$111,2,FALSE)/100*AP60 -> 0 | BN60: =VLOOKUP(T$3,Prisindeks!$A$1:$B$111,2,FALSE)/100*AQ60 -> 0 | BO60: =VLOOKUP(U$3,Prisindeks!$A$1:$B$111,2,FALSE)/100*AR60 -> 0 | BP60: =VLOOKUP(V$3,Prisindeks!$A$1:$B$111,2,FALSE)/100*AS60 -> 0 | BQ60: =VLOOKUP(W$3,Prisindeks!$A$1:$B$111,2,FALSE)/100*AT60 -> 0 | BR60: =VLOOKUP(X$3,Prisindeks!$A$1:$B$111,2,FALSE)/100*AU60 -> 0 | BS60: =VLOOKUP(Y$3,Prisindeks!$A$1:$B$111,2,FALSE)/100*AV60 -> 0 | BT60: 0 | BU60: 0 | BV60: 0 | BW60: 0 | BX60: 0 | BY60: 0 | BZ60: 0 | CA60: 0 | CB60: 0 | CC60: 0 | CD60: 0 | CE60: 0 | CF60: 0 | CG60: 0 | CH60: 0 | CI60: 0 | CJ60: 0 | CK60: 0 | CL60: 0 | CM60: 0 | CN60: 0 | CO60: 0 | CP60: 0 | CQ60: 0 | CR60: 0
A61: Levetidsforlængelse | B61: år | C61: - | D61: 0 | E61: 0 | F61: 0 | G61: 0 | H61: 0 | I61: 0 | J61: 0 | K61: 0 | L61: 0 | M61: 0 | N61: 0 | O61: 0 | P61: 0 | Q61: 0 | R61: 0 | S61: 0 | T61: 0 | U61: 0 | V61: 0 | W61: 0 | X61: 0 | Y61: 0
A62: Beluftningsanlæg, bundbeluftbning, Mek./EL | B62: m³/h | C62: =Genanskaffelsespriser!$E$35 -> 25 | D62: 0 | E62: 0 | F62: 0 | G62: 0 | H62: 0 | I62: 0 | J62: 0 | K62: 0 | L62: 0 | M62: 0 | N62: 0 | O62: 0 | P62: 0 | Q62: 0 | R62: 0 | S62: 0 | T62: 0 | U62: 0 | V62: 0 | W62: 0 | X62: 0 | Y62: 0 | Z62: =IF(COUNTIF(D62:Y62,"<>0")<=1,IF((SUM(D62:Y62))>0,(+HLOOKUP((SUM(D62:Y62)),Priser!$E$96:$J$108,8)+((SUM(D62:Y62))-HLOOKUP((SUM(D62:Y62)),Priser!$E$96:$J$108,1))*HLOOKUP((SUM(D62:Y62)),Priser!$E$96:$J$108,9))/(SUM(D62:Y62)),0)*Priser!$R$103*(1+Genanskaffelsespriser!$D$196),$A$1373) -> 0 | AA62: =IF((D62*$Z62-(2009-D$3)/$C62*$Z62*D62)<0,0,(D62*$Z62-(2009-D$3)/$C62*$Z62*D62)) -> 0 | AB62: 0 | AC62: 0 | AD62: 0 | AE62: 0 | AF62: 0 | AG62: 0 | AH62: 0 | AI62: 0 | AJ62: 0 | AK62: 0 | AL62: 0 | AM62: 0 | AN62: 0 | AO62: 0 | AP62: 0 | AQ62: 0 | AR62: 0 | AS62: 0 | AT62: 0 | AU62: 0 | AV62: 0 | AW62: 0 | AX62: =VLOOKUP(D$3,Prisindeks!$A$1:$B$111,2,FALSE)/100*AA62 -> 0 | AY62: =VLOOKUP(E$3,Prisindeks!$A$1:$B$111,2,FALSE)/100*AB62 -> 0 | AZ62: =VLOOKUP(F$3,Prisindeks!$A$1:$B$111,2,FALSE)/100*AC62 -> 0 | BA62: =VLOOKUP(G$3,Prisindeks!$A$1:$B$111,2,FALSE)/100*AD62 -> 0 | BB62: =VLOOKUP(H$3,Prisindeks!$A$1:$B$111,2,FALSE)/100*AE62 -> 0 | BC62: =VLOOKUP(I$3,Prisindeks!$A$1:$B$111,2,FALSE)/100*AF62 -> 0 | BD62: =VLOOKUP(J$3,Prisindeks!$A$1:$B$111,2,FALSE)/100*AG62 -> 0 | BE62: =VLOOKUP(K$3,Prisindeks!$A$1:$B$111,2,FALSE)/100*AH62 -> 0 | BF62: =VLOOKUP(L$3,Prisindeks!$A$1:$B$111,2,FALSE)/100*AI62 -> 0 | BG62: =VLOOKUP(M$3,Prisindeks!$A$1:$B$111,2,FALSE)/100*AJ62 -> 0 | BH62: =VLOOKUP(N$3,Prisindeks!$A$1:$B$111,2,FALSE)/100*AK62 -> 0 | BI62: =VLOOKUP(O$3,Prisindeks!$A$1:$B$111,2,FALSE)/100*AL62 -> 0 | BJ62: =VLOOKUP(P$3,Prisindeks!$A$1:$B$111,2,FALSE)/100*AM62 -> 0 | BK62: =VLOOKUP(Q$3,Prisindeks!$A$1:$B$111,2,FALSE)/100*AN62 -> 0 | BL62: =VLOOKUP(R$3,Prisindeks!$A$1:$B$111,2,FALSE)/100*AO62 -> 0 | BM62: =VLOOKUP(S$3,Prisindeks!$A$1:$B$111,2,FALSE)/100*AP62 -> 0 | BN62: =VLOOKUP(T$3,Prisindeks!$A$1:$B$111,2,FALSE)/100*AQ62 -> 0 | BO62: =VLOOKUP(U$3,Prisindeks!$A$1:$B$111,2,FALSE)/100*AR62 -> 0 | BP62: =VLOOKUP(V$3,Prisindeks!$A$1:$B$111,2,FALSE)/100*AS62 -> 0 | BQ62: =VLOOKUP(W$3,Prisindeks!$A$1:$B$111,2,FALSE)/100*AT62 -> 0 | BR62: =VLOOKUP(X$3,Prisindeks!$A$1:$B$111,2,FALSE)/100*AU62 -> 0 | BS62: =VLOOKUP(Y$3,Prisindeks!$A$1:$B$111,2,FALSE)/100*AV62 -> 0 | BT62: 0 | BU62: 0 | BV62: 0 | BW62: 0 | BX62: 0 | BY62: 0 | BZ62: 0 | CA62: 0 | CB62: 0 | CC62: 0 | CD62: 0 | CE62: 0 | CF62: 0 | CG62: 0 | CH62: 0 | CI62: 0 | CJ62: 0 | CK62: 0 | CL62: 0 | CM62: 0 | CN62: 0 | CO62: 0 | CP62: 0 | CQ62: 0 | CR62: 0
A63: Beluftningsanlæg, rislebakke, Konstruktioner | B63: m³/h | C63: =Genanskaffelsespriser!$E$36 -> 50 | D63: 0 | E63: 0 | F63: 0 | G63: 0 | H63: 0 | I63: 0 | J63: 0 | K63: 0 | L63: 0 | M63: 0 | N63: 0 | O63: 0 | P63: 0 | Q63: 0 | R63: 0 | S63: 0 | T63: 0 | U63: 0 | V63: 0 | W63: 0 | X63: 0 | Y63: 0 | Z63: =IF(COUNTIF(D63:Y63,"<>0")<=1,IF((SUM(D63:Y63))>0,(+HLOOKUP((SUM(D63:Y63)),Priser!$E$96:$J$108,6)+((SUM(D63:Y63))-HLOOKUP((SUM(D63:Y63)),Priser!$E$96:$J$108,1))*HLOOKUP((SUM(D63:Y63)),Priser!$E$96:$J$108,7))/(SUM(D63:Y63)),0)*Priser!$Q$103*(1+Genanskaffelsespriser!$D$196),$A$1373) -> 0 | AA63: =IF((D63*$Z63-(2009-D$3)/($C63+D64)*$Z63*D63)<0,0,(D63*$Z63-(2009-D$3)/($C63+D64)*$Z63*D63)) -> 0 | AB63: =IF((E63*$Z63-(2009-E$3)/($C63+E64)*$Z63*E63)<0,0,(E63*$Z63-(2009-E$3)/($C63+E64)*$Z63*E63)) -> 0 | AC63: 0 | AD63: 0 | AE63: 0 | AF63: 0 | AG63: 0 | AH63: 0 | AI63: 0 | AJ63: 0 | AK63: 0 | AL63: 0 | AM63: 0 | AN63: 0 | AO63: 0 | AP63: 0 | AQ63: 0 | AR63: 0 | AS63: 0 | AT63: 0 | AU63: 0 | AV63: 0 | AW63: 0 | AX63: =VLOOKUP(D$3,Prisindeks!$A$1:$B$111,2,FALSE)/100*AA63 -> 0 | AY63: =VLOOKUP(E$3,Prisindeks!$A$1:$B$111,2,FALSE)/100*AB63 -> 0 | AZ63: =VLOOKUP(F$3,Prisindeks!$A$1:$B$111,2,FALSE)/100*AC63 -> 0 | BA63: =VLOOKUP(G$3,Prisindeks!$A$1:$B$111,2,FALSE)/100*AD63 -> 0 | BB63: =VLOOKUP(H$3,Prisindeks!$A$1:$B$111,2,FALSE)/100*AE63 -> 0 | BC63: =VLOOKUP(I$3,Prisindeks!$A$1:$B$111,2,FALSE)/100*AF63 -> 0 | BD63: =VLOOKUP(J$3,Prisindeks!$A$1:$B$111,2,FALSE)/100*AG63 -> 0 | BE63: =VLOOKUP(K$3,Prisindeks!$A$1:$B$111,2,FALSE)/100*AH63 -> 0 | BF63: =VLOOKUP(L$3,Prisindeks!$A$1:$B$111,2,FALSE)/100*AI63 -> 0 | BG63: =VLOOKUP(M$3,Prisindeks!$A$1:$B$111,2,FALSE)/100*AJ63 -> 0 | BH63: =VLOOKUP(N$3,Prisindeks!$A$1:$B$111,2,FALSE)/100*AK63 -> 0 | BI63: =VLOOKUP(O$3,Prisindeks!$A$1:$B$111,2,FALSE)/100*AL63 -> 0 | BJ63: =VLOOKUP(P$3,Prisindeks!$A$1:$B$111,2,FALSE)/100*AM63 -> 0 | BK63: =VLOOKUP(Q$3,Prisindeks!$A$1:$B$111,2,FALSE)/100*AN63 -> 0 | BL63: =VLOOKUP(R$3,Prisindeks!$A$1:$B$111,2,FALSE)/100*AO63 -> 0 | BM63: =VLOOKUP(S$3,Prisindeks!$A$1:$B$111,2,FALSE)/100*AP63 -> 0 | BN63: =VLOOKUP(T$3,Prisindeks!$A$1:$B$111,2,FALSE)/100*AQ63 -> 0 | BO63: =VLOOKUP(U$3,Prisindeks!$A$1:$B$111,2,FALSE)/100*AR63 -> 0 | BP63: =VLOOKUP(V$3,Prisindeks!$A$1:$B$111,2,FALSE)/100*AS63 -> 0 | BQ63: =VLOOKUP(W$3,Prisindeks!$A$1:$B$111,2,FALSE)/100*AT63 -> 0 | BR63: =VLOOKUP(X$3,Prisindeks!$A$1:$B$111,2,FALSE)/100*AU63 -> 0 | BS63: =VLOOKUP(Y$3,Prisindeks!$A$1:$B$111,2,FALSE)/100*AV63 -> 0 | BT63: 0 | BU63: 0 | BV63: 0 | BW63: 0 | BX63: 0 | BY63: 0 | BZ63: 0 | CA63: 0 | CB63: 0 | CC63: 0 | CD63: 0 | CE63: 0 | CF63: 0 | CG63: 0 | CH63: 0 | CI63: 0 | CJ63: 0 | CK63: 0 | CL63: 0 | CM63: 0 | CN63: 0 | CO63: 0 | CP63: 0 | CQ63: 0 | CR63: 0
A64: Levetidsforlængelse | B64: år | C64: - | D64: 0 | E64: 0 | F64: 0 | G64: 0 | H64: 0 | I64: 0 | J64: 0 | K64: 0 | L64: 0 | M64: 0 | N64: 0 | O64: 0 | P64: 0 | Q64: 0 | R64: 0 | S64: 0 | T64: 0 | U64: 0 | V64: 0 | W64: 0 | X64: 0 | Y64: 0
A65: Beluftningsanlæg, rislebakke, Mek./EL | B65: m³/h | C65: =Genanskaffelsespriser!$E$37 -> 25 | D65: 0 | E65: 0 | F65: 0 | G65: 0 | H65: 0 | I65: 0 | J65: 0 | K65: 0 | L65: 0 | M65: 0 | N65: 0 | O65: 0 | P65: 0 | Q65: 0 | R65: 0 | S65: 0 | T65: 0 | U65: 0 | V65: 0 | W65: 0 | X65: 0 | Y65: 0 | Z65: =IF(COUNTIF(D65:Y65,"<>0")<=1,IF((SUM(D65:Y65))>0,(+HLOOKUP((SUM(D65:Y65)),Priser!$E$96:$J$108,6)+((SUM(D65:Y65))-HLOOKUP((SUM(D65:Y65)),Priser!$E$96:$J$108,1))*HLOOKUP((SUM(D65:Y65)),Priser!$E$96:$J$108,7))/(SUM(D65:Y65)),0)*Priser!$R$103*(1+Genanskaffelsespriser!$D$196),$A$1373) -> 0 | AA65: =IF((D65*$Z65-(2009-D$3)/$C65*$Z65*D65)<0,0,(D65*$Z65-(2009-D$3)/$C65*$Z65*D65)) -> 0 | AB65: 0 | AC65: 0 | AD65: 0 | AE65: 0 | AF65: 0 | AG65: 0 | AH65: 0 | AI65: 0 | AJ65: 0 | AK65: 0 | AL65: 0 | AM65: 0 | AN65: 0 | AO65: 0 | AP65: 0 | AQ65: 0 | AR65: 0 | AS65: 0 | AT65: 0 | AU65: 0 | AV65: 0 | AW65: 0 | AX65: =VLOOKUP(D$3,Prisindeks!$A$1:$B$111,2,FALSE)/100*AA65 -> 0 | AY65: =VLOOKUP(E$3,Prisindeks!$A$1:$B$111,2,FALSE)/100*AB65 -> 0 | AZ65: =VLOOKUP(F$3,Prisindeks!$A$1:$B$111,2,FALSE)/100*AC65 -> 0 | BA65: =VLOOKUP(G$3,Prisindeks!$A$1:$B$111,2,FALSE)/100*AD65 -> 0 | BB65: =VLOOKUP(H$3,Prisindeks!$A$1:$B$111,2,FALSE)/100*AE65 -> 0 | BC65: =VLOOKUP(I$3,Prisindeks!$A$1:$B$111,2,FALSE)/100*AF65 -> 0 | BD65: =VLOOKUP(J$3,Prisindeks!$A$1:$B$111,2,FALSE)/100*AG65 -> 0 | BE65: =VLOOKUP(K$3,Prisindeks!$A$1:$B$111,2,FALSE)/100*AH65 -> 0 | BF65: =VLOOKUP(L$3,Prisindeks!$A$1:$B$111,2,FALSE)/100*AI65 -> 0 | BG65: =VLOOKUP(M$3,Prisindeks!$A$1:$B$111,2,FALSE)/100*AJ65 -> 0 | BH65: =VLOOKUP(N$3,Prisindeks!$A$1:$B$111,2,FALSE)/100*AK65 -> 0 | BI65: =VLOOKUP(O$3,Prisindeks!$A$1:$B$111,2,FALSE)/100*AL65 -> 0 | BJ65: =VLOOKUP(P$3,Prisindeks!$A$1:$B$111,2,FALSE)/100*AM65 -> 0 | BK65: =VLOOKUP(Q$3,Prisindeks!$A$1:$B$111,2,FALSE)/100*AN65 -> 0 | BL65: =VLOOKUP(R$3,Prisindeks!$A$1:$B$111,2,FALSE)/100*AO65 -> 0 | BM65: =VLOOKUP(S$3,Prisindeks!$A$1:$B$111,2,FALSE)/100*AP65 -> 0 | BN65: =VLOOKUP(T$3,Prisindeks!$A$1:$B$111,2,FALSE)/100*AQ65 -> 0 | BO65: =VLOOKUP(U$3,Prisindeks!$A$1:$B$111,2,FALSE)/100*AR65 -> 0 | BP65: =VLOOKUP(V$3,Prisindeks!$A$1:$B$111,2,FALSE)/100*AS65 -> 0 | BQ65: =VLOOKUP(W$3,Prisindeks!$A$1:$B$111,2,FALSE)/100*AT65 -> 0 | BR65: =VLOOKUP(X$3,Prisindeks!$A$1:$B$111,2,FALSE)/100*AU65 -> 0 | BS65: =VLOOKUP(Y$3,Prisindeks!$A$1:$B$111,2,FALSE)/100*AV65 -> 0 | BT65: 0 | BU65: 0 | BV65: 0 | BW65: 0 | BX65: 0 | BY65: 0 | BZ65: 0 | CA65: 0 | CB65: 0 | CC65: 0 | CD65: 0 | CE65: 0 | CF65: 0 | CG65: 0 | CH65: 0 | CI65: 0 | CJ65: 0 | CK65: 0 | CL65: 0 | CM65: 0 | CN65: 0 | CO65: 0 | CP65: 0 | CQ65: 0 | CR65: 0
A66: Beluftningsanlæg, kompressorbeluftning | B66: m³/h | C66: =Genanskaffelsespriser!$E$38 -> 25 | D66: 0 | E66: 0 | F66: 0 | G66: 0 | H66: 0 | I66: 0 | J66: 0 | K66: 0 | L66: 0 | M66: 0 | N66: 0 | O66: 0 | P66: 0 | Q66: 0 | R66: 0 | S66: 0 | T66: 0 | U66: 0 | V66: 0 | W66: 0 | X66: 0 | Y66: 0 | Z66: =IF(COUNTIF(D66:Y66,"<>0")<=1,IF((SUM(D66:Y66))>0,(+HLOOKUP((SUM(D66:Y66)),Priser!$E$96:$J$108,10)+((SUM(D66:Y66))-HLOOKUP((SUM(D66:Y66)),Priser!$E$96:$J$108,1))*HLOOKUP((SUM(D66:Y66)),Priser!$E$96:$J$108,11))/(SUM(D66:Y66)),0)*(1+Genanskaffelsespriser!$D$196),$A$1373) -> 0 | AA66: =IF((D66*$Z66-(2009-D$3)/$C66*$Z66*D66)<0,0,(D66*$Z66-(2009-D$3)/$C66*$Z66*D66)) -> 0 | AB66: 0 | AC66: 0 | AD66: 0 | AE66: 0 | AF66: 0 | AG66: 0 | AH66: 0 | AI66: 0 | AJ66: 0 | AK66: 0 | AL66: 0 | AM66: 0 | AN66: 0 | AO66: 0 | AP66: 0 | AQ66: 0 | AR66: 0 | AS66: 0 | AT66: 0 | AU66: 0 | AV66: 0 | AW66: 0 | AX66: =VLOOKUP(D$3,Prisindeks!$A$1:$B$111,2,FALSE)/100*AA66 -> 0 | AY66: =VLOOKUP(E$3,Prisindeks!$A$1:$B$111,2,FALSE)/100*AB66 -> 0 | AZ66: =VLOOKUP(F$3,Prisindeks!$A$1:$B$111,2,FALSE)/100*AC66 -> 0 | BA66: =VLOOKUP(G$3,Prisindeks!$A$1:$B$111,2,FALSE)/100*AD66 -> 0 | BB66: =VLOOKUP(H$3,Prisindeks!$A$1:$B$111,2,FALSE)/100*AE66 -> 0 | BC66: =VLOOKUP(I$3,Prisindeks!$A$1:$B$111,2,FALSE)/100*AF66 -> 0 | BD66: =VLOOKUP(J$3,Prisindeks!$A$1:$B$111,2,FALSE)/100*AG66 -> 0 | BE66: =VLOOKUP(K$3,Prisindeks!$A$1:$B$111,2,FALSE)/100*AH66 -> 0 | BF66: =VLOOKUP(L$3,Prisindeks!$A$1:$B$111,2,FALSE)/100*AI66 -> 0 | BG66: =VLOOKUP(M$3,Prisindeks!$A$1:$B$111,2,FALSE)/100*AJ66 -> 0 | BH66: =VLOOKUP(N$3,Prisindeks!$A$1:$B$111,2,FALSE)/100*AK66 -> 0 | BI66: =VLOOKUP(O$3,Prisindeks!$A$1:$B$111,2,FALSE)/100*AL66 -> 0 | BJ66: =VLOOKUP(P$3,Prisindeks!$A$1:$B$111,2,FALSE)/100*AM66 -> 0 | BK66: =VLOOKUP(Q$3,Prisindeks!$A$1:$B$111,2,FALSE)/100*AN66 -> 0 | BL66: =VLOOKUP(R$3,Prisindeks!$A$1:$B$111,2,FALSE)/100*AO66 -> 0 | BM66: =VLOOKUP(S$3,Prisindeks!$A$1:$B$111,2,FALSE)/100*AP66 -> 0 | BN66: =VLOOKUP(T$3,Prisindeks!$A$1:$B$111,2,FALSE)/100*AQ66 -> 0 | BO66: =VLOOKUP(U$3,Prisindeks!$A$1:$B$111,2,FALSE)/100*AR66 -> 0 | BP66: =VLOOKUP(V$3,Prisindeks!$A$1:$B$111,2,FALSE)/100*AS66 -> 0 | BQ66: =VLOOKUP(W$3,Prisindeks!$A$1:$B$111,2,FALSE)/100*AT66 -> 0 | BR66: =VLOOKUP(X$3,Prisindeks!$A$1:$B$111,2,FALSE)/100*AU66 -> 0 | BS66: =VLOOKUP(Y$3,Prisindeks!$A$1:$B$111,2,FALSE)/100*AV66 -> 0 | BT66: 0 | BU66: 0 | BV66: 0 | BW66: 0 | BX66: 0 | BY66: 0 | BZ66: 0 | CA66: 0 | CB66: 0 | CC66: 0 | CD66: 0 | CE66: 0 | CF66: 0 | CG66: 0 | CH66: 0 | CI66: 0 | CJ66: 0 | CK66: 0 | CL66: 0 | CM66: 0 | CN66: 0 | CO66: 0 | CP66: 0 | CQ66: 0 | CR66: 0
A67: Beluftningsanlæg, ren ilt | B67: m³/h | C67: =Genanskaffelsespriser!$E$39 -> 25 | D67: 0 | E67: 0 | F67: 0 | G67: 0 | H67: 0 | I67: 0 | J67: 0 | K67: 0 | L67: 0 | M67: 0 | N67: 0 | O67: 0 | P67: 0 | Q67: 0 | R67: 0 | S67: 0 | T67: 0 | U67: 0 | V67: 0 | W67: 0 | X67: 0 | Y67: 0 | Z67: =IF(COUNTIF(D67:Y67,"<>0")<=1,IF((SUM(D67:Y67))>0,(+HLOOKUP((SUM(D67:Y67)),Priser!$E$96:$J$108,12)+((SUM(D67:Y67))-HLOOKUP((SUM(D67:Y67)),Priser!$E$96:$J$108,1))*HLOOKUP((SUM(D67:Y67)),Priser!$E$96:$J$108,13))/(SUM(D67:Y67)),0)*(1+Genanskaffelsespriser!$D$196),$A$1373) -> 0 | AA67: =IF((D67*$Z67-(2009-D$3)/$C67*$Z67*D67)<0,0,(D67*$Z67-(2009-D$3)/$C67*$Z67*D67)) -> 0 | AB67: 0 | AC67: 0 | AD67: 0 | AE67: 0 | AF67: 0 | AG67: 0 | AH67: 0 | AI67: 0 | AJ67: 0 | AK67: 0 | AL67: 0 | AM67: 0 | AN67: 0 | AO67: 0 | AP67: 0 | AQ67: 0 | AR67: 0 | AS67: 0 | AT67: 0 | AU67: 0 | AV67: 0 | AW67: 0 | AX67: =VLOOKUP(D$3,Prisindeks!$A$1:$B$111,2,FALSE)/100*AA67 -> 0 | AY67: =VLOOKUP(E$3,Prisindeks!$A$1:$B$111,2,FALSE)/100*AB67 -> 0 | AZ67: =VLOOKUP(F$3,Prisindeks!$A$1:$B$111,2,FALSE)/100*AC67 -> 0 | BA67: =VLOOKUP(G$3,Prisindeks!$A$1:$B$111,2,FALSE)/100*AD67 -> 0 | BB67: =VLOOKUP(H$3,Prisindeks!$A$1:$B$111,2,FALSE)/100*AE67 -> 0 | BC67: =VLOOKUP(I$3,Prisindeks!$A$1:$B$111,2,FALSE)/100*AF67 -> 0 | BD67: =VLOOKUP(J$3,Prisindeks!$A$1:$B$111,2,FALSE)/100*AG67 -> 0 | BE67: =VLOOKUP(K$3,Prisindeks!$A$1:$B$111,2,FALSE)/100*AH67 -> 0 | BF67: =VLOOKUP(L$3,Prisindeks!$A$1:$B$111,2,FALSE)/100*AI67 -> 0 | BG67: =VLOOKUP(M$3,Prisindeks!$A$1:$B$111,2,FALSE)/100*AJ67 -> 0 | BH67: =VLOOKUP(N$3,Prisindeks!$A$1:$B$111,2,FALSE)/100*AK67 -> 0 | BI67: =VLOOKUP(O$3,Prisindeks!$A$1:$B$111,2,FALSE)/100*AL67 -> 0 | BJ67: =VLOOKUP(P$3,Prisindeks!$A$1:$B$111,2,FALSE)/100*AM67 -> 0 | BK67: =VLOOKUP(Q$3,Prisindeks!$A$1:$B$111,2,FALSE)/100*AN67 -> 0 | BL67: =VLOOKUP(R$3,Prisindeks!$A$1:$B$111,2,FALSE)/100*AO67 -> 0 | BM67: =VLOOKUP(S$3,Prisindeks!$A$1:$B$111,2,FALSE)/100*AP67 -> 0 | BN67: =VLOOKUP(T$3,Prisindeks!$A$1:$B$111,2,FALSE)/100*AQ67 -> 0 | BO67: =VLOOKUP(U$3,Prisindeks!$A$1:$B$111,2,FALSE)/100*AR67 -> 0 | BP67: =VLOOKUP(V$3,Prisindeks!$A$1:$B$111,2,FALSE)/100*AS67 -> 0 | BQ67: =VLOOKUP(W$3,Prisindeks!$A$1:$B$111,2,FALSE)/100*AT67 -> 0 | BR67: =VLOOKUP(X$3,Prisindeks!$A$1:$B$111,2,FALSE)/100*AU67 -> 0 | BS67: =VLOOKUP(Y$3,Prisindeks!$A$1:$B$111,2,FALSE)/100*AV67 -> 0 | BT67: 0 | BU67: 0 | BV67: 0 | BW67: 0 | BX67: 0 | BY67: 0 | BZ67: 0 | CA67: 0 | CB67: 0 | CC67: 0 | CD67: 0 | CE67: 0 | CF67: 0 | CG67: 0 | CH67: 0 | CI67: 0 | CJ67: 0 | CK67: 0 | CL67: 0 | CM67: 0 | CN67: 0 | CO67: 0 | CP67: 0 | CQ67: 0 | CR67: 0
A68: Behandlingsanlæg, kalk anlæg | B68: m³/h | C68: =Genanskaffelsespriser!$E$40 -> 25 | D68: 0 | E68: 0 | F68: 0 | G68: 0 | H68: 0 | I68: 0 | J68: 0 | K68: 0 | L68: 0 | M68: 0 | N68: 0 | O68: 0 | P68: 0 | Q68: 0 | R68: 0 | S68: 0 | T68: 0 | U68: 0 | V68: 0 | W68: 0 | X68: 0 | Y68: 0 | Z68: =IF(COUNTIF(D68:Y68,"<>0")<=1,IF((SUM(D68:Y68))>0,(+HLOOKUP((SUM(D68:Y68)),Priser!$E$118:$I$123,3)+((SUM(D68:Y68))-HLOOKUP((SUM(D68:Y68)),Priser!$E$118:$I$123,1))*HLOOKUP((SUM(D68:Y68)),Priser!$E$118:$I$123,4))/(SUM(D68:Y68)),0)*(1+Genanskaffelsespriser!$D$196),$A$1373) -> 0 | AA68: =IF((D68*$Z68-(2009-D$3)/$C68*$Z68*D68)<0,0,(D68*$Z68-(2009-D$3)/$C68*$Z68*D68)) -> 0 | AB68: 0 | AC68: 0 | AD68: 0 | AE68: 0 | AF68: 0 | AG68: 0 | AH68: 0 | AI68: 0 | AJ68: 0 | AK68: 0 | AL68: 0 | AM68: 0 | AN68: 0 | AO68: 0 | AP68: 0 | AQ68: 0 | AR68: 0 | AS68: 0 | AT68: 0 | AU68: 0 | AV68: 0 | AW68: 0 | AX68: =VLOOKUP(D$3,Prisindeks!$A$1:$B$111,2,FALSE)/100*AA68 -> 0 | AY68: =VLOOKUP(E$3,Prisindeks!$A$1:$B$111,2,FALSE)/100*AB68 -> 0 | AZ68: =VLOOKUP(F$3,Prisindeks!$A$1:$B$111,2,FALSE)/100*AC68 -> 0 | BA68: =VLOOKUP(G$3,Prisindeks!$A$1:$B$111,2,FALSE)/100*AD68 -> 0 | BB68: =VLOOKUP(H$3,Prisindeks!$A$1:$B$111,2,FALSE)/100*AE68 -> 0 | BC68: =VLOOKUP(I$3,Prisindeks!$A$1:$B$111,2,FALSE)/100*AF68 -> 0 | BD68: =VLOOKUP(J$3,Prisindeks!$A$1:$B$111,2,FALSE)/100*AG68 -> 0 | BE68: =VLOOKUP(K$3,Prisindeks!$A$1:$B$111,2,FALSE)/100*AH68 -> 0 | BF68: =VLOOKUP(L$3,Prisindeks!$A$1:$B$111,2,FALSE)/100*AI68 -> 0 | BG68: =VLOOKUP(M$3,Prisindeks!$A$1:$B$111,2,FALSE)/100*AJ68 -> 0 | BH68: =VLOOKUP(N$3,Prisindeks!$A$1:$B$111,2,FALSE)/100*AK68 -> 0 | BI68: =VLOOKUP(O$3,Prisindeks!$A$1:$B$111,2,FALSE)/100*AL68 -> 0 | BJ68: =VLOOKUP(P$3,Prisindeks!$A$1:$B$111,2,FALSE)/100*AM68 -> 0 | BK68: =VLOOKUP(Q$3,Prisindeks!$A$1:$B$111,2,FALSE)/100*AN68 -> 0 | BL68: =VLOOKUP(R$3,Prisindeks!$A$1:$B$111,2,FALSE)/100*AO68 -> 0 | BM68: =VLOOKUP(S$3,Prisindeks!$A$1:$B$111,2,FALSE)/100*AP68 -> 0 | BN68: =VLOOKUP(T$3,Prisindeks!$A$1:$B$111,2,FALSE)/100*AQ68 -> 0 | BO68: =VLOOKUP(U$3,Prisindeks!$A$1:$B$111,2,FALSE)/100*AR68 -> 0 | BP68: =VLOOKUP(V$3,Prisindeks!$A$1:$B$111,2,FALSE)/100*AS68 -> 0 | BQ68: =VLOOKUP(W$3,Prisindeks!$A$1:$B$111,2,FALSE)/100*AT68 -> 0 | BR68: =VLOOKUP(X$3,Prisindeks!$A$1:$B$111,2,FALSE)/100*AU68 -> 0 | BS68: =VLOOKUP(Y$3,Prisindeks!$A$1:$B$111,2,FALSE)/100*AV68 -> 0 | BT68: 0 | BU68: 0 | BV68: 0 | BW68: 0 | BX68: 0 | BY68: 0 | BZ68: 0 | CA68: 0 | CB68: 0 | CC68: 0 | CD68: 0 | CE68: 0 | CF68: 0 | CG68: 0 | CH68: 0 | CI68: 0 | CJ68: 0 | CK68: 0 | CL68: 0 | CM68: 0 | CN68: 0 | CO68: 0 | CP68: 0 | CQ68: 0 | CR68: 0
A69: Behandlingsanlæg, luddosering | B69: m³/h | C69: =Genanskaffelsespriser!$E$41 -> 25 | D69: 0 | E69: 0 | F69: 0 | G69: 0 | H69: 0 | I69: 0 | J69: 0 | K69: 0 | L69: 0 | M69: 0 | N69: 0 | O69: 0 | P69: 0 | Q69: 0 | R69: 0 | S69: 0 | T69: 0 | U69: 0 | V69: 0 | W69: 0 | X69: 0 | Y69: 0 | Z69: =IF(COUNTIF(D69:Y69,"<>0")<=1,IF((SUM(D69:Y69))>0,(+HLOOKUP((SUM(D69:Y69)),Priser!$E$118:$I$123,5)+((SUM(D69:Y69))-HLOOKUP((SUM(D69:Y69)),Priser!$E$118:$I$123,1))*HLOOKUP((SUM(D69:Y69)),Priser!$E$118:$I$123,6))/(SUM(D69:Y69)),0)*(1+Genanskaffelsespriser!$D$196),$A$1373) -> 0 | AA69: =IF((D69*$Z69-(2009-D$3)/$C69*$Z69*D69)<0,0,(D69*$Z69-(2009-D$3)/$C69*$Z69*D69)) -> 0 | AB69: 0 | AC69: 0 | AD69: 0 | AE69: 0 | AF69: 0 | AG69: 0 | AH69: 0 | AI69: 0 | AJ69: 0 | AK69: 0 | AL69: 0 | AM69: 0 | AN69: 0 | AO69: 0 | AP69: 0 | AQ69: 0 | AR69: 0 | AS69: 0 | AT69: 0 | AU69: 0 | AV69: 0 | AW69: 0 | AX69: =VLOOKUP(D$3,Prisindeks!$A$1:$B$111,2,FALSE)/100*AA69 -> 0 | AY69: =VLOOKUP(E$3,Prisindeks!$A$1:$B$111,2,FALSE)/100*AB69 -> 0 | AZ69: =VLOOKUP(F$3,Prisindeks!$A$1:$B$111,2,FALSE)/100*AC69 -> 0 | BA69: =VLOOKUP(G$3,Prisindeks!$A$1:$B$111,2,FALSE)/100*AD69 -> 0 | BB69: =VLOOKUP(H$3,Prisindeks!$A$1:$B$111,2,FALSE)/100*AE69 -> 0 | BC69: =VLOOKUP(I$3,Prisindeks!$A$1:$B$111,2,FALSE)/100*AF69 -> 0 | BD69: =VLOOKUP(J$3,Prisindeks!$A$1:$B$111,2,FALSE)/100*AG69 -> 0 | BE69: =VLOOKUP(K$3,Prisindeks!$A$1:$B$111,2,FALSE)/100*AH69 -> 0 | BF69: =VLOOKUP(L$3,Prisindeks!$A$1:$B$111,2,FALSE)/100*AI69 -> 0 | BG69: =VLOOKUP(M$3,Prisindeks!$A$1:$B$111,2,FALSE)/100*AJ69 -> 0 | BH69: =VLOOKUP(N$3,Prisindeks!$A$1:$B$111,2,FALSE)/100*AK69 -> 0 | BI69: =VLOOKUP(O$3,Prisindeks!$A$1:$B$111,2,FALSE)/100*AL69 -> 0 | BJ69: =VLOOKUP(P$3,Prisindeks!$A$1:$B$111,2,FALSE)/100*AM69 -> 0 | BK69: =VLOOKUP(Q$3,Prisindeks!$A$1:$B$111,2,FALSE)/100*AN69 -> 0 | BL69: =VLOOKUP(R$3,Prisindeks!$A$1:$B$111,2,FALSE)/100*AO69 -> 0 | BM69: =VLOOKUP(S$3,Prisindeks!$A$1:$B$111,2,FALSE)/100*AP69 -> 0 | BN69: =VLOOKUP(T$3,Prisindeks!$A$1:$B$111,2,FALSE)/100*AQ69 -> 0 | BO69: =VLOOKUP(U$3,Prisindeks!$A$1:$B$111,2,FALSE)/100*AR69 -> 0 | BP69: =VLOOKUP(V$3,Prisindeks!$A$1:$B$111,2,FALSE)/100*AS69 -> 0 | BQ69: =VLOOKUP(W$3,Prisindeks!$A$1:$B$111,2,FALSE)/100*AT69 -> 0 | BR69: =VLOOKUP(X$3,Prisindeks!$A$1:$B$111,2,FALSE)/100*AU69 -> 0 | BS69: =VLOOKUP(Y$3,Prisindeks!$A$1:$B$111,2,FALSE)/100*AV69 -> 0 | BT69: 0 | BU69: 0 | BV69: 0 | BW69: 0 | BX69: 0 | BY69: 0 | BZ69: 0 | CA69: 0 | CB69: 0 | CC69: 0 | CD69: 0 | CE69: 0 | CF69: 0 | CG69: 0 | CH69: 0 | CI69: 0 | CJ69: 0 | CK69: 0 | CL69: 0 | CM69: 0 | CN69: 0 | CO69: 0 | CP69: 0 | CQ69: 0 | CR69: 0
A70: Filteranlæg, åbne filtre, enkelt filtrering, Konstruktioner | B70: m³/h | C70: =Genanskaffelsespriser!$E$42 -> 50 | D70: 0 | E70: 0 | F70: 0 | G70: 0 | H70: 0 | I70: 0 | J70: 0 | K70: 0 | L70: 0 | M70: 0 | N70: 0 | O70: 0 | P70: 0 | Q70: 0 | R70: 0 | S70: 0 | T70: 0 | U70: 0 | V70: 0 | W70: 0 | X70: 0 | Y70: 0 | Z70: =IF(COUNTIF(D70:Y70,"<>0")<=1,IF((SUM(D70:Y70))>0,(+HLOOKUP((SUM(D70:Y70)),Priser!$E$132:$I$141,9)+((SUM(D70:Y70))-HLOOKUP((SUM(D70:Y70)),Priser!$E$132:$I$141,1))*HLOOKUP((SUM(D70:Y70)),Priser!$E$132:$I$141,10))/(SUM(D70:Y70)),0)*Priser!$Q$140*(1+Genanskaffelsespriser!$D$196),$A$1373) -> 0 | AA70: =IF((D70*$Z70-(2009-D$3)/($C70+D71)*$Z70*D70)<0,0,(D70*$Z70-(2009-D$3)/($C70+D71)*$Z70*D70)) -> 0 | AB70: =IF((E70*$Z70-(2009-E$3)/($C70+E71)*$Z70*E70)<0,0,(E70*$Z70-(2009-E$3)/($C70+E71)*$Z70*E70)) -> 0 | AC70: 0 | AD70: 0 | AE70: 0 | AF70: 0 | AG70: 0 | AH70: 0 | AI70: 0 | AJ70: 0 | AK70: 0 | AL70: 0 | AM70: 0 | AN70: 0 | AO70: 0 | AP70: 0 | AQ70: 0 | AR70: 0 | AS70: 0 | AT70: 0 | AU70: 0 | AV70: 0 | AW70: 0 | AX70: =VLOOKUP(D$3,Prisindeks!$A$1:$B$111,2,FALSE)/100*AA70 -> 0 | AY70: =VLOOKUP(E$3,Prisindeks!$A$1:$B$111,2,FALSE)/100*AB70 -> 0 | AZ70: =VLOOKUP(F$3,Prisindeks!$A$1:$B$111,2,FALSE)/100*AC70 -> 0 | BA70: =VLOOKUP(G$3,Prisindeks!$A$1:$B$111,2,FALSE)/100*AD70 -> 0 | BB70: =VLOOKUP(H$3,Prisindeks!$A$1:$B$111,2,FALSE)/100*AE70 -> 0 | BC70: =VLOOKUP(I$3,Prisindeks!$A$1:$B$111,2,FALSE)/100*AF70 -> 0 | BD70: =VLOOKUP(J$3,Prisindeks!$A$1:$B$111,2,FALSE)/100*AG70 -> 0 | BE70: =VLOOKUP(K$3,Prisindeks!$A$1:$B$111,2,FALSE)/100*AH70 -> 0 | BF70: =VLOOKUP(L$3,Prisindeks!$A$1:$B$111,2,FALSE)/100*AI70 -> 0 | BG70: =VLOOKUP(M$3,Prisindeks!$A$1:$B$111,2,FALSE)/100*AJ70 -> 0 | BH70: =VLOOKUP(N$3,Prisindeks!$A$1:$B$111,2,FALSE)/100*AK70 -> 0 | BI70: =VLOOKUP(O$3,Prisindeks!$A$1:$B$111,2,FALSE)/100*AL70 -> 0 | BJ70: =VLOOKUP(P$3,Prisindeks!$A$1:$B$111,2,FALSE)/100*AM70 -> 0 | BK70: =VLOOKUP(Q$3,Prisindeks!$A$1:$B$111,2,FALSE)/100*AN70 -> 0 | BL70: =VLOOKUP(R$3,Prisindeks!$A$1:$B$111,2,FALSE)/100*AO70 -> 0 | BM70: =VLOOKUP(S$3,Prisindeks!$A$1:$B$111,2,FALSE)/100*AP70 -> 0 | BN70: =VLOOKUP(T$3,Prisindeks!$A$1:$B$111,2,FALSE)/100*AQ70 -> 0 | BO70: =VLOOKUP(U$3,Prisindeks!$A$1:$B$111,2,FALSE)/100*AR70 -> 0 | BP70: =VLOOKUP(V$3,Prisindeks!$A$1:$B$111,2,FALSE)/100*AS70 -> 0 | BQ70: =VLOOKUP(W$3,Prisindeks!$A$1:$B$111,2,FALSE)/100*AT70 -> 0 | BR70: =VLOOKUP(X$3,Prisindeks!$A$1:$B$111,2,FALSE)/100*AU70 -> 0 | BS70: =VLOOKUP(Y$3,Prisindeks!$A$1:$B$111,2,FALSE)/100*AV70 -> 0 | BT70: 0 | BU70: 0 | BV70: 0 | BW70: 0 | BX70: 0 | BY70: 0 | BZ70: 0 | CA70: 0 | CB70: 0 | CC70: 0 | CD70: 0 | CE70: 0 | CF70: 0 | CG70: 0 | CH70: 0 | CI70: 0 | CJ70: 0 | CK70: 0 | CL70: 0 | CM70: 0 | CN70: 0 | CO70: 0 | CP70: 0 | CQ70: 0 | CR70: 0
A71: Levetidsforlængelse | B71: år | C71: - | D71: 0 | E71: 0 | F71: 0 | G71: 0 | H71: 0 | I71: 0 | J71: 0 | K71: 0 | L71: 0 | M71: 0 | N71: 0 | O71: 0 | P71: 0 | Q71: 0 | R71: 0 | S71: 0 | T71: 0 | U71: 0 | V71: 0 | W71: 0 | X71: 0 | Y71: 0
A72: Filteranlæg, åbne filtre, enkelt filtrering, Mek./EL | B72: m³/h | C72: =Genanskaffelsespriser!$E$43 -> 25 | D72: 0 | E72: 0 | F72: 0 | G72: 0 | H72: 0 | I72: 0 | J72: 0 | K72: 0 | L72: 0 | M72: 0 | N72: 0 | O72: 0 | P72: 0 | Q72: 0 | R72: 0 | S72: 0 | T72: 0 | U72: 0 | V72: 0 | W72: 0 | X72: 0 | Y72: 0 | Z72: =IF(COUNTIF(D72:Y72,"<>0")<=1,IF((SUM(D72:Y72))>0,(+HLOOKUP((SUM(D72:Y72)),Priser!$E$132:$I$141,9)+((SUM(D72:Y72))-HLOOKUP((SUM(D72:Y72)),Priser!$E$132:$I$141,1))*HLOOKUP((SUM(D72:Y72)),Priser!$E$132:$I$141,10))/(SUM(D72:Y72)),0)*Priser!$R$140*(1+Genanskaffelsespriser!$D$196),$A$1373) -> 0 | AA72: =IF((D72*$Z72-(2009-D$3)/$C72*$Z72*D72)<0,0,(D72*$Z72-(2009-D$3)/$C72*$Z72*D72)) -> 0 | AB72: 0 | AC72: 0 | AD72: 0 | AE72: 0 | AF72: 0 | AG72: 0 | AH72: 0 | AI72: 0 | AJ72: 0 | AK72: 0 | AL72: 0 | AM72: 0 | AN72: 0 | AO72: 0 | AP72: 0 | AQ72: 0 | AR72: 0 | AS72: 0 | AT72: 0 | AU72: 0 | AV72: 0 | AW72: 0 | AX72: =VLOOKUP(D$3,Prisindeks!$A$1:$B$111,2,FALSE)/100*AA72 -> 0 | AY72: =VLOOKUP(E$3,Prisindeks!$A$1:$B$111,2,FALSE)/100*AB72 -> 0 | AZ72: =VLOOKUP(F$3,Prisindeks!$A$1:$B$111,2,FALSE)/100*AC72 -> 0 | BA72: =VLOOKUP(G$3,Prisindeks!$A$1:$B$111,2,FALSE)/100*AD72 -> 0 | BB72: =VLOOKUP(H$3,Prisindeks!$A$1:$B$111,2,FALSE)/100*AE72 -> 0 | BC72: =VLOOKUP(I$3,Prisindeks!$A$1:$B$111,2,FALSE)/100*AF72 -> 0 | BD72: =VLOOKUP(J$3,Prisindeks!$A$1:$B$111,2,FALSE)/100*AG72 -> 0 | BE72: =VLOOKUP(K$3,Prisindeks!$A$1:$B$111,2,FALSE)/100*AH72 -> 0 | BF72: =VLOOKUP(L$3,Prisindeks!$A$1:$B$111,2,FALSE)/100*AI72 -> 0 | BG72: =VLOOKUP(M$3,Prisindeks!$A$1:$B$111,2,FALSE)/100*AJ72 -> 0 | BH72: =VLOOKUP(N$3,Prisindeks!$A$1:$B$111,2,FALSE)/100*AK72 -> 0 | BI72: =VLOOKUP(O$3,Prisindeks!$A$1:$B$111,2,FALSE)/100*AL72 -> 0 | BJ72: =VLOOKUP(P$3,Prisindeks!$A$1:$B$111,2,FALSE)/100*AM72 -> 0 | BK72: =VLOOKUP(Q$3,Prisindeks!$A$1:$B$111,2,FALSE)/100*AN72 -> 0 | BL72: =VLOOKUP(R$3,Prisindeks!$A$1:$B$111,2,FALSE)/100*AO72 -> 0 | BM72: =VLOOKUP(S$3,Prisindeks!$A$1:$B$111,2,FALSE)/100*AP72 -> 0 | BN72: =VLOOKUP(T$3,Prisindeks!$A$1:$B$111,2,FALSE)/100*AQ72 -> 0 | BO72: =VLOOKUP(U$3,Prisindeks!$A$1:$B$111,2,FALSE)/100*AR72 -> 0 | BP72: =VLOOKUP(V$3,Prisindeks!$A$1:$B$111,2,FALSE)/100*AS72 -> 0 | BQ72: =VLOOKUP(W$3,Prisindeks!$A$1:$B$111,2,FALSE)/100*AT72 -> 0 | BR72: =VLOOKUP(X$3,Prisindeks!$A$1:$B$111,2,FALSE)/100*AU72 -> 0 | BS72: =VLOOKUP(Y$3,Prisindeks!$A$1:$B$111,2,FALSE)/100*AV72 -> 0 | BT72: 0 | BU72: 0 | BV72: 0 | BW72: 0 | BX72: 0 | BY72: 0 | BZ72: 0 | CA72: 0 | CB72: 0 | CC72: 0 | CD72: 0 | CE72: 0 | CF72: 0 | CG72: 0 | CH72: 0 | CI72: 0 | CJ72: 0 | CK72: 0 | CL72: 0 | CM72: 0 | CN72: 0 | CO72: 0 | CP72: 0 | CQ72: 0 | CR72: 0
A73: Filteranlæg, åbne filtre, dobbelt filtrering, Konstruktioner | B73: m³/h | C73: =Genanskaffelsespriser!$E$44 -> 50 | D73: 0 | E73: 0 | F73: 0 | G73: 0 | H73: 0 | I73: 585 | J73: 0 | K73: 0 | L73: 0 | M73: 0 | N73: 0 | O73: 0 | P73: 0 | Q73: 0 | R73: 0 | S73: 0 | T73: 0 | U73: 0 | V73: 0 | W73: 0 | X73: 0 | Y73: 0 | Z73: =IF(COUNTIF(D73:Y73,"<>0")<=1,IF((SUM(D73:Y73))>0,(+HLOOKUP((SUM(D73:Y73)),Priser!$E$132:$I$141,6)+((SUM(D73:Y73))-HLOOKUP((SUM(D73:Y73)),Priser!$E$132:$I$141,1))*HLOOKUP((SUM(D73:Y73)),Priser!$E$132:$I$141,7))/(SUM(D73:Y73)),0)*Priser!$Q$138*(1+Genanskaffelsespriser!$D$196),$A$1373) -> 6831.510292 | AA73: =IF((D73*$Z73-(2009-D$3)/($C73+D74)*$Z73*D73)<0,0,(D73*$Z73-(2009-D$3)/($C73+D74)*$Z73*D73)) -> 0 | AB73: =IF((E73*$Z73-(2009-E$3)/($C73+E74)*$Z73*E73)<0,0,(E73*$Z73-(2009-E$3)/($C73+E74)*$Z73*E73)) -> 0 | AC73: 0 | AD73: 0 | AE73: 0 | AF73: 676319.5189 | AG73: 0 | AH73: 0 | AI73: 0 | AJ73: 0 | AK73: 0 | AL73: 0 | AM73: 0 | AN73: 0 | AO73: 0 | AP73: 0 | AQ73: 0 | AR73: 0 | AS73: 0 | AT73: 0 | AU73: 0 | AV73: 0 | AW73: 676319.5189 | AX73: =VLOOKUP(D$3,Prisindeks!$A$1:$B$111,2,FALSE)/100*AA73 -> 0 | AY73: =VLOOKUP(E$3,Prisindeks!$A$1:$B$111,2,FALSE)/100*AB73 -> 0 | AZ73: =VLOOKUP(F$3,Prisindeks!$A$1:$B$111,2,FALSE)/100*AC73 -> 0 | BA73: =VLOOKUP(G$3,Prisindeks!$A$1:$B$111,2,FALSE)/100*AD73 -> 0 | BB73: =VLOOKUP(H$3,Prisindeks!$A$1:$B$111,2,FALSE)/100*AE73 -> 0 | BC73: =VLOOKUP(I$3,Prisindeks!$A$1:$B$111,2,FALSE)/100*AF73 -> 50468.78695 | BD73: =VLOOKUP(J$3,Prisindeks!$A$1:$B$111,2,FALSE)/100*AG73 -> 0 | BE73: =VLOOKUP(K$3,Prisindeks!$A$1:$B$111,2,FALSE)/100*AH73 -> 0 | BF73: =VLOOKUP(L$3,Prisindeks!$A$1:$B$111,2,FALSE)/100*AI73 -> 0 | BG73: =VLOOKUP(M$3,Prisindeks!$A$1:$B$111,2,FALSE)/100*AJ73 -> 0 | BH73: =VLOOKUP(N$3,Prisindeks!$A$1:$B$111,2,FALSE)/100*AK73 -> 0 | BI73: =VLOOKUP(O$3,Prisindeks!$A$1:$B$111,2,FALSE)/100*AL73 -> 0 | BJ73: =VLOOKUP(P$3,Prisindeks!$A$1:$B$111,2,FALSE)/100*AM73 -> 0 | BK73: =VLOOKUP(Q$3,Prisindeks!$A$1:$B$111,2,FALSE)/100*AN73 -> 0 | BL73: =VLOOKUP(R$3,Prisindeks!$A$1:$B$111,2,FALSE)/100*AO73 -> 0 | BM73: =VLOOKUP(S$3,Prisindeks!$A$1:$B$111,2,FALSE)/100*AP73 -> 0 | BN73: =VLOOKUP(T$3,Prisindeks!$A$1:$B$111,2,FALSE)/100*AQ73 -> 0 | BO73: =VLOOKUP(U$3,Prisindeks!$A$1:$B$111,2,FALSE)/100*AR73 -> 0 | BP73: =VLOOKUP(V$3,Prisindeks!$A$1:$B$111,2,FALSE)/100*AS73 -> 0 | BQ73: =VLOOKUP(W$3,Prisindeks!$A$1:$B$111,2,FALSE)/100*AT73 -> 0 | BR73: =VLOOKUP(X$3,Prisindeks!$A$1:$B$111,2,FALSE)/100*AU73 -> 0 | BS73: =VLOOKUP(Y$3,Prisindeks!$A$1:$B$111,2,FALSE)/100*AV73 -> 0 | BT73: 50468.78695 | BU73: 0 | BV73: 0 | BW73: 0 | BX73: 0 | BY73: 0 | BZ73: 363394.1529 | CA73: 0 | CB73: 0 | CC73: 0 | CD73: 0 | CE73: 0 | CF73: 0 | CG73: 0 | CH73: 0 | CI73: 0 | CJ73: 0 | CK73: 0 | CL73: 0 | CM73: 0 | CN73: 0 | CO73: 0 | CP73: 0 | CQ73: 363394.1529 | CR73: 585
A74: Levetidsforlængelse | B74: år | C74: - | D74: 0 | E74: 0 | F74: 0 | G74: 0 | H74: 0 | I74: 15 | J74: 0 | K74: 0 | L74: 0 | M74: 0 | N74: 0 | O74: 0 | P74: 0 | Q74: 0 | R74: 0 | S74: 0 | T74: 0 | U74: 0 | V74: 0 | W74: 0 | X74: 0 | Y74: 0
A75: Filteranlæg, åbne filtre, dobbelt filtrering, Mek./EL | B75: m³/h | C75: =Genanskaffelsespriser!$E$45 -> 25 | D75: 0 | E75: 0 | F75: 0 | G75: 0 | H75: 0 | I75: 260 | J75: 0 | K75: 0 | L75: 0 | M75: 0 | N75: 0 | O75: 0 | P75: 0 | Q75: 0 | R75: 0 | S75: 0 | T75: 0 | U75: 0 | V75: 0 | W75: 0 | X75: 0 | Y75: 0 | Z75: =IF(COUNTIF(D75:Y75,"<>0")<=1,IF((SUM(D75:Y75))>0,(+HLOOKUP((SUM(D75:Y75)),Priser!$E$132:$I$141,6)+((SUM(D75:Y75))-HLOOKUP((SUM(D75:Y75)),Priser!$E$132:$I$141,1))*HLOOKUP((SUM(D75:Y75)),Priser!$E$132:$I$141,7))/(SUM(D75:Y75)),0)*Priser!$R$138*(1+Genanskaffelsespriser!$D$196),$A$1373) -> 12117.20439 | AA75: =IF((D75*$Z75-(2009-D$3)/$C75*$Z75*D75)<0,0,(D75*$Z75-(2009-D$3)/$C75*$Z75*D75)) -> 0 | AB75: 0 | AC75: 0 | AD75: 0 | AE75: 0 | AF75: 0 | AG75: 0 | AH75: 0 | AI75: 0 | AJ75: 0 | AK75: 0 | AL75: 0 | AM75: 0 | AN75: 0 | AO75: 0 | AP75: 0 | AQ75: 0 | AR75: 0 | AS75: 0 | AT75: 0 | AU75: 0 | AV75: 0 | AW75: 0 | AX75: =VLOOKUP(D$3,Prisindeks!$A$1:$B$111,2,FALSE)/100*AA75 -> 0 | AY75: =VLOOKUP(E$3,Prisindeks!$A$1:$B$111,2,FALSE)/100*AB75 -> 0 | AZ75: =VLOOKUP(F$3,Prisindeks!$A$1:$B$111,2,FALSE)/100*AC75 -> 0 | BA75: =VLOOKUP(G$3,Prisindeks!$A$1:$B$111,2,FALSE)/100*AD75 -> 0 | BB75: =VLOOKUP(H$3,Prisindeks!$A$1:$B$111,2,FALSE)/100*AE75 -> 0 | BC75: =VLOOKUP(I$3,Prisindeks!$A$1:$B$111,2,FALSE)/100*AF75 -> 0 | BD75: =VLOOKUP(J$3,Prisindeks!$A$1:$B$111,2,FALSE)/100*AG75 -> 0 | BE75: =VLOOKUP(K$3,Prisindeks!$A$1:$B$111,2,FALSE)/100*AH75 -> 0 | BF75: =VLOOKUP(L$3,Prisindeks!$A$1:$B$111,2,FALSE)/100*AI75 -> 0 | BG75: =VLOOKUP(M$3,Prisindeks!$A$1:$B$111,2,FALSE)/100*AJ75 -> 0 | BH75: =VLOOKUP(N$3,Prisindeks!$A$1:$B$111,2,FALSE)/100*AK75 -> 0 | BI75: =VLOOKUP(O$3,Prisindeks!$A$1:$B$111,2,FALSE)/100*AL75 -> 0 | BJ75: =VLOOKUP(P$3,Prisindeks!$A$1:$B$111,2,FALSE)/100*AM75 -> 0 | BK75: =VLOOKUP(Q$3,Prisindeks!$A$1:$B$111,2,FALSE)/100*AN75 -> 0 | BL75: =VLOOKUP(R$3,Prisindeks!$A$1:$B$111,2,FALSE)/100*AO75 -> 0 | BM75: =VLOOKUP(S$3,Prisindeks!$A$1:$B$111,2,FALSE)/100*AP75 -> 0 | BN75: =VLOOKUP(T$3,Prisindeks!$A$1:$B$111,2,FALSE)/100*AQ75 -> 0 | BO75: =VLOOKUP(U$3,Prisindeks!$A$1:$B$111,2,FALSE)/100*AR75 -> 0 | BP75: =VLOOKUP(V$3,Prisindeks!$A$1:$B$111,2,FALSE)/100*AS75 -> 0 | BQ75: =VLOOKUP(W$3,Prisindeks!$A$1:$B$111,2,FALSE)/100*AT75 -> 0 | BR75: =VLOOKUP(X$3,Prisindeks!$A$1:$B$111,2,FALSE)/100*AU75 -> 0 | BS75: =VLOOKUP(Y$3,Prisindeks!$A$1:$B$111,2,FALSE)/100*AV75 -> 0 | BT75: 0 | BU75: 0 | BV75: 0 | BW75: 0 | BX75: 0 | BY75: 0 | BZ75: 0 | CA75: 0 | CB75: 0 | CC75: 0 | CD75: 0 | CE75: 0 | CF75: 0 | CG75: 0 | CH75: 0 | CI75: 0 | CJ75: 0 | CK75: 0 | CL75: 0 | CM75: 0 | CN75: 0 | CO75: 0 | CP75: 0 | CQ75: 0 | CR75: 260
A76: Filteranlæg, trykfiltre, enkelt filtrering | B76: m³/h | C76: =Genanskaffelsespriser!$E$46 -> 25 | D76: 0 | E76: 0 | F76: 0 | G76: 0 | H76: 0 | I76: 0 | J76: 0 | K76: 0 | L76: 0 | M76: 0 | N76: 0 | O76: 0 | P76: 0 | Q76: 0 | R76: 0 | S76: 0 | T76: 0 | U76: 0 | V76: 0 | W76: 0 | X76: 0 | Y76: 0 | Z76: =IF(COUNTIF(D76:Y76,"<>0")<=1,IF((SUM(D76:Y76))>0,(+HLOOKUP((SUM(D76:Y76)),Priser!$E$150:$J$152,2)+((SUM(D76:Y76))-HLOOKUP((SUM(D76:Y76)),Priser!$E$150:$J$152,1))*HLOOKUP((SUM(D76:Y76)),Priser!$E$150:$J$152,3))/(SUM(D76:Y76)),0)*(1+Genanskaffelsespriser!$D$196),$A$1373) -> 0 | AA76: =IF((D76*$Z76-(2009-D$3)/$C76*$Z76*D76)<0,0,(D76*$Z76-(2009-D$3)/$C76*$Z76*D76)) -> 0 | AB76: 0 | AC76: 0 | AD76: 0 | AE76: 0 | AF76: 0 | AG76: 0 | AH76: 0 | AI76: 0 | AJ76: 0 | AK76: 0 | AL76: 0 | AM76: 0 | AN76: 0 | AO76: 0 | AP76: 0 | AQ76: 0 | AR76: 0 | AS76: 0 | AT76: 0 | AU76: 0 | AV76: 0 | AW76: 0 | AX76: =VLOOKUP(D$3,Prisindeks!$A$1:$B$111,2,FALSE)/100*AA76 -> 0 | AY76: =VLOOKUP(E$3,Prisindeks!$A$1:$B$111,2,FALSE)/100*AB76 -> 0 | AZ76: =VLOOKUP(F$3,Prisindeks!$A$1:$B$111,2,FALSE)/100*AC76 -> 0 | BA76: =VLOOKUP(G$3,Prisindeks!$A$1:$B$111,2,FALSE)/100*AD76 -> 0 | BB76: =VLOOKUP(H$3,Prisindeks!$A$1:$B$111,2,FALSE)/100*AE76 -> 0 | BC76: =VLOOKUP(I$3,Prisindeks!$A$1:$B$111,2,FALSE)/100*AF76 -> 0 | BD76: =VLOOKUP(J$3,Prisindeks!$A$1:$B$111,2,FALSE)/100*AG76 -> 0 | BE76: =VLOOKUP(K$3,Prisindeks!$A$1:$B$111,2,FALSE)/100*AH76 -> 0 | BF76: =VLOOKUP(L$3,Prisindeks!$A$1:$B$111,2,FALSE)/100*AI76 -> 0 | BG76: =VLOOKUP(M$3,Prisindeks!$A$1:$B$111,2,FALSE)/100*AJ76 -> 0 | BH76: =VLOOKUP(N$3,Prisindeks!$A$1:$B$111,2,FALSE)/100*AK76 -> 0 | BI76: =VLOOKUP(O$3,Prisindeks!$A$1:$B$111,2,FALSE)/100*AL76 -> 0 | BJ76: =VLOOKUP(P$3,Prisindeks!$A$1:$B$111,2,FALSE)/100*AM76 -> 0 | BK76: =VLOOKUP(Q$3,Prisindeks!$A$1:$B$111,2,FALSE)/100*AN76 -> 0 | BL76: =VLOOKUP(R$3,Prisindeks!$A$1:$B$111,2,FALSE)/100*AO76 -> 0 | BM76: =VLOOKUP(S$3,Prisindeks!$A$1:$B$111,2,FALSE)/100*AP76 -> 0 | BN76: =VLOOKUP(T$3,Prisindeks!$A$1:$B$111,2,FALSE)/100*AQ76 -> 0 | BO76: =VLOOKUP(U$3,Prisindeks!$A$1:$B$111,2,FALSE)/100*AR76 -> 0 | BP76: =VLOOKUP(V$3,Prisindeks!$A$1:$B$111,2,FALSE)/100*AS76 -> 0 | BQ76: =VLOOKUP(W$3,Prisindeks!$A$1:$B$111,2,FALSE)/100*AT76 -> 0 | BR76: =VLOOKUP(X$3,Prisindeks!$A$1:$B$111,2,FALSE)/100*AU76 -> 0 | BS76: =VLOOKUP(Y$3,Prisindeks!$A$1:$B$111,2,FALSE)/100*AV76 -> 0 | BT76: 0 | BU76: 0 | BV76: 0 | BW76: 0 | BX76: 0 | BY76: 0 | BZ76: 0 | CA76: 0 | CB76: 0 | CC76: 0 | CD76: 0 | CE76: 0 | CF76: 0 | CG76: 0 | CH76: 0 | CI76: 0 | CJ76: 0 | CK76: 0 | CL76: 0 | CM76: 0 | CN76: 0 | CO76: 0 | CP76: 0 | CQ76: 0 | CR76: 0
A77: Filteranlæg, trykfiltre, dobbelt filtrering | B77: m³/h | C77: =Genanskaffelsespriser!$E$47 -> 25 | D77: 0 | E77: 0 | F77: 0 | G77: 0 | H77: 0 | I77: 0 | J77: 0 | K77: 0 | L77: 0 | M77: 0 | N77: 0 | O77: 0 | P77: 0 | Q77: 0 | R77: 0 | S77: 0 | T77: 0 | U77: 0 | V77: 0 | W77: 0 | X77: 0 | Y77: 0 | Z77: =IF(COUNTIF(D77:Y77,"<>0")<=1,IF((SUM(D77:Y77))>0,(+HLOOKUP((SUM(D77:Y77)),Priser!$E$154:$J$156,2)+((SUM(D77:Y77))-HLOOKUP((SUM(D77:Y77)),Priser!$E$154:$J$156,1))*HLOOKUP((SUM(D77:Y77)),Priser!$E$154:$J$156,3))/(SUM(D77:Y77)),0)*Priser!$R$138*(1+Genanskaffelsespriser!$D$196),$A$1373) -> 0 | AA77: =IF((D77*$Z77-(2009-D$3)/$C77*$Z77*D77)<0,0,(D77*$Z77-(2009-D$3)/$C77*$Z77*D77)) -> 0 | AB77: 0 | AC77: 0 | AD77: 0 | AE77: 0 | AF77: 0 | AG77: 0 | AH77: 0 | AI77: 0 | AJ77: 0 | AK77: 0 | AL77: 0 | AM77: 0 | AN77: 0 | AO77: 0 | AP77: 0 | AQ77: 0 | AR77: 0 | AS77: 0 | AT77: 0 | AU77: 0 | AV77: 0 | AW77: 0 | AX77: =VLOOKUP(D$3,Prisindeks!$A$1:$B$111,2,FALSE)/100*AA77 -> 0 | AY77: =VLOOKUP(E$3,Prisindeks!$A$1:$B$111,2,FALSE)/100*AB77 -> 0 | AZ77: =VLOOKUP(F$3,Prisindeks!$A$1:$B$111,2,FALSE)/100*AC77 -> 0 | BA77: =VLOOKUP(G$3,Prisindeks!$A$1:$B$111,2,FALSE)/100*AD77 -> 0 | BB77: =VLOOKUP(H$3,Prisindeks!$A$1:$B$111,2,FALSE)/100*AE77 -> 0 | BC77: =VLOOKUP(I$3,Prisindeks!$A$1:$B$111,2,FALSE)/100*AF77 -> 0 | BD77: =VLOOKUP(J$3,Prisindeks!$A$1:$B$111,2,FALSE)/100*AG77 -> 0 | BE77: =VLOOKUP(K$3,Prisindeks!$A$1:$B$111,2,FALSE)/100*AH77 -> 0 | BF77: =VLOOKUP(L$3,Prisindeks!$A$1:$B$111,2,FALSE)/100*AI77 -> 0 | BG77: =VLOOKUP(M$3,Prisindeks!$A$1:$B$111,2,FALSE)/100*AJ77 -> 0 | BH77: =VLOOKUP(N$3,Prisindeks!$A$1:$B$111,2,FALSE)/100*AK77 -> 0 | BI77: =VLOOKUP(O$3,Prisindeks!$A$1:$B$111,2,FALSE)/100*AL77 -> 0 | BJ77: =VLOOKUP(P$3,Prisindeks!$A$1:$B$111,2,FALSE)/100*AM77 -> 0 | BK77: =VLOOKUP(Q$3,Prisindeks!$A$1:$B$111,2,FALSE)/100*AN77 -> 0 | BL77: =VLOOKUP(R$3,Prisindeks!$A$1:$B$111,2,FALSE)/100*AO77 -> 0 | BM77: =VLOOKUP(S$3,Prisindeks!$A$1:$B$111,2,FALSE)/100*AP77 -> 0 | BN77: =VLOOKUP(T$3,Prisindeks!$A$1:$B$111,2,FALSE)/100*AQ77 -> 0 | BO77: =VLOOKUP(U$3,Prisindeks!$A$1:$B$111,2,FALSE)/100*AR77 -> 0 | BP77: =VLOOKUP(V$3,Prisindeks!$A$1:$B$111,2,FALSE)/100*AS77 -> 0 | BQ77: =VLOOKUP(W$3,Prisindeks!$A$1:$B$111,2,FALSE)/100*AT77 -> 0 | BR77: =VLOOKUP(X$3,Prisindeks!$A$1:$B$111,2,FALSE)/100*AU77 -> 0 | BS77: =VLOOKUP(Y$3,Prisindeks!$A$1:$B$111,2,FALSE)/100*AV77 -> 0 | BT77: 0 | BU77: 0 | BV77: 0 | BW77: 0 | BX77: 0 | BY77: 0 | BZ77: 0 | CA77: 0 | CB77: 0 | CC77: 0 | CD77: 0 | CE77: 0 | CF77: 0 | CG77: 0 | CH77: 0 | CI77: 0 | CJ77: 0 | CK77: 0 | CL77: 0 | CM77: 0 | CN77: 0 | CO77: 0 | CP77: 0 | CQ77: 0 | CR77: 0
A78: Rentvandsbeholder insitu støbt | B78: m³ | C78: =Genanskaffelsespriser!$E$48 -> 50 | D78: 0 | E78: 0 | F78: 0 | G78: 0 | H78: 0 | I78: 2100 | J78: 0 | K78: 0 | L78: 0 | M78: 0 | N78: 0 | O78: 0 | P78: 0 | Q78: 0 | R78: 0 | S78: 0 | T78: 0 | U78: 0 | V78: 0 | W78: 0 | X78: 0 | Y78: 0 | Z78: =IF(COUNTIF(D78:Y78,"<>0")<=1,IF((SUM(D78:Y78))>0,(+HLOOKUP((SUM(D78:Y78)),Priser!$E$168:$J$170,2)+((SUM(D78:Y78))-HLOOKUP((SUM(D78:Y78)),Priser!$E$168:$J$170,1))*HLOOKUP((SUM(D78:Y78)),Priser!$E$168:$J$170,3))/(SUM(D78:Y78)),0)*(1+Genanskaffelsespriser!$D$196),$A$1373) -> 2974.293048 | AA78: =IF((D78*$Z78-(2009-D$3)/($C78+D79)*$Z78*D78)<0,0,(D78*$Z78-(2009-D$3)/($C78+D79)*$Z78*D78)) -> 0 | AB78: =IF((E78*$Z78-(2009-E$3)/($C78+E79)*$Z78*E78)<0,0,(E78*$Z78-(2009-E$3)/($C78+E79)*$Z78*E78)) -> 0 | AC78: 0 | AD78: 0 | AE78: 0 | AF78: 2277958.558 | AG78: 0 | AH78: 0 | AI78: 0 | AJ78: 0 | AK78: 0 | AL78: 0 | AM78: 0 | AN78: 0 | AO78: 0 | AP78: 0 | AQ78: 0 | AR78: 0 | AS78: 0 | AT78: 0 | AU78: 0 | AV78: 0 | AW78: 2277958.558 | AX78: =VLOOKUP(D$3,Prisindeks!$A$1:$B$111,2,FALSE)/100*AA78 -> 0 | AY78: =VLOOKUP(E$3,Prisindeks!$A$1:$B$111,2,FALSE)/100*AB78 -> 0 | AZ78: =VLOOKUP(F$3,Prisindeks!$A$1:$B$111,2,FALSE)/100*AC78 -> 0 | BA78: =VLOOKUP(G$3,Prisindeks!$A$1:$B$111,2,FALSE)/100*AD78 -> 0 | BB78: =VLOOKUP(H$3,Prisindeks!$A$1:$B$111,2,FALSE)/100*AE78 -> 0 | BC78: =VLOOKUP(I$3,Prisindeks!$A$1:$B$111,2,FALSE)/100*AF78 -> 169987.4127 | BD78: =VLOOKUP(J$3,Prisindeks!$A$1:$B$111,2,FALSE)/100*AG78 -> 0 | BE78: =VLOOKUP(K$3,Prisindeks!$A$1:$B$111,2,FALSE)/100*AH78 -> 0 | BF78: =VLOOKUP(L$3,Prisindeks!$A$1:$B$111,2,FALSE)/100*AI78 -> 0 | BG78: =VLOOKUP(M$3,Prisindeks!$A$1:$B$111,2,FALSE)/100*AJ78 -> 0 | BH78: =VLOOKUP(N$3,Prisindeks!$A$1:$B$111,2,FALSE)/100*AK78 -> 0 | BI78: =VLOOKUP(O$3,Prisindeks!$A$1:$B$111,2,FALSE)/100*AL78 -> 0 | BJ78: =VLOOKUP(P$3,Prisindeks!$A$1:$B$111,2,FALSE)/100*AM78 -> 0 | BK78: =VLOOKUP(Q$3,Prisindeks!$A$1:$B$111,2,FALSE)/100*AN78 -> 0 | BL78: =VLOOKUP(R$3,Prisindeks!$A$1:$B$111,2,FALSE)/100*AO78 -> 0 | BM78: =VLOOKUP(S$3,Prisindeks!$A$1:$B$111,2,FALSE)/100*AP78 -> 0 | BN78: =VLOOKUP(T$3,Prisindeks!$A$1:$B$111,2,FALSE)/100*AQ78 -> 0 | BO78: =VLOOKUP(U$3,Prisindeks!$A$1:$B$111,2,FALSE)/100*AR78 -> 0 | BP78: =VLOOKUP(V$3,Prisindeks!$A$1:$B$111,2,FALSE)/100*AS78 -> 0 | BQ78: =VLOOKUP(W$3,Prisindeks!$A$1:$B$111,2,FALSE)/100*AT78 -> 0 | BR78: =VLOOKUP(X$3,Prisindeks!$A$1:$B$111,2,FALSE)/100*AU78 -> 0 | BS78: =VLOOKUP(Y$3,Prisindeks!$A$1:$B$111,2,FALSE)/100*AV78 -> 0 | BT78: 169987.4127 | BU78: 0 | BV78: 0 | BW78: 0 | BX78: 0 | BY78: 0 | BZ78: 1223972.985 | CA78: 0 | CB78: 0 | CC78: 0 | CD78: 0 | CE78: 0 | CF78: 0 | CG78: 0 | CH78: 0 | CI78: 0 | CJ78: 0 | CK78: 0 | CL78: 0 | CM78: 0 | CN78: 0 | CO78: 0 | CP78: 0 | CQ78: 1223972.985 | CR78: 2100
A79: Levetidsforlængelse | B79: år | C79: - | D79: 0 | E79: 0 | F79: 0 | G79: 0 | H79: 0 | I79: 35 | J79: 0 | K79: 0 | L79: 0 | M79: 0 | N79: 0 | O79: 0 | P79: 0 | Q79: 0 | R79: 0 | S79: 0 | T79: 0 | U79: 0 | V79: 0 | W79: 0 | X79: 0 | Y79: 0
A80: Rentvandsbeholder element | B80: m³ | C80: =Genanskaffelsespriser!$E$49 -> 50 | D80: 0 | E80: 0 | F80: 0 | G80: 0 | H80: 0 | I80: 0 | J80: 0 | K80: 0 | L80: 0 | M80: 0 | N80: 0 | O80: 0 | P80: 0 | Q80: 0 | R80: 0 | S80: 0 | T80: 0 | U80: 0 | V80: 0 | W80: 0 | X80: 0 | Y80: 0 | Z80: =IF(COUNTIF(D80:Y80,"<>0")<=1,IF((SUM(D80:Y80))>0,(+HLOOKUP(SUM(D80:Y80),Priser!$E$175:$J$177,2)+((SUM(D80:Y80))-HLOOKUP((SUM(D80:Y80)),Priser!$E$175:$J$177,1))*HLOOKUP((SUM(D80:Y80)),Priser!$E$175:$J$177,3))/(SUM(D80:Y80)),0)*(1+Genanskaffelsespriser!$D$196),$A$1373) -> 0 | AA80: =IF((D80*$Z80-(2009-D$3)/($C80+D81)*$Z80*D80)<0,0,(D80*$Z80-(2009-D$3)/($C80+D81)*$Z80*D80)) -> 0 | AB80: =IF((E80*$Z80-(2009-E$3)/($C80+E81)*$Z80*E80)<0,0,(E80*$Z80-(2009-E$3)/($C80+E81)*$Z80*E80)) -> 0 | AC80: 0 | AD80: 0 | AE80: 0 | AF80: 0 | AG80: 0 | AH80: 0 | AI80: 0 | AJ80: 0 | AK80: 0 | AL80: 0 | AM80: 0 | AN80: 0 | AO80: 0 | AP80: 0 | AQ80: 0 | AR80: 0 | AS80: 0 | AT80: 0 | AU80: 0 | AV80: 0 | AW80: 0 | AX80: =VLOOKUP(D$3,Prisindeks!$A$1:$B$111,2,FALSE)/100*AA80 -> 0 | AY80: =VLOOKUP(E$3,Prisindeks!$A$1:$B$111,2,FALSE)/100*AB80 -> 0 | AZ80: =VLOOKUP(F$3,Prisindeks!$A$1:$B$111,2,FALSE)/100*AC80 -> 0 | BA80: =VLOOKUP(G$3,Prisindeks!$A$1:$B$111,2,FALSE)/100*AD80 -> 0 | BB80: =VLOOKUP(H$3,Prisindeks!$A$1:$B$111,2,FALSE)/100*AE80 -> 0 | BC80: =VLOOKUP(I$3,Prisindeks!$A$1:$B$111,2,FALSE)/100*AF80 -> 0 | BD80: =VLOOKUP(J$3,Prisindeks!$A$1:$B$111,2,FALSE)/100*AG80 -> 0 | BE80: =VLOOKUP(K$3,Prisindeks!$A$1:$B$111,2,FALSE)/100*AH80 -> 0 | BF80: =VLOOKUP(L$3,Prisindeks!$A$1:$B$111,2,FALSE)/100*AI80 -> 0 | BG80: =VLOOKUP(M$3,Prisindeks!$A$1:$B$111,2,FALSE)/100*AJ80 -> 0 | BH80: =VLOOKUP(N$3,Prisindeks!$A$1:$B$111,2,FALSE)/100*AK80 -> 0 | BI80: =VLOOKUP(O$3,Prisindeks!$A$1:$B$111,2,FALSE)/100*AL80 -> 0 | BJ80: =VLOOKUP(P$3,Prisindeks!$A$1:$B$111,2,FALSE)/100*AM80 -> 0 | BK80: =VLOOKUP(Q$3,Prisindeks!$A$1:$B$111,2,FALSE)/100*AN80 -> 0 | BL80: =VLOOKUP(R$3,Prisindeks!$A$1:$B$111,2,FALSE)/100*AO80 -> 0 | BM80: =VLOOKUP(S$3,Prisindeks!$A$1:$B$111,2,FALSE)/100*AP80 -> 0 | BN80: =VLOOKUP(T$3,Prisindeks!$A$1:$B$111,2,FALSE)/100*AQ80 -> 0 | BO80: =VLOOKUP(U$3,Prisindeks!$A$1:$B$111,2,FALSE)/100*AR80 -> 0 | BP80: =VLOOKUP(V$3,Prisindeks!$A$1:$B$111,2,FALSE)/100*AS80 -> 0 | BQ80: =VLOOKUP(W$3,Prisindeks!$A$1:$B$111,2,FALSE)/100*AT80 -> 0 | BR80: =VLOOKUP(X$3,Prisindeks!$A$1:$B$111,2,FALSE)/100*AU80 -> 0 | BS80: =VLOOKUP(Y$3,Prisindeks!$A$1:$B$111,2,FALSE)/100*AV80 -> 0 | BT80: 0 | BU80: 0 | BV80: 0 | BW80: 0 | BX80: 0 | BY80: 0 | BZ80: 0 | CA80: 0 | CB80: 0 | CC80: 0 | CD80: 0 | CE80: 0 | CF80: 0 | CG80: 0 | CH80: 0 | CI80: 0 | CJ80: 0 | CK80: 0 | CL80: 0 | CM80: 0 | CN80: 0 | CO80: 0 | CP80: 0 | CQ80: 0 | CR80: 0
A81: Levetidsforlængelse | B81: år | C81: - | D81: 0 | E81: 0 | F81: 0 | G81: 0 | H81: 0 | I81: 0 | J81: 0 | K81: 0 | L81: 0 | M81: 0 | N81: 0 | O81: 0 | P81: 0 | Q81: 0 | R81: 0 | S81: 0 | T81: 0 | U81: 0 | V81: 0 | W81: 0 | X81: 0 | Y81: 0
A82: Udpumpningsanlæg, rentvandspumper på vandværk | B82: m³/h | C82: =Genanskaffelsespriser!$E$50 -> 25 | D82: 0 | E82: 0 | F82: 0 | G82: 0 | H82: 0 | I82: 0 | J82: 0 | K82: 0 | L82: 0 | M82: 0 | N82: 0 | O82: 0 | P82: 0 | Q82: 0 | R82: 0 | S82: 0 | T82: 820 | U82: 0 | V82: 0 | W82: 0 | X82: 0 | Y82: 0 | Z82: =IF(COUNTIF(D82:Y82,"<>0")<=1,IF((SUM(D82:Y82))>0,(+HLOOKUP((SUM(D82:Y82)),Priser!$E$236:$J$238,2)+((SUM(D82:Y82))-HLOOKUP((SUM(D82:Y82)),Priser!$E$236:$J$238,1))*HLOOKUP((SUM(D82:Y82)),Priser!$E$236:$J$238,3))/(SUM(D82:Y82)),0)*(1+Genanskaffelsespriser!$D$196),$A$1373) -> 948.07725 | AA82: =IF((D82*$Z82-(2009-D$3)/$C82*$Z82*D82)<0,0,(D82*$Z82-(2009-D$3)/$C82*$Z82*D82)) -> 0 | AB82: 0 | AC82: 0 | AD82: 0 | AE82: 0 | AF82: 0 | AG82: 0 | AH82: 0 | AI82: 0 | AJ82: 0 | AK82: 0 | AL82: 0 | AM82: 0 | AN82: 0 | AO82: 0 | AP82: 0 | AQ82: 621938.676 | AR82: 0 | AS82: 0 | AT82: 0 | AU82: 0 | AV82: 0 | AW82: 621938.676 | AX82: =VLOOKUP(D$3,Prisindeks!$A$1:$B$111,2,FALSE)/100*AA82 -> 0 | AY82: =VLOOKUP(E$3,Prisindeks!$A$1:$B$111,2,FALSE)/100*AB82 -> 0 | AZ82: =VLOOKUP(F$3,Prisindeks!$A$1:$B$111,2,FALSE)/100*AC82 -> 0 | BA82: =VLOOKUP(G$3,Prisindeks!$A$1:$B$111,2,FALSE)/100*AD82 -> 0 | BB82: =VLOOKUP(H$3,Prisindeks!$A$1:$B$111,2,FALSE)/100*AE82 -> 0 | BC82: =VLOOKUP(I$3,Prisindeks!$A$1:$B$111,2,FALSE)/100*AF82 -> 0 | BD82: =VLOOKUP(J$3,Prisindeks!$A$1:$B$111,2,FALSE)/100*AG82 -> 0 | BE82: =VLOOKUP(K$3,Prisindeks!$A$1:$B$111,2,FALSE)/100*AH82 -> 0 | BF82: =VLOOKUP(L$3,Prisindeks!$A$1:$B$111,2,FALSE)/100*AI82 -> 0 | BG82: =VLOOKUP(M$3,Prisindeks!$A$1:$B$111,2,FALSE)/100*AJ82 -> 0 | BH82: =VLOOKUP(N$3,Prisindeks!$A$1:$B$111,2,FALSE)/100*AK82 -> 0 | BI82: =VLOOKUP(O$3,Prisindeks!$A$1:$B$111,2,FALSE)/100*AL82 -> 0 | BJ82: =VLOOKUP(P$3,Prisindeks!$A$1:$B$111,2,FALSE)/100*AM82 -> 0 | BK82: =VLOOKUP(Q$3,Prisindeks!$A$1:$B$111,2,FALSE)/100*AN82 -> 0 | BL82: =VLOOKUP(R$3,Prisindeks!$A$1:$B$111,2,FALSE)/100*AO82 -> 0 | BM82: =VLOOKUP(S$3,Prisindeks!$A$1:$B$111,2,FALSE)/100*AP82 -> 0 | BN82: =VLOOKUP(T$3,Prisindeks!$A$1:$B$111,2,FALSE)/100*AQ82 -> 581697.9571 | BO82: =VLOOKUP(U$3,Prisindeks!$A$1:$B$111,2,FALSE)/100*AR82 -> 0 | BP82: =VLOOKUP(V$3,Prisindeks!$A$1:$B$111,2,FALSE)/100*AS82 -> 0 | BQ82: =VLOOKUP(W$3,Prisindeks!$A$1:$B$111,2,FALSE)/100*AT82 -> 0 | BR82: =VLOOKUP(X$3,Prisindeks!$A$1:$B$111,2,FALSE)/100*AU82 -> 0 | BS82: =VLOOKUP(Y$3,Prisindeks!$A$1:$B$111,2,FALSE)/100*AV82 -> 0 | BT82: 581697.9571 | BU82: 0 | BV82: 0 | BW82: 0 | BX82: 0 | BY82: 0 | BZ82: 0 | CA82: 0 | CB82: 0 | CC82: 0 | CD82: 0 | CE82: 0 | CF82: 0 | CG82: 0 | CH82: 0 | CI82: 0 | CJ82: 0 | CK82: 601818.3166 | CL82: 0 | CM82: 0 | CN82: 0 | CO82: 0 | CP82: 0 | CQ82: 601818.3166 | CR82: 820
A83: Udpumpningsanlæg, frekvensomformer | B83: kW | C83: =Genanskaffelsespriser!$E$51 -> 25 | D83: 0 | E83: 0 | F83: 0 | G83: 0 | H83: 0 | I83: 0 | J83: 0 | K83: 0 | L83: 0 | M83: 0 | N83: 0 | O83: 0 | P83: 0 | Q83: 0 | R83: 0 | S83: 0 | T83: 315 | U83: 0 | V83: 0 | W83: 0 | X83: 0 | Y83: 0 | Z83: =IF(COUNTIF(D83:Y83,"<>0")<=1,IF((SUM(D83:Y83))>0,(+HLOOKUP((SUM(D83:Y83)),Priser!$E$255:$J$257,2)+((SUM(D83:Y83))-HLOOKUP((SUM(D83:Y83)),Priser!$E$255:$J$257,1))*HLOOKUP((SUM(D83:Y83)),Priser!$E$255:$J$257,3))/(SUM(D83:Y83)),0)*(1+Genanskaffelsespriser!$D$196),$A$1373) -> 2042.308885 | AA83: =IF((D83*$Z83-(2009-D$3)/$C83*$Z83*D83)<0,0,(D83*$Z83-(2009-D$3)/$C83*$Z83*D83)) -> 0 | AB83: 0 | AC83: 0 | AD83: 0 | AE83: 0 | AF83: 0 | AG83: 0 | AH83: 0 | AI83: 0 | AJ83: 0 | AK83: 0 | AL83: 0 | AM83: 0 | AN83: 0 | AO83: 0 | AP83: 0 | AQ83: 514661.839 | AR83: 0 | AS83: 0 | AT83: 0 | AU83: 0 | AV83: 0 | AW83: 514661.839 | AX83: =VLOOKUP(D$3,Prisindeks!$A$1:$B$111,2,FALSE)/100*AA83 -> 0 | AY83: =VLOOKUP(E$3,Prisindeks!$A$1:$B$111,2,FALSE)/100*AB83 -> 0 | AZ83: =VLOOKUP(F$3,Prisindeks!$A$1:$B$111,2,FALSE)/100*AC83 -> 0 | BA83: =VLOOKUP(G$3,Prisindeks!$A$1:$B$111,2,FALSE)/100*AD83 -> 0 | BB83: =VLOOKUP(H$3,Prisindeks!$A$1:$B$111,2,FALSE)/100*AE83 -> 0 | BC83: =VLOOKUP(I$3,Prisindeks!$A$1:$B$111,2,FALSE)/100*AF83 -> 0 | BD83: =VLOOKUP(J$3,Prisindeks!$A$1:$B$111,2,FALSE)/100*AG83 -> 0 | BE83: =VLOOKUP(K$3,Prisindeks!$A$1:$B$111,2,FALSE)/100*AH83 -> 0 | BF83: =VLOOKUP(L$3,Prisindeks!$A$1:$B$111,2,FALSE)/100*AI83 -> 0 | BG83: =VLOOKUP(M$3,Prisindeks!$A$1:$B$111,2,FALSE)/100*AJ83 -> 0 | BH83: =VLOOKUP(N$3,Prisindeks!$A$1:$B$111,2,FALSE)/100*AK83 -> 0 | BI83: =VLOOKUP(O$3,Prisindeks!$A$1:$B$111,2,FALSE)/100*AL83 -> 0 | BJ83: =VLOOKUP(P$3,Prisindeks!$A$1:$B$111,2,FALSE)/100*AM83 -> 0 | BK83: =VLOOKUP(Q$3,Prisindeks!$A$1:$B$111,2,FALSE)/100*AN83 -> 0 | BL83: =VLOOKUP(R$3,Prisindeks!$A$1:$B$111,2,FALSE)/100*AO83 -> 0 | BM83: =VLOOKUP(S$3,Prisindeks!$A$1:$B$111,2,FALSE)/100*AP83 -> 0 | BN83: =VLOOKUP(T$3,Prisindeks!$A$1:$B$111,2,FALSE)/100*AQ83 -> 481362.1534 | BO83: =VLOOKUP(U$3,Prisindeks!$A$1:$B$111,2,FALSE)/100*AR83 -> 0 | BP83: =VLOOKUP(V$3,Prisindeks!$A$1:$B$111,2,FALSE)/100*AS83 -> 0 | BQ83: =VLOOKUP(W$3,Prisindeks!$A$1:$B$111,2,FALSE)/100*AT83 -> 0 | BR83: =VLOOKUP(X$3,Prisindeks!$A$1:$B$111,2,FALSE)/100*AU83 -> 0 | BS83: =VLOOKUP(Y$3,Prisindeks!$A$1:$B$111,2,FALSE)/100*AV83 -> 0 | BT83: 481362.1534 | BU83: 0 | BV83: 0 | BW83: 0 | BX83: 0 | BY83: 0 | BZ83: 0 | CA83: 0 | CB83: 0 | CC83: 0 | CD83: 0 | CE83: 0 | CF83: 0 | CG83: 0 | CH83: 0 | CI83: 0 | CJ83: 0 | CK83: 498011.9962 | CL83: 0 | CM83: 0 | CN83: 0 | CO83: 0 | CP83: 0 | CQ83: 498011.9962 | CR83: 315
A84: Udpumpningsanlæg, Hydrofor | B84: liter | C84: =Genanskaffelsespriser!$E$52 -> 25 | D84: 0 | E84: 0 | F84: 0 | G84: 0 | H84: 0 | I84: 0 | J84: 0 | K84: 0 | L84: 0 | M84: 0 | N84: 4000 | O84: 0 | P84: 0 | Q84: 0 | R84: 0 | S84: 0 | T84: 0 | U84: 0 | V84: 0 | W84: 0 | X84: 0 | Y84: 0 | Z84: =IF(COUNTIF(D84:Y84,"<>0")<=1,IF((SUM(D84:Y84))>0,(+HLOOKUP((SUM(D84:Y84)),Priser!$E$275:$J$277,2)+((SUM(D84:Y84))-HLOOKUP((SUM(D84:Y84)),Priser!$E$275:$J$277,1))*HLOOKUP((SUM(D84:Y84)),Priser!$E$275:$J$277,3))/(SUM(D84:Y84)),0)*(1+Genanskaffelsespriser!$D$196),$A$1373) -> 62.83097551 | AA84: =IF((D84*$Z84-(2009-D$3)/$C84*$Z84*D84)<0,0,(D84*$Z84-(2009-D$3)/$C84*$Z84*D84)) -> 0 | AB84: 0 | AC84: 0 | AD84: 0 | AE84: 0 | AF84: 0 | AG84: 0 | AH84: 0 | AI84: 0 | AJ84: 0 | AK84: 80423.64866 | AL84: 0 | AM84: 0 | AN84: 0 | AO84: 0 | AP84: 0 | AQ84: 0 | AR84: 0 | AS84: 0 | AT84: 0 | AU84: 0 | AV84: 0 | AW84: 80423.64866 | AX84: =VLOOKUP(D$3,Prisindeks!$A$1:$B$111,2,FALSE)/100*AA84 -> 0 | AY84: =VLOOKUP(E$3,Prisindeks!$A$1:$B$111,2,FALSE)/100*AB84 -> 0 | AZ84: =VLOOKUP(F$3,Prisindeks!$A$1:$B$111,2,FALSE)/100*AC84 -> 0 | BA84: =VLOOKUP(G$3,Prisindeks!$A$1:$B$111,2,FALSE)/100*AD84 -> 0 | BB84: =VLOOKUP(H$3,Prisindeks!$A$1:$B$111,2,FALSE)/100*AE84 -> 0 | BC84: =VLOOKUP(I$3,Prisindeks!$A$1:$B$111,2,FALSE)/100*AF84 -> 0 | BD84: =VLOOKUP(J$3,Prisindeks!$A$1:$B$111,2,FALSE)/100*AG84 -> 0 | BE84: =VLOOKUP(K$3,Prisindeks!$A$1:$B$111,2,FALSE)/100*AH84 -> 0 | BF84: =VLOOKUP(L$3,Prisindeks!$A$1:$B$111,2,FALSE)/100*AI84 -> 0 | BG84: =VLOOKUP(M$3,Prisindeks!$A$1:$B$111,2,FALSE)/100*AJ84 -> 0 | BH84: =VLOOKUP(N$3,Prisindeks!$A$1:$B$111,2,FALSE)/100*AK84 -> 56777.96012 | BI84: =VLOOKUP(O$3,Prisindeks!$A$1:$B$111,2,FALSE)/100*AL84 -> 0 | BJ84: =VLOOKUP(P$3,Prisindeks!$A$1:$B$111,2,FALSE)/100*AM84 -> 0 | BK84: =VLOOKUP(Q$3,Prisindeks!$A$1:$B$111,2,FALSE)/100*AN84 -> 0 | BL84: =VLOOKUP(R$3,Prisindeks!$A$1:$B$111,2,FALSE)/100*AO84 -> 0 | BM84: =VLOOKUP(S$3,Prisindeks!$A$1:$B$111,2,FALSE)/100*AP84 -> 0 | BN84: =VLOOKUP(T$3,Prisindeks!$A$1:$B$111,2,FALSE)/100*AQ84 -> 0 | BO84: =VLOOKUP(U$3,Prisindeks!$A$1:$B$111,2,FALSE)/100*AR84 -> 0 | BP84: =VLOOKUP(V$3,Prisindeks!$A$1:$B$111,2,FALSE)/100*AS84 -> 0 | BQ84: =VLOOKUP(W$3,Prisindeks!$A$1:$B$111,2,FALSE)/100*AT84 -> 0 | BR84: =VLOOKUP(X$3,Prisindeks!$A$1:$B$111,2,FALSE)/100*AU84 -> 0 | BS84: =VLOOKUP(Y$3,Prisindeks!$A$1:$B$111,2,FALSE)/100*AV84 -> 0 | BT84: 56777.96012 | BU84: 0 | BV84: 0 | BW84: 0 | BX84: 0 | BY84: 0 | BZ84: 0 | CA84: 0 | CB84: 0 | CC84: 0 | CD84: 0 | CE84: 68600.80439 | CF84: 0 | CG84: 0 | CH84: 0 | CI84: 0 | CJ84: 0 | CK84: 0 | CL84: 0 | CM84: 0 | CN84: 0 | CO84: 0 | CP84: 0 | CQ84: 68600.80439 | CR84: 4000
A85: Skyllevand-/slamhåndteringsanlæg - lukkede betonbeholdere | B85: m³ | C85: =Genanskaffelsespriser!$E$53 -> 50 | D85: 0 | E85: 0 | F85: 0 | G85: 0 | H85: 0 | I85: 0 | J85: 0 | K85: 0 | L85: 0 | M85: 0 | N85: 0 | O85: 0 | P85: 0 | Q85: 0 | R85: 0 | S85: 0 | T85: 0 | U85: 0 | V85: 0 | W85: 0 | X85: 0 | Y85: 0 | Z85: =IF(COUNTIF(D85:Y85,"<>0")<=1,IF((SUM(D85:Y85))>0,(+HLOOKUP((SUM(D85:Y85)),Priser!$E$207:$J$209,2)+((SUM(D85:Y85))-HLOOKUP((SUM(D85:Y85)),Priser!$E$207:$J$209,1))*HLOOKUP((SUM(D85:Y85)),Priser!$E$207:$J$209,3))/(SUM(D85:Y85)),0)*(1+Genanskaffelsespriser!$D$196),$A$1373) -> 0 | AA85: =IF((D85*$Z85-(2009-D$3)/($C85+D86)*$Z85*D85)<0,0,(D85*$Z85-(2009-D$3)/($C85+D86)*$Z85*D85)) -> 0 | AB85: =IF((E85*$Z85-(2009-E$3)/($C85+E86)*$Z85*E85)<0,0,(E85*$Z85-(2009-E$3)/($C85+E86)*$Z85*E85)) -> 0 | AC85: 0 | AD85: 0 | AE85: 0 | AF85: 0 | AG85: 0 | AH85: 0 | AI85: 0 | AJ85: 0 | AK85: 0 | AL85: 0 | AM85: 0 | AN85: 0 | AO85: 0 | AP85: 0 | AQ85: 0 | AR85: 0 | AS85: 0 | AT85: 0 | AU85: 0 | AV85: 0 | AW85: 0 | AX85: =VLOOKUP(D$3,Prisindeks!$A$1:$B$111,2,FALSE)/100*AA85 -> 0 | AY85: =VLOOKUP(E$3,Prisindeks!$A$1:$B$111,2,FALSE)/100*AB85 -> 0 | AZ85: =VLOOKUP(F$3,Prisindeks!$A$1:$B$111,2,FALSE)/100*AC85 -> 0 | BA85: =VLOOKUP(G$3,Prisindeks!$A$1:$B$111,2,FALSE)/100*AD85 -> 0 | BB85: =VLOOKUP(H$3,Prisindeks!$A$1:$B$111,2,FALSE)/100*AE85 -> 0 | BC85: =VLOOKUP(I$3,Prisindeks!$A$1:$B$111,2,FALSE)/100*AF85 -> 0 | BD85: =VLOOKUP(J$3,Prisindeks!$A$1:$B$111,2,FALSE)/100*AG85 -> 0 | BE85: =VLOOKUP(K$3,Prisindeks!$A$1:$B$111,2,FALSE)/100*AH85 -> 0 | BF85: =VLOOKUP(L$3,Prisindeks!$A$1:$B$111,2,FALSE)/100*AI85 -> 0 | BG85: =VLOOKUP(M$3,Prisindeks!$A$1:$B$111,2,FALSE)/100*AJ85 -> 0 | BH85: =VLOOKUP(N$3,Prisindeks!$A$1:$B$111,2,FALSE)/100*AK85 -> 0 | BI85: =VLOOKUP(O$3,Prisindeks!$A$1:$B$111,2,FALSE)/100*AL85 -> 0 | BJ85: =VLOOKUP(P$3,Prisindeks!$A$1:$B$111,2,FALSE)/100*AM85 -> 0 | BK85: =VLOOKUP(Q$3,Prisindeks!$A$1:$B$111,2,FALSE)/100*AN85 -> 0 | BL85: =VLOOKUP(R$3,Prisindeks!$A$1:$B$111,2,FALSE)/100*AO85 -> 0 | BM85: =VLOOKUP(S$3,Prisindeks!$A$1:$B$111,2,FALSE)/100*AP85 -> 0 | BN85: =VLOOKUP(T$3,Prisindeks!$A$1:$B$111,2,FALSE)/100*AQ85 -> 0 | BO85: =VLOOKUP(U$3,Prisindeks!$A$1:$B$111,2,FALSE)/100*AR85 -> 0 | BP85: =VLOOKUP(V$3,Prisindeks!$A$1:$B$111,2,FALSE)/100*AS85 -> 0 | BQ85: =VLOOKUP(W$3,Prisindeks!$A$1:$B$111,2,FALSE)/100*AT85 -> 0 | BR85: =VLOOKUP(X$3,Prisindeks!$A$1:$B$111,2,FALSE)/100*AU85 -> 0 | BS85: =VLOOKUP(Y$3,Prisindeks!$A$1:$B$111,2,FALSE)/100*AV85 -> 0 | BT85: 0 | BU85: 0 | BV85: 0 | BW85: 0 | BX85: 0 | BY85: 0 | BZ85: 0 | CA85: 0 | CB85: 0 | CC85: 0 | CD85: 0 | CE85: 0 | CF85: 0 | CG85: 0 | CH85: 0 | CI85: 0 | CJ85: 0 | CK85: 0 | CL85: 0 | CM85: 0 | CN85: 0 | CO85: 0 | CP85: 0 | CQ85: 0 | CR85: 0
A86: Levetidsforlængelse | B86: år | C86: - | D86: 0 | E86: 0 | F86: 0 | G86: 0 | H86: 0 | I86: 0 | J86: 0 | K86: 0 | L86: 0 | M86: 0 | N86: 0 | O86: 0 | P86: 0 | Q86: 0 | R86: 0 | S86: 0 | T86: 0 | U86: 0 | V86: 0 | W86: 0 | X86: 0 | Y86: 0
A87: Skyllevand-/slamhåndteringsanl. - åbne med faste sider/bund | B87: m³ | C87: =Genanskaffelsespriser!$E$54 -> 50 | D87: 0 | E87: 0 | F87: 0 | G87: 0 | H87: 0 | I87: 0 | J87: 0 | K87: 0 | L87: 0 | M87: 0 | N87: 0 | O87: 0 | P87: 0 | Q87: 0 | R87: 0 | S87: 0 | T87: 0 | U87: 0 | V87: 0 | W87: 0 | X87: 0 | Y87: 0 | Z87: =IF(COUNTIF(D87:Y87,"<>0")<=1,IF((SUM(D87:Y87))>0,(+HLOOKUP((SUM(D87:Y87)),Priser!$E$207:$J$212,5)+((SUM(D87:Y87))-HLOOKUP((SUM(D87:Y87)),Priser!$E$207:$J$212,1))*HLOOKUP((SUM(D87:Y87)),Priser!$E$207:$J$212,6))/(SUM(D87:Y87)),0)*(1+Genanskaffelsespriser!$D$196),$A$1373) -> 0 | AA87: =IF((D87*$Z87-(2009-D$3)/($C87+D88)*$Z87*D87)<0,0,(D87*$Z87-(2009-D$3)/($C87+D88)*$Z87*D87)) -> 0 | AB87: =IF((E87*$Z87-(2009-E$3)/($C87+E88)*$Z87*E87)<0,0,(E87*$Z87-(2009-E$3)/($C87+E88)*$Z87*E87)) -> 0 | AC87: 0 | AD87: 0 | AE87: 0 | AF87: 0 | AG87: 0 | AH87: 0 | AI87: 0 | AJ87: 0 | AK87: 0 | AL87: 0 | AM87: 0 | AN87: 0 | AO87: 0 | AP87: 0 | AQ87: 0 | AR87: 0 | AS87: 0 | AT87: 0 | AU87: 0 | AV87: 0 | AW87: 0 | AX87: =VLOOKUP(D$3,Prisindeks!$A$1:$B$111,2,FALSE)/100*AA87 -> 0 | AY87: =VLOOKUP(E$3,Prisindeks!$A$1:$B$111,2,FALSE)/100*AB87 -> 0 | AZ87: =VLOOKUP(F$3,Prisindeks!$A$1:$B$111,2,FALSE)/100*AC87 -> 0 | BA87: =VLOOKUP(G$3,Prisindeks!$A$1:$B$111,2,FALSE)/100*AD87 -> 0 | BB87: =VLOOKUP(H$3,Prisindeks!$A$1:$B$111,2,FALSE)/100*AE87 -> 0 | BC87: =VLOOKUP(I$3,Prisindeks!$A$1:$B$111,2,FALSE)/100*AF87 -> 0 | BD87: =VLOOKUP(J$3,Prisindeks!$A$1:$B$111,2,FALSE)/100*AG87 -> 0 | BE87: =VLOOKUP(K$3,Prisindeks!$A$1:$B$111,2,FALSE)/100*AH87 -> 0 | BF87: =VLOOKUP(L$3,Prisindeks!$A$1:$B$111,2,FALSE)/100*AI87 -> 0 | BG87: =VLOOKUP(M$3,Prisindeks!$A$1:$B$111,2,FALSE)/100*AJ87 -> 0 | BH87: =VLOOKUP(N$3,Prisindeks!$A$1:$B$111,2,FALSE)/100*AK87 -> 0 | BI87: =VLOOKUP(O$3,Prisindeks!$A$1:$B$111,2,FALSE)/100*AL87 -> 0 | BJ87: =VLOOKUP(P$3,Prisindeks!$A$1:$B$111,2,FALSE)/100*AM87 -> 0 | BK87: =VLOOKUP(Q$3,Prisindeks!$A$1:$B$111,2,FALSE)/100*AN87 -> 0 | BL87: =VLOOKUP(R$3,Prisindeks!$A$1:$B$111,2,FALSE)/100*AO87 -> 0 | BM87: =VLOOKUP(S$3,Prisindeks!$A$1:$B$111,2,FALSE)/100*AP87 -> 0 | BN87: =VLOOKUP(T$3,Prisindeks!$A$1:$B$111,2,FALSE)/100*AQ87 -> 0 | BO87: =VLOOKUP(U$3,Prisindeks!$A$1:$B$111,2,FALSE)/100*AR87 -> 0 | BP87: =VLOOKUP(V$3,Prisindeks!$A$1:$B$111,2,FALSE)/100*AS87 -> 0 | BQ87: =VLOOKUP(W$3,Prisindeks!$A$1:$B$111,2,FALSE)/100*AT87 -> 0 | BR87: =VLOOKUP(X$3,Prisindeks!$A$1:$B$111,2,FALSE)/100*AU87 -> 0 | BS87: =VLOOKUP(Y$3,Prisindeks!$A$1:$B$111,2,FALSE)/100*AV87 -> 0 | BT87: 0 | BU87: 0 | BV87: 0 | BW87: 0 | BX87: 0 | BY87: 0 | BZ87: 0 | CA87: 0 | CB87: 0 | CC87: 0 | CD87: 0 | CE87: 0 | CF87: 0 | CG87: 0 | CH87: 0 | CI87: 0 | CJ87: 0 | CK87: 0 | CL87: 0 | CM87: 0 | CN87: 0 | CO87: 0 | CP87: 0 | CQ87: 0 | CR87: 0
A88: Levetidsforlængelse | B88: år | C88: - | D88: 0 | E88: 0 | F88: 0 | G88: 0 | H88: 0 | I88: 0 | J88: 0 | K88: 0 | L88: 0 | M88: 0 | N88: 0 | O88: 0 | P88: 0 | Q88: 0 | R88: 0 | S88: 0 | T88: 0 | U88: 0 | V88: 0 | W88: 0 | X88: 0 | Y88: 0
A89: Skyllevand-/slamhåndteringsanlæg - jordbassiner | B89: m³ | C89: =Genanskaffelsespriser!$E$55 -> 50 | D89: 0 | E89: 0 | F89: 0 | G89: 0 | H89: 0 | I89: 0 | J89: 0 | K89: 0 | L89: 0 | M89: 0 | N89: 0 | O89: 0 | P89: 0 | Q89: 0 | R89: 0 | S89: 0 | T89: 0 | U89: 0 | V89: 0 | W89: 0 | X89: 0 | Y89: 0 | Z89: =IF(COUNTIF(D89:Y89,"<>0")<=1,IF((SUM(D89:Y89))>0,(+HLOOKUP((SUM(D89:Y89)),Priser!$E$207:$J$215,8)+((SUM(D89:Y89))-HLOOKUP((SUM(D89:Y89)),Priser!$E$207:$J$215,1))*HLOOKUP((SUM(D89:Y89)),Priser!$E$207:$J$215,9))/(SUM(D89:Y89)),0)*(1+Genanskaffelsespriser!$D$196),$A$1373) -> 0 | AA89: =IF((D89*$Z89-(2009-D$3)/($C89+D90)*$Z89*D89)<0,0,(D89*$Z89-(2009-D$3)/($C89+D90)*$Z89*D89)) -> 0 | AB89: =IF((E89*$Z89-(2009-E$3)/($C89+E90)*$Z89*E89)<0,0,(E89*$Z89-(2009-E$3)/($C89+E90)*$Z89*E89)) -> 0 | AC89: 0 | AD89: 0 | AE89: 0 | AF89: 0 | AG89: 0 | AH89: 0 | AI89: 0 | AJ89: 0 | AK89: 0 | AL89: 0 | AM89: 0 | AN89: 0 | AO89: 0 | AP89: 0 | AQ89: 0 | AR89: 0 | AS89: 0 | AT89: 0 | AU89: 0 | AV89: 0 | AW89: 0 | AX89: =VLOOKUP(D$3,Prisindeks!$A$1:$B$111,2,FALSE)/100*AA89 -> 0 | AY89: =VLOOKUP(E$3,Prisindeks!$A$1:$B$111,2,FALSE)/100*AB89 -> 0 | AZ89: =VLOOKUP(F$3,Prisindeks!$A$1:$B$111,2,FALSE)/100*AC89 -> 0 | BA89: =VLOOKUP(G$3,Prisindeks!$A$1:$B$111,2,FALSE)/100*AD89 -> 0 | BB89: =VLOOKUP(H$3,Prisindeks!$A$1:$B$111,2,FALSE)/100*AE89 -> 0 | BC89: =VLOOKUP(I$3,Prisindeks!$A$1:$B$111,2,FALSE)/100*AF89 -> 0 | BD89: =VLOOKUP(J$3,Prisindeks!$A$1:$B$111,2,FALSE)/100*AG89 -> 0 | BE89: =VLOOKUP(K$3,Prisindeks!$A$1:$B$111,2,FALSE)/100*AH89 -> 0 | BF89: =VLOOKUP(L$3,Prisindeks!$A$1:$B$111,2,FALSE)/100*AI89 -> 0 | BG89: =VLOOKUP(M$3,Prisindeks!$A$1:$B$111,2,FALSE)/100*AJ89 -> 0 | BH89: =VLOOKUP(N$3,Prisindeks!$A$1:$B$111,2,FALSE)/100*AK89 -> 0 | BI89: =VLOOKUP(O$3,Prisindeks!$A$1:$B$111,2,FALSE)/100*AL89 -> 0 | BJ89: =VLOOKUP(P$3,Prisindeks!$A$1:$B$111,2,FALSE)/100*AM89 -> 0 | BK89: =VLOOKUP(Q$3,Prisindeks!$A$1:$B$111,2,FALSE)/100*AN89 -> 0 | BL89: =VLOOKUP(R$3,Prisindeks!$A$1:$B$111,2,FALSE)/100*AO89 -> 0 | BM89: =VLOOKUP(S$3,Prisindeks!$A$1:$B$111,2,FALSE)/100*AP89 -> 0 | BN89: =VLOOKUP(T$3,Prisindeks!$A$1:$B$111,2,FALSE)/100*AQ89 -> 0 | BO89: =VLOOKUP(U$3,Prisindeks!$A$1:$B$111,2,FALSE)/100*AR89 -> 0 | BP89: =VLOOKUP(V$3,Prisindeks!$A$1:$B$111,2,FALSE)/100*AS89 -> 0 | BQ89: =VLOOKUP(W$3,Prisindeks!$A$1:$B$111,2,FALSE)/100*AT89 -> 0 | BR89: =VLOOKUP(X$3,Prisindeks!$A$1:$B$111,2,FALSE)/100*AU89 -> 0 | BS89: =VLOOKUP(Y$3,Prisindeks!$A$1:$B$111,2,FALSE)/100*AV89 -> 0 | BT89: 0 | BU89: 0 | BV89: 0 | BW89: 0 | BX89: 0 | BY89: 0 | BZ89: 0 | CA89: 0 | CB89: 0 | CC89: 0 | CD89: 0 | CE89: 0 | CF89: 0 | CG89: 0 | CH89: 0 | CI89: 0 | CJ89: 0 | CK89: 0 | CL89: 0 | CM89: 0 | CN89: 0 | CO89: 0 | CP89: 0 | CQ89: 0 | CR89: 0
A90: Levetidsforlængelse | B90: år | C90: - | D90: 0 | E90: 0 | F90: 0 | G90: 0 | H90: 0 | I90: 0 | J90: 0 | K90: 0 | L90: 0 | M90: 0 | N90: 0 | O90: 0 | P90: 0 | Q90: 0 | R90: 0 | S90: 0 | T90: 0 | U90: 0 | V90: 0 | W90: 0 | X90: 0 | Y90: 0
A91: Skyllevandsbehandling, inkl. UV-filter mv., Mek./EL | B91: m³/h. | C91: =Genanskaffelsespriser!$E$56 -> 25 | D91: 0 | E91: 0 | F91: 0 | G91: 0 | H91: 0 | I91: 0 | J91: 0 | K91: 0 | L91: 0 | M91: 0 | N91: 0 | O91: 0 | P91: 0 | Q91: 0 | R91: 0 | S91: 0 | T91: 0 | U91: 0 | V91: 0 | W91: 0 | X91: 0 | Y91: 0 | Z91: =IF(COUNTIF(D91:Y91,"<>0")<=1,IF((SUM(D91:Y91))>0,(+HLOOKUP((SUM(D91:Y91)),Priser!$F$374:$H$376,2)+((SUM(D91:Y91))-HLOOKUP((SUM(D91:Y91)),Priser!$F$374:$H$376,1))*HLOOKUP((SUM(D91:Y91)),Priser!$F$374:$H$376,3))/(SUM(D91:Y91)),0)*Priser!$Q$376*(1+Genanskaffelsespriser!$D$196),$A$1373) -> 0 | AA91: =IF((D91*$Z91-(2009-D$3)/$C91*$Z91*D91)<0,0,(D91*$Z91-(2009-D$3)/$C91*$Z91*D91)) -> 0 | AB91: 0 | AC91: 0 | AD91: 0 | AE91: 0 | AF91: 0 | AG91: 0 | AH91: 0 | AI91: 0 | AJ91: 0 | AK91: 0 | AL91: 0 | AM91: 0 | AN91: 0 | AO91: 0 | AP91: 0 | AQ91: 0 | AR91: 0 | AS91: 0 | AT91: 0 | AU91: 0 | AV91: 0 | AW91: 0 | AX91: =VLOOKUP(D$3,Prisindeks!$A$1:$B$111,2,FALSE)/100*AA91 -> 0 | AY91: =VLOOKUP(E$3,Prisindeks!$A$1:$B$111,2,FALSE)/100*AB91 -> 0 | AZ91: =VLOOKUP(F$3,Prisindeks!$A$1:$B$111,2,FALSE)/100*AC91 -> 0 | BA91: =VLOOKUP(G$3,Prisindeks!$A$1:$B$111,2,FALSE)/100*AD91 -> 0 | BB91: =VLOOKUP(H$3,Prisindeks!$A$1:$B$111,2,FALSE)/100*AE91 -> 0 | BC91: =VLOOKUP(I$3,Prisindeks!$A$1:$B$111,2,FALSE)/100*AF91 -> 0 | BD91: =VLOOKUP(J$3,Prisindeks!$A$1:$B$111,2,FALSE)/100*AG91 -> 0 | BE91: =VLOOKUP(K$3,Prisindeks!$A$1:$B$111,2,FALSE)/100*AH91 -> 0 | BF91: =VLOOKUP(L$3,Prisindeks!$A$1:$B$111,2,FALSE)/100*AI91 -> 0 | BG91: =VLOOKUP(M$3,Prisindeks!$A$1:$B$111,2,FALSE)/100*AJ91 -> 0 | BH91: =VLOOKUP(N$3,Prisindeks!$A$1:$B$111,2,FALSE)/100*AK91 -> 0 | BI91: =VLOOKUP(O$3,Prisindeks!$A$1:$B$111,2,FALSE)/100*AL91 -> 0 | BJ91: =VLOOKUP(P$3,Prisindeks!$A$1:$B$111,2,FALSE)/100*AM91 -> 0 | BK91: =VLOOKUP(Q$3,Prisindeks!$A$1:$B$111,2,FALSE)/100*AN91 -> 0 | BL91: =VLOOKUP(R$3,Prisindeks!$A$1:$B$111,2,FALSE)/100*AO91 -> 0 | BM91: =VLOOKUP(S$3,Prisindeks!$A$1:$B$111,2,FALSE)/100*AP91 -> 0 | BN91: =VLOOKUP(T$3,Prisindeks!$A$1:$B$111,2,FALSE)/100*AQ91 -> 0 | BO91: =VLOOKUP(U$3,Prisindeks!$A$1:$B$111,2,FALSE)/100*AR91 -> 0 | BP91: =VLOOKUP(V$3,Prisindeks!$A$1:$B$111,2,FALSE)/100*AS91 -> 0 | BQ91: =VLOOKUP(W$3,Prisindeks!$A$1:$B$111,2,FALSE)/100*AT91 -> 0 | BR91: =VLOOKUP(X$3,Prisindeks!$A$1:$B$111,2,FALSE)/100*AU91 -> 0 | BS91: =VLOOKUP(Y$3,Prisindeks!$A$1:$B$111,2,FALSE)/100*AV91 -> 0 | BT91: 0 | BU91: 0 | BV91: 0 | BW91: 0 | BX91: 0 | BY91: 0 | BZ91: 0 | CA91: 0 | CB91: 0 | CC91: 0 | CD91: 0 | CE91: 0 | CF91: 0 | CG91: 0 | CH91: 0 | CI91: 0 | CJ91: 0 | CK91: 0 | CL91: 0 | CM91: 0 | CN91: 0 | CO91: 0 | CP91: 0 | CQ91: 0 | CR91: 0
A92: Skyllevandsbehandling, inkl. UV-filter mv., SRO | B92: m³/h. | C92: =Genanskaffelsespriser!$E$57 -> 10 | D92: 0 | E92: 0 | F92: 0 | G92: 0 | H92: 0 | I92: 0 | J92: 0 | K92: 0 | L92: 0 | M92: 0 | N92: 0 | O92: 0 | P92: 0 | Q92: 0 | R92: 0 | S92: 0 | T92: 0 | U92: 0 | V92: 0 | W92: 0 | X92: 0 | Y92: 0 | Z92: =IF(COUNTIF(D92:Y92,"<>0")<=1,IF((SUM(D92:Y92))>0,(+HLOOKUP((SUM(D92:Y92)),Priser!$F$374:$H$376,2)+((SUM(D92:Y92))-HLOOKUP((SUM(D92:Y92)),Priser!$F$374:$H$376,1))*HLOOKUP((SUM(D92:Y92)),Priser!$F$374:$H$376,3))/(SUM(D92:Y92)),0)*Priser!$R$376*(1+Genanskaffelsespriser!$D$196),$A$1373) -> 0 | AA92: =IF((D92*$Z92-(2009-D$3)/$C92*$Z92*D92)<0,0,(D92*$Z92-(2009-D$3)/$C92*$Z92*D92)) -> 0 | AB92: 0 | AC92: 0 | AD92: 0 | AE92: 0 | AF92: 0 | AG92: 0 | AH92: 0 | AI92: 0 | AJ92: 0 | AK92: 0 | AL92: 0 | AM92: 0 | AN92: 0 | AO92: 0 | AP92: 0 | AQ92: 0 | AR92: 0 | AS92: 0 | AT92: 0 | AU92: 0 | AV92: 0 | AW92: 0 | AX92: =VLOOKUP(D$3,Prisindeks!$A$1:$B$111,2,FALSE)/100*AA92 -> 0 | AY92: =VLOOKUP(E$3,Prisindeks!$A$1:$B$111,2,FALSE)/100*AB92 -> 0 | AZ92: =VLOOKUP(F$3,Prisindeks!$A$1:$B$111,2,FALSE)/100*AC92 -> 0 | BA92: =VLOOKUP(G$3,Prisindeks!$A$1:$B$111,2,FALSE)/100*AD92 -> 0 | BB92: =VLOOKUP(H$3,Prisindeks!$A$1:$B$111,2,FALSE)/100*AE92 -> 0 | BC92: =VLOOKUP(I$3,Prisindeks!$A$1:$B$111,2,FALSE)/100*AF92 -> 0 | BD92: =VLOOKUP(J$3,Prisindeks!$A$1:$B$111,2,FALSE)/100*AG92 -> 0 | BE92: =VLOOKUP(K$3,Prisindeks!$A$1:$B$111,2,FALSE)/100*AH92 -> 0 | BF92: =VLOOKUP(L$3,Prisindeks!$A$1:$B$111,2,FALSE)/100*AI92 -> 0 | BG92: =VLOOKUP(M$3,Prisindeks!$A$1:$B$111,2,FALSE)/100*AJ92 -> 0 | BH92: =VLOOKUP(N$3,Prisindeks!$A$1:$B$111,2,FALSE)/100*AK92 -> 0 | BI92: =VLOOKUP(O$3,Prisindeks!$A$1:$B$111,2,FALSE)/100*AL92 -> 0 | BJ92: =VLOOKUP(P$3,Prisindeks!$A$1:$B$111,2,FALSE)/100*AM92 -> 0 | BK92: =VLOOKUP(Q$3,Prisindeks!$A$1:$B$111,2,FALSE)/100*AN92 -> 0 | BL92: =VLOOKUP(R$3,Prisindeks!$A$1:$B$111,2,FALSE)/100*AO92 -> 0 | BM92: =VLOOKUP(S$3,Prisindeks!$A$1:$B$111,2,FALSE)/100*AP92 -> 0 | BN92: =VLOOKUP(T$3,Prisindeks!$A$1:$B$111,2,FALSE)/100*AQ92 -> 0 | BO92: =VLOOKUP(U$3,Prisindeks!$A$1:$B$111,2,FALSE)/100*AR92 -> 0 | BP92: =VLOOKUP(V$3,Prisindeks!$A$1:$B$111,2,FALSE)/100*AS92 -> 0 | BQ92: =VLOOKUP(W$3,Prisindeks!$A$1:$B$111,2,FALSE)/100*AT92 -> 0 | BR92: =VLOOKUP(X$3,Prisindeks!$A$1:$B$111,2,FALSE)/100*AU92 -> 0 | BS92: =VLOOKUP(Y$3,Prisindeks!$A$1:$B$111,2,FALSE)/100*AV92 -> 0 | BT92: 0 | BU92: 0 | BV92: 0 | BW92: 0 | BX92: 0 | BY92: 0 | BZ92: 0 | CA92: 0 | CB92: 0 | CC92: 0 | CD92: 0 | CE92: 0 | CF92: 0 | CG92: 0 | CH92: 0 | CI92: 0 | CJ92: 0 | CK92: 0 | CL92: 0 | CM92: 0 | CN92: 0 | CO92: 0 | CP92: 0 | CQ92: 0 | CR92: 0
A93: Nødstrømsanlæg på vandværk | B93: kW | C93: =Genanskaffelsespriser!$E$58 -> 25 | D93: 0 | E93: 0 | F93: 0 | G93: 0 | H93: 0 | I93: 0 | J93: 0 | K93: 0 | L93: 0 | M93: 0 | N93: 0 | O93: 0 | P93: 0 | Q93: 0 | R93: 0 | S93: 0 | T93: 0 | U93: 0 | V93: 0 | W93: 0 | X93: 0 | Y93: 0 | Z93: =IF(COUNTIF(D93:Y93,"<>0")<=1,IF((SUM(D93:Y93))>0,(+HLOOKUP((SUM(D93:Y93)),Priser!$E$294:$J$296,2)+((SUM(D93:Y93))-HLOOKUP((SUM(D93:Y93)),Priser!$E$294:$J$296,1))*HLOOKUP((SUM(D93:Y93)),Priser!$E$294:$J$296,3))/(SUM(D93:Y93)),0)*(1+Genanskaffelsespriser!$D$196),$A$1373) -> 0 | AA93: =IF((D93*$Z93-(2009-D$3)/$C93*$Z93*D93)<0,0,(D93*$Z93-(2009-D$3)/$C93*$Z93*D93)) -> 0 | AB93: 0 | AC93: 0 | AD93: 0 | AE93: 0 | AF93: 0 | AG93: 0 | AH93: 0 | AI93: 0 | AJ93: 0 | AK93: 0 | AL93: 0 | AM93: 0 | AN93: 0 | AO93: 0 | AP93: 0 | AQ93: 0 | AR93: 0 | AS93: 0 | AT93: 0 | AU93: 0 | AV93: 0 | AW93: 0 | AX93: =VLOOKUP(D$3,Prisindeks!$A$1:$B$111,2,FALSE)/100*AA93 -> 0 | AY93: =VLOOKUP(E$3,Prisindeks!$A$1:$B$111,2,FALSE)/100*AB93 -> 0 | AZ93: =VLOOKUP(F$3,Prisindeks!$A$1:$B$111,2,FALSE)/100*AC93 -> 0 | BA93: =VLOOKUP(G$3,Prisindeks!$A$1:$B$111,2,FALSE)/100*AD93 -> 0 | BB93: =VLOOKUP(H$3,Prisindeks!$A$1:$B$111,2,FALSE)/100*AE93 -> 0 | BC93: =VLOOKUP(I$3,Prisindeks!$A$1:$B$111,2,FALSE)/100*AF93 -> 0 | BD93: =VLOOKUP(J$3,Prisindeks!$A$1:$B$111,2,FALSE)/100*AG93 -> 0 | BE93: =VLOOKUP(K$3,Prisindeks!$A$1:$B$111,2,FALSE)/100*AH93 -> 0 | BF93: =VLOOKUP(L$3,Prisindeks!$A$1:$B$111,2,FALSE)/100*AI93 -> 0 | BG93: =VLOOKUP(M$3,Prisindeks!$A$1:$B$111,2,FALSE)/100*AJ93 -> 0 | BH93: =VLOOKUP(N$3,Prisindeks!$A$1:$B$111,2,FALSE)/100*AK93 -> 0 | BI93: =VLOOKUP(O$3,Prisindeks!$A$1:$B$111,2,FALSE)/100*AL93 -> 0 | BJ93: =VLOOKUP(P$3,Prisindeks!$A$1:$B$111,2,FALSE)/100*AM93 -> 0 | BK93: =VLOOKUP(Q$3,Prisindeks!$A$1:$B$111,2,FALSE)/100*AN93 -> 0 | BL93: =VLOOKUP(R$3,Prisindeks!$A$1:$B$111,2,FALSE)/100*AO93 -> 0 | BM93: =VLOOKUP(S$3,Prisindeks!$A$1:$B$111,2,FALSE)/100*AP93 -> 0 | BN93: =VLOOKUP(T$3,Prisindeks!$A$1:$B$111,2,FALSE)/100*AQ93 -> 0 | BO93: =VLOOKUP(U$3,Prisindeks!$A$1:$B$111,2,FALSE)/100*AR93 -> 0 | BP93: =VLOOKUP(V$3,Prisindeks!$A$1:$B$111,2,FALSE)/100*AS93 -> 0 | BQ93: =VLOOKUP(W$3,Prisindeks!$A$1:$B$111,2,FALSE)/100*AT93 -> 0 | BR93: =VLOOKUP(X$3,Prisindeks!$A$1:$B$111,2,FALSE)/100*AU93 -> 0 | BS93: =VLOOKUP(Y$3,Prisindeks!$A$1:$B$111,2,FALSE)/100*AV93 -> 0 | BT93: 0 | BU93: 0 | BV93: 0 | BW93: 0 | BX93: 0 | BY93: 0 | BZ93: 0 | CA93: 0 | CB93: 0 | CC93: 0 | CD93: 0 | CE93: 0 | CF93: 0 | CG93: 0 | CH93: 0 | CI93: 0 | CJ93: 0 | CK93: 0 | CL93: 0 | CM93: 0 | CN93: 0 | CO93: 0 | CP93: 0 | CQ93: 0 | CR93: 0
A94: Elanlæg og SRO-anlæg - vandværk, Elanlæg | B94: m³/h. | C94: =Genanskaffelsespriser!$E$59 -> 25 | D94: 0 | E94: 0 | F94: 0 | G94: 0 | H94: 0 | I94: 0 | J94: 0 | K94: 0 | L94: 0 | M94: 0 | N94: 0 | O94: 0 | P94: 0 | Q94: 0 | R94: 0 | S94: 0 | T94: 0 | U94: 0 | V94: 0 | W94: 0 | X94: 0 | Y94: 0 | Z94: =IF(COUNTIF(D94:Y94,"<>0")<=1,IF((SUM(D94:Y94))>0,((+HLOOKUP((SUM(D94:Y94)),Priser!$E$311:$J$315,4)+((SUM(D94:Y94))-HLOOKUP((SUM(D94:Y94)),Priser!$E$311:$J$315,1))*HLOOKUP((SUM(D94:Y94)),Priser!$E$311:$J$315,5))/(SUM(D94:Y94))),0)*(1+Genanskaffelsespriser!$D$196),$A$1373) -> 0 | AA94: =IF((D94*$Z94-(2009-D$3)/$C94*$Z94*D94)<0,0,(D94*$Z94-(2009-D$3)/$C94*$Z94*D94)) -> 0 | AB94: 0 | AC94: 0 | AD94: 0 | AE94: 0 | AF94: 0 | AG94: 0 | AH94: 0 | AI94: 0 | AJ94: 0 | AK94: 0 | AL94: 0 | AM94: 0 | AN94: 0 | AO94: 0 | AP94: 0 | AQ94: 0 | AR94: 0 | AS94: 0 | AT94: 0 | AU94: 0 | AV94: 0 | AW94: 0 | AX94: =VLOOKUP(D$3,Prisindeks!$A$1:$B$111,2,FALSE)/100*AA94 -> 0 | AY94: =VLOOKUP(E$3,Prisindeks!$A$1:$B$111,2,FALSE)/100*AB94 -> 0 | AZ94: =VLOOKUP(F$3,Prisindeks!$A$1:$B$111,2,FALSE)/100*AC94 -> 0 | BA94: =VLOOKUP(G$3,Prisindeks!$A$1:$B$111,2,FALSE)/100*AD94 -> 0 | BB94: =VLOOKUP(H$3,Prisindeks!$A$1:$B$111,2,FALSE)/100*AE94 -> 0 | BC94: =VLOOKUP(I$3,Prisindeks!$A$1:$B$111,2,FALSE)/100*AF94 -> 0 | BD94: =VLOOKUP(J$3,Prisindeks!$A$1:$B$111,2,FALSE)/100*AG94 -> 0 | BE94: =VLOOKUP(K$3,Prisindeks!$A$1:$B$111,2,FALSE)/100*AH94 -> 0 | BF94: =VLOOKUP(L$3,Prisindeks!$A$1:$B$111,2,FALSE)/100*AI94 -> 0 | BG94: =VLOOKUP(M$3,Prisindeks!$A$1:$B$111,2,FALSE)/100*AJ94 -> 0 | BH94: =VLOOKUP(N$3,Prisindeks!$A$1:$B$111,2,FALSE)/100*AK94 -> 0 | BI94: =VLOOKUP(O$3,Prisindeks!$A$1:$B$111,2,FALSE)/100*AL94 -> 0 | BJ94: =VLOOKUP(P$3,Prisindeks!$A$1:$B$111,2,FALSE)/100*AM94 -> 0 | BK94: =VLOOKUP(Q$3,Prisindeks!$A$1:$B$111,2,FALSE)/100*AN94 -> 0 | BL94: =VLOOKUP(R$3,Prisindeks!$A$1:$B$111,2,FALSE)/100*AO94 -> 0 | BM94: =VLOOKUP(S$3,Prisindeks!$A$1:$B$111,2,FALSE)/100*AP94 -> 0 | BN94: =VLOOKUP(T$3,Prisindeks!$A$1:$B$111,2,FALSE)/100*AQ94 -> 0 | BO94: =VLOOKUP(U$3,Prisindeks!$A$1:$B$111,2,FALSE)/100*AR94 -> 0 | BP94: =VLOOKUP(V$3,Prisindeks!$A$1:$B$111,2,FALSE)/100*AS94 -> 0 | BQ94: =VLOOKUP(W$3,Prisindeks!$A$1:$B$111,2,FALSE)/100*AT94 -> 0 | BR94: =VLOOKUP(X$3,Prisindeks!$A$1:$B$111,2,FALSE)/100*AU94 -> 0 | BS94: =VLOOKUP(Y$3,Prisindeks!$A$1:$B$111,2,FALSE)/100*AV94 -> 0 | BT94: 0 | BU94: 0 | BV94: 0 | BW94: 0 | BX94: 0 | BY94: 0 | BZ94: 0 | CA94: 0 | CB94: 0 | CC94: 0 | CD94: 0 | CE94: 0 | CF94: 0 | CG94: 0 | CH94: 0 | CI94: 0 | CJ94: 0 | CK94: 0 | CL94: 0 | CM94: 0 | CN94: 0 | CO94: 0 | CP94: 0 | CQ94: 0 | CR94: 0
A95: Elanlæg og SRO-anlæg - vandværk, SRO | B95: m³/h. | C95: =Genanskaffelsespriser!$E$60 -> 10 | D95: 0 | E95: 0 | F95: 0 | G95: 0 | H95: 0 | I95: 0 | J95: 0 | K95: 0 | L95: 0 | M95: 0 | N95: 0 | O95: 0 | P95: 0 | Q95: 0 | R95: 0 | S95: 0 | T95: 0 | U95: 0 | V95: 0 | W95: 0 | X95: 0 | Y95: 0 | Z95: =IF(COUNTIF(D95:Y95,"<>0")<=1,IF((SUM(D95:Y95))>0,(+HLOOKUP((SUM(D95:Y95)),Priser!$E$311:$J$318,7)+((SUM(D95:Y95))-HLOOKUP((SUM(D95:Y95)),Priser!$E$311:$J$318,1))*HLOOKUP((SUM(D95:Y95)),Priser!$E$311:$J$318,8))/(SUM(D95:Y95)),0)*(1+Genanskaffelsespriser!$D$196),$A$1373) -> 0 | AA95: =IF((D95*$Z95-(2009-D$3)/$C95*$Z95*D95)<0,0,(D95*$Z95-(2009-D$3)/$C95*$Z95*D95)) -> 0 | AB95: 0 | AC95: 0 | AD95: 0 | AE95: 0 | AF95: 0 | AG95: 0 | AH95: 0 | AI95: 0 | AJ95: 0 | AK95: 0 | AL95: 0 | AM95: 0 | AN95: 0 | AO95: 0 | AP95: 0 | AQ95: 0 | AR95: 0 | AS95: 0 | AT95: 0 | AU95: 0 | AV95: 0 | AW95: 0 | AX95: =VLOOKUP(D$3,Prisindeks!$A$1:$B$111,2,FALSE)/100*AA95 -> 0 | AY95: =VLOOKUP(E$3,Prisindeks!$A$1:$B$111,2,FALSE)/100*AB95 -> 0 | AZ95: =VLOOKUP(F$3,Prisindeks!$A$1:$B$111,2,FALSE)/100*AC95 -> 0 | BA95: =VLOOKUP(G$3,Prisindeks!$A$1:$B$111,2,FALSE)/100*AD95 -> 0 | BB95: =VLOOKUP(H$3,Prisindeks!$A$1:$B$111,2,FALSE)/100*AE95 -> 0 | BC95: =VLOOKUP(I$3,Prisindeks!$A$1:$B$111,2,FALSE)/100*AF95 -> 0 | BD95: =VLOOKUP(J$3,Prisindeks!$A$1:$B$111,2,FALSE)/100*AG95 -> 0 | BE95: =VLOOKUP(K$3,Prisindeks!$A$1:$B$111,2,FALSE)/100*AH95 -> 0 | BF95: =VLOOKUP(L$3,Prisindeks!$A$1:$B$111,2,FALSE)/100*AI95 -> 0 | BG95: =VLOOKUP(M$3,Prisindeks!$A$1:$B$111,2,FALSE)/100*AJ95 -> 0 | BH95: =VLOOKUP(N$3,Prisindeks!$A$1:$B$111,2,FALSE)/100*AK95 -> 0 | BI95: =VLOOKUP(O$3,Prisindeks!$A$1:$B$111,2,FALSE)/100*AL95 -> 0 | BJ95: =VLOOKUP(P$3,Prisindeks!$A$1:$B$111,2,FALSE)/100*AM95 -> 0 | BK95: =VLOOKUP(Q$3,Prisindeks!$A$1:$B$111,2,FALSE)/100*AN95 -> 0 | BL95: =VLOOKUP(R$3,Prisindeks!$A$1:$B$111,2,FALSE)/100*AO95 -> 0 | BM95: =VLOOKUP(S$3,Prisindeks!$A$1:$B$111,2,FALSE)/100*AP95 -> 0 | BN95: =VLOOKUP(T$3,Prisindeks!$A$1:$B$111,2,FALSE)/100*AQ95 -> 0 | BO95: =VLOOKUP(U$3,Prisindeks!$A$1:$B$111,2,FALSE)/100*AR95 -> 0 | BP95: =VLOOKUP(V$3,Prisindeks!$A$1:$B$111,2,FALSE)/100*AS95 -> 0 | BQ95: =VLOOKUP(W$3,Prisindeks!$A$1:$B$111,2,FALSE)/100*AT95 -> 0 | BR95: =VLOOKUP(X$3,Prisindeks!$A$1:$B$111,2,FALSE)/100*AU95 -> 0 | BS95: =VLOOKUP(Y$3,Prisindeks!$A$1:$B$111,2,FALSE)/100*AV95 -> 0 | BT95: 0 | BU95: 0 | BV95: 0 | BW95: 0 | BX95: 0 | BY95: 0 | BZ95: 0 | CA95: 0 | CB95: 0 | CC95: 0 | CD95: 0 | CE95: 0 | CF95: 0 | CG95: 0 | CH95: 0 | CI95: 0 | CJ95: 0 | CK95: 0 | CL95: 0 | CM95: 0 | CN95: 0 | CO95: 0 | CP95: 0 | CQ95: =+AVERAGE(AW95,BT95) -> 0 | CR95: 0
A96: Vandværk 2 | AW96: =SUM(AW97:AW138) -> 1900228.957 | BT96: =SUM(BT97:BT138) -> 1657237.29 | CQ96: =SUM(CQ97:CQ138) -> 1778733.123
A97: Beluftningsanlæg, iltningstrappe, Konstruktioner | B97: m³/h | C97: =Genanskaffelsespriser!$E$30 -> 50 | D97: 0 | E97: 0 | F97: 0 | G97: 0 | H97: 0 | I97: 0 | J97: 0 | K97: 0 | L97: 0 | M97: 0 | N97: 0 | O97: 0 | P97: 0 | Q97: 0 | R97: 0 | S97: 0 | T97: 0 | U97: 0 | V97: 0 | W97: 0 | X97: 0 | Y97: 0 | Z97: =IF(COUNTIF(D97:Y97,"<>0")<=1,IF((SUM(D97:Y97))>0,(+HLOOKUP((SUM(D97:Y97)),Priser!$E$96:$J$108,2)+((SUM(D97:Y97))-HLOOKUP((SUM(D97:Y97)),Priser!$E$96:$J$108,1))*HLOOKUP((SUM(D97:Y97)),Priser!$E$96:$J$108,3))/(SUM(D97:Y97)),0)*Priser!$Q$97*(1+Genanskaffelsespriser!$D$196),$A$1373) -> 0 | AA97: =IF((D97*$Z97-(2009-D$3)/($C97+D98)*$Z97*D97)<0,0,(D97*$Z97-(2009-D$3)/($C97+D98)*$Z97*D97)) -> 0 | AB97: 0 | AC97: 0 | AD97: 0 | AE97: 0 | AF97: 0 | AG97: 0 | AH97: 0 | AI97: 0 | AJ97: 0 | AK97: 0 | AL97: 0 | AM97: 0 | AN97: 0 | AO97: 0 | AP97: 0 | AQ97: 0 | AR97: 0 | AS97: 0 | AT97: 0 | AU97: 0 | AV97: 0 | AW97: =+SUM(AA97:AV97) -> 0 | AX97: =VLOOKUP(D$3,Prisindeks!$A$1:$B$111,2,FALSE)/100*AA97 -> 0 | AY97: =VLOOKUP(E$3,Prisindeks!$A$1:$B$111,2,FALSE)/100*AB97 -> 0 | AZ97: =VLOOKUP(F$3,Prisindeks!$A$1:$B$111,2,FALSE)/100*AC97 -> 0 | BA97: =VLOOKUP(G$3,Prisindeks!$A$1:$B$111,2,FALSE)/100*AD97 -> 0 | BB97: =VLOOKUP(H$3,Prisindeks!$A$1:$B$111,2,FALSE)/100*AE97 -> 0 | BC97: =VLOOKUP(I$3,Prisindeks!$A$1:$B$111,2,FALSE)/100*AF97 -> 0 | BD97: =VLOOKUP(J$3,Prisindeks!$A$1:$B$111,2,FALSE)/100*AG97 -> 0 | BE97: =VLOOKUP(K$3,Prisindeks!$A$1:$B$111,2,FALSE)/100*AH97 -> 0 | BF97: =VLOOKUP(L$3,Prisindeks!$A$1:$B$111,2,FALSE)/100*AI97 -> 0 | BG97: =VLOOKUP(M$3,Prisindeks!$A$1:$B$111,2,FALSE)/100*AJ97 -> 0 | BH97: =VLOOKUP(N$3,Prisindeks!$A$1:$B$111,2,FALSE)/100*AK97 -> 0 | BI97: =VLOOKUP(O$3,Prisindeks!$A$1:$B$111,2,FALSE)/100*AL97 -> 0 | BJ97: =VLOOKUP(P$3,Prisindeks!$A$1:$B$111,2,FALSE)/100*AM97 -> 0 | BK97: =VLOOKUP(Q$3,Prisindeks!$A$1:$B$111,2,FALSE)/100*AN97 -> 0 | BL97: =VLOOKUP(R$3,Prisindeks!$A$1:$B$111,2,FALSE)/100*AO97 -> 0 | BM97: =VLOOKUP(S$3,Prisindeks!$A$1:$B$111,2,FALSE)/100*AP97 -> 0 | BN97: =VLOOKUP(T$3,Prisindeks!$A$1:$B$111,2,FALSE)/100*AQ97 -> 0 | BO97: =VLOOKUP(U$3,Prisindeks!$A$1:$B$111,2,FALSE)/100*AR97 -> 0 | BP97: =VLOOKUP(V$3,Prisindeks!$A$1:$B$111,2,FALSE)/100*AS97 -> 0 | BQ97: =VLOOKUP(W$3,Prisindeks!$A$1:$B$111,2,FALSE)/100*AT97 -> 0 | BR97: =VLOOKUP(X$3,Prisindeks!$A$1:$B$111,2,FALSE)/100*AU97 -> 0 | BS97: =VLOOKUP(Y$3,Prisindeks!$A$1:$B$111,2,FALSE)/100*AV97 -> 0 | BT97: =+SUM(AX97:BS97) -> 0 | BU97: =(AA97+AX97)/2 -> 0 | BV97: 0 | BW97: 0 | BX97: 0 | BY97: 0 | BZ97: 0 | CA97: 0 | CB97: 0 | CC97: 0 | CD97: 0 | CE97: 0 | CF97: 0 | CG97: 0 | CH97: 0 | CI97: 0 | CJ97: 0 | CK97: 0 | CL97: 0 | CM97: 0 | CN97: 0 | CO97: 0 | CP97: 0 | CQ97: =+AVERAGE(AW97,BT97) -> 0 | CR97: =SUM(D97:Y97) -> 0
A98: Levetidsforlængelse | B98: år | C98: - | D98: 0 | E98: 0 | F98: 0 | G98: 0 | H98: 0 | I98: 0 | J98: 0 | K98: 0 | L98: 0 | M98: 0 | N98: 0 | O98: 0 | P98: 0 | Q98: 0 | R98: 0 | S98: 0 | T98: 0 | U98: 0 | V98: 0 | W98: 0 | X98: 0 | Y98: 0
A99: Beluftningsanlæg, iltningstrappe, Mek./EL | B99: m³/h | C99: =Genanskaffelsespriser!$E$31 -> 25 | D99: 0 | E99: 0 | F99: 0 | G99: 0 | H99: 0 | I99: 0 | J99: 0 | K99: 0 | L99: 0 | M99: 0 | N99: 0 | O99: 0 | P99: 0 | Q99: 0 | R99: 0 | S99: 0 | T99: 0 | U99: 0 | V99: 0 | W99: 0 | X99: 0 | Y99: 0 | Z99: =IF(COUNTIF(D99:Y99,"<>0")<=1,IF((SUM(D99:Y99))>0,(+HLOOKUP((SUM(D99:Y99)),Priser!$E$96:$J$108,2)+((SUM(D99:Y99))-HLOOKUP((SUM(D99:Y99)),Priser!$E$96:$J$108,1))*HLOOKUP((SUM(D99:Y99)),Priser!$E$96:$J$108,3))/(SUM(D99:Y99)),0)*Priser!$R$97*(1+Genanskaffelsespriser!$D$196),$A$1373) -> 0 | AA99: =IF((D99*$Z99-(2009-D$3)/$C99*$Z99*D99)<0,0,(D99*$Z99-(2009-D$3)/$C99*$Z99*D99)) -> 0 | AB99: 0 | AC99: 0 | AD99: 0 | AE99: 0 | AF99: 0 | AG99: 0 | AH99: 0 | AI99: 0 | AJ99: 0 | AK99: 0 | AL99: 0 | AM99: 0 | AN99: 0 | AO99: 0 | AP99: 0 | AQ99: 0 | AR99: 0 | AS99: 0 | AT99: 0 | AU99: 0 | AV99: 0 | AW99: =+SUM(AA99:AV99) -> 0 | AX99: =VLOOKUP(D$3,Prisindeks!$A$1:$B$111,2,FALSE)/100*AA99 -> 0 | AY99: =VLOOKUP(E$3,Prisindeks!$A$1:$B$111,2,FALSE)/100*AB99 -> 0 | AZ99: =VLOOKUP(F$3,Prisindeks!$A$1:$B$111,2,FALSE)/100*AC99 -> 0 | BA99: =VLOOKUP(G$3,Prisindeks!$A$1:$B$111,2,FALSE)/100*AD99 -> 0 | BB99: =VLOOKUP(H$3,Prisindeks!$A$1:$B$111,2,FALSE)/100*AE99 -> 0 | BC99: =VLOOKUP(I$3,Prisindeks!$A$1:$B$111,2,FALSE)/100*AF99 -> 0 | BD99: =VLOOKUP(J$3,Prisindeks!$A$1:$B$111,2,FALSE)/100*AG99 -> 0 | BE99: =VLOOKUP(K$3,Prisindeks!$A$1:$B$111,2,FALSE)/100*AH99 -> 0 | BF99: =VLOOKUP(L$3,Prisindeks!$A$1:$B$111,2,FALSE)/100*AI99 -> 0 | BG99: =VLOOKUP(M$3,Prisindeks!$A$1:$B$111,2,FALSE)/100*AJ99 -> 0 | BH99: =VLOOKUP(N$3,Prisindeks!$A$1:$B$111,2,FALSE)/100*AK99 -> 0 | BI99: =VLOOKUP(O$3,Prisindeks!$A$1:$B$111,2,FALSE)/100*AL99 -> 0 | BJ99: =VLOOKUP(P$3,Prisindeks!$A$1:$B$111,2,FALSE)/100*AM99 -> 0 | BK99: =VLOOKUP(Q$3,Prisindeks!$A$1:$B$111,2,FALSE)/100*AN99 -> 0 | BL99: =VLOOKUP(R$3,Prisindeks!$A$1:$B$111,2,FALSE)/100*AO99 -> 0 | BM99: =VLOOKUP(S$3,Prisindeks!$A$1:$B$111,2,FALSE)/100*AP99 -> 0 | BN99: =VLOOKUP(T$3,Prisindeks!$A$1:$B$111,2,FALSE)/100*AQ99 -> 0 | BO99: =VLOOKUP(U$3,Prisindeks!$A$1:$B$111,2,FALSE)/100*AR99 -> 0 | BP99: =VLOOKUP(V$3,Prisindeks!$A$1:$B$111,2,FALSE)/100*AS99 -> 0 | BQ99: =VLOOKUP(W$3,Prisindeks!$A$1:$B$111,2,FALSE)/100*AT99 -> 0 | BR99: =VLOOKUP(X$3,Prisindeks!$A$1:$B$111,2,FALSE)/100*AU99 -> 0 | BS99: =VLOOKUP(Y$3,Prisindeks!$A$1:$B$111,2,FALSE)/100*AV99 -> 0 | BT99: =+SUM(AX99:BS99) -> 0 | BU99: =(AA99+AX99)/2 -> 0 | BV99: 0 | BW99: 0 | BX99: 0 | BY99: 0 | BZ99: 0 | CA99: 0 | CB99: 0 | CC99: 0 | CD99: 0 | CE99: =(AK99+BH99)/2 -> 0 | CF99: 0 | CG99: 0 | CH99: 0 | CI99: 0 | CJ99: 0 | CK99: 0 | CL99: 0 | CM99: 0 | CN99: 0 | CO99: =(AU99+BR99)/2 -> 0 | CP99: =(AV99+BS99)/2 -> 0 | CQ99: =+AVERAGE(AW99,BT99) -> 0 | CR99: =SUM(D99:Y99) -> 0
A100: Beluftningsanlæg, ika-beluftning, Konstruktioner | B100: m³/h | C100: =Genanskaffelsespriser!$E$32 -> 50 | D100: 0 | E100: 0 | F100: 0 | G100: 0 | H100: 0 | I100: 0 | J100: 0 | K100: 0 | L100: 0 | M100: 0 | N100: 0 | O100: 0 | P100: 0 | Q100: 0 | R100: 0 | S100: 0 | T100: 0 | U100: 0 | V100: 0 | W100: 0 | X100: 0 | Y100: 0 | Z100: =IF(COUNTIF(D100:Y100,"<>0")<=1,IF((SUM(D100:Y100))>0,(+HLOOKUP((SUM(D100:Y100)),Priser!$E$96:$J$108,4)+((SUM(D100:Y100))-HLOOKUP((SUM(D100:Y100)),Priser!$E$96:$J$108,1))*HLOOKUP((SUM(D100:Y100)),Priser!$E$96:$J$108,5))/(SUM(D100:Y100)),0)*Priser!$Q$99*(1+Genanskaffelsespriser!$D$196),$A$1373) -> 0 | AA100: =IF((D100*$Z100-(2009-D$3)/($C100+D101)*$Z100*D100)<0,0,(D100*$Z100-(2009-D$3)/($C100+D101)*$Z100*D100)) -> 0 | AB100: 0 | AC100: 0 | AD100: 0 | AE100: 0 | AF100: 0 | AG100: 0 | AH100: 0 | AI100: 0 | AJ100: 0 | AK100: 0 | AL100: 0 | AM100: 0 | AN100: 0 | AO100: 0 | AP100: 0 | AQ100: 0 | AR100: 0 | AS100: 0 | AT100: 0 | AU100: 0 | AV100: 0 | AW100: =+SUM(AA100:AV100) -> 0 | AX100: =VLOOKUP(D$3,Prisindeks!$A$1:$B$111,2,FALSE)/100*AA100 -> 0 | AY100: =VLOOKUP(E$3,Prisindeks!$A$1:$B$111,2,FALSE)/100*AB100 -> 0 | AZ100: =VLOOKUP(F$3,Prisindeks!$A$1:$B$111,2,FALSE)/100*AC100 -> 0 | BA100: =VLOOKUP(G$3,Prisindeks!$A$1:$B$111,2,FALSE)/100*AD100 -> 0 | BB100: =VLOOKUP(H$3,Prisindeks!$A$1:$B$111,2,FALSE)/100*AE100 -> 0 | BC100: =VLOOKUP(I$3,Prisindeks!$A$1:$B$111,2,FALSE)/100*AF100 -> 0 | BD100: =VLOOKUP(J$3,Prisindeks!$A$1:$B$111,2,FALSE)/100*AG100 -> 0 | BE100: =VLOOKUP(K$3,Prisindeks!$A$1:$B$111,2,FALSE)/100*AH100 -> 0 | BF100: =VLOOKUP(L$3,Prisindeks!$A$1:$B$111,2,FALSE)/100*AI100 -> 0 | BG100: =VLOOKUP(M$3,Prisindeks!$A$1:$B$111,2,FALSE)/100*AJ100 -> 0 | BH100: =VLOOKUP(N$3,Prisindeks!$A$1:$B$111,2,FALSE)/100*AK100 -> 0 | BI100: =VLOOKUP(O$3,Prisindeks!$A$1:$B$111,2,FALSE)/100*AL100 -> 0 | BJ100: =VLOOKUP(P$3,Prisindeks!$A$1:$B$111,2,FALSE)/100*AM100 -> 0 | BK100: =VLOOKUP(Q$3,Prisindeks!$A$1:$B$111,2,FALSE)/100*AN100 -> 0 | BL100: =VLOOKUP(R$3,Prisindeks!$A$1:$B$111,2,FALSE)/100*AO100 -> 0 | BM100: =VLOOKUP(S$3,Prisindeks!$A$1:$B$111,2,FALSE)/100*AP100 -> 0 | BN100: =VLOOKUP(T$3,Prisindeks!$A$1:$B$111,2,FALSE)/100*AQ100 -> 0 | BO100: =VLOOKUP(U$3,Prisindeks!$A$1:$B$111,2,FALSE)/100*AR100 -> 0 | BP100: =VLOOKUP(V$3,Prisindeks!$A$1:$B$111,2,FALSE)/100*AS100 -> 0 | BQ100: =VLOOKUP(W$3,Prisindeks!$A$1:$B$111,2,FALSE)/100*AT100 -> 0 | BR100: =VLOOKUP(X$3,Prisindeks!$A$1:$B$111,2,FALSE)/100*AU100 -> 0 | BS100: =VLOOKUP(Y$3,Prisindeks!$A$1:$B$111,2,FALSE)/100*AV100 -> 0 | BT100: =+SUM(AX100:BS100) -> 0 | BU100: 0 | BV100: 0 | BW100: 0 | BX100: 0 | BY100: 0 | BZ100: 0 | CA100: 0 | CB100: 0 | CC100: 0 | CD100: 0 | CE100: 0 | CF100: 0 | CG100: 0 | CH100: 0 | CI100: 0 | CJ100: 0 | CK100: 0 | CL100: 0 | CM100: 0 | CN100: 0 | CO100: =(AU100+BR100)/2 -> 0 | CP100: =(AV100+BS100)/2 -> 0 | CQ100: =+AVERAGE(AW100,BT100) -> 0 | CR100: =SUM(D100:Y100) -> 0
A101: Levetidsforlængelse | B101: år | C101: - | D101: 0 | E101: 0 | F101: 0 | G101: 0 | H101: 0 | I101: 0 | J101: 0 | K101: 0 | L101: 0 | M101: 0 | N101: 0 | O101: 0 | P101: 0 | Q101: 0 | R101: 0 | S101: 0 | T101: 0 | U101: 0 | V101: 0 | W101: 0 | X101: 0 | Y101: 0
A102: Beluftningsanlæg, ika-beluftning, Mek./EL | B102: m³/h | C102: =Genanskaffelsespriser!$E$33 -> 25 | D102: 0 | E102: 0 | F102: 0 | G102: 0 | H102: 0 | I102: 0 | J102: 0 | K102: 0 | L102: 0 | M102: 0 | N102: 0 | O102: 0 | P102: 0 | Q102: 0 | R102: 0 | S102: 0 | T102: 0 | U102: 0 | V102: 0 | W102: 0 | X102: 0 | Y102: 0 | Z102: =IF(COUNTIF(D102:Y102,"<>0")<=1,IF((SUM(D102:Y102))>0,(+HLOOKUP((SUM(D102:Y102)),Priser!$E$96:$J$108,4)+((SUM(D102:Y102))-HLOOKUP((SUM(D102:Y102)),Priser!$E$96:$J$108,1))*HLOOKUP((SUM(D102:Y102)),Priser!$E$96:$J$108,5))/(SUM(D102:Y102)),0)*Priser!$R$99*(1+Genanskaffelsespriser!$D$196),$A$1373) -> 0 | AA102: =IF((D102*$Z102-(2009-D$3)/$C102*$Z102*D102)<0,0,(D102*$Z102-(2009-D$3)/$C102*$Z102*D102)) -> 0 | AB102: 0 | AC102: 0 | AD102: 0 | AE102: 0 | AF102: 0 | AG102: 0 | AH102: 0 | AI102: 0 | AJ102: 0 | AK102: 0 | AL102: 0 | AM102: 0 | AN102: 0 | AO102: 0 | AP102: 0 | AQ102: 0 | AR102: 0 | AS102: 0 | AT102: 0 | AU102: 0 | AV102: 0 | AW102: =+SUM(AA102:AV102) -> 0 | AX102: =VLOOKUP(D$3,Prisindeks!$A$1:$B$111,2,FALSE)/100*AA102 -> 0 | AY102: =VLOOKUP(E$3,Prisindeks!$A$1:$B$111,2,FALSE)/100*AB102 -> 0 | AZ102: =VLOOKUP(F$3,Prisindeks!$A$1:$B$111,2,FALSE)/100*AC102 -> 0 | BA102: =VLOOKUP(G$3,Prisindeks!$A$1:$B$111,2,FALSE)/100*AD102 -> 0 | BB102: =VLOOKUP(H$3,Prisindeks!$A$1:$B$111,2,FALSE)/100*AE102 -> 0 | BC102: =VLOOKUP(I$3,Prisindeks!$A$1:$B$111,2,FALSE)/100*AF102 -> 0 | BD102: =VLOOKUP(J$3,Prisindeks!$A$1:$B$111,2,FALSE)/100*AG102 -> 0 | BE102: =VLOOKUP(K$3,Prisindeks!$A$1:$B$111,2,FALSE)/100*AH102 -> 0 | BF102: =VLOOKUP(L$3,Prisindeks!$A$1:$B$111,2,FALSE)/100*AI102 -> 0 | BG102: =VLOOKUP(M$3,Prisindeks!$A$1:$B$111,2,FALSE)/100*AJ102 -> 0 | BH102: =VLOOKUP(N$3,Prisindeks!$A$1:$B$111,2,FALSE)/100*AK102 -> 0 | BI102: =VLOOKUP(O$3,Prisindeks!$A$1:$B$111,2,FALSE)/100*AL102 -> 0 | BJ102: =VLOOKUP(P$3,Prisindeks!$A$1:$B$111,2,FALSE)/100*AM102 -> 0 | BK102: =VLOOKUP(Q$3,Prisindeks!$A$1:$B$111,2,FALSE)/100*AN102 -> 0 | BL102: =VLOOKUP(R$3,Prisindeks!$A$1:$B$111,2,FALSE)/100*AO102 -> 0 | BM102: =VLOOKUP(S$3,Prisindeks!$A$1:$B$111,2,FALSE)/100*AP102 -> 0 | BN102: =VLOOKUP(T$3,Prisindeks!$A$1:$B$111,2,FALSE)/100*AQ102 -> 0 | BO102: =VLOOKUP(U$3,Prisindeks!$A$1:$B$111,2,FALSE)/100*AR102 -> 0 | BP102: =VLOOKUP(V$3,Prisindeks!$A$1:$B$111,2,FALSE)/100*AS102 -> 0 | BQ102: =VLOOKUP(W$3,Prisindeks!$A$1:$B$111,2,FALSE)/100*AT102 -> 0 | BR102: =VLOOKUP(X$3,Prisindeks!$A$1:$B$111,2,FALSE)/100*AU102 -> 0 | BS102: =VLOOKUP(Y$3,Prisindeks!$A$1:$B$111,2,FALSE)/100*AV102 -> 0 | BT102: =+SUM(AX102:BS102) -> 0 | BU102: =(AA102+AX102)/2 -> 0 | BV102: 0 | BW102: 0 | BX102: 0 | BY102: 0 | BZ102: 0 | CA102: 0 | CB102: 0 | CC102: 0 | CD102: 0 | CE102: =(AK102+BH102)/2 -> 0 | CF102: 0 | CG102: 0 | CH102: 0 | CI102: 0 | CJ102: 0 | CK102: 0 | CL102: 0 | CM102: 0 | CN102: 0 | CO102: =(AU102+BR102)/2 -> 0 | CP102: =(AV102+BS102)/2 -> 0 | CQ102: =+AVERAGE(AW102,BT102) -> 0 | CR102: =SUM(D102:Y102) -> 0
A103: Beluftningsanlæg, bundbeluftbning, Konstruktioner | B103: m³/h | C103: =Genanskaffelsespriser!$E$34 -> 50 | D103: 0 | E103: 0 | F103: 0 | G103: 0 | H103: 0 | I103: 0 | J103: 0 | K103: 0 | L103: 0 | M103: 0 | N103: 0 | O103: 0 | P103: 0 | Q103: 0 | R103: 0 | S103: 0 | T103: 0 | U103: 0 | V103: 0 | W103: 0 | X103: 0 | Y103: 0 | Z103: =IF(COUNTIF(D103:Y103,"<>0")<=1,IF((SUM(D103:Y103))>0,(+HLOOKUP((SUM(D103:Y103)),Priser!$E$96:$J$108,8)+((SUM(D103:Y103))-HLOOKUP((SUM(D103:Y103)),Priser!$E$96:$J$108,1))*HLOOKUP((SUM(D103:Y103)),Priser!$E$96:$J$108,9))/(SUM(D103:Y103)),0)*Priser!$Q$103*(1+Genanskaffelsespriser!$D$196),$A$1373) -> 0 | AA103: =IF((D103*$Z103-(2009-D$3)/($C103+D104)*$Z103*D103)<0,0,(D103*$Z103-(2009-D$3)/($C103+D104)*$Z103*D103)) -> 0 | AB103: 0 | AC103: 0 | AD103: 0 | AE103: 0 | AF103: 0 | AG103: 0 | AH103: 0 | AI103: 0 | AJ103: 0 | AK103: 0 | AL103: 0 | AM103: 0 | AN103: 0 | AO103: 0 | AP103: 0 | AQ103: 0 | AR103: 0 | AS103: 0 | AT103: 0 | AU103: 0 | AV103: 0 | AW103: =+SUM(AA103:AV103) -> 0 | AX103: =VLOOKUP(D$3,Prisindeks!$A$1:$B$111,2,FALSE)/100*AA103 -> 0 | AY103: =VLOOKUP(E$3,Prisindeks!$A$1:$B$111,2,FALSE)/100*AB103 -> 0 | AZ103: =VLOOKUP(F$3,Prisindeks!$A$1:$B$111,2,FALSE)/100*AC103 -> 0 | BA103: =VLOOKUP(G$3,Prisindeks!$A$1:$B$111,2,FALSE)/100*AD103 -> 0 | BB103: =VLOOKUP(H$3,Prisindeks!$A$1:$B$111,2,FALSE)/100*AE103 -> 0 | BC103: =VLOOKUP(I$3,Prisindeks!$A$1:$B$111,2,FALSE)/100*AF103 -> 0 | BD103: =VLOOKUP(J$3,Prisindeks!$A$1:$B$111,2,FALSE)/100*AG103 -> 0 | BE103: =VLOOKUP(K$3,Prisindeks!$A$1:$B$111,2,FALSE)/100*AH103 -> 0 | BF103: =VLOOKUP(L$3,Prisindeks!$A$1:$B$111,2,FALSE)/100*AI103 -> 0 | BG103: =VLOOKUP(M$3,Prisindeks!$A$1:$B$111,2,FALSE)/100*AJ103 -> 0 | BH103: =VLOOKUP(N$3,Prisindeks!$A$1:$B$111,2,FALSE)/100*AK103 -> 0 | BI103: =VLOOKUP(O$3,Prisindeks!$A$1:$B$111,2,FALSE)/100*AL103 -> 0 | BJ103: =VLOOKUP(P$3,Prisindeks!$A$1:$B$111,2,FALSE)/100*AM103 -> 0 | BK103: =VLOOKUP(Q$3,Prisindeks!$A$1:$B$111,2,FALSE)/100*AN103 -> 0 | BL103: =VLOOKUP(R$3,Prisindeks!$A$1:$B$111,2,FALSE)/100*AO103 -> 0 | BM103: =VLOOKUP(S$3,Prisindeks!$A$1:$B$111,2,FALSE)/100*AP103 -> 0 | BN103: =VLOOKUP(T$3,Prisindeks!$A$1:$B$111,2,FALSE)/100*AQ103 -> 0 | BO103: =VLOOKUP(U$3,Prisindeks!$A$1:$B$111,2,FALSE)/100*AR103 -> 0 | BP103: =VLOOKUP(V$3,Prisindeks!$A$1:$B$111,2,FALSE)/100*AS103 -> 0 | BQ103: =VLOOKUP(W$3,Prisindeks!$A$1:$B$111,2,FALSE)/100*AT103 -> 0 | BR103: =VLOOKUP(X$3,Prisindeks!$A$1:$B$111,2,FALSE)/100*AU103 -> 0 | BS103: =VLOOKUP(Y$3,Prisindeks!$A$1:$B$111,2,FALSE)/100*AV103 -> 0 | BT103: =+SUM(AX103:BS103) -> 0 | BU103: 0 | BV103: 0 | BW103: 0 | BX103: 0 | BY103: 0 | BZ103: 0 | CA103: 0 | CB103: 0 | CC103: 0 | CD103: 0 | CE103: 0 | CF103: 0 | CG103: 0 | CH103: 0 | CI103: 0 | CJ103: 0 | CK103: 0 | CL103: 0 | CM103: 0 | CN103: 0 | CO103: =(AU103+BR103)/2 -> 0 | CP103: =(AV103+BS103)/2 -> 0 | CQ103: =+AVERAGE(AW103,BT103) -> 0 | CR103: =SUM(D103:Y103) -> 0
A104: Levetidsforlængelse | B104: år | C104: - | D104: 0 | E104: 0 | F104: 0 | G104: 0 | H104: 0 | I104: 0 | J104: 0 | K104: 0 | L104: 0 | M104: 0 | N104: 0 | O104: 0 | P104: 0 | Q104: 0 | R104: 0 | S104: 0 | T104: 0 | U104: 0 | V104: 0 | W104: 0 | X104: 0 | Y104: 0
A105: Beluftningsanlæg, bundbeluftbning, Mek./EL | B105: m³/h | C105: =Genanskaffelsespriser!$E$35 -> 25 | D105: 0 | E105: 0 | F105: 0 | G105: 0 | H105: 0 | I105: 0 | J105: 0 | K105: 0 | L105: 0 | M105: 0 | N105: 0 | O105: 0 | P105: 0 | Q105: 0 | R105: 0 | S105: 0 | T105: 0 | U105: 0 | V105: 0 | W105: 0 | X105: 0 | Y105: 0 | Z105: =IF(COUNTIF(D105:Y105,"<>0")<=1,IF((SUM(D105:Y105))>0,(+HLOOKUP((SUM(D105:Y105)),Priser!$E$96:$J$108,8)+((SUM(D105:Y105))-HLOOKUP((SUM(D105:Y105)),Priser!$E$96:$J$108,1))*HLOOKUP((SUM(D105:Y105)),Priser!$E$96:$J$108,9))/(SUM(D105:Y105)),0)*Priser!$R$103*(1+Genanskaffelsespriser!$D$196),$A$1373) -> 0 | AA105: =IF((D105*$Z105-(2009-D$3)/$C105*$Z105*D105)<0,0,(D105*$Z105-(2009-D$3)/$C105*$Z105*D105)) -> 0 | AB105: 0 | AC105: 0 | AD105: 0 | AE105: 0 | AF105: 0 | AG105: 0 | AH105: 0 | AI105: 0 | AJ105: 0 | AK105: 0 | AL105: 0 | AM105: 0 | AN105: 0 | AO105: 0 | AP105: 0 | AQ105: 0 | AR105: 0 | AS105: 0 | AT105: 0 | AU105: 0 | AV105: 0 | AW105: =+SUM(AA105:AV105) -> 0 | AX105: =VLOOKUP(D$3,Prisindeks!$A$1:$B$111,2,FALSE)/100*AA105 -> 0 | AY105: =VLOOKUP(E$3,Prisindeks!$A$1:$B$111,2,FALSE)/100*AB105 -> 0 | AZ105: =VLOOKUP(F$3,Prisindeks!$A$1:$B$111,2,FALSE)/100*AC105 -> 0 | BA105: =VLOOKUP(G$3,Prisindeks!$A$1:$B$111,2,FALSE)/100*AD105 -> 0 | BB105: =VLOOKUP(H$3,Prisindeks!$A$1:$B$111,2,FALSE)/100*AE105 -> 0 | BC105: =VLOOKUP(I$3,Prisindeks!$A$1:$B$111,2,FALSE)/100*AF105 -> 0 | BD105: =VLOOKUP(J$3,Prisindeks!$A$1:$B$111,2,FALSE)/100*AG105 -> 0 | BE105: =VLOOKUP(K$3,Prisindeks!$A$1:$B$111,2,FALSE)/100*AH105 -> 0 | BF105: =VLOOKUP(L$3,Prisindeks!$A$1:$B$111,2,FALSE)/100*AI105 -> 0 | BG105: =VLOOKUP(M$3,Prisindeks!$A$1:$B$111,2,FALSE)/100*AJ105 -> 0 | BH105: =VLOOKUP(N$3,Prisindeks!$A$1:$B$111,2,FALSE)/100*AK105 -> 0 | BI105: =VLOOKUP(O$3,Prisindeks!$A$1:$B$111,2,FALSE)/100*AL105 -> 0 | BJ105: =VLOOKUP(P$3,Prisindeks!$A$1:$B$111,2,FALSE)/100*AM105 -> 0 | BK105: =VLOOKUP(Q$3,Prisindeks!$A$1:$B$111,2,FALSE)/100*AN105 -> 0 | BL105: =VLOOKUP(R$3,Prisindeks!$A$1:$B$111,2,FALSE)/100*AO105 -> 0 | BM105: =VLOOKUP(S$3,Prisindeks!$A$1:$B$111,2,FALSE)/100*AP105 -> 0 | BN105: =VLOOKUP(T$3,Prisindeks!$A$1:$B$111,2,FALSE)/100*AQ105 -> 0 | BO105: =VLOOKUP(U$3,Prisindeks!$A$1:$B$111,2,FALSE)/100*AR105 -> 0 | BP105: =VLOOKUP(V$3,Prisindeks!$A$1:$B$111,2,FALSE)/100*AS105 -> 0 | BQ105: =VLOOKUP(W$3,Prisindeks!$A$1:$B$111,2,FALSE)/100*AT105 -> 0 | BR105: =VLOOKUP(X$3,Prisindeks!$A$1:$B$111,2,FALSE)/100*AU105 -> 0 | BS105: =VLOOKUP(Y$3,Prisindeks!$A$1:$B$111,2,FALSE)/100*AV105 -> 0 | BT105: =+SUM(AX105:BS105) -> 0 | BU105: =(AA105+AX105)/2 -> 0 | BV105: 0 | BW105: 0 | BX105: 0 | BY105: 0 | BZ105: 0 | CA105: 0 | CB105: 0 | CC105: 0 | CD105: 0 | CE105: =(AK105+BH105)/2 -> 0 | CF105: 0 | CG105: 0 | CH105: 0 | CI105: 0 | CJ105: 0 | CK105: 0 | CL105: 0 | CM105: 0 | CN105: 0 | CO105: =(AU105+BR105)/2 -> 0 | CP105: =(AV105+BS105)/2 -> 0 | CQ105: =+AVERAGE(AW105,BT105) -> 0 | CR105: =SUM(D105:Y105) -> 0
A106: Beluftningsanlæg, rislebakke, Konstruktioner | B106: m³/h | C106: =Genanskaffelsespriser!$E$36 -> 50 | D106: 0 | E106: 0 | F106: 0 | G106: 0 | H106: 0 | I106: 0 | J106: 0 | K106: 0 | L106: 0 | M106: 0 | N106: 0 | O106: 0 | P106: 0 | Q106: 0 | R106: 0 | S106: 0 | T106: 0 | U106: 0 | V106: 0 | W106: 0 | X106: 0 | Y106: 0 | Z106: =IF(COUNTIF(D106:Y106,"<>0")<=1,IF((SUM(D106:Y106))>0,(+HLOOKUP((SUM(D106:Y106)),Priser!$E$96:$J$108,6)+((SUM(D106:Y106))-HLOOKUP((SUM(D106:Y106)),Priser!$E$96:$J$108,1))*HLOOKUP((SUM(D106:Y106)),Priser!$E$96:$J$108,7))/(SUM(D106:Y106)),0)*Priser!$Q$103*(1+Genanskaffelsespriser!$D$196),$A$1373) -> 0 | AA106: =IF((D106*$Z106-(2009-D$3)/($C106+D107)*$Z106*D106)<0,0,(D106*$Z106-(2009-D$3)/($C106+D107)*$Z106*D106)) -> 0 | AB106: 0 | AC106: 0 | AD106: 0 | AE106: 0 | AF106: 0 | AG106: 0 | AH106: 0 | AI106: 0 | AJ106: 0 | AK106: 0 | AL106: 0 | AM106: 0 | AN106: 0 | AO106: 0 | AP106: 0 | AQ106: 0 | AR106: 0 | AS106: 0 | AT106: 0 | AU106: 0 | AV106: 0 | AW106: =+SUM(AA106:AV106) -> 0 | AX106: =VLOOKUP(D$3,Prisindeks!$A$1:$B$111,2,FALSE)/100*AA106 -> 0 | AY106: =VLOOKUP(E$3,Prisindeks!$A$1:$B$111,2,FALSE)/100*AB106 -> 0 | AZ106: =VLOOKUP(F$3,Prisindeks!$A$1:$B$111,2,FALSE)/100*AC106 -> 0 | BA106: =VLOOKUP(G$3,Prisindeks!$A$1:$B$111,2,FALSE)/100*AD106 -> 0 | BB106: =VLOOKUP(H$3,Prisindeks!$A$1:$B$111,2,FALSE)/100*AE106 -> 0 | BC106: =VLOOKUP(I$3,Prisindeks!$A$1:$B$111,2,FALSE)/100*AF106 -> 0 | BD106: =VLOOKUP(J$3,Prisindeks!$A$1:$B$111,2,FALSE)/100*AG106 -> 0 | BE106: =VLOOKUP(K$3,Prisindeks!$A$1:$B$111,2,FALSE)/100*AH106 -> 0 | BF106: =VLOOKUP(L$3,Prisindeks!$A$1:$B$111,2,FALSE)/100*AI106 -> 0 | BG106: =VLOOKUP(M$3,Prisindeks!$A$1:$B$111,2,FALSE)/100*AJ106 -> 0 | BH106: =VLOOKUP(N$3,Prisindeks!$A$1:$B$111,2,FALSE)/100*AK106 -> 0 | BI106: =VLOOKUP(O$3,Prisindeks!$A$1:$B$111,2,FALSE)/100*AL106 -> 0 | BJ106: =VLOOKUP(P$3,Prisindeks!$A$1:$B$111,2,FALSE)/100*AM106 -> 0 | BK106: =VLOOKUP(Q$3,Prisindeks!$A$1:$B$111,2,FALSE)/100*AN106 -> 0 | BL106: =VLOOKUP(R$3,Prisindeks!$A$1:$B$111,2,FALSE)/100*AO106 -> 0 | BM106: =VLOOKUP(S$3,Prisindeks!$A$1:$B$111,2,FALSE)/100*AP106 -> 0 | BN106: =VLOOKUP(T$3,Prisindeks!$A$1:$B$111,2,FALSE)/100*AQ106 -> 0 | BO106: =VLOOKUP(U$3,Prisindeks!$A$1:$B$111,2,FALSE)/100*AR106 -> 0 | BP106: =VLOOKUP(V$3,Prisindeks!$A$1:$B$111,2,FALSE)/100*AS106 -> 0 | BQ106: =VLOOKUP(W$3,Prisindeks!$A$1:$B$111,2,FALSE)/100*AT106 -> 0 | BR106: =VLOOKUP(X$3,Prisindeks!$A$1:$B$111,2,FALSE)/100*AU106 -> 0 | BS106: =VLOOKUP(Y$3,Prisindeks!$A$1:$B$111,2,FALSE)/100*AV106 -> 0 | BT106: =+SUM(AX106:BS106) -> 0 | BU106: 0 | BV106: 0 | BW106: 0 | BX106: 0 | BY106: 0 | BZ106: 0 | CA106: 0 | CB106: 0 | CC106: 0 | CD106: 0 | CE106: 0 | CF106: 0 | CG106: 0 | CH106: 0 | CI106: 0 | CJ106: 0 | CK106: 0 | CL106: 0 | CM106: 0 | CN106: 0 | CO106: =(AU106+BR106)/2 -> 0 | CP106: =(AV106+BS106)/2 -> 0 | CQ106: =+AVERAGE(AW106,BT106) -> 0 | CR106: =SUM(D106:Y106) -> 0
A107: Levetidsforlængelse | B107: år | C107: - | D107: 0 | E107: 0 | F107: 0 | G107: 0 | H107: 0 | I107: 0 | J107: 0 | K107: 0 | L107: 0 | M107: 0 | N107: 0 | O107: 0 | P107: 0 | Q107: 0 | R107: 0 | S107: 0 | T107: 0 | U107: 0 | V107: 0 | W107: 0 | X107: 0 | Y107: 0
A108: Beluftningsanlæg, rislebakke, Mek./EL | B108: m³/h | C108: =Genanskaffelsespriser!$E$37 -> 25 | D108: 0 | E108: 0 | F108: 0 | G108: 0 | H108: 0 | I108: 0 | J108: 0 | K108: 0 | L108: 0 | M108: 0 | N108: 0 | O108: 0 | P108: 0 | Q108: 0 | R108: 0 | S108: 0 | T108: 0 | U108: 0 | V108: 0 | W108: 0 | X108: 0 | Y108: 0 | Z108: =IF(COUNTIF(D108:Y108,"<>0")<=1,IF((SUM(D108:Y108))>0,(+HLOOKUP((SUM(D108:Y108)),Priser!$E$96:$J$108,6)+((SUM(D108:Y108))-HLOOKUP((SUM(D108:Y108)),Priser!$E$96:$J$108,1))*HLOOKUP((SUM(D108:Y108)),Priser!$E$96:$J$108,7))/(SUM(D108:Y108)),0)*Priser!$R$103*(1+Genanskaffelsespriser!$D$196),$A$1373) -> 0 | AA108: =IF((D108*$Z108-(2009-D$3)/$C108*$Z108*D108)<0,0,(D108*$Z108-(2009-D$3)/$C108*$Z108*D108)) -> 0 | AB108: 0 | AC108: 0 | AD108: 0 | AE108: 0 | AF108: 0 | AG108: 0 | AH108: 0 | AI108: 0 | AJ108: 0 | AK108: =IF((N108*$Z108-(2009-N$3)/$C108*$Z108*N108)<0,0,(N108*$Z108-(2009-N$3)/$C108*$Z108*N108)) -> 0 | AL108: 0 | AM108: 0 | AN108: 0 | AO108: 0 | AP108: 0 | AQ108: 0 | AR108: 0 | AS108: 0 | AT108: 0 | AU108: =IF((X108*$Z108-(2009-X$3)/$C108*$Z108*X108)<0,0,(X108*$Z108-(2009-X$3)/$C108*$Z108*X108)) -> 0 | AV108: 0 | AW108: =+SUM(AA108:AV108) -> 0 | AX108: =VLOOKUP(D$3,Prisindeks!$A$1:$B$111,2,FALSE)/100*AA108 -> 0 | AY108: =VLOOKUP(E$3,Prisindeks!$A$1:$B$111,2,FALSE)/100*AB108 -> 0 | AZ108: =VLOOKUP(F$3,Prisindeks!$A$1:$B$111,2,FALSE)/100*AC108 -> 0 | BA108: =VLOOKUP(G$3,Prisindeks!$A$1:$B$111,2,FALSE)/100*AD108 -> 0 | BB108: =VLOOKUP(H$3,Prisindeks!$A$1:$B$111,2,FALSE)/100*AE108 -> 0 | BC108: =VLOOKUP(I$3,Prisindeks!$A$1:$B$111,2,FALSE)/100*AF108 -> 0 | BD108: =VLOOKUP(J$3,Prisindeks!$A$1:$B$111,2,FALSE)/100*AG108 -> 0 | BE108: =VLOOKUP(K$3,Prisindeks!$A$1:$B$111,2,FALSE)/100*AH108 -> 0 | BF108: =VLOOKUP(L$3,Prisindeks!$A$1:$B$111,2,FALSE)/100*AI108 -> 0 | BG108: =VLOOKUP(M$3,Prisindeks!$A$1:$B$111,2,FALSE)/100*AJ108 -> 0 | BH108: =VLOOKUP(N$3,Prisindeks!$A$1:$B$111,2,FALSE)/100*AK108 -> 0 | BI108: =VLOOKUP(O$3,Prisindeks!$A$1:$B$111,2,FALSE)/100*AL108 -> 0 | BJ108: =VLOOKUP(P$3,Prisindeks!$A$1:$B$111,2,FALSE)/100*AM108 -> 0 | BK108: =VLOOKUP(Q$3,Prisindeks!$A$1:$B$111,2,FALSE)/100*AN108 -> 0 | BL108: =VLOOKUP(R$3,Prisindeks!$A$1:$B$111,2,FALSE)/100*AO108 -> 0 | BM108: =VLOOKUP(S$3,Prisindeks!$A$1:$B$111,2,FALSE)/100*AP108 -> 0 | BN108: =VLOOKUP(T$3,Prisindeks!$A$1:$B$111,2,FALSE)/100*AQ108 -> 0 | BO108: =VLOOKUP(U$3,Prisindeks!$A$1:$B$111,2,FALSE)/100*AR108 -> 0 | BP108: =VLOOKUP(V$3,Prisindeks!$A$1:$B$111,2,FALSE)/100*AS108 -> 0 | BQ108: =VLOOKUP(W$3,Prisindeks!$A$1:$B$111,2,FALSE)/100*AT108 -> 0 | BR108: =VLOOKUP(X$3,Prisindeks!$A$1:$B$111,2,FALSE)/100*AU108 -> 0 | BS108: =VLOOKUP(Y$3,Prisindeks!$A$1:$B$111,2,FALSE)/100*AV108 -> 0 | BT108: =+SUM(AX108:BS108) -> 0 | BU108: =(AA108+AX108)/2 -> 0 | BV108: 0 | BW108: 0 | BX108: 0 | BY108: 0 | BZ108: 0 | CA108: 0 | CB108: 0 | CC108: 0 | CD108: 0 | CE108: =(AK108+BH108)/2 -> 0 | CF108: 0 | CG108: 0 | CH108: 0 | CI108: 0 | CJ108: 0 | CK108: 0 | CL108: 0 | CM108: 0 | CN108: 0 | CO108: =(AU108+BR108)/2 -> 0 | CP108: 0 | CQ108: =+AVERAGE(AW108,BT108) -> 0 | CR108: =SUM(D108:Y108) -> 0
A109: Beluftningsanlæg, kompressorbeluftning | B109: m³/h | C109: =Genanskaffelsespriser!$E$38 -> 25 | D109: 0 | E109: 0 | F109: 0 | G109: 0 | H109: 0 | I109: 0 | J109: 0 | K109: 0 | L109: 0 | M109: 0 | N109: 0 | O109: 0 | P109: 0 | Q109: 0 | R109: 0 | S109: 0 | T109: 0 | U109: 0 | V109: 0 | W109: 0 | X109: 0 | Y109: 0 | Z109: =IF(COUNTIF(D109:Y109,"<>0")<=1,IF((SUM(D109:Y109))>0,(+HLOOKUP((SUM(D109:Y109)),Priser!$E$96:$J$108,10)+((SUM(D109:Y109))-HLOOKUP((SUM(D109:Y109)),Priser!$E$96:$J$108,1))*HLOOKUP((SUM(D109:Y109)),Priser!$E$96:$J$108,11))/(SUM(D109:Y109)),0)*(1+Genanskaffelsespriser!$D$196),$A$1373) -> 0 | AA109: 0 | AB109: 0 | AC109: 0 | AD109: 0 | AE109: 0 | AF109: 0 | AG109: 0 | AH109: 0 | AI109: 0 | AJ109: 0 | AK109: 0 | AL109: 0 | AM109: 0 | AN109: 0 | AO109: 0 | AP109: 0 | AQ109: 0 | AR109: 0 | AS109: 0 | AT109: 0 | AU109: 0 | AV109: 0 | AW109: 0 | AX109: =VLOOKUP(D$3,Prisindeks!$A$1:$B$111,2,FALSE)/100*AA109 -> 0 | AY109: =VLOOKUP(E$3,Prisindeks!$A$1:$B$111,2,FALSE)/100*AB109 -> 0 | AZ109: =VLOOKUP(F$3,Prisindeks!$A$1:$B$111,2,FALSE)/100*AC109 -> 0 | BA109: =VLOOKUP(G$3,Prisindeks!$A$1:$B$111,2,FALSE)/100*AD109 -> 0 | BB109: =VLOOKUP(H$3,Prisindeks!$A$1:$B$111,2,FALSE)/100*AE109 -> 0 | BC109: =VLOOKUP(I$3,Prisindeks!$A$1:$B$111,2,FALSE)/100*AF109 -> 0 | BD109: =VLOOKUP(J$3,Prisindeks!$A$1:$B$111,2,FALSE)/100*AG109 -> 0 | BE109: =VLOOKUP(K$3,Prisindeks!$A$1:$B$111,2,FALSE)/100*AH109 -> 0 | BF109: =VLOOKUP(L$3,Prisindeks!$A$1:$B$111,2,FALSE)/100*AI109 -> 0 | BG109: =VLOOKUP(M$3,Prisindeks!$A$1:$B$111,2,FALSE)/100*AJ109 -> 0 | BH109: =VLOOKUP(N$3,Prisindeks!$A$1:$B$111,2,FALSE)/100*AK109 -> 0 | BI109: =VLOOKUP(O$3,Prisindeks!$A$1:$B$111,2,FALSE)/100*AL109 -> 0 | BJ109: =VLOOKUP(P$3,Prisindeks!$A$1:$B$111,2,FALSE)/100*AM109 -> 0 | BK109: =VLOOKUP(Q$3,Prisindeks!$A$1:$B$111,2,FALSE)/100*AN109 -> 0 | BL109: =VLOOKUP(R$3,Prisindeks!$A$1:$B$111,2,FALSE)/100*AO109 -> 0 | BM109: =VLOOKUP(S$3,Prisindeks!$A$1:$B$111,2,FALSE)/100*AP109 -> 0 | BN109: =VLOOKUP(T$3,Prisindeks!$A$1:$B$111,2,FALSE)/100*AQ109 -> 0 | BO109: =VLOOKUP(U$3,Prisindeks!$A$1:$B$111,2,FALSE)/100*AR109 -> 0 | BP109: =VLOOKUP(V$3,Prisindeks!$A$1:$B$111,2,FALSE)/100*AS109 -> 0 | BQ109: =VLOOKUP(W$3,Prisindeks!$A$1:$B$111,2,FALSE)/100*AT109 -> 0 | BR109: =VLOOKUP(X$3,Prisindeks!$A$1:$B$111,2,FALSE)/100*AU109 -> 0 | BS109: =VLOOKUP(Y$3,Prisindeks!$A$1:$B$111,2,FALSE)/100*AV109 -> 0 | BT109: 0 | BU109: 0 | BV109: 0 | BW109: 0 | BX109: 0 | BY109: 0 | BZ109: 0 | CA109: 0 | CB109: 0 | CC109: 0 | CD109: 0 | CE109: 0 | CF109: 0 | CG109: 0 | CH109: 0 | CI109: 0 | CJ109: 0 | CK109: 0 | CL109: 0 | CM109: 0 | CN109: 0 | CO109: 0 | CP109: 0 | CQ109: 0 | CR109: 0
A110: Beluftningsanlæg, ren ilt | B110: m³/h | C110: =Genanskaffelsespriser!$E$39 -> 25 | D110: 0 | E110: 0 | F110: 0 | G110: 0 | H110: 0 | I110: 0 | J110: 0 | K110: 0 | L110: 0 | M110: 0 | N110: 0 | O110: 0 | P110: 0 | Q110: 0 | R110: 0 | S110: 0 | T110: 0 | U110: 0 | V110: 0 | W110: 0 | X110: 0 | Y110: 0 | Z110: =IF(COUNTIF(D110:Y110,"<>0")<=1,IF((SUM(D110:Y110))>0,(+HLOOKUP((SUM(D110:Y110)),Priser!$E$96:$J$108,12)+((SUM(D110:Y110))-HLOOKUP((SUM(D110:Y110)),Priser!$E$96:$J$108,1))*HLOOKUP((SUM(D110:Y110)),Priser!$E$96:$J$108,13))/(SUM(D110:Y110)),0)*(1+Genanskaffelsespriser!$D$196),$A$1373) -> 0 | AA110: 0 | AB110: 0 | AC110: 0 | AD110: 0 | AE110: 0 | AF110: 0 | AG110: 0 | AH110: 0 | AI110: 0 | AJ110: 0 | AK110: 0 | AL110: 0 | AM110: 0 | AN110: 0 | AO110: 0 | AP110: 0 | AQ110: 0 | AR110: 0 | AS110: 0 | AT110: 0 | AU110: 0 | AV110: 0 | AW110: 0 | AX110: =VLOOKUP(D$3,Prisindeks!$A$1:$B$111,2,FALSE)/100*AA110 -> 0 | AY110: =VLOOKUP(E$3,Prisindeks!$A$1:$B$111,2,FALSE)/100*AB110 -> 0 | AZ110: =VLOOKUP(F$3,Prisindeks!$A$1:$B$111,2,FALSE)/100*AC110 -> 0 | BA110: =VLOOKUP(G$3,Prisindeks!$A$1:$B$111,2,FALSE)/100*AD110 -> 0 | BB110: =VLOOKUP(H$3,Prisindeks!$A$1:$B$111,2,FALSE)/100*AE110 -> 0 | BC110: =VLOOKUP(I$3,Prisindeks!$A$1:$B$111,2,FALSE)/100*AF110 -> 0 | BD110: =VLOOKUP(J$3,Prisindeks!$A$1:$B$111,2,FALSE)/100*AG110 -> 0 | BE110: =VLOOKUP(K$3,Prisindeks!$A$1:$B$111,2,FALSE)/100*AH110 -> 0 | BF110: =VLOOKUP(L$3,Prisindeks!$A$1:$B$111,2,FALSE)/100*AI110 -> 0 | BG110: =VLOOKUP(M$3,Prisindeks!$A$1:$B$111,2,FALSE)/100*AJ110 -> 0 | BH110: =VLOOKUP(N$3,Prisindeks!$A$1:$B$111,2,FALSE)/100*AK110 -> 0 | BI110: =VLOOKUP(O$3,Prisindeks!$A$1:$B$111,2,FALSE)/100*AL110 -> 0 | BJ110: =VLOOKUP(P$3,Prisindeks!$A$1:$B$111,2,FALSE)/100*AM110 -> 0 | BK110: =VLOOKUP(Q$3,Prisindeks!$A$1:$B$111,2,FALSE)/100*AN110 -> 0 | BL110: =VLOOKUP(R$3,Prisindeks!$A$1:$B$111,2,FALSE)/100*AO110 -> 0 | BM110: =VLOOKUP(S$3,Prisindeks!$A$1:$B$111,2,FALSE)/100*AP110 -> 0 | BN110: =VLOOKUP(T$3,Prisindeks!$A$1:$B$111,2,FALSE)/100*AQ110 -> 0 | BO110: =VLOOKUP(U$3,Prisindeks!$A$1:$B$111,2,FALSE)/100*AR110 -> 0 | BP110: =VLOOKUP(V$3,Prisindeks!$A$1:$B$111,2,FALSE)/100*AS110 -> 0 | BQ110: =VLOOKUP(W$3,Prisindeks!$A$1:$B$111,2,FALSE)/100*AT110 -> 0 | BR110: =VLOOKUP(X$3,Prisindeks!$A$1:$B$111,2,FALSE)/100*AU110 -> 0 | BS110: =VLOOKUP(Y$3,Prisindeks!$A$1:$B$111,2,FALSE)/100*AV110 -> 0 | BT110: 0 | BU110: 0 | BV110: 0 | BW110: 0 | BX110: 0 | BY110: 0 | BZ110: 0 | CA110: 0 | CB110: 0 | CC110: 0 | CD110: 0 | CE110: 0 | CF110: 0 | CG110: 0 | CH110: 0 | CI110: 0 | CJ110: 0 | CK110: 0 | CL110: 0 | CM110: 0 | CN110: 0 | CO110: 0 | CP110: 0 | CQ110: 0 | CR110: 0
